{"text_format":"1","workbook":"xlsx","n_sheets":9,"sheets":["Klimarelevanzprüfung","Prüfungsfragen","Beschlussampel","Anleitung","Themenzuordnung","Bearbeitung","Beschlussampel_Zusammenfassung","Berechnungen","Text"],"not_rendered":{"charts":0,"images":50,"macros":1,"external_links":0,"defined_names":3,"comments":7,"pivot_tables":0},"unopened":[],"bounds":{"document_bytes":16777216,"sheet_cells":100000,"rows_first":2000,"rows_last":500,"rows_between":2000,"halvings":0,"cell_chars":16384,"cell_head_chars":4096},"cells_cut":0,"cells_raw":0,"read":"whole","date_system":"1900"}

{"sheet":"Klimarelevanzprüfung","index":0,"n_rows":23,"n_cols":10,"rows_kept":23,"cut":false,"hidden":false,"merged":[[24,2,24,9],[25,2,25,9],[18,0,18,1],[15,0,15,1],[15,2,15,9],[16,2,16,9],[1,1,1,8],[11,0,11,1],[12,0,12,1],[13,0,13,1],[14,0,14,1],[11,2,11,6],[12,2,12,6],[13,2,13,6],[9,0,9,2],[4,1,7,8]]}
[]
[null,"Klimarelevanzprüfung"]
[]
[]
[]
[]
[]
[]
[]
["Einwohnerzahl der Gemeinde"]
[]
["Abteilung:",null,null,null,null,null,null,null,"Thema","alle Fragen einblenden"]
["Sachbearbeiter/in:",null,null,null,null,null,null,null,"Datum"]
["Projektname: ",null,null,null,null,null,null,null,"Projektnr. /Geschäftszahl  "]
[" "]
["Projektbeschreibung:"]
[]
[]
["Einstieg: "]
[]
[]
[]
[null,null,"Bitte begründen Sie kurz, warum das Projekt bzw. das Vorhaben nicht klimarelevant ist"]

{"sheet":"Prüfungsfragen","index":1,"n_rows":28,"n_cols":19,"rows_kept":28,"cut":false,"hidden":false,"merged":[[1,7,1,10],[1,11,1,16],[2,7,2,9],[2,10,3,10],[2,11,2,13],[2,14,2,16]]}
[null,null,null,null,null,null,null,null,null,null,null,null,null,null,null,null,null,null,"Bitte auswählen"]
[null,null,null,null,null,null,null,"Klimaschaden",null,null,null,"Klimanutzen",null,null,null,null,null,null,"Ja/Vielleicht"]
[null,null,null,null,null,null,null,"Ampelwerte",null,null,"Kompen-sation","Umsetzung",null,null,"Ampelwerte",null,null,null,"Nein"]
[null,"Fragen","Nr.","Kriterium","Ja / Nein","Bearbeiten",null,{"$f":"-1","v":-1},{"$f":"0","v":0},{"$f":"1","v":1},null,"😐","🙂","😀",1,2,3]
[]
[null,{"$f":"Berechnungen!A18","v":"Fossile Energie"},1,{"$f":"Berechnungen!C18","v":"Wird durch das Vorhaben zusätzlich fossile Energie (Öl, Gas, Kohle, fossiler Strom) in einem Gebäude oder einer Anlage verbraucht?"},null,null,null,{"$f":"Bearbeitung!Q8","v":""},{"$f":"Bearbeitung!R8","v":""},{"$f":"Bearbeitung!S8","v":""},{"$f":"Bearbeitung!T8","v":""}]
[]
[null,{"$f":"Berechnungen!A56","v":"Motorisierter Verkehr"},2,{"$f":"Berechnungen!C56","v":"Erzeugt das Vorhaben zusätzlichen motorisierten PKW- oder Güterverkehr? "},null,null,null,{"$f":"Bearbeitung!Q32","v":""},{"$f":"Bearbeitung!R32","v":""},{"$f":"Bearbeitung!S32","v":""},{"$f":"Bearbeitung!T32","v":""}]
[]
[null,{"$f":"Berechnungen!A96","v":"Versiegelung"},3,{"$f":"Berechnungen!C96","v":"Werden durch das Projekt zusätzliche Flächen versiegelt und/oder gehen Naturräume verloren?"},null,null,null,{"$f":"Bearbeitung!Q55","v":""},{"$f":"Bearbeitung!R55","v":""},{"$f":"Bearbeitung!S55","v":""},{"$f":"Bearbeitung!T55","v":""}]
[]
[null,{"$f":"Berechnungen!A132","v":"Bauen"},4,{"$f":"Berechnungen!C132","v":"Werden beim Vorhaben Gebäude oder Anlagen neu gebaut oder saniert?"},null,null,null,{"$f":"Bearbeitung!Q79","v":""},{"$f":"Bearbeitung!R79","v":""},{"$f":"Bearbeitung!S79","v":""},{"$f":"Bearbeitung!T79","v":""}]
[]
[null,{"$f":"Berechnungen!A174","v":"Beschaffung, Subvention"},5,{"$f":"Berechnungen!C174","v":"Wird eine Beschaffung oder eine Ausschreibung vorgenommen? Wird eine Veranstaltung durchgeführt oder eine Organisation subventioniert? "},null,null,null,{"$f":"Bearbeitung!Q106","v":""},{"$f":"Bearbeitung!R106","v":""},{"$f":"Bearbeitung!S106","v":""},{"$f":"Bearbeitung!T106","v":""}]
[]
[null,{"$f":"Berechnungen!A218","v":"Sonstige negative Klimarelevanz"},6,{"$f":"Berechnungen!C218","v":"Gibt es eine negative Auswirkung auf das Klima, die in den vorherigen Fragen nicht erwähnt wurde?"},null,null,null,{"$f":"Bearbeitung!Q129","v":""},{"$f":"Bearbeitung!R129","v":""},{"$f":"Bearbeitung!S129","v":""},{"$f":"Bearbeitung!T129","v":""}]
[]
[null,{"$f":"Berechnungen!A243","v":"Erneuerbare Energie"},7,{"$f":"Berechnungen!C243","v":"Kann durch das Vorhaben erneuerbare Energie (Biomasse, Sonne, Umgebungswärme) erzeugt oder fossile Energie eingespart werden (Dämmung, Heizungstausch, …) ? "},null,null,null,null,null,null,null,{"$f":"Bearbeitung!V155","v":""},{"$f":"Bearbeitung!W155","v":""},{"$f":"Bearbeitung!X155","v":""},{"$f":"Bearbeitung!Q157","v":""},{"$f":"Bearbeitung!R157","v":""},{"$f":"Bearbeitung!S157","v":""}]
[]
[null,{"$f":"Berechnungen!A285","v":"Klimafreundliche Mobilität"},8,{"$f":"Berechnungen!C285","v":"Kann das Vorhaben einen Anreiz für klimafreundliche Mobilität setzen (Radfahren, Gehen, Öffis, alternative Antriebe) oder den PKW- bzw. Güterverkehr reduzieren?"},null,null,null,null,null,null,null,{"$f":"Bearbeitung!Q190","v":""},{"$f":"Bearbeitung!R190","v":""},{"$f":"Bearbeitung!S190","v":""},{"$f":"Bearbeitung!Q190","v":""},{"$f":"Bearbeitung!R190","v":""},{"$f":"Bearbeitung!S190","v":""}]
[]
[null,{"$f":"Berechnungen!A340","v":"Begrünungen"},9,{"$f":"Berechnungen!C340","v":"Können durch das Projekt zusätzlich Begrünungen und Biodiversitätsflächen geschaffen oder Flächen entsiegelt werden? Werden im Projekt Maßnahmen zur Nachhaltigkeit von Gebäudemanagement und zur kommunalen Grünräumpflege umgesetzt?"},null,null,null,null,null,null,null,{"$f":"Bearbeitung!V223","v":""},{"$f":"Bearbeitung!W223","v":""},{"$f":"Bearbeitung!X223","v":""},{"$f":"Bearbeitung!Q223","v":""},{"$f":"Bearbeitung!R223","v":""},{"$f":"Bearbeitung!S223","v":""}]
[]
[null,{"$f":"Berechnungen!A386","v":"Planung"},10,{"$f":"Berechnungen!C386","v":"Kann die Planung möglichst klimafreundlich entwickelt werden?\nBetrifft regionales oder örtliches Entwicklungskonzept, Flächenwidmungsplan, Bebauungsplan, Städtebauliche Konzepte, Städtebauliche  Leitbilder o.ä."},null,null,null,null,null,null,null,{"$f":"Bearbeitung!Q253","v":""},{"$f":"Bearbeitung!R253","v":""},{"$f":"Bearbeitung!S253","v":""},{"$f":"Bearbeitung!Q253","v":""},{"$f":"Bearbeitung!R253","v":""},{"$f":"Bearbeitung!S253","v":""}]
[]
[null,{"$f":"Berechnungen!A428","v":"Öffentlichkeitsarbeit & Förderungen"},11,{"$f":"Berechnungen!C428","v":"Kann mit dem Projekt öffentlichkeitswirksam für mehr Klimaschutz bei der  Bevölkerung und der Verwaltung geworben werden? Auch durch Förderungen oder Abgaben für Ver- und Entsorgung."},null,null,null,null,null,null,null,{"$f":"Bearbeitung!Q286","v":""},{"$f":"Bearbeitung!R286","v":""},{"$f":"Bearbeitung!S286","v":""},{"$f":"Bearbeitung!Q286","v":""},{"$f":"Bearbeitung!R286","v":""},{"$f":"Bearbeitung!S286","v":""}]
[]
[null,{"$f":"Berechnungen!A475","v":"Sonstige positive Klimarelevanz"},12,{"$f":"Berechnungen!C475","v":"Gibt es eine positive Auswirkung auf das Klima, die in den vorherigen Fragen nicht erwähnt wurde?"},null,null,null,null,null,null,null,null,null,null,{"$f":"Bearbeitung!Q312","v":""},{"$f":"Bearbeitung!R312","v":""},{"$f":"Bearbeitung!S312","v":""}]

{"sheet":"Beschlussampel","index":2,"n_rows":10,"n_cols":11,"rows_kept":10,"cut":false,"hidden":false,"merged":[[9,6,10,6],[9,3,9,4],[1,1,1,6],[3,1,3,2],[4,1,4,2],[8,1,8,2],[8,3,8,4],[6,1,7,2],[6,3,6,6],[7,3,7,6],[9,1,10,2],[10,3,10,4],[9,5,10,5],[5,1,5,2]]}
[]
[null,"Klimarelevanz Beschlussampel"]
[]
[null,{"$f":"Klimarelevanzprüfung!A14","v":"Projektname: "},null,{"$f":"IF(Klimarelevanzprüfung!C14 =\"\",\"\", Klimarelevanzprüfung!C14)","v":""},{"$f":"Klimarelevanzprüfung!I14","v":"Projektnr. /Geschäftszahl  "},{"$f":"IF(Klimarelevanzprüfung!J14 =\"\",\"\", Klimarelevanzprüfung!J14)","v":""}]
[null,{"$f":"Klimarelevanzprüfung!A12","v":"Abteilung:"},null,{"$f":"IF(Klimarelevanzprüfung!C12 =\"\",\"\", Klimarelevanzprüfung!C12)","v":""},"Datum:",{"$f":"IF(Klimarelevanzprüfung!J13 =\"\",\"\", Klimarelevanzprüfung!J13)","v":""},null,null,null,null,"Ja"]
[null,"Sachbearbeiter/in:",null,{"$f":"IF(Klimarelevanzprüfung!C13 =\"\",\"\", Klimarelevanzprüfung!C13)","v":""}]
[null,{"$f":"Klimarelevanzprüfung!A16","v":"Projektbeschreibung:"},null,{"$f":"IF(Klimarelevanzprüfung!C16=\"\",\"\",Klimarelevanzprüfung!C16)","v":""},null,null,null,null,null,null,"Projekt ist nicht klimarelevant"]
[null,null,null,{"$f":"IF(Klimarelevanzprüfung!C17=\"\",\"\",Klimarelevanzprüfung!C17)","v":""},null,null,null,null,null,null,"Klimarelevanzprüfung negativ"]
[null,"Prüfungsergebnis:",null,"Projekt ist nicht klimarelevant",null,"Ampel:",{"$f":"IF(D9=K8,-1,IF(D9=K9,0,IF(D9=K10,1,\"\")))","v":""},null,null,null,"Klimarelevanzprüfung positiv trotz negativer Klimaauswirkungen"]
[null,"Prüfungsanmerkungen: ",null,null,null,"Geprüft durch Klimaschutz-Sachbearbeiter/in:",null,null,null,null,"Klimarelevanzprüfung positiv"]

{"sheet":"Anleitung","index":3,"n_rows":46,"n_cols":1,"rows_kept":46,"cut":false,"hidden":false,"merged":[]}
["Kriterienkatalog zur Prüfung und \nBewertung kommunaler Beschlussvorlagen\nauf Klimarelevanz"]
["Informationen zur Benützung"]
["Das Bewertungstool gliedert sich in die Bereiche Klimarelevanzprüfung, Beschlussampel und Anleitung."]
["In der Klimarelevanzprüfung finden alle relevanten Eingaben zur Klimarelevanzprüfung statt. "]
["Die Beschlussampel zeigt auf einen Blick die Klimarelevanz des Vorhabens und dient der Freigabe."]
["Die Anleitung gibt Hinweise zur Verwendung der wesentlichen Bereiche des Tools."]
[]
["Klimarelevanzprüfung"]
["Einstieg:\nBeim Einstieg  werden die Daten von dem zuständigen Sachbearbeiter bzw. der Sachbearbeiterin (Name, Abteilung) sowie zum Projekt bzw. der Beschlussvorlage (Name/Nummer, optionale Beschreibung) eingegeben. Das Bild von der Gemeinde und das Logo können ausgetauscht werden. Die Einwohnerzahl muss eingetragen werden, da diese die Schwellenwerte für die Bewertung bestimmen. \nSodann erfolgt die erste Stufe der Prüfung, die Voreinschätzung der Klimarelevanz. Ist die Antwort \"Nein\" kann die Klimaprüfung - nach einer Begründung - beendet werden und das Tool speichert das Ergebnis als eigene Bewertungsdatei."]
["Fragen zu dem betrachteten Thema : \nDurch Auswahl von „Ja/Vielleicht“ öffnet sich der Kriterienkatalog mit insgesamt 12 Fragen. Die Fragen 1 bis 6 beziehen sich auf mögliche negative Klimarelevanz bzw. Klimaschaden.  Die Fragen 7 bis 12 betrachten positive Klimarelevanz bzw. Klimanutzen.  \nAbhängig vom Thema müssen vom Sachbearbeiter bzw. der Sachbearbeiterin zwischen einer und maximal 12 Fragen beantwortet werden. Deshalb ist eine Themenauswahl - bei der Programmbeschreibung rechts oben - hilfreich. Es werden nur die jeweils relevanten Fragen eingeblendet, um eine schnelle Durchführung zu ermöglichen. \nBeim Thema Gebäude sind die Fragen 1, 3, 4, 7 sowie 9 in jedem Fall zu bearbeiten, bei (sehr) großen Bauprojekten, die das Verkehrsaufkommen beeinflussen können, zusätzlich die Fragen 2, 8 und 11.  Beim Thema Beschaffung sind 2 Fragen zu bearbeiten. Alle zur Zeit vordefinierten Themen sind in der Tabelle Themenzuordnung zu finden."]
["Detailfragen: \nFür die eingeblendeten Fragen jedes Themas kann wiederum die Klimarelevanz durch Klicken von „Ja/Vielleicht“ oder „Nein“ beantwortet werden. Durch das Klicken von „Nein“ wird diese Frage  in hellgrauer Schrift angezeigt und damit als nicht relevant gekennzeichnet. Mit der Auswahl von „Ja/Vielleicht“ öffnen sich die Detailfragen. Unter \"Hilfe\" finden sich erklärende Hilfetexte bei den Fragen.\nSind alle Detailfragen bantwortet wird mit \"Weiter/Schließen\" beendet. Wenn rote oder gelbe Ampeln vorhanden sind, zeigt  es die Alternativenprüfung. "]
["Kriterien zu jeder Detailfrage:\nDer Sachbearbeiter bzw. die Sachbearbeiterin wird nach Kriterien befragt, die er/sie im Normalfall bei der Vorbereitung des Beschlusses leicht eingeben kann. Z. B. bei einem Bauprojekt die Bruttogeschoßfläche, bei einem Verkehrsprojekt die Anzahl zusätzlicher Stellplätze oder bei einem Beschaffungsprojekt der Anteil nach bestimmten Richtlinien eingekauften/beschafften Produkte. Bei Fragen mit temporärer Auswirkung kann man die Einstufung um eine Stufe reduzieren. "]
[" Für die Antworten benötigt man keine exakt berechneten Werte sondern man wählt per Dropdown einen vorgegebenen Bereich. Es steht auch immer die Auswahl von „nicht relevant“ zur Verfügung, wenn das zu bearbeitende Vorhaben mit dieser Detailfragestellung nichts zu tun hat. Aus diesen Informationen nimmt das Tool selbstständig eine Einstufung des möglichen CO2-Effekts des Beschlusses vor. Ist der Effekt über einem bestimmten Schwellenwert (etwa 100 t CO2), dann ist der geplante Beschluss erheblich klimarelevant (rote Ampel). \n"]
["Ampelsystem:\nNach jeder Beantwortung einer Detailfrage wird die Klimarelevanz sofort in Form eines Ampelsystems angezeigt. Für den Bereich der negativen Klimaauswirkungen (Klimaschaden) in den Fragen 1 bis 6 gilt:"]
["      Grüne Ampel signalisiert:  Der Beschluss ist wenig klimaschädlich"]
["      Gelbe Ampel signalisiert:  Der Beschluss ist klimaschädlich "]
["      Rote Ampel signalisiert:  Der Beschluss ist sehr  klimaschädlich"]
["Die Schwelllenwerte sind von der Einwohnerzahl abhängig: \nBei Einwohnerzahl unter  5000 Einwohner: \nGrüne Ampel: < 1 t / Gelbe Ampel: 1 - 20 t / Rote AmpeL: > 20 t CO2 auf Lebensdauer\nBei Einwohnerzahl von 5.000 bis 10.000 Einwohner:\nGrüne Ampel: < 3 t / Gelbe Ampel: 3 - 60 t / Rote AmpeL: > 60 t CO2 auf Lebensdauer\nBei Einwohnerzahl ab 10.000 Einwohner: \nGrüne Ampel: < 5 t / Gelbe Ampel: 5 - 100 t / Rote Ampel: > 100 t CO2 auf Lebensdauer\n"]
["Alternativenfindung:\nAbhängig von der Klimarelevanz ergeben sich nun folgende Prozesse für die Verwaltung."]
["Vorgehen bei negativen Auswirkungen (Fragen zur Klimaschädlichkeit 1 - 6):"]
["Gelbe Ampel (mittlere Klimaschädlichkeit) : Überprüfung durch den Sachbearbeiter bzw. die Sachbearbeiterin selbst, ob es Alternativen mit weniger negativen Effekten gibt, wenn möglich Änderung noch vor Vorlage zum Beschluss.  Auch dazu bietet das Tool Tipps zur Alternativenfindung wie z. B. der Einsatz von Ökostrom bei hohem Strombedarf. Hat man eine Alternative gewählt, gibt man im Tool bei der Alternativenprüfung bei der entsprechenden Detailfrage den nunmehr reduzierten Wert ein. Damit verschwindet die zuvor gelbe Ampel jetzt.\nRote Ampel (hohe Klimaschädlichkeit): Einbeziehung Sachbearbeiter/in Klimaschutz ist in diesem Fall notwendig. In der Folge findet eine gemeinsame Bewertung und Überprüfung statt, ob es Alternativen mit weniger negativen Effekten gibt. Am Ende kann entweder ein alternativer Beschlussvorschlag erstellt werden (wird auch im Tool eingegeben) oder eine Kompensationsmaßnahme (mit hohen Klimanutzen) gewählt werden, um die nicht vermeidbaren (zu) hohen CO2-Emissonen abzumindern. Wenn weder die Alternativenprüfung Erfolg bringt noch eine Kompensation möglich ist, wird dies durch einen negativen Abschluss der Klimarelevanzprüfung angezeigt (rote Ampel nicht kompensiert)."]
["Vorgehen bei positiven Auswirkungen (Fragen zum Klimanutzen 7 - 12):"]
["Smiley K (Potenzial für Klimaschutz teilweise ausgenutzt): Überprüfung durch den Sachbearbeiter bzw. die Sachbearbeiterin selbst, ob eine Alternative mit noch größerem positiven Effekt möglich ist.  Auch dazu bietet das Tool Tipps zur Alternativenfindung wie z. B. Vergrößerung der ursprünglich geplanten Photovoltaikanlage, um ein Dach möglichst vollständig auszunutzen.\nSmiley L (Potenzial für Klimaschutz wenig oder gar nicht genutzt): Einbeziehung Sachbearbeiter/in Klimaschutz ist in diesem Fall notwendig. In der Folge findet eine gemeinsame Bewertung und Überprüfung statt, ob eine Alternative mit deutlich  positiverem  Effekt umsetzbar ist.  Auch dazu bietet das Tool wiederum Tipps zur Alternativenfindung wie z.B. thermische Sanierung eines Gebäudes, wo ursprünglich nur ein ästhetischer  Umbau geplant war."]
["Kompensation – Klimanutzen gleicht Klimaschaden aus\nBei den Fragen 7 und 9 gibt es die Möglichkeit den positiven Klimaeffekt für Kompensationsmaßnahmen zu quantifizieren. Dazu gibt der Sachbearbeiter bzw. die Sachbearbeiterin die entsprechende Größe (z. B. Fläche in m2) in das Tool ein. Es wird eine automatische Einstufung entsprechend der gelben Ampel (> 5 und < 100 t CO2) bzw. roten Ampel (> 100 t CO2) durchgeführt. Dadurch ist es direkt im Tool möglich einen Klimaschaden durch einen Klimanutzen in gleicher Größe zu kompensieren.\nBei den anderen Fragen 8, 10, 11 und 12 geschieht dies automatisch durch das Tool, da  hier nur qualitative Einstufungen  möglich sind."]
["Ampelsystem für den Bereich der Kompensation:"]
["       Grüne Ampel auf hellgrünem Hintergrund signalisiert:  Der Beschluss hat geringen Klimanutzen "]
["       Grüne Ampel auf grünem Hintergrund signalisiert:  Der Beschluss hat mittleren Klimanutzen "]
["       Grüne Ampel auf dunkelgrünem Hintergrund signalisiert:  Der Beschluss hat hohen Klimanutzen \n"]
["Die Schwelllenwerte sind von der Einwohnerzahl abhängig: \nBei Einwohnerzahl unter  5000 Einwohner: \ngeringer Klimanutzen < 1 t / mittlerer Klimanutzen 1 - 20 t / hoher Klimanutzen > 20 t CO2 auf Lebensdauer\nBei Einwohnerzahl von 5.000 bis 10.000 Einwohner:\ngeringer Klimanutzen < 3 t / mittlerer Klimanutzen 3 - 60 t / hoher Klimanutzen > 60 t CO2 auf Lebensdauer\nBei Einwohnerzahl ab 10.000 Einwohner: \ngeringer Klimanutzen < 5 t / mittlerer Klimanutzen 5 - 100 t / hoher Klimanutzen > 100 t CO2 auf Lebensdauer"]
["CO2-Berechnung:\n- Gebäudebereich: mittlere Verbrauchswerte mit einer Nutzungsdauer von 20 Jahren bei Wärme \n   bzw. 10 Jahren bei Strom\n- Mobilität: durchschnittliche Fahrtstrecken und mittlerer Spritverbrauch für PKW und LKW an 250 Werktagen pro Jahr\n   (bei neuen Straßen: bei einer Nutzungsdauer von 10 Jahren)\n- Naturbereiche: in Studien ermittelte CO2-Werte für Grünflächen und Bäume und einer Nutzungsdauer von 50 Jahren\n- Solarenergie: durchschnittliche Sonneneinstrahlung mit einer Nutzungsdauer von 20 Jahren"]
["Beschlussampel - das Übersichtsblatt  für den Abschluss der Klimarelvanzprüfung."]
["Nach Bearbeitung der  im jeweiligen Themenbereich vorgesehenen  Fragen und etwaiger Alternativenfindung durch den/die Sachbearbeiter/in alleine (bei mittlerer Klimarelevanz – gelbe Ampel) oder gemeinsam mit dem/der Sachbearbeiter/in Klimaschutz (bei hoher Klimarelevanz – rote Ampel) findet man auf der abschließenden Seite ein Übersichtsblatt über etwaige verbliebene gelbe oder rote Ampeln, sowie von den SachbearbeiterInnen vorgeschlagene Kompensationsmaßnahmen (nur die bei gelbe und rote Ampeln)."]
["Abschluss: \nDieses Blatt dient dem Abschluss der Klimarelvanzprüfung durch die Sachbearbeiter/innen  (bei einer roten Ampel durch die Sachbearbeiter/innen Klimaschutz ) und muss dem Beschlussakt beigefügt werden. Wenn keine rote Ampel verblieben ist, wird die Klimarelvanzprüfung positiv abgeschlossen, bei einer roten Ampel ohne Kompensation negativ. Für den Fall einer verbliebenen roten Ampel, die jedoch ausreichend kompensiert wird, wird die Klimarelevanzprüfung durch den Sachbearbeiter Klimaschutz „positiv trotz negativer Klimaauswirkungen“ abgeschlossen.  Mit drei übrig gebliebenen mittelgrünen Kompensationsampeln kann auch eine rote Ampel kompensiert werden. Das vorgeschlagene Ergebnis kann händisch geändert werden, dies muss aber dann begründet werden."]
["Vorschlag für Abschluss:\n•  Bei verbliebener gelber Ampel: Abschluss durch die Sachbearbeiter/innen der Fachabteilungen. \n•  Bei roter Ampel: Abschluss der Klimarelevanzprüfung durch die Sachbearbeiter/innen Klimaschutz."]
["Anmerkungen und Rückfragen an:"]
["Für Niederösterreich: Iris Baart "]
["klimarelevanztool@enu.at"]
["Für alle anderen Bundesländer: e5-Ansprechpartner in Ihrem Bundesland"]
["https://www.e5-gemeinden.at/ueber-uns/e5-in-den-bundeslaendern "]
[]
[]
["Die Nutzung und Weitergabe des Tools ist \nausschließlich Gemeinden vorbehalten (nicht Privatpersonen) \nnach Zustimmung des jeweiligen e5-Landesprogrammträgers: \nin Niederösterreich die eNu, in anderen Bundesländern durch die jeweilige e5-Landesorganisation.  \n\nDas Tool zur Klimarelevanzprüfung wurde in einem gemeinsamen Projekt der Stadt Krems mit der Energie- und Umweltagentur NÖ (eNu) erstellt. Die Rechte für das Tool zur Klimarelevanzprüfung liegen bei der Stadt Krems, die Rechte für die Weitergabe liegen bei der Energie- und Umweltagentur NÖ (eNu)."]
["Autoren:"]
["Energie- und Umweltagentur des Landes NÖ\nMag.a Dr.in Iris Baart, MSc,  eNu\nDr. Heimo Bürbaumer, eNu (bis 2023)\nIng. Ewald Grabner, eNu (bis 2021)"]
["Version:"]
["Beschlussprüfung V 1.9\nSoftware MS Excel für Microsoft 365 MSO"]

{"sheet":"Themenzuordnung","index":4,"n_rows":79,"n_cols":11,"rows_kept":79,"cut":false,"hidden":false,"merged":[[0,2,0,8],[15,0,15,2],[15,3,15,8]]}
[null,null,"Themen",null,null,null,null,null,null,"Dieses Projekt:"]
["Frage Nr","Frage","alle Fragen einblenden","Verkehr","Gebäude","Gebäude mit Verkehrsaufkommen","Beschaffung, Subvention","Infrastruktur","Planung",{"$f":"Klimarelevanzprüfung!J12","v":"alle Fragen einblenden"},"Dargestellte Fragen"]
[1,"Fossile Energie","ja",null,"ja","ja",null,"ja",null,{"$f":"HLOOKUP(J2,C2:I14,2,FALSE)","v":"ja"},{"$f":"IF(J3=\"Ja\",A3,\"\")","v":1}]
[2,"Motorisierter Verkehr","ja","ja",null,"ja",null,"ja",null,{"$f":"HLOOKUP(J2,C2:I14,3,FALSE)","v":"ja"},{"$f":"IF(J4=\"Ja\",A4,\"\")","v":2}]
[3,"Versiegelung","ja","ja","ja","ja",null,"ja","ja",{"$f":"HLOOKUP(J2,C2:I14,4,FALSE)","v":"ja"},3]
[4,"Bauen","ja",null,"ja","ja",null,"ja",null,{"$f":"HLOOKUP(J2,C2:I14,5,FALSE)","v":"ja"},4]
[5,"Beschaffung, Subvention","ja",null,null,null,"ja",null,null,{"$f":"HLOOKUP(J2,C2:I14,6,FALSE)","v":"ja"},5]
[6,"Sonstige neg. Klimarelevanz","ja",null,null,null,null,null,"ja",{"$f":"HLOOKUP(J2,C2:I14,7,FALSE)","v":"ja"},6]
[7,"Erneuerbare Energie","ja",null,"ja","ja","ja","ja","ja",{"$f":"HLOOKUP(J2,C2:I14,8,FALSE)","v":"ja"},7]
[8,"Klimafreundliche Mobilität","ja","ja",null,"ja",null,"ja",null,{"$f":"HLOOKUP(J2,C2:I14,9,FALSE)","v":"ja"},8]
[9,"Begrünungen","ja",null,"ja","ja",null,"ja","ja",{"$f":"HLOOKUP(J2,C2:I14,10,FALSE)","v":"ja"},9]
[10,"Planung","ja",null,null,null,null,"ja","ja",{"$f":"HLOOKUP(J2,C2:I14,11,FALSE)","v":"ja"},10]
[11,"Öffentlichkeitsarbeit","ja","ja",null,"ja","ja",null,null,{"$f":"HLOOKUP(J2,C2:I14,12,FALSE)","v":"ja"},11]
[12,"Sonstige pos. Klimarelevanz","ja",null,null,null,null,null,"ja",{"$f":"HLOOKUP(J2,C2:I14,13,FALSE)","v":"ja"},12]
[]
["Speicherort für Beschlussprüfungen:"]
[]
[]
[]
[]
[]
[]
[]
[]
[]
[]
[]
[]
[]
[]
[]
[]
[]
[]
[]
[]
[]
[]
[]
[]
[]
[]
[]
[]
[]
[]
[]
[]
[]
[]
[]
[]
[]
[]
[]
[]
[]
[]
[]
[]
[]
[]
[]
[]
[]
[]
["\rKlimarelevanzprüfung-Button 55-Weiter / Schließen-'Beschlussprüfung_Krems_20210201_mit Beschreibung_V1.xlsm'!Weiter_8"]
["\rKlimarelevanzprüfung-Button 56-Weiter / Schließen-'Beschlussprüfung_Krems_20210201_mit Beschreibung_V1.xlsm'!Weiter_9"]
["\rKlimarelevanzprüfung-Button 57-Zur Beschlussampel-'Beschlussprüfung_Krems_20210201_mit Beschreibung_V1.xlsm'!Beschlussampel"]
["\rKlimarelevanzprüfung-Button 58-Ja / Vielleicht-'Beschlussprüfung_Krems_20210201_mit Beschreibung_V1.xlsm'!Bearbeiten_6"]
["\rKlimarelevanzprüfung-Button 59-Schließen-'Beschlussprüfung_Krems_20210201_mit Beschreibung_V1.xlsm'!Schliessen_6"]
["\rKlimarelevanzprüfung-Button 60-Nein-'Beschlussprüfung_Krems_20210201_mit Beschreibung_V1.xlsm'!Nicht_bearbeiten_6"]
["\rKlimarelevanzprüfung-Button 61-Weiter / Schließen-'Beschlussprüfung_Krems_20210201_mit Beschreibung_V1.xlsm'!Weiter_12"]
["\rKlimarelevanzprüfung-Button 62-Zu den Prüfungsfragen-'Beschlussprüfung_Krems_20210201_mit Beschreibung_V1.xlsm'!Pruefung_starten"]
["\rKlimarelevanzprüfung-Button 63-Berechnungsanzeige ein/aus-'Beschlussprüfung_Krems_20210201_mit Beschreibung_V1.xlsm'!Berechnungen_anzeigen"]
["\rBeschlussampel-Button 64-Prüfung speichern-'Beschlussprüfung_Krems_20210201_mit Beschreibung_V1.xlsm'!Abschluss"]
["\rBeschlussampel-Button 65-Zur Projektbeschreibung-'Beschlussprüfung_Krems_20210201_mit Beschreibung_V1.xlsm'!Einstieg_starten"]
["\rBeschlussampel-Button 66-Zu den Prüfungsfragen-'Beschlussprüfung_Krems_20210201_mit Beschreibung_V1.xlsm'!Pruefung_starten"]
["\rBeschlussampel-Button 67-Beschlussampel drucken-'Beschlussprüfung_Krems_20210201_mit Beschreibung_V1.xlsm'!Ausdruck_als_pdf"]

{"sheet":"Bearbeitung","index":5,"n_rows":313,"n_cols":26,"rows_kept":313,"cut":false,"hidden":true,"merged":[[194,15,194,16],[0,2,0,4],[0,5,1,5],[0,6,0,8],[0,9,0,11],[35,15,35,16],[11,15,11,16],[41,14,41,17],[16,14,16,17],[58,15,58,16],[62,14,62,17],[82,15,82,16],[87,14,87,17],[109,15,109,16],[115,14,115,17],[129,14,129,17]]}
[null,"Value","Ampelwerte",null,null,"Kompen-sation","Umsetzung",null,null,"Ampelwerte",null,null,null,null,null,null,"Ergebnis Beschlussampel","Klimaschaden hoch",{"$f":"IF(AND(R8=\"\",S8=\"\", R32=\"\", S32=\"\",R55=\"\",S55=\"\",R79=\"\",S79=\"\",R106=\"\",S106=\"\",R129=\"\",S129=\"\"),\"\",SUM(S8,S32,S55,S79,S106, S129))","v":""},{"$f":"IF(S1=\"\",0,S1)","v":0},{"$f":"IF(AND(S1=\"\",S2=\"\"),Beschlussampel!K7,(IF(T1>=1,(IF(T1-T2 <=0,Beschlussampel!K9,Beschlussampel!K8)),Beschlussampel!K10)))","v":"Projekt ist nicht klimarelevant"},{"$f":"SUM(R8,R32,R55,R79,R106,R129)","v":0},{"$f":"Beschlussampel!D9","v":"Projekt ist nicht klimarelevant"}]
[null,null,{"$f":"-1","v":-1},{"$f":"0","v":0},{"$f":"1","v":1},null,"😐","🙂","😀",1,2,3,null,null,"Wert","Einheit",null,"Klimanutzen hoch",{"$f":"IF(AND(R190=\"\",S190=\"\",R157=\"\",S157=\"\",R223=\"\",S223=\"\",R312=\"\",S312=\"\",R253=\"\",S253=\"\",R286=\"\",S286=\"\"),\"\",SUM(S190,S157,S223,S312,S253,S286))","v":""},{"$f":"IF(AND(S2=\"\",V2=\"\",),0,SUM(S2,V2))","v":0},"Klimanutzenmittel",{"$f":"IF((SUM(R157,R190,R223,R312,R253,R286)-V1)/3 >= 1,ROUNDDOWN(((SUM(R157,R190,R223,R312,R253,R286)-V1))/3,0),\"\")","v":""}]
["Frage 1","nein",null,null,null,null,null,null,null,null,null,null,null,{"$f":"Berechnungen!C18","v":"Wird durch das Vorhaben zusätzlich fossile Energie (Öl, Gas, Kohle, fossiler Strom) in einem Gebäude oder einer Anlage verbraucht?"},null,null,-1,{"$f":"0","v":0},{"$f":"1","v":1},"kompensationsmaßnahme (Ja/nein)"]
["Frage 11",null,{"$f":"IF(B4=Berechnungen!N20,1,0)","v":0},{"$f":"IF(B4=Berechnungen!O20,1,0)","v":0},{"$f":"IF(B4=Berechnungen!P20,1,0)","v":0},null,null,null,null,null,null,null,null,{"$f":"Berechnungen!C20","v":"Wird mit fossiler Energie (Öl, Gas) geheizt? Für welche zusätzliche Bruttogrundfläche?"},{"$f":"IF(B10=\"\",B4,B10)","v":0},{"$f":"Berechnungen!E20","v":"m2 BGF "},{"$f":"IF(O4=Berechnungen!N20,1,0)","v":0},{"$f":"IF(O4=Berechnungen!O20,1,0)","v":0},{"$f":"IF(O4=Berechnungen!P20,1,0)","v":0}]
["Frage 12",null,{"$f":"IF(B5=Berechnungen!N21,1,0)","v":0},{"$f":"IF(B5=Berechnungen!O21,1,0)","v":0},{"$f":"IF(B5=Berechnungen!P21,1,0)","v":0},null,null,null,null,null,null,null,null,{"$f":"Berechnungen!C21","v":"Wird Strom mit fossilem Anteil genutzt? Für welche zusätzliche Bruttogrundfläche (Berechnung für Wohngebäude siehe Hilfe)? "},{"$f":"IF(B11=\"\",B5,B11)","v":0},{"$f":"Berechnungen!E21","v":"m2 BGF  "},{"$f":"IF(O5=Berechnungen!N21,1,0)","v":0},{"$f":"IF(O5=Berechnungen!O21,1,0)","v":0},{"$f":"IF(O5=Berechnungen!P21,1,0)","v":0}]
["Frage13",null,{"$f":"IF(B6=Berechnungen!N22,1,0)","v":0},{"$f":"IF(B6=Berechnungen!O22,1,0)","v":0},{"$f":"IF(B6=Berechnungen!P22,1,0)","v":0},null,null,null,null,null,null,null,null,{"$f":"Berechnungen!C22","v":"Werden für Prozesswärme zusätzlich fossile Brennstoffe verbraucht? In welcher Höhe (geschätzt)? "},{"$f":"IF(B12=\"\",B6,B12)","v":0},{"$f":"Berechnungen!E22","v":"kWh pro Jahr"},{"$f":"IF(O6=Berechnungen!N22,1,0)","v":0},{"$f":"IF(O6=Berechnungen!O22,1,0)","v":0},{"$f":"IF(O6=Berechnungen!P22,1,0)","v":0}]
["Frage14",null,{"$f":"IF(B7=Berechnungen!N23,1,0)","v":0},{"$f":"IF(B7=Berechnungen!O23,1,0)","v":0},{"$f":"IF(B7=Berechnungen!P23,1,0)","v":0},null,null,null,null,null,null,null,null,{"$f":"Berechnungen!C23","v":"Wird für einen Prozess / ein Vorhaben  zusätzlich Strom mit fossilen Anteilen verwendet? In welcher Höhe (geschätzt)? "},{"$f":"IF(B13=\"\",B7,B13)","v":0},{"$f":"Berechnungen!E23","v":"kWh pro Jahr"},{"$f":"IF(O7=Berechnungen!N23,1,0)","v":0},{"$f":"IF(O7=Berechnungen!O23,1,0)","v":0},{"$f":"IF(O7=Berechnungen!P23,1,0)","v":0}]
["TextBox11",null,null,null,null,null,null,null,null,null,null,null,null,"Summe",null,null,{"$f":"IF(SUM(Q4:Q7)=0,\"\",SUM(Q4:Q7))","v":""},{"$f":"IF(SUM(R4:R7)=0,\"\",SUM(R4:R7))","v":""},{"$f":"IF(SUM(S4:S7)=0,\"\",SUM(S4:S7))","v":""},{"$f":"F14","v":""}]
["TextBox12"]
["Alternativ11",null,{"$f":"IF(OR(B10=Berechnungen!M36,B10=Berechnungen!N36),1,0)","v":0},{"$f":"IF(B10=Berechnungen!O36,1,0)","v":0},{"$f":"IF(C10=Berechnungen!P36,1,0)","v":0}]
["Alternativ12",null,{"$f":"IF(OR(B11=Berechnungen!M37,B11=Berechnungen!N37),1,0)","v":0},{"$f":"IF(B11=Berechnungen!O37,1,0)","v":0},{"$f":"IF(C11=Berechnungen!P37,1,0)","v":0}]
["Alternativ13",null,{"$f":"IF(OR(B12=Berechnungen!M38,B12=Berechnungen!N38),1,0)","v":0},{"$f":"IF(B12=Berechnungen!O38,1,0)","v":0},{"$f":"IF(C12=Berechnungen!P38,1,0)","v":0},null,null,null,null,null,null,null,null,"Fossile Energie",1,{"$f":"N3","v":"Wird durch das Vorhaben zusätzlich fossile Energie (Öl, Gas, Kohle, fossiler Strom) in einem Gebäude oder einer Anlage verbraucht?"}]
["Alternativ14",null,{"$f":"IF(OR(B13=Berechnungen!M39,B13=Berechnungen!N39),1,0)","v":0},{"$f":"IF(B13=Berechnungen!O39,1,0)","v":0},{"$f":"IF(C13=Berechnungen!P39,1,0)","v":0},null,null,null,null,null,null,null,null,null,"1.1.",{"$f":"N4","v":"Wird mit fossiler Energie (Öl, Gas) geheizt? Für welche zusätzliche Bruttogrundfläche?"},{"$f":"O4","v":0},"m2 BGF ",{"$f":"IF(R4>0,$R$3,\"\")","v":""},{"$f":"IF(S4>0,$S$3,\"\")","v":""}]
["Textbox13",null,null,null,null,{"$f":"IF(B14 = \"\",\"\",\"ja\")","v":""},null,null,null,null,null,null,null,null,"1.2.",{"$f":"N5","v":"Wird Strom mit fossilem Anteil genutzt? Für welche zusätzliche Bruttogrundfläche (Berechnung für Wohngebäude siehe Hilfe)? "},0,"m2 BGF  ",{"$f":"IF(R5>0,$R$3,\"\")","v":""},{"$f":"IF(S5>0,$S$3,\"\")","v":""}]
[null,null,null,null,null,null,null,null,null,null,null,null,null,null,"1.3.",{"$f":"N6","v":"Werden für Prozesswärme zusätzlich fossile Brennstoffe verbraucht? In welcher Höhe (geschätzt)? "},0,"kWh pro Jahr",{"$f":"IF(R6>0,$R$3,\"\")","v":""},{"$f":"IF(S6>0,$S$3,\"\")","v":""}]
[null,null,null,null,null,null,null,null,null,null,null,null,null,null,"1.4.",{"$f":"N7","v":"Wird für einen Prozess / ein Vorhaben  zusätzlich Strom mit fossilen Anteilen verwendet? In welcher Höhe (geschätzt)? "},0,"kWh pro Jahr",{"$f":"IF(R7>0,$R$3,\"\")","v":""},{"$f":"IF(S7>0,$S$3,\"\")","v":""}]
[null,null,null,null,null,null,null,null,null,null,null,null,null,"Kompensationsmaßnahmen:",{"$f":"IF(T8=\"Ja\", B14,\"\")","v":""},null,null,null,{"$f":"IF(O17=\"\",\"\",\".\")","v":""}]
[]
[]
[]
[]
[]
[]
[]
[]
["Frage2","nein",null,null,null,null,null,null,null,null,null,null,null,{"$f":"Berechnungen!C56","v":"Erzeugt das Vorhaben zusätzlichen motorisierten PKW- oder Güterverkehr? "},"Wert","Einheit",-1,{"$f":"0","v":0},{"$f":"1","v":1},"kompensationsmaßnahme (Ja/nein)"]
["Frage21",null,{"$f":"IF(B27=Berechnungen!N58,1,0)","v":0},{"$f":"IF(B27=Berechnungen!O58,1,0)","v":0},{"$f":"IF(B27=Berechnungen!P58,1,0)","v":0},null,null,null,null,null,null,null,null,{"$f":"Berechnungen!C58","v":"Werden der motorisierte PKW- und Güterverkehr (> 3,5 t) durch die Maßnahme erhöht? Wie viele Fahrten werden pro Tag zusätzlich erzeugt (grobe Schätzung)? Beispiele: Widmung Gewerbegebiet mit voraussichtl. Verkehrszunahme, Errichtung Einkaufszentrum oder Freizeiteinrichtung, Veranstaltungen etc. "},{"$f":"IF(B34=\"\",B27,B34)","v":0},{"$f":"Berechnungen!E58","v":"Fahrten pro Werktag"},{"$f":"IF(O27=Berechnungen!N58,1,0)","v":0},{"$f":"IF(O27=Berechnungen!O58,1,0)","v":0},{"$f":"IF(O27=Berechnungen!P58,1,0)","v":0}]
["Frage22",null,{"$f":"IF(B28=Berechnungen!N59,1,0)","v":0},{"$f":"IF(B28=Berechnungen!O59,1,0)","v":0},{"$f":"IF(B28=Berechnungen!P59,1,0)","v":0},null,null,null,null,null,null,null,null,{"$f":"Berechnungen!C59","v":"Werden im Zuge des Projekts Stellplätze neu errichtet? Um wie viele zusätzliche Stellplätze handelt es sich?"},{"$f":"IF(B35=\"\",B28,B35)","v":0},{"$f":"Berechnungen!E59","v":"Anzahl"},{"$f":"IF(O28=Berechnungen!N59,1,0)","v":0},{"$f":"IF(O28=Berechnungen!O59,1,0)","v":0},{"$f":"IF(O28=Berechnungen!P59,1,0)","v":0}]
["Frage23",null,{"$f":"IF(B29=Berechnungen!N60,1,0)","v":0},{"$f":"IF(B29=Berechnungen!O60,1,0)","v":0},{"$f":"IF(B29=Berechnungen!P60,1,0)","v":0},null,null,null,null,null,null,null,null,{"$f":"Berechnungen!C60","v":"Werden Straßen verbreitert, begradigt, saniert oder zusätzlich errichtet? Wie viele Laufmeter Straße werden für den PKW- oder Güterverkehr verbessert bzw. zusätzlich errichtet?"},{"$f":"IF(B36=\"\",B29,B36)","v":0},{"$f":"Berechnungen!E60","v":"Länge in m"},{"$f":"IF(O29=Berechnungen!N60,1,0)","v":0},{"$f":"IF(O29=Berechnungen!O60,1,0)","v":0},{"$f":"IF(O29=Berechnungen!P60,1,0)","v":0}]
["Frage24",null,{"$f":"IF(B30=Berechnungen!N61,1,0)","v":0},{"$f":"IF(B30=Berechnungen!O61,1,0)","v":0},{"$f":"IF(B30=Berechnungen!P61,1,0)","v":0},null,null,null,null,null,null,null,null,{"$f":"Berechnungen!C61","v":"Führen Maßnahmen in der Parkraumbewirtschaftung zu mehr motorisiertem Verkehr? Beispiele: Gebührenreduzierung, Parkgebühr-Ausnahmen (zeitbezogen, Personen-/Fahrzeugbezogen)"},{"$f":"IF(B37=\"\",B30,B37)","v":0},null,{"$f":"IF(O30=Berechnungen!N61,1,0)","v":0},{"$f":"IF(O30=Berechnungen!O61,1,0)","v":0},{"$f":"IF(O30=Berechnungen!P61,1,0)","v":0}]
["Frage25",null,{"$f":"IF(B31=Berechnungen!N62,1,0)","v":0},{"$f":"IF(B31=Berechnungen!O62,1,0)","v":0},{"$f":"IF(B31=Berechnungen!P62,1,0)","v":0},null,null,null,null,null,null,null,null,{"$f":"Berechnungen!C62","v":"Behindert die Maßnahme klimafreundlichen Verkehr (Radfahren, zu Fuß gehen, ÖFFIS), z.B. Unterbrechung oder Reduzierung eines Fußgängerwegs oder Fahrradwegs ?"},{"$f":"IF(B38=\"\",B31,B38)","v":0},null,{"$f":"IF(O31=Berechnungen!N62,1,0)","v":0},{"$f":"IF(O31=Berechnungen!O62,1,0)","v":0},{"$f":"IF(O31=Berechnungen!P62,1,0)","v":0}]
["Textbox1",null,null,null,null,null,null,null,null,null,null,null,null,"Summe",null,null,{"$f":"IF(SUM(Q27:Q31)=0,\"\",SUM(Q27:Q31))","v":""},{"$f":"IF(SUM(R27:R31)=0,\"\",SUM(R27:R31))","v":""},{"$f":"IF(SUM(S27:S31)=0,\"\",SUM(S27:S31))","v":""},{"$f":"F39","v":""}]
["Textbox2"]
["Alternativ21",null,{"$f":"IF(OR(B34=Berechnungen!N76,B34=Berechnungen!M76),1,0)","v":0},{"$f":"IF(C34=Berechnungen!O76,1,0)","v":0},{"$f":"IF(D34=Berechnungen!P76,1,0)","v":0}]
["Alternativ22",null,{"$f":"IF(OR(B35=Berechnungen!N77,B35=Berechnungen!M77),1,0)","v":0},{"$f":"IF(C35=Berechnungen!O77,1,0)","v":0},{"$f":"IF(D35=Berechnungen!P77,1,0)","v":0}]
["Alternativ23",null,{"$f":"IF(OR(B36=Berechnungen!N78,B36=Berechnungen!M78),1,0)","v":0},{"$f":"IF(C36=Berechnungen!O78,1,0)","v":0},{"$f":"IF(D36=Berechnungen!P78,1,0)","v":0},null,null,null,null,null,null,null,null,"Motorisierter Verkehr",2,{"$f":"N26","v":"Erzeugt das Vorhaben zusätzlichen motorisierten PKW- oder Güterverkehr? "}]
["Alternativ24",null,{"$f":"IF(OR(B37=Berechnungen!N79,B37=Berechnungen!M79),1,0)","v":0},{"$f":"IF(C37=Berechnungen!O79,1,0)","v":0},{"$f":"IF(D37=Berechnungen!P79,1,0)","v":0},null,null,null,null,null,null,null,null,null,"2.1.",{"$f":"N27","v":"Werden der motorisierte PKW- und Güterverkehr (> 3,5 t) durch die Maßnahme erhöht? Wie viele Fahrten werden pro Tag zusätzlich erzeugt (grobe Schätzung)? Beispiele: Widmung Gewerbegebiet mit voraussichtl. Verkehrszunahme, Errichtung Einkaufszentrum oder Freizeiteinrichtung, Veranstaltungen etc. "},{"$f":"O27","v":0},{"$f":"P27","v":"Fahrten pro Werktag"},{"$f":"IF(R27>0,$R$26,\"\")","v":""},{"$f":"IF(S27>0,$S$26,\"\")","v":""}]
["Alternativ25",null,{"$f":"IF(OR(B38=Berechnungen!N80,B38=Berechnungen!M80),1,0)","v":0},{"$f":"IF(C38=Berechnungen!O80,1,0)","v":0},{"$f":"IF(D38=Berechnungen!P80,1,0)","v":0},null,null,null,null,null,null,null,null,null,"2.2.",{"$f":"N28","v":"Werden im Zuge des Projekts Stellplätze neu errichtet? Um wie viele zusätzliche Stellplätze handelt es sich?"},0,"Anzahl",{"$f":"IF(R28>0,$R$26,\"\")","v":""},{"$f":"IF(S28>0,$S$26,\"\")","v":""}]
["Textbox3",null,null,null,null,{"$f":"IF(B39 = \"\",\"\",\"ja\")","v":""},null,null,null,null,null,null,null,null,"2.3.","Werden Straßen verbreitert, begradigt, saniert oder zusätzlich errichtet? Wie viele Laufmeter Straße werden für den PKW- oder Güterverkehr verbessert bzw. zusätzlich errichtet?",0,"Länge in m",{"$f":"IF(R29>0,$R$26,\"\")","v":""},{"$f":"IF(S29>0,$S$26,\"\")","v":""}]
[null,null,null,null,null,null,null,null,null,null,null,null,null,null,"2.4.","Führen Maßnahmen in der Parkraumbewirtschaftung zu mehr motorisiertem Verkehr? Beispiele: Gebührenreduzierung, Parkgebühr-Ausnahmen (zeitbezogen, Personen-/Fahrzeugbezogen)",0,null,{"$f":"IF(R30>0,$R$26,\"\")","v":""},{"$f":"IF(S30>0,$S$26,\"\")","v":""}]
[null,null,null,null,null,null,null,null,null,null,null,null,null,null,"2.5.","Behindert die Maßnahme klimafreundlichen Verkehr (Radfahren, zu Fuß gehen, ÖFFIS), z.B. Unterbrechung oder Reduzierung eines Fußgängerwegs oder Fahrradwegs ?",0,null,{"$f":"IF(R31>0,$R$26,\"\")","v":""},{"$f":"IF(S31>0,$S$26,\"\")","v":""}]
[null,null,null,null,null,null,null,null,null,null,null,null,null,"Kompensationsmaßnahmen:",{"$f":"IF(T32=\"ja\",B39,\"\")","v":""},null,null,null,{"$f":"IF(O42=\"\",\"\",\".\")","v":""}]
[]
[]
[]
[]
[]
[]
[]
[]
["Frage3","nein",null,null,null,null,null,null,null,null,null,null,null,{"$f":"Berechnungen!C96","v":"Werden durch das Projekt zusätzliche Flächen versiegelt und/oder gehen Naturräume verloren?"},null,null,-1,{"$f":"0","v":0},{"$f":"1","v":1}]
["Frage31",null,{"$f":"IF($B$52=Berechnungen!N98,1,0)","v":0},{"$f":"IF($B$52=Berechnungen!O98,1,0)","v":0},{"$f":"IF($B$52=Berechnungen!P98,1,0)","v":0},null,null,null,null,null,null,null,null,{"$f":"Berechnungen!C98","v":"Wie viele m² Fläche gehen als biodiversitätsrelevante Flächen (z.B. Grünraum, Wälder) verloren?  Für den Berechnungsschlüssel siehe Hilfe."},{"$f":"IF(B57=\"\",B52,B57)","v":0},{"$f":"Berechnungen!E98","v":"m²"},{"$f":"IF(O52=Berechnungen!N98,1,0)","v":0},{"$f":"IF(O52=Berechnungen!O98,1,0)","v":0},{"$f":"IF(O52=Berechnungen!P98,1,0)","v":0}]
["Frage32",null,{"$f":"IF($B$53=Berechnungen!N99,1,0)","v":0},{"$f":"IF($B$53=Berechnungen!O99,1,0)","v":0},{"$f":"IF($B$53=Berechnungen!P99,1,0)","v":0},null,null,null,null,null,null,null,null,{"$f":"Berechnungen!C99","v":"Wie viele m² Fläche werden durch das Projekt zusätzlich versiegelt? "},{"$f":"IF(B58=\"\",B53,B58)","v":0},{"$f":"Berechnungen!E99","v":"m²"},{"$f":"IF(O53=Berechnungen!N99,1,0)","v":0},{"$f":"IF(O53=Berechnungen!O99,1,0)","v":0},{"$f":"IF(O53=Berechnungen!P99,1,0)","v":0}]
["Frage33",null,{"$f":"IF($B$54=Berechnungen!N100,1,0)","v":0},{"$f":"IF($B$54=Berechnungen!O100,1,0)","v":0},{"$f":"IF($B$54=Berechnungen!P100,1,0)","v":0},null,null,null,null,null,null,null,null,{"$f":"Berechnungen!C100","v":"Wie viel Bäume gehen verloren?"},{"$f":"IF(B59=\"\",B54,B59)","v":0},{"$f":"Berechnungen!E100","v":"Anzahl Bäume"},{"$f":"IF(O54=Berechnungen!N100,1,0)","v":0},{"$f":"IF(O54=Berechnungen!O100,1,0)","v":0},{"$f":"IF(O54=Berechnungen!P100,1,0)","v":0}]
["Textbox1",null,null,null,null,null,null,null,null,null,null,null,null,"Summe",null,null,{"$f":"IF(SUM(Q52:Q54)=0,\"\",SUM(Q52:Q54))","v":""},{"$f":"IF(SUM(R52:R54)=0,\"\",SUM(R52:R54))","v":""},{"$f":"IF(SUM(S52:S54)=0,\"\",SUM(S52:S54))","v":""},{"$f":"F60","v":""}]
["Textbox2"]
["Alternativ31",null,{"$f":"IF(OR(B57=Berechnungen!M112,B57=Berechnungen!N112),1,0)","v":0},{"$f":"IF(B57=Berechnungen!O112,1,0)","v":0},{"$f":"IF(B57=Berechnungen!P112,1,0)","v":0}]
["Alternativ32",null,{"$f":"IF(OR(B58=Berechnungen!M113,B58=Berechnungen!N113),1,0)","v":0},{"$f":"IF(B58=Berechnungen!O113,1,0)","v":0},{"$f":"IF(B58=Berechnungen!P113,1,0)","v":0}]
["Alternativ33",null,{"$f":"IF(OR(B59=Berechnungen!M114,B59=Berechnungen!N114),1,0)","v":0},{"$f":"IF(B59=Berechnungen!O114,1,0)","v":0},{"$f":"IF(B59=Berechnungen!P114,1,0)","v":0},null,null,null,null,null,null,null,null,null,null,{"$f":"N49","v":0}]
["Textbox3",null,null,null,null,{"$f":"IF(B60 = \"\",\"\",\"ja\")","v":""},null,null,null,null,null,null,null,null,null,{"$f":"N52","v":"Wie viele m² Fläche gehen als biodiversitätsrelevante Flächen (z.B. Grünraum, Wälder) verloren?  Für den Berechnungsschlüssel siehe Hilfe."},0,"m²",{"$f":"IF(R52>0,$R$26,\"\")","v":""},{"$f":"IF(S52>0,$S$51,\"\")","v":""}]
[null,null,null,null,null,null,null,null,null,null,null,null,null,null,null,"Wie viele m² Fläche werden durch das Projekt zusätzlich versiegelt? ",0,"m²",{"$f":"IF(R53>0,$R$26,\"\")","v":""},{"$f":"IF(S53>0,$S$51,\"\")","v":""}]
[null,null,null,null,null,null,null,null,null,null,null,null,null,null,null,"Wie viel Bäume gehen verloren?",0,"Anzahl Bäume",{"$f":"IF(R54>0,$R$26,\"\")","v":""},{"$f":"IF(S54>0,$S$51,\"\")","v":""}]
[null,null,null,null,null,null,null,null,null,null,null,null,null,"Kompensationsmaßnahmen:",{"$f":"IF(T55=\"ja\",B60,\"\")","v":""},null,null,null,{"$f":"IF(O63=\"\",\"\",\".\")","v":""}]
[]
[]
[]
[]
[]
[]
[]
[]
[]
[]
["Frage 4","nein",null,null,null,null,null,null,null,null,null,null,null,{"$f":"Berechnungen!C132","v":"Werden beim Vorhaben Gebäude oder Anlagen neu gebaut oder saniert?"},null,null,-1,{"$f":"0","v":0},{"$f":"1","v":1},"kompensationsmaßnahme (Ja/nein)"]
["Frage 41",null,{"$f":"IF(OR(B75=Berechnungen!N134,B75=Berechnungen!O134,B75=Berechnungen!P134),1,0)","v":0},{"$f":"IF(B75=Berechnungen!Q134,1,0)","v":0},{"$f":"IF(B75=Berechnungen!R134,1,0)","v":0},null,null,null,null,null,null,null,null,{"$f":"Berechnungen!C134","v":"Wird beim Gebäude-Neubau nur nach dem Mindeststandard der Bauvorschriften gebaut? Nach welchem Baustandard wird das Gebäude errichtet?"},{"$f":"IF(B82=\"\",B75,B82)","v":0},null,{"$f":"IF(OR(O75=Berechnungen!N134,O75=Berechnungen!O134,O75=Berechnungen!P134),1,0)","v":0},{"$f":"IF(O75=Berechnungen!Q134,1,0)","v":0},{"$f":"IF(O75=Berechnungen!R134,1,0)","v":0}]
["Frage 42",null,{"$f":"IF(OR(B76=Berechnungen!N135,B76=Berechnungen!O135,B76=Berechnungen!P135,B76=Berechnungen!Q135),1,0)","v":0},{"$f":"IF(B76=Berechnungen!R135,1,0)","v":0},{"$f":"IF(B76=Berechnungen!S135,1,0)","v":0},null,null,null,null,null,null,null,null,{"$f":"Berechnungen!C135","v":"Wird ein bestehendes Gebäude nur mit geringstem Aufwand saniert? Welchen Baustandard hat das Gebäude nach der Sanierung?"},{"$f":"IF(B83=\"\",B76,B83)","v":0},null,{"$f":"IF((OR(O76=Berechnungen!N135,O76=Berechnungen!O135,O76=Berechnungen!P135,O76=Berechnungen!Q135)),1,0)","v":0},{"$f":"IF(O76=Berechnungen!R135,1,0)","v":0},{"$f":"IF(O76=Berechnungen!S135,1,0)","v":0}]
["Frage43",null,{"$f":"IF(B77=Berechnungen!N136,1,0)","v":0},{"$f":"IF(B77=Berechnungen!O136,1,0)","v":0},{"$f":"IF(B77=Berechnungen!P136,1,0)","v":0},null,null,null,null,null,null,null,null,{"$f":"Berechnungen!C136","v":"Werden größere Mengen an neuer Bausubstanz benötigt? Wieviele m² BGF werden neu errichtet?"},{"$f":"IF(B84=\"\",B77,B84)","v":0},{"$f":"Berechnungen!E136","v":"m² BGF"},{"$f":"IF(O77=Berechnungen!N136,1,0)","v":0},{"$f":"IF(O77=Berechnungen!O136,1,0)","v":0},{"$f":"IF(O77=Berechnungen!P136,1,0)","v":0}]
["Frage44",null,{"$f":"IF(B78=Berechnungen!N137,1,0)","v":0},{"$f":"IF(B78=Berechnungen!O137,1,0)","v":0},{"$f":"IF(B78=Berechnungen!P137,1,0)","v":0},null,null,null,null,null,null,null,null,{"$f":"Berechnungen!C137","v":"Wird beim Neubau oder bei der Sanierung von Anlagen Wert auf Klimaschutzmaßnahmen  gelegt?\nZ.B. Niedrigenergie-Bauweise, energieeffiziente Maschinen und Geräte, ökologische Baustoffe  "},{"$f":"IF(B85=\"\",B78,B85)","v":0},null,{"$f":"IF(O78=Berechnungen!N137,1,0)","v":0},{"$f":"IF(O78=Berechnungen!O137,1,0)","v":0},{"$f":"IF(O78=Berechnungen!P137,1,0)","v":0}]
[null,null,null,null,null,null,null,null,null,null,null,null,null,"Summe",null,null,{"$f":"IF(SUM(Q75:Q78)=0,\"\",SUM(Q75:Q78))","v":""},{"$f":"IF(SUM(R75:R78)=0,\"\",SUM(R75:R78))","v":""},{"$f":"IF(SUM(S75:S78)=0,\"\",SUM(S75:S78))","v":""},{"$f":"F86","v":""}]
["TextBox1"]
["TextBox2"]
["Alternativ41",null,{"$f":"IF(OR(B82=Berechnungen!M134,B82=Berechnungen!N134,B82=Berechnungen!O134,B82=Berechnungen!P134),1,0)","v":0},{"$f":"IF(B82=Berechnungen!Q134,1,0)","v":0},{"$f":"IF(B82=Berechnungen!R134,1,0)","v":0}]
["Alternativ42",null,{"$f":"IF(OR(B83=Berechnungen!M135,B83=Berechnungen!N135,B83=Berechnungen!O135,B83=Berechnungen!P135,B83=Berechnungen!Q135),1,0)","v":0},{"$f":"IF($B$83=Berechnungen!R135,1,0)","v":0},{"$f":"IF($B$83=Berechnungen!S135,1,0)","v":0},null,null,null,null,null,null,null,null,"Bauen",4,{"$f":"N74","v":"Werden beim Vorhaben Gebäude oder Anlagen neu gebaut oder saniert?"}]
["Alternativ43",null,{"$f":"IF(OR($B$84=Berechnungen!M136,$B$84=Berechnungen!N136),1,0)","v":0},{"$f":"IF(B84=Berechnungen!O136,1,0)","v":0},{"$f":"IF(B84=Berechnungen!P136,1,0)","v":0},null,null,null,null,null,null,null,null,null,"4.1.",{"$f":"N75","v":"Wird beim Gebäude-Neubau nur nach dem Mindeststandard der Bauvorschriften gebaut? Nach welchem Baustandard wird das Gebäude errichtet?"},{"$f":"O75","v":0},null,{"$f":"IF(R75>0,$R$3,\"\")","v":""},{"$f":"IF(S75>0,$S$3,\"\")","v":""}]
["Alternativ44",null,{"$f":"IF(OR(B85=Berechnungen!M137,B85=Berechnungen!N137),1,0)","v":0},{"$f":"IF(B85=Berechnungen!O137,1,0)","v":0},{"$f":"IF(B85=Berechnungen!P137,1,0)","v":0},null,null,null,null,null,null,null,null,null,"4.2.",{"$f":"N76","v":"Wird ein bestehendes Gebäude nur mit geringstem Aufwand saniert? Welchen Baustandard hat das Gebäude nach der Sanierung?"},{"$f":"O76","v":0},null,{"$f":"IF(R76>0,$R$3,\"\")","v":""},{"$f":"IF(S76>0,$S$3,\"\")","v":""}]
["Textbox3",null,null,null,null,{"$f":"IF(B86 = \"\",\"\",\"ja\")","v":""},null,null,null,null,null,null,null,null,"4.3.",{"$f":"N77","v":"Werden größere Mengen an neuer Bausubstanz benötigt? Wieviele m² BGF werden neu errichtet?"},{"$f":"O77","v":0},{"$f":"P77","v":"m² BGF"},{"$f":"IF(R77>0,$R$3,\"\")","v":""},{"$f":"IF(S77>0,$S$3,\"\")","v":""}]
[null,null,null,null,null,null,null,null,null,null,null,null,null,null,"4.4.",{"$f":"N78","v":"Wird beim Neubau oder bei der Sanierung von Anlagen Wert auf Klimaschutzmaßnahmen  gelegt?\nZ.B. Niedrigenergie-Bauweise, energieeffiziente Maschinen und Geräte, ökologische Baustoffe  "},{"$f":"O78","v":0},null,{"$f":"IF(R78>0,$R$3,\"\")","v":""},{"$f":"IF(S78>0,$S$3,\"\")","v":""}]
[null,null,null,null,null,null,null,null,null,null,null,null,null,"Kompensationsmaßnahmen:",{"$f":"IF(T79=\"Ja\", B86,\"\")","v":""},null,null,null,{"$f":"IF(O88=\"\",\"\",\".\")","v":""}]
[]
[]
[]
[]
[]
[]
[]
[]
[]
[]
[]
["Frage5","nein",null,null,null,null,null,null,null,null,null,null,null,{"$f":"Berechnungen!C174","v":"Wird eine Beschaffung oder eine Ausschreibung vorgenommen? Wird eine Veranstaltung durchgeführt oder eine Organisation subventioniert? "},"Wert","Einheit",-1,{"$f":"0","v":0},{"$f":"1","v":1},"kompensationsmaßnahme (Ja/nein)"]
["Frage51",null,{"$f":"IF(B101=Berechnungen!$N$176,1,0)","v":0},{"$f":"IF(B101=Berechnungen!$O$176,1,0)","v":0},{"$f":"IF(B101=Berechnungen!$P$176,1,0)","v":0},null,null,null,null,null,null,null,null,{"$f":"Berechnungen!C176","v":"Werden Büromöbel, Textilien, Elektrogeräte, EDV/IT-Geräte, Beleuchtung, Reinigungsmittel, Büromaterial, Druckwerke und Lebensmittel nachhaltig beschafft? Wie hoch ist der Anteil dieser Produkte am Gesamtanteil (geschätzt)?"},{"$f":"IF(B108=\"\",B101,B108)","v":0},null,{"$f":"IF(O101=Berechnungen!$N$176,1,0)","v":0},{"$f":"IF(O101=Berechnungen!$O$176,1,0)","v":0},{"$f":"IF(O101=Berechnungen!$P$176,1,0)","v":0}]
["Frage52",null,{"$f":"IF(OR(B102=Berechnungen!$N$177,B102=Berechnungen!$O$177),1,0)","v":0},{"$f":"IF(B102=Berechnungen!$P$177,1,0)","v":0},{"$f":"IF(B102=Berechnungen!$Q$177,1,0)","v":0},null,null,null,null,null,null,null,null,{"$f":"Berechnungen!C177","v":"Werden bei der Fuhrparkbeschaffung Fahrzeuge mit alternativem Antrieb (0 g CO2-Ausstoß im Betrieb) angeschafft? "},{"$f":"IF(B109=\"\",B102,B109)","v":0},null,{"$f":"IF(OR(O102=Berechnungen!$N$177,O102=Berechnungen!$O$177),1,0)","v":0},{"$f":"IF(O102=Berechnungen!$P$177,1,0)","v":0},{"$f":"IF(O102=Berechnungen!$Q$177,1,0)","v":0}]
["Frage53",null,{"$f":"IF(B103=Berechnungen!$N$178,1,0)","v":0},{"$f":"IF(B103=Berechnungen!$O$178,1,0)","v":0},{"$f":"IF(B103=Berechnungen!$P$178,1,0)","v":0},null,null,null,null,null,null,null,null,{"$f":"Berechnungen!C178","v":"Werden klimaschonende Kriterien bei Ausschreibungen der Stadt berücksichtigt? Zum Beispiel naBe-Kriterien, Baubook-Kriterien, klimaaktiv-Kriterien, Handbuch zur Regionalvergabe …"},{"$f":"IF(B110=\"\",B103,B110)","v":0},null,{"$f":"IF(O103=Berechnungen!$N$178,1,0)","v":0},{"$f":"IF(O103=Berechnungen!$O$178,1,0)","v":0},{"$f":"IF(O103=Berechnungen!$P$178,1,0)","v":0}]
["Frage54",null,{"$f":"IF(B104=Berechnungen!$N$179,1,0)","v":0},{"$f":"IF(C104=Berechnungen!$O$179,1,0)","v":0},{"$f":"IF(D104=Berechnungen!$P$179,1,0)","v":0},null,null,null,null,null,null,null,null,{"$f":"Berechnungen!C179","v":"Werden Veranstaltungen nachhaltig durchgeführt? Umsetzung z.B. nach den  Kriterien von Sauberhafte Feste oder Green Event"},{"$f":"IF(B111=\"\",B104,B111)","v":0},null,{"$f":"IF(O104=Berechnungen!$N$179,1,0)","v":0},{"$f":"IF(O104=Berechnungen!$O$179,1,0)","v":0},{"$f":"IF(O104=Berechnungen!$P$179,1,0)","v":0}]
["Frage55",null,{"$f":"IF(B105=Berechnungen!$N$180,1,0)","v":0},{"$f":"IF(C105=Berechnungen!$O$180,1,0)","v":0},{"$f":"IF(D105=Berechnungen!$P$180,1,0)","v":0},null,null,null,null,null,null,null,null,{"$f":"Berechnungen!C180","v":"Werden bei Subventionen an Vereine/Organisationen Nachhaltigkeitskriterien für die Verwendung des Geldes vorgegeben?  Z.B. nabe-Kriterien, ökologische Baustoffe / Reinigungsmittel / Mobilität / Verpflegung."},{"$f":"IF(B112=\"\",B105,B112)","v":0},null,{"$f":"IF(O105=Berechnungen!$N$180,1,0)","v":0},{"$f":"IF(O105=Berechnungen!$O$180,1,0)","v":0},{"$f":"IF(O105=Berechnungen!$P$180,1,0)","v":0}]
["Textbox1",null,null,null,null,null,null,null,null,null,null,null,null,"Summe",null,null,{"$f":"IF(SUM(Q101:Q105)=0,\"\",SUM(Q101:Q105))","v":""},{"$f":"IF(SUM(R101:R105)=0,\"\",SUM(R101:R105))","v":""},{"$f":"IF(SUM(S101:S105)=0,\"\",SUM(S101:S105))","v":""},{"$f":"F113","v":""}]
["Textbox2"]
["Alternativ51",null,{"$f":"IF(OR(B108=Berechnungen!M176,B108=Berechnungen!$N$176),1,0)","v":0},{"$f":"IF(B108=Berechnungen!$O$176,1,0)","v":0},{"$f":"IF(B108=Berechnungen!$P$176,1,0)","v":0}]
["Alternativ52",null,{"$f":"IF(OR(B109=Berechnungen!M177,B109=Berechnungen!$N$177,B109=Berechnungen!$O$177),1,0)","v":0},{"$f":"IF(B109=Berechnungen!$P$177,1,0)","v":0},{"$f":"IF(B109=Berechnungen!$Q$177,1,0)","v":0}]
["Alternativ53",null,{"$f":"IF(OR(B110=Berechnungen!M178,B110=Berechnungen!$N$178),1,0)","v":0},{"$f":"IF(B110=Berechnungen!$O$178,1,0)","v":0},{"$f":"IF(B110=Berechnungen!$P$178,1,0)","v":0},null,null,null,null,null,null,null,null,"Motorisierter Verkehr",5,{"$f":"N100","v":"Wird eine Beschaffung oder eine Ausschreibung vorgenommen? Wird eine Veranstaltung durchgeführt oder eine Organisation subventioniert? "}]
["Alternativ54",null,{"$f":"IF(OR(B111=Berechnungen!M179,B111=Berechnungen!$N$179),1,0)","v":0},{"$f":"IF(C111=Berechnungen!$O$179,1,0)","v":0},{"$f":"IF(D111=Berechnungen!$P$179,1,0)","v":0},null,null,null,null,null,null,null,null,null,"5.1.","Werden Büromöbel, Textilien, Elektrogeräte, EDV/IT-Geräte, Beleuchtung, Reinigungsmittel, Büromaterial, Druckwerke und Lebensmittel nachhaltig beschafft? Wie hoch ist der Anteil dieser Produkte am Gesamtanteil (geschätzt)?",{"$f":"O101","v":0},null,{"$f":"IF(R101>0,$R$26,\"\")","v":""},{"$f":"IF(S101>0,$S$26,\"\")","v":""}]
["Alternativ55",null,{"$f":"IF(OR(B112=Berechnungen!M176,B112=Berechnungen!$N$180),1,0)","v":0},{"$f":"IF(C112=Berechnungen!$O$180,1,0)","v":0},{"$f":"IF(D112=Berechnungen!$P$180,1,0)","v":0},null,null,null,null,null,null,null,null,null,"5.2.","Werden bei der Fuhrparkbeschaffung Fahrzeuge mit alternativem Antrieb (0 g CO2-Ausstoß im Betrieb) angeschafft? ",{"$f":"O102","v":0},null,{"$f":"IF(R102>0,$R$26,\"\")","v":""},{"$f":"IF(S102>0,$S$26,\"\")","v":""}]
["Textbox3",null,null,null,null,{"$f":"IF(B113 = \"\",\"\",\"ja\")","v":""},null,null,null,null,null,null,null,null,"5.3.","Werden klimaschonende Kriterien bei Ausschreibungen der Stadt berücksichtigt? Zum Beispiel naBe-Kriterien, Baubook-Kriterien, klimaaktiv-Kriterien, Handbuch zur Regionalvergabe …",{"$f":"O103","v":0},null,{"$f":"IF(R103>0,$R$26,\"\")","v":""},{"$f":"IF(S103>0,$S$26,\"\")","v":""}]
[null,null,null,null,null,null,null,null,null,null,null,null,null,null,"5.4.","Werden Veranstaltungen nachhaltig durchgeführt? Umsetzung z.B. nach den  Kriterien von Sauberhafte Feste oder Green Event",{"$f":"O104","v":0},null,{"$f":"IF(R104>0,$R$26,\"\")","v":""},{"$f":"IF(S104>0,$S$26,\"\")","v":""}]
[null,null,null,null,null,null,null,null,null,null,null,null,null,null,"5.5.","Werden bei Subventionen an Vereine/Organisationen Nachhaltigkeitskriterien für die Verwendung des Geldes vorgegeben?  Z.B. nabe-Kriterien, ökologische Baustoffe / Reinigungsmittel / Mobilität / Verpflegung.",{"$f":"O105","v":0},null,{"$f":"IF(R105>0,$R$26,\"\")","v":""},{"$f":"IF(S105>0,$S$26,\"\")","v":""}]
[null,null,null,null,null,null,null,null,null,null,null,null,null,"Kompensationsmaßnahmen:",{"$f":"IF(T106=\"ja\",B113,\"\")","v":""},null,null,null,{"$f":"IF(O116=\"\",\"\",\".\")","v":""}]
[]
[]
[]
[]
[]
[]
[]
[]
[]
[]
[]
["Frage6","ja",null,null,null,null,null,null,null,null,null,null,null,{"$f":"Berechnungen!C218","v":"Gibt es eine negative Auswirkung auf das Klima, die in den vorherigen Fragen nicht erwähnt wurde?"},"Wert","Einheit",-1,{"$f":"0","v":0},{"$f":"1","v":1},"Kompensationsmaßnahme"]
["Textbox61",null,null,null,null,null,null,null,null,null,null,null,null,{"$f":"Berechnungen!C222","v":"Wie würden Sie die klimaschädigenden Auswirkungen des Vorhabens einschätzen?"},{"$f":"IF(B131=\"\",B130,B131)","v":0},null,{"$f":"IF($O$129=Berechnungen!N222,1,\"\")","v":""},{"$f":"IF($O$129=Berechnungen!O222,1,\"\")","v":""},{"$f":"IF($O$129=Berechnungen!P222,1,\"\")","v":""},{"$f":"F133","v":""}]
["Frage 61",null,{"$f":"IF(B130=Berechnungen!$N$222,1,\"\")","v":""},{"$f":"IF(B130=Berechnungen!$O$222,1,\"\")","v":""},{"$f":"IF(B130=Berechnungen!$P$222,1,\"\")","v":""},null,null,null,null,null,null,null,null,"Kompensationsmaßnahmen:",{"$f":"IF(T129=\"ja\",B133,\"\")","v":""},null,null,null,{"$f":"IF(O130=\"\",\"\",\".\")","v":""}]
["Alternativ61",null,{"$f":"IF(B131=Berechnungen!$N$222,1,\"\")","v":""},{"$f":"IF(B131=Berechnungen!$O$222,1,\"\")","v":""},{"$f":"IF(B131=Berechnungen!$P$222,1,\"\")","v":""}]
["Textbox62"]
["Textbox63",null,null,null,null,{"$f":"IF(B133 = \"\",\"\",\"ja\")","v":""}]
[]
[]
[]
[]
[]
[]
[]
[]
[]
[]
[]
[]
[]
[]
[]
[]
["Frage7","nein",null,null,null,null,null,null,null,null,null,null,null,{"$f":"Berechnungen!A243","v":"Erneuerbare Energie"},null,null,1,2,3,null,null,"😐","🙂","😀"]
["Frage71",null,null,null,null,null,{"$f":"IF(B151=Berechnungen!P245,1,0)","v":0},{"$f":"IF(B151=Berechnungen!O245,1,0)","v":0},{"$f":"IF(B151=Berechnungen!N245,1,0)","v":0},null,null,null,null,{"$f":"Berechnungen!C267","v":"Wird durch thermische Solaranlagen erneuerbare Wärme erzeugt? Wie viel m² Solarfläche wird ungefähr errichtet?"},{"$f":"B162","v":0},{"$f":"Berechnungen!E267","v":"m²"},null,null,null,null,{"$f":"IF(B158=\"\",B151,B158)","v":0},{"$f":"IF(U151=Berechnungen!P245,1,\"\")","v":""},{"$f":"IF(U151=Berechnungen!O245,1,\"\")","v":""},{"$f":"IF(U151=Berechnungen!N245,1,\"\")","v":""}]
["Frage72",null,null,null,null,null,{"$f":"IF(B152=Berechnungen!P246,1,0)","v":0},{"$f":"IF(B152=Berechnungen!O246,1,0)","v":0},{"$f":"IF(B152=Berechnungen!N246,1,0)","v":0},null,null,null,null,{"$f":"Berechnungen!C268","v":"Wird durch Photovoltaik erneuerbarer Strom erzeugt? Wie viel m² Photovoltaikfläche wird ungefähr errichtet?"},{"$f":"B163","v":0},{"$f":"Berechnungen!E268","v":"m²"},null,null,null,null,{"$f":"IF(B159=\"\",B152,B159)","v":0},{"$f":"IF(U152=Berechnungen!P246,1,\"\")","v":""},{"$f":"IF(U152=Berechnungen!O246,1,\"\")","v":""},{"$f":"IF(U152=Berechnungen!N246,1,\"\")","v":""}]
["Frage73",null,null,null,null,null,{"$f":"IF(B153=Berechnungen!P247,1,0)","v":0},{"$f":"IF(B153=Berechnungen!O247,1,0)","v":0},{"$f":"IF(B153=Berechnungen!N247,1,0)","v":0},null,null,null,null,{"$f":"Berechnungen!C269","v":"GEMEINSAME AMPEL FÜR FRAGE 7.1a und 7.1b"},null,null,{"$f":"J164","v":""},"","",null,{"$f":"IF(B160=\"\",B153,B160)","v":0},{"$f":"IF(U153=Berechnungen!P247,1,\"\")","v":""},{"$f":"IF(U153=Berechnungen!O247,1,\"\")","v":""},{"$f":"IF(U153=Berechnungen!N247,1,\"\")","v":""}]
["Frage74",null,null,null,null,null,{"$f":"IF(B154=Berechnungen!P248,1,0)","v":0},{"$f":"IF(B154=Berechnungen!O248,1,0)","v":0},{"$f":"IF(B154=Berechnungen!N248,1,0)","v":0},null,null,null,null,{"$f":"Berechnungen!C270","v":"Wurde durch Dämmung oder andere Maßnahmen z.B. Heizungsoptimierung, Abwärmenutzung der Heizbedarf von Gebäuden oder Anlagen reduziert ? Für wie viele m² BGF wurde dies ungefähr umgesetzt?"},{"$f":"B165","v":0},{"$f":"Berechnungen!E270","v":"m²"},{"$f":"J165","v":""},"","",null,{"$f":"IF(B161=\"\",B154,B161)","v":0},{"$f":"IF(U154=Berechnungen!P248,1,\"\")","v":""},{"$f":"IF(U154=Berechnungen!O248,1,\"\")","v":""},{"$f":"IF(U154=Berechnungen!N248,1,\"\")","v":""}]
[null,null,null,null,null,null,null,null,null,null,null,null,null,{"$f":"Berechnungen!C271","v":"Wurde eine Öl- oder Gasheizung dauerhaft durch eine Hackgut- bzw. Pelletsheizung, Fernwärme oder eine Wärmepumpe ersetzt? Für wie viele m² BGF wurde dies ungefähr umgesetzt?"},{"$f":"B166","v":0},{"$f":"Berechnungen!E271","v":"m²"},"","","",null,"Summe",{"$f":"IF(SUM(V151:V154)=0,\"\",SUM(V151:V154))","v":""},{"$f":"IF(SUM(W151:W154)=0,\"\",SUM(W151:W154))","v":""},{"$f":"IF(SUM(X151:X154)=0,\"\",SUM(X151:X154))","v":""},{"$f":"IF(SUM(V155:X155)=0,\"\",SUM(V155:X155))","v":""},"Gesamtsumme Smileys"]
["Textbox72",null,null,null,null,null,null,null,null,null,null,null,null,{"$f":"Berechnungen!C272","v":"Kann durch den Austausch/Beschaffung von Geräten, Beleuchtung, Materialien, … fossile Energie eingespart werden? Wie viel MWh (=1000 kWh) kann auf die Lebensdauer ungefähr eingespart werden?"},{"$f":"B167","v":0},{"$f":"Berechnungen!E272","v":"MWh"},"","",""]
["Textbox73",null,null,null,null,null,null,null,null,null,null,null,null,"Summe",null,null,{"$f":"IF(SUM(Q153:Q156)=0,\"\",SUM(Q153:Q156))","v":""},{"$f":"IF(SUM(R153:R156)=0,\"\",SUM(R153:R156))","v":""},{"$f":"IF(SUM(S153:S156)=0,\"\",SUM(S153:S156))","v":""},{"$f":"IF(SUM(Q157:S157)=0,\"\",SUM(Q157:S157))","v":""},"Gesamtsumme Ampeln"]
["Alternativ71",null,null,null,null,null,{"$f":"IF(B158=Berechnungen!P245,1,0)","v":0},{"$f":"IF(B158=Berechnungen!O245,1,0)","v":0},{"$f":"IF(B158=Berechnungen!N245,1,0)","v":0}]
["Alternativ72",null,null,null,null,null,{"$f":"IF(B159=Berechnungen!P246,1,0)","v":0},{"$f":"IF(B159=Berechnungen!O246,1,0)","v":0},{"$f":"IF(B159=Berechnungen!N246,1,0)","v":0}]
["Alternativ73",null,null,null,null,null,{"$f":"IF(B160=Berechnungen!P247,1,0)","v":0},{"$f":"IF(B160=Berechnungen!O247,1,0)","v":0},{"$f":"IF(B160=Berechnungen!N247,1,0)","v":0}]
["Alternativ74",null,null,null,null,null,{"$f":"IF(B161=Berechnungen!P248,1,0)","v":0},{"$f":"IF(B161=Berechnungen!O248,1,0)","v":0},{"$f":"IF(B161=Berechnungen!N248,1,0)","v":0}]
["Kompensation71a"]
["Kompensation71b"]
["Ampel71",null,null,null,null,null,null,null,null,{"$f":"IF(AND(K172<L172,K172>0),1,\"\")","v":""},{"$f":"IF(AND(K172<M172,K172>=L172),1,\"\")","v":""},{"$f":"IF(K172>=M172,1,\"\")","v":""}]
["Kompensation72",null,null,null,null,null,null,null,null,{"$f":"IF(AND(K173<L173,K173>0),1,\"\")","v":""},{"$f":"IF(AND(K173<M173,K173>=L173),1,\"\")","v":""},{"$f":"IF(K173>=M173,1,\"\")","v":""}]
["Kompensation73",null,null,null,null,null,null,null,null,{"$f":"IF(AND(K174<L174,K174>0),1,\"\")","v":""},{"$f":"IF(AND(K174<M174,K174>=L174),1,\"\")","v":""},{"$f":"IF(K174>=M174,1,\"\")","v":""}]
["Kompensation74",null,null,null,null,null,null,null,null,{"$f":"IF(AND(K175<L175,K175>0),1,\"\")","v":""},{"$f":"IF(AND(K175<M175,K175>=L175),1,\"\")","v":""},{"$f":"IF(K175>=M175,1,\"\")","v":""}]
[]
[null,null,null,null,null,null,null,null,null,"Berechnungen"]
[null,null,null,null,null,null,null,null,null,{"$f":"B162","v":0},{"$f":"J170*1000*60%*0.268*20/1000","v":0}]
[null,null,null,null,null,null,null,null,null,{"$f":"B163","v":0},{"$f":"J171*143*0.219*20/1000","v":0}]
[null,null,null,null,null,null,null,null,null,null,{"$f":"SUM(K170:K171)","v":0},{"$f":"Berechnungen!J269","v":""},{"$f":"Berechnungen!K269","v":""}]
[null,null,null,null,null,null,null,null,null,{"$f":"B165","v":0},{"$f":"J173*(70-36)/0.85*0.268/1000*20","v":0},{"$f":"Berechnungen!J270","v":""},{"$f":"Berechnungen!K270","v":""}]
[null,null,null,null,null,null,null,null,null,{"$f":"B166","v":0},{"$f":"J174*70*(0.268-0.027)/0.85*20/1000","v":0},{"$f":"Berechnungen!J271","v":""},{"$f":"Berechnungen!K271","v":""}]
[null,null,null,null,null,null,null,null,null,{"$f":"B167","v":0},{"$f":"(J175*0.219)","v":0},{"$f":"Berechnungen!J272","v":""},{"$f":"Berechnungen!K272","v":""}]
[]
[]
[]
[]
[]
[]
["Frage8","nein",null,null,null,null,null,null,null,null,null,null,null,{"$f":"Berechnungen!A285","v":"Klimafreundliche Mobilität"},"Wert","Einheit",1,2,3]
["Frage81",null,null,null,null,null,{"$f":"IF(B183=Berechnungen!P287,1,0)","v":0},{"$f":"IF(B183=Berechnungen!O287,1,0)","v":0},{"$f":"IF(B183=Berechnungen!N287,1,0)","v":0},null,null,null,null,{"$f":"Berechnungen!C287","v":"Wird durch das Projekt der öffentliche Personen-Nahverkehr (ÖPNV) gefördert?\nBeispiele: Bus- oder Bahnanbindung, Anrufsammeltaxi, Bike&Ride- bzw. Park&Ride-Anlagen, Förderung ÖFFIs"},{"$f":"IF(B193=\"\",B183,B193)","v":0},null,{"$f":"IF(O183=Berechnungen!P287,1,0)","v":0},{"$f":"IF(O183=Berechnungen!O287,1,0)","v":0},{"$f":"IF(O183=Berechnungen!N287,1,0)","v":0}]
["Frage82",null,null,null,null,null,{"$f":"IF(B184=Berechnungen!P288,1,0)","v":0},{"$f":"IF(B184=Berechnungen!O288,1,0)","v":0},{"$f":"IF(B184=Berechnungen!N288,1,0)","v":0},null,null,null,null,{"$f":"Berechnungen!C288","v":"Wird durch das Projekt der klimafreundliche Fuß- und Radverkehr gefördert?\nBeispiele: Gute Qualität von Rad- und Fußwegen, optimale Wegeführung, sichere Kreuzungen, Ampelschaltungen auch auf Rad- und Fußverkehr abgestimmt, kurze (Alltags-)Wege, Beleuchtung …"},{"$f":"IF(B194=\"\",B184,B194)","v":0},null,{"$f":"IF(O184=Berechnungen!P288,1,0)","v":0},{"$f":"IF(O184=Berechnungen!O288,1,0)","v":0},{"$f":"IF(O184=Berechnungen!N288,1,0)","v":0}]
["Frage83",null,null,null,null,null,{"$f":"IF(B185=Berechnungen!P289,1,0)","v":0},{"$f":"IF(B185=Berechnungen!O289,1,0)","v":0},{"$f":"IF(B185=Berechnungen!N289,1,0)","v":0},null,null,null,null,{"$f":"Berechnungen!C289","v":"Wird CO2-neutrale Mobilität gefördert?  \nBeispiele: Testangebot von Fahrzeugen mit CO2-neutralem Antriebssystem, Ausbau von E-Ladeinfrastruktur, Förderung"},0,null,{"$f":"IF(O185=Berechnungen!P289,1,0)","v":0},{"$f":"IF(O185=Berechnungen!O289,1,0)","v":0},{"$f":"IF(O185=Berechnungen!N289,1,0)","v":0}]
["Frage84",null,null,null,null,null,{"$f":"IF(B186=Berechnungen!P290,1,0)","v":0},{"$f":"IF(B186=Berechnungen!O290,1,0)","v":0},{"$f":"IF(B186=Berechnungen!N290,1,0)","v":0},null,null,null,null,{"$f":"Berechnungen!C290","v":"Kann durch das Projekt eine Reduktion des PKW-Verkehrs oder der PKW-Anzahl erzielt werden? \nBeispiele: CarSharing-Angebot, Parkraummanagement, Fahrverbote, Geschwindigkeitsreduktion"},0,null,{"$f":"IF(O186=Berechnungen!P290,1,0)","v":0},{"$f":"IF(O186=Berechnungen!O290,1,0)","v":0},{"$f":"IF(O186=Berechnungen!N290,1,0)","v":0}]
["Frage85",null,null,null,null,null,{"$f":"IF(B187=Berechnungen!P291,1,0)","v":0},{"$f":"IF(B187=Berechnungen!O291,1,0)","v":0},{"$f":"IF(B187=Berechnungen!N291,1,0)","v":0},null,null,null,null,{"$f":"Berechnungen!C291","v":"In wie weit werden die Potentiale zur Reduktion von Schwerverkehrfahrten genutzt? \nBeispiele:  Bahnanschluss, Sammeltransporte, gebündelter Verkehr, Fahrverbot, Fahrbeschränkung"},0,null,{"$f":"IF(O187=Berechnungen!P291,1,0)","v":0},{"$f":"IF(O187=Berechnungen!O291,1,0)","v":0},{"$f":"IF(O187=Berechnungen!N291,1,0)","v":0}]
["Frage86",null,null,null,null,null,{"$f":"IF(B188=Berechnungen!P292,1,0)","v":0},{"$f":"IF(B188=Berechnungen!O292,1,0)","v":0},{"$f":"IF(B188=Berechnungen!N292,1,0)","v":0},null,null,null,null,{"$f":"Berechnungen!C292","v":"Kann durch das Projekt die tatsächliche Fahrgeschwindigkeit des KFZ-Verkehrs verringert werden? "},0,null,{"$f":"IF(O188=Berechnungen!P292,1,0)","v":0},{"$f":"IF(O188=Berechnungen!O292,1,0)","v":0},{"$f":"IF(O188=Berechnungen!N292,1,0)","v":0}]
["Frage87",null,null,null,null,null,{"$f":"IF(B189=Berechnungen!P293,1,0)","v":0},{"$f":"IF(B189=Berechnungen!O293,1,0)","v":0},{"$f":"IF(B189=Berechnungen!N293,1,0)","v":0},null,null,null,null,{"$f":"Berechnungen!C293","v":"Kann durch das Vorhaben klimafreundliche Mobilität in der Verwaltung verbessert werden?"},0,null,{"$f":"IF(O189=Berechnungen!P293,1,0)","v":0},{"$f":"IF(O189=Berechnungen!O293,1,0)","v":0},{"$f":"IF(O189=Berechnungen!N293,1,0)","v":0}]
["Textbox81",null,null,null,null,null,null,null,null,null,null,null,null,"Summe",null,null,{"$f":"IF(SUM(Q183:Q189)=0,\"\",SUM(Q183:Q189))","v":""},{"$f":"IF(SUM(R183:R189)=0,\"\",SUM(R183:R189))","v":""},{"$f":"IF(SUM(S183:S189)=0,\"\",SUM(S183:S189))","v":""}]
["Textbox82"]
["Textbox83"]
["Alternativ81",null,null,null,null,null,{"$f":"IF(B193=Berechnungen!P311,1,0)","v":0},{"$f":"IF(B193=Berechnungen!O311,1,0)","v":0},{"$f":"IF(B193=Berechnungen!N311,1,0)","v":0}]
["Alternativ82",null,null,null,null,null,{"$f":"IF(B194=Berechnungen!P312,1,0)","v":0},{"$f":"IF(B194=Berechnungen!O312,1,0)","v":0},{"$f":"IF(B194=Berechnungen!N312,1,0)","v":0}]
["Alternativ83",null,null,null,null,null,{"$f":"IF(B195=Berechnungen!P313,1,0)","v":0},{"$f":"IF(B195=Berechnungen!O313,1,0)","v":0},{"$f":"IF(B195=Berechnungen!N313,1,0)","v":0},null,null,null,null,"Klimafreundliche Mobilität","8.",{"$f":"Berechnungen!C285","v":"Kann das Vorhaben einen Anreiz für klimafreundliche Mobilität setzen (Radfahren, Gehen, Öffis, alternative Antriebe) oder den PKW- bzw. Güterverkehr reduzieren?"},null,"Klimanutzen: "]
["Alternativ84",null,null,null,null,null,{"$f":"IF(B196=Berechnungen!P314,1,0)","v":0},{"$f":"IF(B196=Berechnungen!O314,1,0)","v":0},{"$f":"IF(B196=Berechnungen!N314,1,0)","v":0},null,null,null,null,null,"8.1",{"$f":"N183","v":"Wird durch das Projekt der öffentliche Personen-Nahverkehr (ÖPNV) gefördert?\nBeispiele: Bus- oder Bahnanbindung, Anrufsammeltaxi, Bike&Ride- bzw. Park&Ride-Anlagen, Förderung ÖFFIs"},{"$f":"O183","v":0},null,{"$f":"IF(R183>0,$R$182,\"\")","v":""},{"$f":"IF(S183>0,$S$182,\"\")","v":""}]
["Alternativ85",null,null,null,null,null,{"$f":"IF(B197=Berechnungen!P315,1,0)","v":0},{"$f":"IF(B197=Berechnungen!O315,1,0)","v":0},{"$f":"IF(B197=Berechnungen!N315,1,0)","v":0},null,null,null,null,null,"8.2",{"$f":"N184","v":"Wird durch das Projekt der klimafreundliche Fuß- und Radverkehr gefördert?\nBeispiele: Gute Qualität von Rad- und Fußwegen, optimale Wegeführung, sichere Kreuzungen, Ampelschaltungen auch auf Rad- und Fußverkehr abgestimmt, kurze (Alltags-)Wege, Beleuchtung …"},{"$f":"O184","v":0},null,{"$f":"IF(R184>0,$R$182,\"\")","v":""},""]
["Alternativ86",null,null,null,null,null,{"$f":"IF(B198=Berechnungen!P316,1,0)","v":0},{"$f":"IF(B198=Berechnungen!O316,1,0)","v":0},{"$f":"IF(B198=Berechnungen!N316,1,0)","v":0},null,null,null,null,null,"8.3","Wird CO2-neutrale Mobilität gefördert?  \nBeispiele: Testangebot von Fahrzeugen mit CO2-neutralem Antriebssystem, Ausbau von E-Ladeinfrastruktur, Förderung",0,null,"",""]
["Alternativ87",null,null,null,null,null,{"$f":"IF(B199=Berechnungen!P317,1,0)","v":0},{"$f":"IF(B199=Berechnungen!O317,1,0)","v":0},{"$f":"IF(B199=Berechnungen!N317,1,0)","v":0},null,null,null,null,null,"8.4","Kann durch das Projekt eine Reduktion des PKW-Verkehrs oder der PKW-Anzahl erzielt werden? \nBeispiele: CarSharing-Angebot, Parkraummanagement, Fahrverbote, Geschwindigkeitsreduktion",0,null,"",""]
[null,null,null,null,null,null,null,null,null,null,null,null,null,null,"8.5","In wie weit werden die Potentiale zur Reduktion von Schwerverkehrfahrten genutzt? \nBeispiele:  Bahnanschluss, Sammeltransporte, gebündelter Verkehr, Fahrverbot, Fahrbeschränkung",0,null,"",""]
[null,null,null,null,null,null,null,null,null,null,null,null,null,null,"8.6","Kann durch das Projekt die tatsächliche Fahrgeschwindigkeit des KFZ-Verkehrs verringert werden? ",0,null,"",""]
[null,null,null,null,null,null,null,null,null,null,null,null,null,null,"8.7","Kann durch das Vorhaben klimafreundliche Mobilität in der Verwaltung verbessert werden?",0,null,"",""]
[]
[]
[]
[]
[]
[]
[]
[]
[]
[]
[]
[]
[]
[]
["Frage9","nein",null,null,null,null,null,null,null,null,null,null,null,{"$f":"Berechnungen!A340","v":"Begrünungen"},null,null,1,2,3,null,null,"😐","🙂","😀"]
["Frage91",null,null,null,null,null,{"$f":"IF(B218=Berechnungen!$P$342,1,0)","v":0},{"$f":"IF(B218=Berechnungen!O342,1,0)","v":0},{"$f":"IF(B218=Berechnungen!N342,1,0)","v":0},null,null,null,null,{"$f":"Berechnungen!C342","v":"Entstehen (neue) Grünräume,  Naturwiesen, Baum- und Strauchgruppen, Nutzgärten, Alleen, Wälder, Parks, Bäche, Teiche, Wasserflächen, Moore, Feuchtwiesen und Gebäudebegrünungen mit positiver Wirkung auf Biodiversität und Klimaschutz beziehungsweise werden vorhandene Flächen in diesem Sinne renaturiert? Wie viel Prozent der unverbauten Fläche wird dafür genutzt?"},{"$f":"B230","v":0},{"$f":"Berechnungen!E370","v":"m²"},{"$f":"J230","v":""},"","",null,{"$f":"IF(B225=\"\",B218,B225)","v":0},{"$f":"IF(U218=Berechnungen!P342,1,\"\")","v":""},{"$f":"IF(U218=Berechnungen!O342,1,\"\")","v":""},{"$f":"IF(U218=Berechnungen!N342,1,\"\")","v":""}]
["Frage92",null,null,null,null,null,{"$f":"IF(B219=Berechnungen!$P$343,1,0)","v":0},{"$f":"IF(B219=Berechnungen!O343,1,0)","v":0},{"$f":"IF(B219=Berechnungen!N343,1,0)","v":0},null,null,null,null,{"$f":"Berechnungen!C343","v":"Kann das Projekt vorhandene Moore, Feuchtwiesen, Wälder und Ähnliches als CO2-Speicher stärken und schützen? Wie viel Prozent der vorhandene Flächen werden gestärkt und geschützt?"},{"$f":"B231","v":0},{"$f":"Berechnungen!E371","v":"m²"},"","","",null,{"$f":"IF(B226=\"\",B219,B226)","v":0},{"$f":"IF(U219=Berechnungen!P343,1,\"\")","v":""},{"$f":"IF(U219=Berechnungen!O343,1,\"\")","v":""},{"$f":"IF(U219=Berechnungen!N343,1,\"\")","v":""}]
["Frage93",null,null,null,null,null,{"$f":"IF(B220=Berechnungen!P344,1,0)","v":0},{"$f":"IF(B220=Berechnungen!O344,1,0)","v":0},{"$f":"IF(B220=Berechnungen!N344,1,0)","v":0},null,null,null,null,{"$f":"Berechnungen!C344","v":"Können feuchteregulierende Maßnahmen wie Wasserspeicherung, Versickerung, Verdunstung umgesetzt werden? Wie viel Prozent der unverbauten Fläche wird dafür genutzt?"},{"$f":"B232","v":0},{"$f":"Berechnungen!E372","v":"Stück"},"","","",null,0,{"$f":"IF(U220=Berechnungen!P344,1,\"\")","v":""},{"$f":"IF(U220=Berechnungen!O344,1,\"\")","v":""},{"$f":"IF(U220=Berechnungen!N344,1,\"\")","v":""}]
["Frage94",null,null,null,null,null,{"$f":"IF(B221=Berechnungen!P345,1,0)","v":0},{"$f":"IF(B221=Berechnungen!O345,1,0)","v":0},{"$f":"IF(B221=Berechnungen!N345,1,0)","v":0},null,null,null,null,{"$f":"Berechnungen!C345","v":"Werden Maßnahmen bei Gebäuden eingeführt und dauerhaft betrieben, die den Erhalt der Biodiversität fördern, das Klima schonen und/oder dafür sorgen, dass CO2 stärker gebunden wird (siehe Liste der möglichen Maßnahmen in der Hilfe)? "},{"$f":"IF(B228=\"\",B221,B228)","v":0},null,{"$f":"V221","v":""},{"$f":"W221","v":""},"",null,{"$f":"IF(B228=\"\",B221,B228)","v":0},{"$f":"IF(U221=Berechnungen!P345,1,\"\")","v":""},{"$f":"IF(U221=Berechnungen!O345,1,\"\")","v":""},{"$f":"IF(U221=Berechnungen!N345,1,\"\")","v":""}]
["Frage95",null,null,null,null,null,{"$f":"IF(B222=Berechnungen!P346,1,0)","v":0},{"$f":"IF(B222=Berechnungen!O346,1,0)","v":0},{"$f":"IF(B222=Berechnungen!N346,1,0)","v":0},null,null,null,null,{"$f":"Berechnungen!C346","v":"Werden Maßnahmen in der Gemeinde eingeführt und dauerhaft betrieben, die den Erhalt der Biodiversität fördern, das Klima schonen und/oder dafür sorgen, dass CO2 stärker gebunden wird (siehe Liste der möglichen Maßnahmen in der Hilfe)?"},{"$f":"IF(B229=\"\",B222,B229)","v":0},null,{"$f":"V222","v":""},{"$f":"W222","v":""},{"$f":"X222","v":""},null,0,{"$f":"IF(U222=Berechnungen!P346,1,\"\")","v":""},{"$f":"IF(U222=Berechnungen!O346,1,\"\")","v":""},{"$f":"IF(U222=Berechnungen!N346,1,\"\")","v":""}]
["Textbox92",null,null,null,null,null,null,null,null,null,null,null,null,"Summe",null,null,{"$f":"IF(SUM(Q218:Q222)=0,\"\",SUM(Q218:Q222))","v":""},{"$f":"IF(SUM(R218:R222)=0,\"\",SUM(R218:R222))","v":""},{"$f":"IF(SUM(S218:S222)=0,\"\",SUM(S218:S222))","v":""},{"$f":"IF(SUM(Q223:S223)=0,\"\",SUM(Q223:S223))","v":""},"Summe",{"$f":"IF(SUM(V218:V222)=0,\"\",SUM(V218:V222))","v":""},{"$f":"IF(SUM(W218:W222)=0,\"\",SUM(W218:W222))","v":""},"",{"$f":"IF(SUM(V223:X223)=0,\"\",SUM(V223:X223))","v":""},"Gesamtsumme Smileys"]
["Textbox93",null,null,null,null,null,null,null,null,null,null,null,null,null,null,null,null,null,null,"Gesamtsumme Ampeln"]
["Alternativ91",null,null,null,null,null,{"$f":"IF(B225=Berechnungen!P342,1,0)","v":0},{"$f":"IF(B225=Berechnungen!O342,1,0)","v":0},{"$f":"IF(B225=Berechnungen!N342,1,0)","v":0}]
["Alternativ92",null,null,null,null,null,{"$f":"IF(B226=Berechnungen!P343,1,0)","v":0},{"$f":"IF(B226=Berechnungen!O343,1,0)","v":0},{"$f":"IF(B226=Berechnungen!N343,1,0)","v":0}]
["Alternativ93",null,null,null,null,null,{"$f":"IF(B227=Berechnungen!P344,1,0)","v":0},{"$f":"IF(B227=Berechnungen!O344,1,0)","v":0},{"$f":"IF(B227=Berechnungen!N344,1,0)","v":0}]
["Alternativ94",null,null,null,null,null,{"$f":"IF(B228=Berechnungen!P345,1,0)","v":0},{"$f":"IF(B228=Berechnungen!O345,1,0)","v":0},{"$f":"IF(B228=Berechnungen!N345,1,0)","v":0}]
["Alternativ95",null,null,null,null,null,{"$f":"IF(B229=Berechnungen!P346,1,0)","v":0},{"$f":"IF(B229=Berechnungen!O346,1,0)","v":0},{"$f":"IF(B229=Berechnungen!N346,1,0)","v":0}]
["Kompensation91",null,null,null,null,null,null,null,null,{"$f":"IF(AND(K237<L237,K237>0),1,\"\")","v":""},{"$f":"IF(AND(K237<M237,K237>=L237),1,\"\")","v":""},{"$f":"IF(K237>=M237,1,\"\")","v":""}]
["Kompensation92",null,null,null,null,null,null,null,null,{"$f":"IF(AND(K238<L238,K238>0),1,\"\")","v":""},{"$f":"IF(AND(K238<M238,K238>=L238),1,\"\")","v":""},{"$f":"IF(K238>=M238,1,\"\")","v":""}]
["Kompensation93",null,null,null,null,null,null,null,null,{"$f":"IF(AND(K239<L239,K239>0),1,\"\")","v":""},{"$f":"IF(AND(K239<M239,K239>=L239),1,\"\")","v":""},{"$f":"IF(K239>=M239,1,\"\")","v":""}]
[]
[]
[]
[null,null,null,null,null,null,null,null,null,"Berechnungen"]
[null,"1e Maßnahme","mind. 2 Maßnahmen","mind. 3 Maßnahmen in mind. 2 Gebäuden",null,null,null,null,null,{"$f":"B230","v":0},{"$f":"J237*2.3*50/1000","v":0},{"$f":"Berechnungen!J370","v":""},{"$f":"Berechnungen!K370","v":""}]
[null,"1e Maßnahme","2 Maßnahmen","mind. 3 Maßnahmen",null,null,null,null,null,{"$f":"B231","v":0},{"$f":"J238*2.3*50/1000","v":0},{"$f":"Berechnungen!J371","v":""},{"$f":"Berechnungen!K371","v":""}]
[null,null,null,null,null,null,null,null,null,{"$f":"B232","v":0},{"$f":"J239*10*50/1000","v":0},{"$f":"Berechnungen!J372","v":""},{"$f":"Berechnungen!K372","v":""}]
[]
[]
[]
[]
[]
[]
[]
[]
["Frage100","nein",null,null,null,null,null,null,null,null,null,null,null,{"$f":"Berechnungen!C386","v":"Kann die Planung möglichst klimafreundlich entwickelt werden?\nBetrifft regionales oder örtliches Entwicklungskonzept, Flächenwidmungsplan, Bebauungsplan, Städtebauliche Konzepte, Städtebauliche  Leitbilder o.ä."},"Wert","Einheit",1,2,3]
["Frage101",null,null,null,null,null,{"$f":"IF(B249=Berechnungen!$P$388,1,0)","v":0},{"$f":"IF(B249=Berechnungen!$O$388,1,0)","v":0},{"$f":"IF(B249=Berechnungen!$N$388,1,0)","v":0},null,null,null,null,{"$f":"Berechnungen!C388","v":"Werden im örtlichen Raumordnunsprogramm bzw. der Flächenwidmung die übergeordneten klimarelevanten Ziele und Planungen integriert?    Beispiele: Österreichische Klima- und Energiestrategie \"mission2030\"; Landesentwicklungsprogramm, Regionale Entwicklungsprogramme, Leitbilder o.ä."},{"$f":"IF(B255=\"\",B249,B255)","v":0},null,{"$f":"IF(O249=Berechnungen!P388,1,\"\")","v":""},{"$f":"IF(O249=Berechnungen!O388,1,\"\")","v":""},{"$f":"IF(O249=Berechnungen!N388,1,\"\")","v":""}]
["Frage102",null,null,null,null,null,{"$f":"IF(B250=Berechnungen!$P$389,1,0)","v":0},{"$f":"IF(B250=Berechnungen!$O$389,1,0)","v":0},{"$f":"IF(B250=Berechnungen!$N$389,1,0)","v":0},null,null,null,null,{"$f":"Berechnungen!C389","v":"Werden im Bebauungsplan, bei Baulandumlegung bzw. bei Änderungen der Bauvorschriften und bei privatwirtschaftlichen Raumplanungsverträgen die übergeordneten klimarelevanten Ziele und Planungen integriert?  "},{"$f":"IF(B256=\"\",B250,B256)","v":0},null,{"$f":"IF(O250=Berechnungen!P389,1,\"\")","v":""},{"$f":"IF(O250=Berechnungen!O389,1,\"\")","v":""},{"$f":"IF(O250=Berechnungen!N389,1,\"\")","v":""}]
["Frage103",null,null,null,null,null,{"$f":"IF(B251=Berechnungen!$P$390,1,0)","v":0},{"$f":"IF(B251=Berechnungen!$O$390,1,0)","v":0},{"$f":"IF(B251=Berechnungen!$N$390,1,0)","v":0},null,null,null,null,{"$f":"Berechnungen!C390","v":"Werden im Städtebaulichen Leitbild, bei Stadtentwicklungskonzepten, Quartiersentwicklungen, Freiraumkonzepten o. ä. die übergeordneten klimarelevanten Ziele und Planungen integriert? "},{"$f":"IF(B257=\"\",B251,B257)","v":0},null,{"$f":"IF(O251=Berechnungen!P390,1,\"\")","v":""},{"$f":"IF(O251=Berechnungen!O390,1,\"\")","v":""},{"$f":"IF(O251=Berechnungen!N390,1,\"\")","v":""}]
["Frage104",null,null,null,null,null,{"$f":"IF(B252=Berechnungen!$P$391,1,0)","v":0},{"$f":"IF(B252=Berechnungen!$O$391,1,0)","v":0},{"$f":"IF(B252=Berechnungen!$N$391,1,0)","v":0},null,null,null,null,{"$f":"Berechnungen!C391","v":"Wird in allen oben genannten Planungen die Klimawandelanpassung berücksichtigt? \nZ. B. Landschaftskonzept, Baumkataster"},{"$f":"IF(B258=\"\",B252,B258)","v":0},null,{"$f":"IF(O252=Berechnungen!P391,1,\"\")","v":""},{"$f":"IF(O252=Berechnungen!O391,1,\"\")","v":""},{"$f":"IF(O252=Berechnungen!N391,1,\"\")","v":""}]
["Textbox102",null,null,null,null,null,null,null,null,null,null,null,null,"Summe",null,null,{"$f":"IF(SUM(Q249:Q252)=0,\"\",SUM(Q249:Q252))","v":""},{"$f":"IF(SUM(R249:R252)=0,\"\",SUM(R249:R252))","v":""},{"$f":"IF(SUM(S249:S252)=0,\"\",SUM(S249:S252))","v":""}]
["Textbox103"]
["Alternativ101",null,null,null,null,null,{"$f":"IF(B255=Berechnungen!$P$388,1,0)","v":0},{"$f":"IF(B255=Berechnungen!$O$388,1,0)","v":0},{"$f":"IF(B255=Berechnungen!$N$388,1,0)","v":0}]
["Alternativ102",null,null,null,null,null,{"$f":"IF(B256=Berechnungen!$P$389,1,0)","v":0},{"$f":"IF(B256=Berechnungen!$O$389,1,0)","v":0},{"$f":"IF(B256=Berechnungen!$N$389,1,0)","v":0}]
["Alternativ103",null,null,null,null,null,{"$f":"IF(B257=Berechnungen!$P$390,1,0)","v":0},{"$f":"IF(B257=Berechnungen!$O$390,1,0)","v":0},{"$f":"IF(B257=Berechnungen!$N$390,1,0)","v":0}]
["Alternativ104",null,null,null,null,null,{"$f":"IF(B258=Berechnungen!$P$391,1,0)","v":0},{"$f":"IF(B258=Berechnungen!$O$391,1,0)","v":0},{"$f":"IF(B258=Berechnungen!$N$391,1,0)","v":0}]
[]
[]
[]
[]
[]
[]
[]
[]
[]
[]
[]
[]
[]
[]
[]
[]
[]
[]
[]
[]
[]
["Frage110","nein",null,null,null,null,null,null,null,null,null,null,null,{"$f":"Berechnungen!C428","v":"Kann mit dem Projekt öffentlichkeitswirksam für mehr Klimaschutz bei der  Bevölkerung und der Verwaltung geworben werden? Auch durch Förderungen oder Abgaben für Ver- und Entsorgung."},"Wert","Einheit",1,2,3]
["Frage111",null,null,null,null,null,{"$f":"IF(B281=Berechnungen!$P$430,1,0)","v":0},{"$f":"IF(B281=Berechnungen!$O$430,1,0)","v":0},{"$f":"IF(B281=Berechnungen!$N$430,1,0)","v":0},null,null,null,null,{"$f":"Berechnungen!C430","v":"Ist eine Information über die positiven Auswirkungen des Projekts auf den Klimaschutz für die BürgerInnen (Presse, Homepage etc.) geplant?"},{"$f":"IF(B288=\"\",B281,B288)","v":0},null,{"$f":"IF(O281=Berechnungen!P430,1,\"\")","v":""},{"$f":"IF(OR(O281=Berechnungen!N430,O281=Berechnungen!O430),1,\"\")","v":""}]
["Frage112",null,null,null,null,null,{"$f":"IF(B282=Berechnungen!$P$431,1,0)","v":0},{"$f":"IF(B282=Berechnungen!$O$431,1,0)","v":0},{"$f":"IF(B282=Berechnungen!$N$431,1,0)","v":0},null,null,null,null,{"$f":"Berechnungen!C431","v":"Ist eine Information über die positiven Auswirkungen des Projekts auf den Klimaschutz für die Verwaltung, für die Politik oder für andere Gebietskörperschaften (andere Gemeinden) geplant?"},{"$f":"IF(B289=\"\",B282,B289)","v":0},null,{"$f":"IF(O282=Berechnungen!P431,1,\"\")","v":""},{"$f":"IF(OR(O282=Berechnungen!N431,O282=Berechnungen!O431),1,\"\")","v":""}]
["Frage113",null,null,null,null,null,{"$f":"IF(B283=Berechnungen!$P$432,1,0)","v":0},{"$f":"IF(B283=Berechnungen!$O$432,1,0)","v":0},{"$f":"IF(B283=Berechnungen!$N$432,1,0)","v":0},null,null,null,null,{"$f":"Berechnungen!C432","v":"Ist eine Bürgerbeteiligung, Partizipation für mehr Klimaschutz in der Bevölkerung geplant?"},{"$f":"IF(B290=\"\",B283,B290)","v":0},null,{"$f":"IF(O283=Berechnungen!P432,1,\"\")","v":""},{"$f":"IF($O$283=Berechnungen!O432,1,\"\")","v":""},{"$f":"IF($O$283=Berechnungen!N432,1,\"\")","v":""}]
["Frage114",null,null,null,null,null,{"$f":"IF(B284=Berechnungen!P433,1,0)","v":0},{"$f":"IF(B284=Berechnungen!O433,1,0)","v":0},{"$f":"IF(B284=Berechnungen!N433,1,0)","v":0},null,null,null,null,{"$f":"Berechnungen!C433","v":"Werden bei geplanten Förderungen der Stadt/Gemeinde Klimaauswirkungen berücksichtigt?"},{"$f":"IF(B291=\"\",B284,B291)","v":0},null,{"$f":"IF(O284=Berechnungen!P433,1,\"\")","v":""},{"$f":"IF($O$284=Berechnungen!O433,1,\"\")","v":""},{"$f":"IF($O$284=Berechnungen!N433,1,\"\")","v":""}]
["Frage115",null,null,null,null,null,{"$f":"IF(B285=Berechnungen!$P$434,1,0)","v":0},{"$f":"IF(B285=Berechnungen!$O$434,1,0)","v":0},{"$f":"IF(B285=Berechnungen!$N$434,1,0)","v":0},null,null,null,null,{"$f":"Berechnungen!C434","v":"Wirken sich Abgabenänderungen bei Wasserversorgung, Abfallwirtschaft, Parkraumbewirtschaftung etc. positiv auf klimaschonendes bzw. ressourcenschonendes Verhalten der Kunden aus?"},{"$f":"IF(B292=\"\",B285,B292)","v":0},null,{"$f":"IF(O285=Berechnungen!P434,1,\"\")","v":""},{"$f":"IF($O$285=Berechnungen!O434,1,\"\")","v":""},{"$f":"IF($O$285=Berechnungen!N434,1,\"\")","v":""}]
["Textbox112",null,null,null,null,null,null,null,null,null,null,null,null,"Summe",null,null,{"$f":"IF(SUM(Q281:Q285)=0,\"\",SUM(Q281:Q285))","v":""},{"$f":"IF(SUM(R281:R285)=0,\"\",SUM(R281:R285))","v":""},{"$f":"IF(SUM(S281:S285)=0,\"\",SUM(S281:S285))","v":""}]
["Textbox113",null,null,null,null,null,null,null,null,null,null,null,null,null,null,null,"Ergebnishellgruengesamt (ohne Frage 111 und 112)",{"$f":"IF(SUM(R283:R285)=0,\"\",SUM(R283:R285))","v":""}]
["Alternativ111",null,null,null,null,null,{"$f":"IF(B288=Berechnungen!$P$430,1,0)","v":0},{"$f":"IF(B288=Berechnungen!$O$430,1,0)","v":0},{"$f":"IF(B288=Berechnungen!$N$430,1,0)","v":0}]
["Alternativ112",null,null,null,null,null,{"$f":"IF(B289=Berechnungen!$P$431,1,0)","v":0},{"$f":"IF(B289=Berechnungen!$O$431,1,0)","v":0},{"$f":"IF(B289=Berechnungen!$N$431,1,0)","v":0}]
["Alternativ113",null,null,null,null,null,{"$f":"IF(B290=Berechnungen!$P$432,1,0)","v":0},{"$f":"IF(B290=Berechnungen!$O$432,1,0)","v":0},{"$f":"IF(B290=Berechnungen!$N$432,1,0)","v":0}]
["Alternativ114",null,null,null,null,null,{"$f":"IF(B291=Berechnungen!$P$433,1,0)","v":0},{"$f":"IF(B291=Berechnungen!$O$433,1,0)","v":0},{"$f":"IF(B291=Berechnungen!$N$433,1,0)","v":0}]
["Alternativ115",null,null,null,null,null,{"$f":"IF(B292=Berechnungen!$P$434,1,0)","v":0},{"$f":"IF(B292=Berechnungen!$O$434,1,0)","v":0},{"$f":"IF(B292=Berechnungen!$N$434,1,0)","v":0}]
[]
[]
[]
[]
[]
[]
[]
[]
[]
[]
[]
[]
[]
[]
[]
[]
[]
[]
["Frage12","nein",null,null,null,null,null,null,null,null,null,null,null,{"$f":"Berechnungen!C475","v":"Gibt es eine positive Auswirkung auf das Klima, die in den vorherigen Fragen nicht erwähnt wurde?"},null,null,1,2,3]
["Frage121a",null,null,null,null,null,null,null,null,{"$f":"IF($B$312=Berechnungen!N479,1,\"\")","v":""},{"$f":"IF($B$312=Berechnungen!O479,1,\"\")","v":""},{"$f":"IF($B$312=Berechnungen!P479,1,\"\")","v":""},null,{"$f":"Berechnungen!C479","v":"Nutzung als Kompensationsmaßnahme: Welche Kompensationswirkung würden Sie der Maßnahme zuschreiben?\n (gering kompensiert eine  grüne, mittel eine gelbe und hoch eine rote Ampel) "},{"$f":"B313","v":0},null,{"$f":"J312","v":""},{"$f":"K312","v":""},{"$f":"L312","v":""}]
["Textbox12"]

{"sheet":"Beschlussampel_Zusammenfassung","index":6,"n_rows":115,"n_cols":8,"rows_kept":115,"cut":false,"hidden":true,"merged":[[112,3,112,4],[85,3,85,4],[72,3,72,4],[59,3,59,4],[41,3,41,4],[94,3,94,4],[102,3,102,4],[53,2,53,5],[3,3,3,4],[12,3,12,4],[8,2,8,5],[18,2,18,5],[22,3,22,4],[26,2,26,5],[31,3,31,4],[36,2,36,5],[47,2,47,5],[51,3,51,4]]}
[]
[]
[]
[null,{"$f":"Prüfungsfragen!B6","v":"Fossile Energie"},1,{"$f":"Bearbeitung!P12","v":"Wird durch das Vorhaben zusätzlich fossile Energie (Öl, Gas, Kohle, fossiler Strom) in einem Gebäude oder einer Anlage verbraucht?"},null,"Klimaschaden: ",{"$f":"IF(AND(H4=\"\",OR(G5<>\"\",G6<>\"\",G7<>\"\",G8<>\"\")),\"mittel\",\"\")","v":""},{"$f":"IF(OR(H5<>\"\",H6<>\"\",H7<>\"\",H8<>\"\"),\"hoch\",\"\")","v":""}]
[null,null,"1.1.",{"$f":"Bearbeitung!P13","v":"Wird mit fossiler Energie (Öl, Gas) geheizt? Für welche zusätzliche Bruttogrundfläche?"},{"$f":"Bearbeitung!Q13","v":0},{"$f":"Bearbeitung!R13","v":"m2 BGF "},{"$f":"Bearbeitung!S13","v":""},{"$f":"Bearbeitung!T13","v":""}]
[null,null,"1.2.",{"$f":"Bearbeitung!P14","v":"Wird Strom mit fossilem Anteil genutzt? Für welche zusätzliche Bruttogrundfläche (Berechnung für Wohngebäude siehe Hilfe)? "},{"$f":"Bearbeitung!Q14","v":0},{"$f":"Bearbeitung!R14","v":"m2 BGF  "},{"$f":"Bearbeitung!S14","v":""},{"$f":"Bearbeitung!T14","v":""}]
[null,null,"1.3.",{"$f":"Bearbeitung!P15","v":"Werden für Prozesswärme zusätzlich fossile Brennstoffe verbraucht? In welcher Höhe (geschätzt)? "},{"$f":"Bearbeitung!Q15","v":0},{"$f":"Bearbeitung!R15","v":"kWh pro Jahr"},{"$f":"Bearbeitung!S15","v":""},{"$f":"Bearbeitung!T15","v":""}]
[null,null,"1.4.",{"$f":"Bearbeitung!P16","v":"Wird für einen Prozess / ein Vorhaben  zusätzlich Strom mit fossilen Anteilen verwendet? In welcher Höhe (geschätzt)? "},{"$f":"Bearbeitung!Q16","v":0},{"$f":"Bearbeitung!R16","v":"kWh pro Jahr"},{"$f":"Bearbeitung!S16","v":""},{"$f":"Bearbeitung!T16","v":""}]
[null,"Kompensation",{"$f":"Bearbeitung!O17","v":""},null,null,null,{"$f":"IF(AND(G4=\"\",H4=\"\"),\"\",Bearbeitung!S17)","v":""}]
[null,null,null,null,null,null,{"$f":"IF(OR(G4<>\"\",H4<>\"\"),\".\",\"\")","v":""}]
[]
[]
[null,{"$f":"Prüfungsfragen!B8","v":"Motorisierter Verkehr"},2,{"$f":"Bearbeitung!P36","v":"Erzeugt das Vorhaben zusätzlichen motorisierten PKW- oder Güterverkehr? "},null,"Klimaschaden: ",{"$f":"IF(AND(H13=\"\",OR(G14<>\"\",G15<>\"\",G16<>\"\",G17<>\"\",G18<>\"\")),\"mittel\",\"\")","v":""},{"$f":"IF(OR(H14<>\"\",H15<>\"\",H16<>\"\",H17<>\"\",H18<>\"\"),\"hoch\",\"\")","v":""}]
[null,null,"2.1.",{"$f":"Bearbeitung!P37","v":"Werden der motorisierte PKW- und Güterverkehr (> 3,5 t) durch die Maßnahme erhöht? Wie viele Fahrten werden pro Tag zusätzlich erzeugt (grobe Schätzung)? Beispiele: Widmung Gewerbegebiet mit voraussichtl. Verkehrszunahme, Errichtung Einkaufszentrum oder Freizeiteinrichtung, Veranstaltungen etc. "},{"$f":"Bearbeitung!Q37","v":0},{"$f":"Bearbeitung!R37","v":"Fahrten pro Werktag"},{"$f":"Bearbeitung!S37","v":""},{"$f":"Bearbeitung!T37","v":""}]
[null,null,"2.2.",{"$f":"Bearbeitung!P38","v":"Werden im Zuge des Projekts Stellplätze neu errichtet? Um wie viele zusätzliche Stellplätze handelt es sich?"},{"$f":"Bearbeitung!Q38","v":0},{"$f":"Bearbeitung!R38","v":"Anzahl"},{"$f":"Bearbeitung!S38","v":""},{"$f":"Bearbeitung!T38","v":""}]
[null,null,"2.3.",{"$f":"Bearbeitung!P39","v":"Werden Straßen verbreitert, begradigt, saniert oder zusätzlich errichtet? Wie viele Laufmeter Straße werden für den PKW- oder Güterverkehr verbessert bzw. zusätzlich errichtet?"},{"$f":"Bearbeitung!Q39","v":0},{"$f":"Bearbeitung!R39","v":"Länge in m"},{"$f":"Bearbeitung!S39","v":""},{"$f":"Bearbeitung!T39","v":""}]
[null,null,"2.4.",{"$f":"Bearbeitung!P40","v":"Führen Maßnahmen in der Parkraumbewirtschaftung zu mehr motorisiertem Verkehr? Beispiele: Gebührenreduzierung, Parkgebühr-Ausnahmen (zeitbezogen, Personen-/Fahrzeugbezogen)"},{"$f":"Bearbeitung!Q40","v":0},{"$f":"IF(Bearbeitung!R40=\"\",\"\",Bearbeitung!R40)","v":""},{"$f":"Bearbeitung!S40","v":""},{"$f":"Bearbeitung!T40","v":""}]
[null,null,"2.5.",{"$f":"Bearbeitung!P41","v":"Behindert die Maßnahme klimafreundlichen Verkehr (Radfahren, zu Fuß gehen, ÖFFIS), z.B. Unterbrechung oder Reduzierung eines Fußgängerwegs oder Fahrradwegs ?"},{"$f":"Bearbeitung!Q41","v":0},{"$f":"IF(Bearbeitung!R41=\"\",\"\",Bearbeitung!R41)","v":""},{"$f":"Bearbeitung!S41","v":""},{"$f":"Bearbeitung!T41","v":""}]
[null,"Kompensation",{"$f":"Bearbeitung!O42","v":""},null,null,null,{"$f":"IF(AND(G13=\"\",H13=\"\"),\"\",Bearbeitung!S42)","v":""}]
[null,null,null,null,null,null,{"$f":"IF(OR(G13<>\"\",H13<>\"\"),\".\",\"\")","v":""}]
[]
[]
[null,{"$f":"Prüfungsfragen!B10","v":"Versiegelung"},"3.",{"$f":"Berechnungen!C96","v":"Werden durch das Projekt zusätzliche Flächen versiegelt und/oder gehen Naturräume verloren?"},null,"Klimaschaden: ",{"$f":"IF(AND(H23=\"\",OR(G24<>\"\",G25<>\"\",G26<>\"\")),\"mittel\",\"\")","v":""},{"$f":"IF(OR(H24<>\"\",H25<>\"\",H26<>\"\"),\"hoch\",\"\")","v":""}]
[null,null,"3.1",{"$f":"Berechnungen!C98","v":"Wie viele m² Fläche gehen als biodiversitätsrelevante Flächen (z.B. Grünraum, Wälder) verloren?  Für den Berechnungsschlüssel siehe Hilfe."},{"$f":"Bearbeitung!Q60","v":0},{"$f":"Bearbeitung!R60","v":"m²"},{"$f":"Bearbeitung!S60","v":""},{"$f":"Bearbeitung!T60","v":""}]
[null,null,"3.2",{"$f":"Berechnungen!C99","v":"Wie viele m² Fläche werden durch das Projekt zusätzlich versiegelt? "},{"$f":"Bearbeitung!Q61","v":0},{"$f":"Bearbeitung!R61","v":"m²"},{"$f":"Bearbeitung!S61","v":""},{"$f":"Bearbeitung!T61","v":""}]
[null,null,"3.3",{"$f":"Berechnungen!C100","v":"Wie viel Bäume gehen verloren?"},{"$f":"Bearbeitung!Q62","v":0},{"$f":"Bearbeitung!R62","v":"Anzahl Bäume"},{"$f":"Bearbeitung!S62","v":""},{"$f":"Bearbeitung!T62","v":""}]
[null,"Kompensation",{"$f":"Bearbeitung!O63","v":""},null,null,null,{"$f":"IF(AND(G23=\"\",H23=\"\"),\"\",Bearbeitung!S63)","v":""}]
[null,null,null,null,null,null,{"$f":"IF(OR(G23<>\"\",H23<>\"\"),\".\",\"\")","v":""}]
[]
[]
[]
[null,{"$f":"Prüfungsfragen!B12","v":"Bauen"},"4.",{"$f":"Berechnungen!C132","v":"Werden beim Vorhaben Gebäude oder Anlagen neu gebaut oder saniert?"},null,"Klimaschaden: ",{"$f":"IF(AND(H32=\"\",OR(G33<>\"\",G34<>\"\",G35<>\"\",G36<>\"\")),\"mittel\",\"\")","v":""},{"$f":"IF(OR(H33<>\"\",H34<>\"\",H35<>\"\",H36<>\"\"),\"hoch\",\"\")","v":""}]
[null,null,"4.1",{"$f":"Berechnungen!C134","v":"Wird beim Gebäude-Neubau nur nach dem Mindeststandard der Bauvorschriften gebaut? Nach welchem Baustandard wird das Gebäude errichtet?"},{"$f":"Bearbeitung!Q84","v":0},{"$f":"IF(Bearbeitung!R84=\"\",\"\",Bearbeitung!R84)","v":""},{"$f":"Bearbeitung!S84","v":""},{"$f":"Bearbeitung!T84","v":""}]
[null,null,"4.2",{"$f":"Berechnungen!C135","v":"Wird ein bestehendes Gebäude nur mit geringstem Aufwand saniert? Welchen Baustandard hat das Gebäude nach der Sanierung?"},{"$f":"Bearbeitung!Q85","v":0},{"$f":"IF(Bearbeitung!R85=\"\",\"\",Bearbeitung!R85)","v":""},{"$f":"Bearbeitung!S85","v":""},{"$f":"Bearbeitung!T85","v":""}]
[null,null,"4.3",{"$f":"Berechnungen!C136","v":"Werden größere Mengen an neuer Bausubstanz benötigt? Wieviele m² BGF werden neu errichtet?"},{"$f":"Bearbeitung!Q86","v":0},{"$f":"IF(Bearbeitung!R86=\"\",\"\",Bearbeitung!R86)","v":"m² BGF"},{"$f":"Bearbeitung!S86","v":""},{"$f":"Bearbeitung!T86","v":""}]
[null,null,"4.4",{"$f":"Berechnungen!C137","v":"Wird beim Neubau oder bei der Sanierung von Anlagen Wert auf Klimaschutzmaßnahmen  gelegt?\nZ.B. Niedrigenergie-Bauweise, energieeffiziente Maschinen und Geräte, ökologische Baustoffe  "},{"$f":"Bearbeitung!Q87","v":0},{"$f":"IF(Bearbeitung!R87=\"\",\"\",Bearbeitung!R87)","v":""},{"$f":"Bearbeitung!S87","v":""},{"$f":"Bearbeitung!T87","v":""}]
[null,"Kompensation",{"$f":"Bearbeitung!O88","v":""},null,null,null,{"$f":"IF(AND(G32=\"\",H32=\"\"),\"\",Bearbeitung!S88)","v":""}]
[null,null,null,null,null,null,{"$f":"IF(OR(G32<>\"\",H32<>\"\"),\".\",\"\")","v":""}]
[]
[]
[]
[null,{"$f":"Prüfungsfragen!B14","v":"Beschaffung, Subvention"},"5.",{"$f":"Berechnungen!C174","v":"Wird eine Beschaffung oder eine Ausschreibung vorgenommen? Wird eine Veranstaltung durchgeführt oder eine Organisation subventioniert? "},null,"Klimaschaden: ",{"$f":"IF(AND(H42=\"\",OR(G43<>\"\",G44<>\"\",G45<>\"\",G46<>\"\",G47<>\"\")),\"mittel\",\"\")","v":""},{"$f":"IF(OR(H43<>\"\",H44<>\"\",H45<>\"\",H46<>\"\",H47<>\"\"),\"hoch\",\"\")","v":""}]
[null,null,"5.1",{"$f":"Berechnungen!C176","v":"Werden Büromöbel, Textilien, Elektrogeräte, EDV/IT-Geräte, Beleuchtung, Reinigungsmittel, Büromaterial, Druckwerke und Lebensmittel nachhaltig beschafft? Wie hoch ist der Anteil dieser Produkte am Gesamtanteil (geschätzt)?"},{"$f":"Bearbeitung!Q111","v":0},null,{"$f":"Bearbeitung!S111","v":""},{"$f":"Bearbeitung!T111","v":""}]
[null,null,"5.2",{"$f":"Berechnungen!C177","v":"Werden bei der Fuhrparkbeschaffung Fahrzeuge mit alternativem Antrieb (0 g CO2-Ausstoß im Betrieb) angeschafft? "},{"$f":"Bearbeitung!Q112","v":0},null,{"$f":"Bearbeitung!S112","v":""},{"$f":"Bearbeitung!T112","v":""}]
[null,null,"5.3",{"$f":"Berechnungen!C178","v":"Werden klimaschonende Kriterien bei Ausschreibungen der Stadt berücksichtigt? Zum Beispiel naBe-Kriterien, Baubook-Kriterien, klimaaktiv-Kriterien, Handbuch zur Regionalvergabe …"},{"$f":"Bearbeitung!Q113","v":0},null,{"$f":"Bearbeitung!S113","v":""},{"$f":"Bearbeitung!T113","v":""}]
[null,null,"5.4",{"$f":"Berechnungen!C179","v":"Werden Veranstaltungen nachhaltig durchgeführt? Umsetzung z.B. nach den  Kriterien von Sauberhafte Feste oder Green Event"},{"$f":"Bearbeitung!Q114","v":0},null,{"$f":"Bearbeitung!S114","v":""},{"$f":"Bearbeitung!T114","v":""}]
[null,null,"5.5",{"$f":"Berechnungen!C180","v":"Werden bei Subventionen an Vereine/Organisationen Nachhaltigkeitskriterien für die Verwendung des Geldes vorgegeben?  Z.B. nabe-Kriterien, ökologische Baustoffe / Reinigungsmittel / Mobilität / Verpflegung."},{"$f":"Bearbeitung!Q115","v":0},null,{"$f":"Bearbeitung!S115","v":""},{"$f":"Bearbeitung!T115","v":""}]
[null,"Kompensation",{"$f":"Bearbeitung!O116","v":""},null,null,null,{"$f":"IF(AND(G42=\"\",H42=\"\"),\"\",Bearbeitung!S116)","v":""}]
[null,null,null,null,null,null,{"$f":"IF(OR(G42<>\"\",H42<>\"\"),\".\",\"\")","v":""}]
[]
[]
[null,{"$f":"Prüfungsfragen!B16","v":"Sonstige negative Klimarelevanz"},"6.",{"$f":"Berechnungen!C218","v":"Gibt es eine negative Auswirkung auf das Klima, die in den vorherigen Fragen nicht erwähnt wurde?"},null,"Klimaschaden: ",{"$f":"IF(AND(H52=\"\",G53<>\"\"),\"mittel\",\"\")","v":""},{"$f":"IF(H53<>\"\",\"hoch\",\"\")","v":""}]
[null,null,"6.1",{"$f":"Berechnungen!C222","v":"Wie würden Sie die klimaschädigenden Auswirkungen des Vorhabens einschätzen?"},{"$f":"Bearbeitung!O129","v":0},null,{"$f":"IF(Bearbeitung!R129=1,Bearbeitung!R128,\"\")","v":""},{"$f":"IF(Bearbeitung!S129=1,Bearbeitung!S128,\"\")","v":""}]
[null,"Kompensation",{"$f":"Bearbeitung!O130","v":""},null,null,null,{"$f":"IF(AND(G52=\"\",H52=\"\"),\"\",Bearbeitung!S130)","v":""}]
[null,null,null,null,null,null,{"$f":"IF(OR(G52<>\"\",H52<>\"\"),\".\",\"\")","v":""}]
[]
[]
[]
[]
[null,{"$f":"Prüfungsfragen!B18","v":"Erneuerbare Energie"},"7.",{"$f":"Berechnungen!C243","v":"Kann durch das Vorhaben erneuerbare Energie (Biomasse, Sonne, Umgebungswärme) erzeugt oder fossile Energie eingespart werden (Dämmung, Heizungstausch, …) ? "},null,"Klimanutzen: ",{"$f":"IF(AND(H60=\"\",OR(G63<>\"\",G64<>\"\",G65<>\"\",G66<>\"\")),\"mittel\",\"\")","v":""},{"$f":"IF(OR(H63<>\"\",H64<>\"\",H65<>\"\",H66<>\"\"),\"hoch\",\"\")","v":""}]
[null,null,"7.1a",{"$f":"Berechnungen!C267","v":"Wird durch thermische Solaranlagen erneuerbare Wärme erzeugt? Wie viel m² Solarfläche wird ungefähr errichtet?"},{"$f":"Bearbeitung!O151","v":0},{"$f":"Bearbeitung!P151","v":"m²"},{"$f":"IF($G$63=\"\",\"\",\".\")","v":""},{"$f":"IF($H$63=\"\",\"\",\".\")","v":""}]
[null,null,"7.1b",{"$f":"Berechnungen!C268","v":"Wird durch Photovoltaik erneuerbarer Strom erzeugt? Wie viel m² Photovoltaikfläche wird ungefähr errichtet?"},{"$f":"Bearbeitung!O152","v":0},{"$f":"Bearbeitung!P152","v":"m²"},{"$f":"IF($G$63=\"\",\"\",\".\")","v":""},{"$f":"IF($H$63=\"\",\"\",\".\")","v":""}]
[null,null,null,{"$f":"Berechnungen!C269","v":"GEMEINSAME AMPEL FÜR FRAGE 7.1a und 7.1b"},null,null,{"$f":"IF(Bearbeitung!R153=1,Bearbeitung!$R$150,\"\")","v":""},{"$f":"IF(Bearbeitung!S153=1,Bearbeitung!$S$150,\"\")","v":""}]
[null,null,"7.2",{"$f":"Berechnungen!C270","v":"Wurde durch Dämmung oder andere Maßnahmen z.B. Heizungsoptimierung, Abwärmenutzung der Heizbedarf von Gebäuden oder Anlagen reduziert ? Für wie viele m² BGF wurde dies ungefähr umgesetzt?"},{"$f":"Bearbeitung!O154","v":0},{"$f":"Bearbeitung!P154","v":"m²"},{"$f":"IF(Bearbeitung!R154=1,Bearbeitung!$R$150,\"\")","v":""},{"$f":"IF(Bearbeitung!S154=1,Bearbeitung!$S$150,\"\")","v":""}]
[null,null,"7.3",{"$f":"Berechnungen!C271","v":"Wurde eine Öl- oder Gasheizung dauerhaft durch eine Hackgut- bzw. Pelletsheizung, Fernwärme oder eine Wärmepumpe ersetzt? Für wie viele m² BGF wurde dies ungefähr umgesetzt?"},{"$f":"Bearbeitung!O155","v":0},{"$f":"Bearbeitung!P155","v":"m²"},{"$f":"IF(Bearbeitung!R155=1,Bearbeitung!$R$150,\"\")","v":""},{"$f":"IF(Bearbeitung!S155=1,Bearbeitung!$S$150,\"\")","v":""}]
[null,null,"7.4",{"$f":"Berechnungen!C272","v":"Kann durch den Austausch/Beschaffung von Geräten, Beleuchtung, Materialien, … fossile Energie eingespart werden? Wie viel MWh (=1000 kWh) kann auf die Lebensdauer ungefähr eingespart werden?"},{"$f":"Bearbeitung!O156","v":0},{"$f":"Bearbeitung!P156","v":"MWh"},{"$f":"IF(Bearbeitung!R156=1,Bearbeitung!$R$150,\"\")","v":""},{"$f":"IF(Bearbeitung!S156=1,Bearbeitung!$S$150,\"\")","v":""}]
[null,null,null,null,null,null,{"$f":"IF(OR(G60<>\"\",H60<>\"\"),\".\",\"\")","v":""}]
[]
[]
[]
[]
[]
[null,{"$f":"Prüfungsfragen!B20","v":"Klimafreundliche Mobilität"},"8.",{"$f":"Berechnungen!C285","v":"Kann das Vorhaben einen Anreiz für klimafreundliche Mobilität setzen (Radfahren, Gehen, Öffis, alternative Antriebe) oder den PKW- bzw. Güterverkehr reduzieren?"},null,"Klimanutzen: ",{"$f":"IF(AND(H73=\"\",OR(G74<>\"\",G75<>\"\",G76<>\"\",G77<>\"\",G78<>\"\",G79<>\"\",G80<>\"\")),\"mittel\",\"\")","v":""},{"$f":"IF(OR(H74<>\"\",H75<>\"\",H76<>\"\",H77<>\"\",H78<>\"\",H79<>\"\",H80<>\"\"),\"hoch\",\"\")","v":""}]
[null,null,"8.1",{"$f":"Berechnungen!C287","v":"Wird durch das Projekt der öffentliche Personen-Nahverkehr (ÖPNV) gefördert?\nBeispiele: Bus- oder Bahnanbindung, Anrufsammeltaxi, Bike&Ride- bzw. Park&Ride-Anlagen, Förderung ÖFFIs"},{"$f":"Bearbeitung!Q196","v":0},null,{"$f":"Bearbeitung!S196","v":""},{"$f":"Bearbeitung!T196","v":""}]
[null,null,"8.2",{"$f":"Berechnungen!C288","v":"Wird durch das Projekt der klimafreundliche Fuß- und Radverkehr gefördert?\nBeispiele: Gute Qualität von Rad- und Fußwegen, optimale Wegeführung, sichere Kreuzungen, Ampelschaltungen auch auf Rad- und Fußverkehr abgestimmt, kurze (Alltags-)Wege, Beleuchtung …"},{"$f":"Bearbeitung!Q197","v":0},null,{"$f":"Bearbeitung!S197","v":""},{"$f":"Bearbeitung!T197","v":""}]
[null,null,"8.3",{"$f":"Berechnungen!C289","v":"Wird CO2-neutrale Mobilität gefördert?  \nBeispiele: Testangebot von Fahrzeugen mit CO2-neutralem Antriebssystem, Ausbau von E-Ladeinfrastruktur, Förderung"},{"$f":"Bearbeitung!Q198","v":0},null,{"$f":"Bearbeitung!S198","v":""},{"$f":"Bearbeitung!T198","v":""}]
[null,null,"8.4",{"$f":"Berechnungen!C290","v":"Kann durch das Projekt eine Reduktion des PKW-Verkehrs oder der PKW-Anzahl erzielt werden? \nBeispiele: CarSharing-Angebot, Parkraummanagement, Fahrverbote, Geschwindigkeitsreduktion"},{"$f":"Bearbeitung!Q199","v":0},null,{"$f":"Bearbeitung!S199","v":""},{"$f":"Bearbeitung!T199","v":""}]
[null,null,"8.5",{"$f":"Berechnungen!C291","v":"In wie weit werden die Potentiale zur Reduktion von Schwerverkehrfahrten genutzt? \nBeispiele:  Bahnanschluss, Sammeltransporte, gebündelter Verkehr, Fahrverbot, Fahrbeschränkung"},{"$f":"Bearbeitung!Q200","v":0},null,{"$f":"Bearbeitung!S200","v":""},{"$f":"Bearbeitung!T200","v":""}]
[null,null,"8.6",{"$f":"Berechnungen!C292","v":"Kann durch das Projekt die tatsächliche Fahrgeschwindigkeit des KFZ-Verkehrs verringert werden? "},{"$f":"Bearbeitung!Q201","v":0},null,{"$f":"Bearbeitung!S201","v":""},{"$f":"Bearbeitung!T201","v":""}]
[null,null,"8.7",{"$f":"Berechnungen!C293","v":"Kann durch das Vorhaben klimafreundliche Mobilität in der Verwaltung verbessert werden?"},{"$f":"Bearbeitung!Q202","v":0},null,{"$f":"Bearbeitung!S202","v":""},{"$f":"Bearbeitung!T202","v":""}]
[null,null,null,null,null,null,{"$f":"IF(OR(G73<>\"\",H73<>\"\"),\".\",\"\")","v":""}]
[]
[]
[]
[]
[null,{"$f":"Prüfungsfragen!B22","v":"Begrünungen"},"9.",{"$f":"Berechnungen!C340","v":"Können durch das Projekt zusätzlich Begrünungen und Biodiversitätsflächen geschaffen oder Flächen entsiegelt werden? Werden im Projekt Maßnahmen zur Nachhaltigkeit von Gebäudemanagement und zur kommunalen Grünräumpflege umgesetzt?"},null,"Klimanutzen: ",{"$f":"IF(AND(H86=\"\",OR(G87<>\"\",G88<>\"\",G89<>\"\",G90<>\"\",G91<>\"\")),\"mittel\",\"\")","v":""},{"$f":"IF(OR(H87<>\"\",H88<>\"\",H89<>\"\",H90<>\"\",H91<>\"\"),\"hoch\",\"\")","v":""}]
[null,null,"9.1",{"$f":"Berechnungen!C370","v":"Wie viele m² Grünräume,  Naturwiesen, Baum- und Strauchgruppen, Nutzgärten, Alleen, Wälder, Parks, Bäche, Teiche, Wasserflächen, Moore, Feuchtwiesen und Gebäudebegrünungen etc. mit positiver Wirkung auf Biodiversität und Klimaschutz entstehen zusätzlich bzw. werden renaturiert? Für den Berechnungsschlüssel siehe Hilfe."},{"$f":"Bearbeitung!O218","v":0},{"$f":"Bearbeitung!P218","v":"m²"},{"$f":"IF(Bearbeitung!R218=1,Bearbeitung!$R$217,\"\")","v":""},{"$f":"IF(Bearbeitung!S218=1,Bearbeitung!$S$217,\"\")","v":""}]
[null,null,"9.2",{"$f":"Berechnungen!C371","v":"Wie viele m² vorhandene Moore, Feuchtwiesen, Wälder und Ähnliches werden als CO2-Speicher geschützt und gestärkt? Siehe Berechnungsschlüssel bei der Hilfe von der Frage 9.1. "},{"$f":"Bearbeitung!O219","v":0},{"$f":"Bearbeitung!P219","v":"m²"},{"$f":"IF(Bearbeitung!R219=1,Bearbeitung!$R$217,\"\")","v":""},{"$f":"IF(Bearbeitung!S219=1,Bearbeitung!$S$217,\"\")","v":""}]
[null,null,"9.3",{"$f":"Berechnungen!C372","v":"Wie viele Bäume werden gepflanzt? "},{"$f":"Bearbeitung!O220","v":0},{"$f":"Bearbeitung!P220","v":"Stück"},{"$f":"IF(Bearbeitung!R220=1,Bearbeitung!$R$217,\"\")","v":""},{"$f":"IF(Bearbeitung!S220=1,Bearbeitung!$S$217,\"\")","v":""}]
[null,null,"9.4",{"$f":"Berechnungen!C373","v":"Werden Maßnahmen bei Gebäuden eingeführt und dauerhaft betrieben, die den Erhalt der Biodiversität fördern, das Klima schonen und/oder dafür sorgen, dass CO2 stärker gebunden wird (siehe Liste der möglichen Maßnahmen in der Hilfe)? "},{"$f":"Bearbeitung!O221","v":0},null,{"$f":"IF(Bearbeitung!R221=1,Bearbeitung!$R$217,\"\")","v":""},{"$f":"IF(Bearbeitung!S221=1,Bearbeitung!$S$217,\"\")","v":""}]
[null,null,"9.5",{"$f":"Berechnungen!C374","v":"Werden Maßnahmen in der Gemeinde eingeführt und dauerhaft betrieben, die den Erhalt der Biodiversität fördern, das Klima schonen und/oder dafür sorgen, dass CO2 stärker gebunden wird (siehe Liste der möglichen Maßnahmen in der Hilfe)?"},{"$f":"Bearbeitung!O222","v":0},null,{"$f":"IF(Bearbeitung!R222=1,Bearbeitung!$R$217,\"\")","v":""},{"$f":"IF(Bearbeitung!S222=1,Bearbeitung!$S$217,\"\")","v":""}]
[null,null,null,null,null,null,{"$f":"IF(OR(G86<>\"\",H86<>\"\"),\".\",\"\")","v":""}]
[]
[]
[null,{"$f":"Prüfungsfragen!B24","v":"Planung"},"10.",{"$f":"Berechnungen!C386","v":"Kann die Planung möglichst klimafreundlich entwickelt werden?\nBetrifft regionales oder örtliches Entwicklungskonzept, Flächenwidmungsplan, Bebauungsplan, Städtebauliche Konzepte, Städtebauliche  Leitbilder o.ä."},null,"Klimanutzen: ",{"$f":"IF(AND(H95=\"\",OR(G96<>\"\",G97<>\"\",G98<>\"\",G99<>\"\")),\"mittel\",\"\")","v":""},{"$f":"IF(OR(H96<>\"\",H97<>\"\",H98<>\"\",H99<>\"\"),\"hoch\",\"\")","v":""}]
[null,null,"10.1",{"$f":"Berechnungen!C388","v":"Werden im örtlichen Raumordnunsprogramm bzw. der Flächenwidmung die übergeordneten klimarelevanten Ziele und Planungen integriert?    Beispiele: Österreichische Klima- und Energiestrategie \"mission2030\"; Landesentwicklungsprogramm, Regionale Entwicklungsprogramme, Leitbilder o.ä."},{"$f":"Bearbeitung!O249","v":0},null,{"$f":"IF(Bearbeitung!R249=1,Bearbeitung!$R$248,\"\")","v":""},{"$f":"IF(Bearbeitung!S249=1,Bearbeitung!$S$248,\"\")","v":""}]
[null,null,"10.2",{"$f":"Berechnungen!C389","v":"Werden im Bebauungsplan, bei Baulandumlegung bzw. bei Änderungen der Bauvorschriften und bei privatwirtschaftlichen Raumplanungsverträgen die übergeordneten klimarelevanten Ziele und Planungen integriert?  "},{"$f":"Bearbeitung!O250","v":0},null,{"$f":"IF(Bearbeitung!R250=1,Bearbeitung!$R$248,\"\")","v":""},{"$f":"IF(Bearbeitung!S250=1,Bearbeitung!$S$248,\"\")","v":""}]
[null,null,"10.3",{"$f":"Berechnungen!C390","v":"Werden im Städtebaulichen Leitbild, bei Stadtentwicklungskonzepten, Quartiersentwicklungen, Freiraumkonzepten o. ä. die übergeordneten klimarelevanten Ziele und Planungen integriert? "},{"$f":"Bearbeitung!O251","v":0},null,{"$f":"IF(Bearbeitung!R251=1,Bearbeitung!$R$248,\"\")","v":""},{"$f":"IF(Bearbeitung!S251=1,Bearbeitung!$S$248,\"\")","v":""}]
[null,null,"10.4",{"$f":"Berechnungen!C391","v":"Wird in allen oben genannten Planungen die Klimawandelanpassung berücksichtigt? \nZ. B. Landschaftskonzept, Baumkataster"},{"$f":"Bearbeitung!O252","v":0},null,{"$f":"IF(Bearbeitung!R252=1,Bearbeitung!$R$248,\"\")","v":""},{"$f":"IF(Bearbeitung!S252=1,Bearbeitung!$S$248,\"\")","v":""}]
[null,null,null,null,null,null,{"$f":"IF(OR(G95<>\"\",H95<>\"\"),\".\",\"\")","v":""}]
[]
[]
[null,{"$f":"Prüfungsfragen!B26","v":"Öffentlichkeitsarbeit & Förderungen"},"11.",{"$f":"Berechnungen!C428","v":"Kann mit dem Projekt öffentlichkeitswirksam für mehr Klimaschutz bei der  Bevölkerung und der Verwaltung geworben werden? Auch durch Förderungen oder Abgaben für Ver- und Entsorgung."},null,"Klimanutzen: ",{"$f":"IF(AND(H103=\"\",OR(G104<>\"\",G105<>\"\",G106<>\"\",G107<>\"\",G108<>\"\")),\"mittel\",\"\")","v":""},{"$f":"IF(OR(H104<>\"\",H105<>\"\",H106<>\"\",H107<>\"\",H108<>\"\"),\"hoch\",\"\")","v":""}]
[null,null,"11.1",{"$f":"Berechnungen!C430","v":"Ist eine Information über die positiven Auswirkungen des Projekts auf den Klimaschutz für die BürgerInnen (Presse, Homepage etc.) geplant?"},{"$f":"Bearbeitung!O281","v":0},null,{"$f":"IF(Bearbeitung!R281=1,Bearbeitung!$R$280,\"\")","v":""}]
[null,null,"11.2",{"$f":"Berechnungen!C431","v":"Ist eine Information über die positiven Auswirkungen des Projekts auf den Klimaschutz für die Verwaltung, für die Politik oder für andere Gebietskörperschaften (andere Gemeinden) geplant?"},{"$f":"Bearbeitung!O282","v":0},null,{"$f":"IF(Bearbeitung!R282=1,Bearbeitung!$R$280,\"\")","v":""}]
[null,null,"11.3",{"$f":"Berechnungen!C432","v":"Ist eine Bürgerbeteiligung, Partizipation für mehr Klimaschutz in der Bevölkerung geplant?"},{"$f":"Bearbeitung!O283","v":0},null,{"$f":"IF(Bearbeitung!R283=1,Bearbeitung!$R$280,\"\")","v":""},{"$f":"IF(Bearbeitung!S283=1,Bearbeitung!$S$280,\"\")","v":""}]
[null,null,"11.4",{"$f":"Berechnungen!C433","v":"Werden bei geplanten Förderungen der Stadt/Gemeinde Klimaauswirkungen berücksichtigt?"},{"$f":"Bearbeitung!O284","v":0},null,{"$f":"IF(Bearbeitung!R284=1,Bearbeitung!$R$280,\"\")","v":""},{"$f":"IF(Bearbeitung!S284=1,Bearbeitung!$S$280,\"\")","v":""}]
[null,null,"11.5",{"$f":"Berechnungen!C434","v":"Wirken sich Abgabenänderungen bei Wasserversorgung, Abfallwirtschaft, Parkraumbewirtschaftung etc. positiv auf klimaschonendes bzw. ressourcenschonendes Verhalten der Kunden aus?"},{"$f":"Bearbeitung!O285","v":0},null,{"$f":"IF(Bearbeitung!R285=1,Bearbeitung!$R$280,\"\")","v":""},{"$f":"IF(Bearbeitung!S285=1,Bearbeitung!$S$280,\"\")","v":""}]
[null,null,null,null,null,null,{"$f":"IF(OR(G103<>\"\",H103<>\"\"),\".\",\"\")","v":""}]
[]
[]
[]
[null,{"$f":"Prüfungsfragen!B28","v":"Sonstige positive Klimarelevanz"},"12.",{"$f":"Berechnungen!C475","v":"Gibt es eine positive Auswirkung auf das Klima, die in den vorherigen Fragen nicht erwähnt wurde?"},null,"Klimanutzen: ",{"$f":"IF(AND(H113=\"\",G114<>\"\"),\"mittel\",\"\")","v":""},{"$f":"IF(H114<>\"\",\"hoch\",\"\")","v":""}]
[null,null,"12.1a",{"$f":"Berechnungen!C479","v":"Nutzung als Kompensationsmaßnahme: Welche Kompensationswirkung würden Sie der Maßnahme zuschreiben?\n (gering kompensiert eine  grüne, mittel eine gelbe und hoch eine rote Ampel) "},{"$f":"Bearbeitung!B312","v":0},null,{"$f":"IF(Bearbeitung!R312=1,Bearbeitung!R311,\"\")","v":""},{"$f":"IF(Bearbeitung!S312=1,Bearbeitung!S311,\"\")","v":""}]
[null,null,null,null,null,null,{"$f":"IF(OR(G113<>\"\",H113<>\"\"),\".\",\"\")","v":""}]

{"sheet":"Berechnungen","index":7,"n_rows":479,"n_cols":34,"rows_kept":479,"cut":false,"hidden":true,"merged":[[1,23,1,26],[1,27,2,27],[1,28,1,30],[1,31,1,33],[2,4,2,5],[4,0,4,5],[0,0,0,1],[0,7,0,10],[0,20,0,21],[0,23,0,27],[0,28,0,33],[1,7,1,8],[1,9,1,10],[1,12,1,15],[1,19,2,19],[1,20,1,21],[10,0,10,1],[10,2,10,5],[12,2,12,3],[15,2,15,3],[17,2,17,3],[19,0,22,0],[5,0,5,1],[5,4,5,5],[7,0,7,1],[7,4,7,5],[9,0,9,1],[9,4,9,5],[40,0,43,0],[41,1,41,5],[42,1,42,4],[43,1,43,3],[55,2,55,3],[57,0,61,0],[24,1,24,3],[26,0,26,3],[27,0,39,0],[27,1,27,5],[28,2,28,5],[29,2,29,5],[30,2,30,5],[31,2,31,5],[33,1,33,3],[33,4,33,5],[73,4,73,5],[81,0,84,0],[82,1,82,5],[83,1,83,4],[84,1,84,3],[95,2,95,3],[63,1,63,3],[65,0,65,3],[66,0,80,0],[66,1,66,4],[67,2,67,5],[68,2,68,5],[69,2,69,5],[70,2,70,5],[71,2,71,5],[73,1,73,3],[115,0,118,0],[116,1,116,5],[117,1,117,4],[118,1,118,3],[131,2,131,3],[133,0,138,0],[138,2,138,3],[97,0,99,0],[101,1,101,3],[103,0,103,3],[104,0,114,0],[104,1,104,4],[105,2,105,5],[106,2,106,5],[107,2,107,5],[109,1,109,3],[109,4,109,5],[156,0,159,0],[157,1,157,5],[158,1,158,4],[159,1,159,3],[173,2,173,3],[175,0,181,0],[181,1,181,3],[181,4,181,5],[140,1,140,3],[142,0,142,3],[143,0,155,0],[143,1,143,4],[144,2,144,5],[145,2,145,5],[146,2,146,5],[147,2,147,5],[149,1,149,3],[149,4,149,5],[183,1,183,3],[185,0,185,3],[186,0,200,0],[186,1,186,4],[187,2,187,5],[188,2,188,5],[189,2,189,5],[190,2,190,5],[191,2,191,5],[193,1,193,3],[218,0,228,0],[219,2,219,3],[223,2,223,3],[225,2,225,3],[227,2,227,3],[242,2,242,3],[193,4,193,5],[201,0,204,0],[202,1,202,5],[203,1,203,4],[204,1,204,3],[217,2,217,3],[266,0,269,0],[284,2,284,3],[286,0,294,0],[294,1,294,3],[294,4,294,5],[296,1,296,3],[244,0,249,0],[249,1,249,3],[249,4,249,5],[251,1,251,3],[253,0,253,3],[254,0,265,0],[254,1,254,4],[255,2,257,5],[259,1,259,3],[259,4,259,5],[308,4,308,5],[318,0,324,0],[339,2,339,3],[341,0,348,0],[348,1,348,3],[348,4,348,5],[298,0,298,3],[299,0,317,0],[299,1,299,4],[300,2,300,5],[301,2,301,5],[302,2,302,5],[303,2,303,5],[304,2,304,5],[305,2,305,5],[308,1,308,3],[369,0,371,0],[385,2,385,3],[387,0,392,0],[392,1,392,3],[392,4,392,5],[394,1,394,3],[350,1,350,3],[351,0,351,3],[352,0,364,0],[352,1,352,4],[353,2,353,5],[354,2,354,5],[355,2,355,5],[356,2,356,5],[359,1,359,3],[359,4,359,5],[410,0,413,0],[427,2,427,3],[429,0,435,0],[435,1,435,3],[435,4,435,5],[437,1,437,3],[396,0,396,3],[397,0,409,0],[397,1,397,4],[398,1,401,1],[398,2,401,5],[403,1,403,3],[403,4,403,5],[455,0,459,0],[455,4,456,4],[474,2,474,3],[475,0,479,0],[476,2,476,5],[439,0,439,3],[440,0,454,0],[440,1,440,4],[441,1,445,1],[441,2,445,5],[447,1,447,3],[447,4,447,5]]}
[null,null,"Klimarelevanzprüfung",null,null,null,null,"Schwellenwerte",null,null,null,"Krems: ca. 250.000 t CO2 Gesamtausstoß/Jahr\nVorgabe unterer Schwellwert = ca. 5 t CO2-Ausstoß\nVorgabe für oberen Schwellwert = ca. 100 t CO2-Ausstoß\n"]
[null,null,null,null,null,null,null,"spezifisch",null,"t CO2",null,"CO2-Berechnungsgrundlagen","Eingabeauswahl",null,null,null,null,null,null,"Smileys-\nhilfsspalte\n(ab Frage 7)","Eingaben vorhanden",null,null,"Ampelwerte",null,null,null,"Kompen-sation","Umsetzung",null,null,"Ampelwerte"]
["Fragen","Nr.","Kriterium",null,"Bearbeiten",null,null,"unterer","oberer","unterer","oberer","alle CO2-Angaben aus eNu CO2-Coach (https://www.co2-coach.at/home)","Auswahl 1","Auswahl 2","Auswahl 3","Auswahl 4",null,null,null,null,"Detailfragen bzw. Alternativenprüfung","Kompensations-maßnahmen",null,{"$f":"-1","v":-1},null,{"$f":"0","v":0},{"$f":"1","v":1},null,"L","K","J",1,2,3]
[null,null,null,null,null,null,null,null,null,null,null,"- Für die CO2-Berechnung der einzelnen Fragen sind die Annahmen in dieser Spalte aufgelistet. \n\n- Die Berechnungen für den oberen und unteren CO2-Schwellwert sind in den Spalten K und L zu finden.\n\n- Für diese Berechnungen wurden die spezifischen Schwellenwerte der einzelnen Fragen verwendet (wo möglich). Werden diese spezifischen Schwellenwerte geändert, ist auch sofort die Änderung im Ergebnis der CO2-Berechnung sichtbar. "]
[null,null,null,null,null,null,null,null,null,null,null,"Untere Grenze"]
["Abteilung :",null,null,"Thema:","alle Fragen einblenden",null,null,null,null,null,null,{"$f":"SUM(L7:L9)","v":0},"Untere Grenze","Einwohnerzahl","Tonnen",null,">10.000 EW 5t – 100 t (1 promill von 25.000 EW ist 200t) => 26 Gemeinden"]
[null,null,null,null,null,null,null,null,null,null,null,{"$f":"IF(AND(Klimarelevanzprüfung!D10<Berechnungen!N7,Klimarelevanzprüfung!D10>0),Berechnungen!O7,\"\")","v":""},"bis",5000,1,null,"5.000 < 10.000 EW: 3t -60 t (1 promill bei 7.000 EW is 60 t) => 42 Gemeinden"]
["Sachbearbeiter/in:",null,null,"Datum: ",null,null,null,null,null,null,null,{"$f":"IF(AND(Klimarelevanzprüfung!D10<Berechnungen!N8,Klimarelevanzprüfung!D10>= N7),O8,\"\")","v":""},"bis",10000,3,null,"< 5000 : 1t – 20 t (1 promill bei 3.000 EW is 30 t)"]
[null,null,null,null,null,null,null,null,null,null,null,{"$f":"IF(Klimarelevanzprüfung!D10>=Berechnungen!N8,O9,\"\")","v":""},"bis",100000,5]
["Projektname:",null,null,"Projektnr. /Geschäftszahl  "]
["Projektbeschreibung:",null,null,null,null,null,null,null,null,null,null,"Obere Grenze","Obere Grenze"]
[null,null,null,null,null,null,null,null,null,null,null,{"$f":"SUM(L13:L16)","v":0}]
["Einstieg",null,"Wirkt sich die Maßnahme direkt oder indirekt auf das Klima aus? \nKlimarelevanz hat häufig mit Energie, Mobilität, Natur, Bauen, Bodenverbrauch, Beschaffung oder Öffentlichkeitsarbeit zu tun.",null,null,null,null,null,null,null,null,{"$f":"IF(AND(Klimarelevanzprüfung!D10<Berechnungen!N13,Klimarelevanzprüfung!D10>0),Berechnungen!O13,\"\")","v":""},"bis",5000,20]
[null,null,null,null,null,null,null,null,null,null,null,{"$f":"IF(AND(Klimarelevanzprüfung!D10<Berechnungen!N14,Klimarelevanzprüfung!D10>= N13),O14,\"\")","v":""},"bis",10000,60]
[null,null,"Bitte begründen Sie kurz, warum das Projekt bzw. das Vorhaben nicht klimarelevant ist:",null,null,null,null,null,null,null,null,{"$f":"IF(Klimarelevanzprüfung!D10>=Berechnungen!N14,O15,\"\")","v":""},"bis",100000,100]
[]
[]
["Fossile Energie","1.","Wird durch das Vorhaben zusätzlich fossile Energie (Öl, Gas, Kohle, fossiler Strom) in einem Gebäude oder einer Anlage verbraucht?",null,null,null,null,null,null,null,null,null,null,null,null,null,null,null,null,null,"Zahlversuch Untere Grenze","Untere Grenze",null,null,null,"Zahlversuch Obere Grenze","Obere Grenze"]
[null,null,null,null,null,null,null,"Achtung hier je nach EW-Zahl",null,null,null,null,null,null,null,null,null,null,null,null,null,1,3,5,null,null,20,60,100]
["Detailfragen","1.1","Wird mit fossiler Energie (Öl, Gas) geheizt? Für welche zusätzliche Bruttogrundfläche?","nicht relevant","m2 BGF ",{"$f":"IF(D20=N20,-1,IF(D20=O20,-2,IF(D20=P20,-3,\"\")))","v":""},null,{"$f":"IF($L$6=$V$19,V20,IF($L$6=$W$19,W20,IF($L$6=$X$19,X20,\"\")))","v":""},{"$f":"IF($L$12=$AA$19,AA20,IF($L$12=$AB$19,AB20,IF($L$12=$AC$19,AC20,\"\")))","v":""},{"$f":"U20*70/0.85*0.268/1000*20","v":4.8555294117647056},{"$f":"Z20*70/0.85*0.268/1000*20","v":99.317647058823525},"HWB = 70 kWh/m²,a und Gasheizung (0,268 kg CO2/kWh lt. UBA 2021) mit 85% Jahrenutzungsgrad und Zeitraum 20 Jahre ","nicht relevant",{"$f":"\"< \"&H20","v":"< "},{"$f":"H20&\" - \"&I20","v":" - "},{"$f":"\"> \"&I20","v":"> "},null,null,null,null,11,2,7,11,null,225,45,135,225]
[null,"1.2","Wird Strom mit fossilem Anteil genutzt? Für welche zusätzliche Bruttogrundfläche (Berechnung für Wohngebäude siehe Hilfe)? ",null,"m2 BGF  ",{"$f":"IF(D21=N21,-1,IF(D21=O21,-2,IF(D21=P21,-3,\"\")))","v":""},null,{"$f":"IF($L$6=$V$19,V21,IF($L$6=$W$19,W21,IF($L$6=$X$19,X21,\"\")))","v":""},{"$f":"IF($L$12=$AA$19,AA21,IF($L$12=$AB$19,AB21,IF($L$12=$AC$19,AC21,\"\")))","v":""},{"$f":"U21*100*0.219/1000*10","v":5.0370000000000008},{"$f":"Z21*100*0.219/1000*10","v":19.71}," 100 kWh /m² (bei Dienstleistungsgebäuden, Quelle: ÖGUT, Kennzahlen zum Energieverbrauch\nin Dienstleistungsgebäuden, 2011) und 0,219 kg CO2/kWh (Ö-Strommix lt. UBA 2021) und 10 Jahre Nutzungsdauer (Alte Variante mit Nutzer: Stromverbrauch von 1500 kWh/Person,a)","nicht relevant",{"$f":"\"< \"&H21","v":"< "},{"$f":"H21&\" - \"&I21","v":" - "},{"$f":"\"> \"&I21","v":"> "},null,null,null,null,23,5,14,23,null,90,90,270,460]
[null,"1.3","Werden für Prozesswärme zusätzlich fossile Brennstoffe verbraucht? In welcher Höhe (geschätzt)? ",null,"kWh pro Jahr",{"$f":"IF(D22=N22,-1,IF(D22=O22,-2,IF(D22=P22,-3,\"\")))","v":""},null,"",{"$f":"IF($L$12=$AA$19,AA22,IF($L$12=$AB$19,AB22,IF($L$12=$AC$19,AC22,\"\")))","v":""},{"$f":"U22*0.268/1000*20","v":4.8240000000000007},{"$f":"Z22*0.268/1000*20","v":101.83999999999999},"Erdgas (0,268 kg CO2/kWh lt. UBA 2021) und 20 Jahre Nutzungsdauer","nicht relevant",{"$f":"\"< \"&H22","v":"< "},{"$f":"H22&\" - \"&I22","v":" - "},{"$f":"\"> \"&I22","v":"> "},null,null,null,null,900,200,600,900,null,19000,4000,11000,19000]
[null,"1.4","Wird für einen Prozess / ein Vorhaben  zusätzlich Strom mit fossilen Anteilen verwendet? In welcher Höhe (geschätzt)? ",null,"kWh pro Jahr",{"$f":"IF(D23=N23,-1,IF(D23=O23,-2,IF(D23=P23,-3,\"\")))","v":""},null,"","",{"$f":"U23*0.219/1000*10","v":5.0370000000000008},{"$f":"Z23*0.219/1000*10","v":100.74},"Ö-Strommix (0,219 kg CO2/kWh; Ö-Strommix lt. UBA 2021)  und 10 Jahre Nutzungsdauer","nicht relevant",{"$f":"\"< \"&H23","v":"< "},{"$f":"H23&\" - \"&I23","v":" - "},{"$f":"\"> \"&I23","v":"> "},null,null,null,null,2300,500,1400,2300,null,46000,9000,27000,46000]
[null,null,null,null,null,null,null,null,null,null,null,null,null,{"$f":"\"< \"&H24","v":"< "}]
["Anmerkungen"]
[]
["Das Vorhaben hat eine gewisse Klimarelevanz.   Für die Fragen mit gelber oder roter Ampel wird eine Verbesserung im Bezug auf Klimaschutz empfohlen."]
["Alternativen-prüfung","Alternativen um das Vorhaben klimafreundlicher umzusetzen: "]
[null,"ad 1.1) ","Heizen mit erneuerbarer Wärme z.B. Biomasse, Wärmepumpe mit Ökostrom"]
[null,"ad 1.2) ","Nutzung von (zertifiziertem) Ökostrom oder eigene Erzeugung mit PV (als Kompensationsmaßnahme in Punkt 7.1. anrechenbar)"]
[null,"ad 1.3) ","Technik für fossile Brennstoffe durch solche mit erneuerbarer Energie ersetzen"]
[null,"ad 1.4) ","Ökostrom einkaufen oder erneuerbaren Strom selbst erzeugen"]
[null,"Angabe der Alternativen in Stichworten:"]
[]
[null,"Welche Werte ergeben sich unter Berücksichtigung der Alternativen?"]
[null,"1.1",{"$f":"C20","v":"Wird mit fossiler Energie (Öl, Gas) geheizt? Für welche zusätzliche Bruttogrundfläche?"},null,{"$f":"E20","v":"m2 BGF "},{"$f":"IF(D36=N36,-1,IF(D36=O36,-2,IF(D36=P36,-3,\"\")))","v":""},null,null,null,null,null,null,{"$f":"M20","v":"nicht relevant"},"< "," - ","> "]
[null,"1.2",{"$f":"C21","v":"Wird Strom mit fossilem Anteil genutzt? Für welche zusätzliche Bruttogrundfläche (Berechnung für Wohngebäude siehe Hilfe)? "},null,{"$f":"E21","v":"m2 BGF  "},{"$f":"IF(D37=N37,-1,IF(D37=O37,-2,IF(D37=P37,-3,\"\")))","v":""},null,null,null,null,null,null,"nicht relevant","< "," - ","> "]
[null,"1.3",{"$f":"C22","v":"Werden für Prozesswärme zusätzlich fossile Brennstoffe verbraucht? In welcher Höhe (geschätzt)? "},null,{"$f":"E22","v":"kWh pro Jahr"},{"$f":"IF(D38=N38,-1,IF(D38=O38,-2,IF(D38=P38,-3,\"\")))","v":""},null,null,null,null,null,null,"nicht relevant","< "," - ","> "]
[null,"1.4",{"$f":"C23","v":"Wird für einen Prozess / ein Vorhaben  zusätzlich Strom mit fossilen Anteilen verwendet? In welcher Höhe (geschätzt)? "},null,{"$f":"E23","v":"kWh pro Jahr"},{"$f":"IF(D39=N39,-1,IF(D39=O39,-2,IF(D39=P39,-3,\"\")))","v":""},null,null,null,null,null,null,"nicht relevant","< "," - ","> "]
[]
["Kompensations-prüfung","Wenn Alternativen nicht möglich sind: Mit welchen Kompensationsmaßnahmen kann das Vorhaben klimafreundlicher umgesetzt werden?"]
[null,"Kompensationsmaßnahmen (auch an anderen Orten) sind in den Fragen 7 - 12  definiert. \nBeispiele: fossile Verbraucher entfernen, erneuerbare Energie nutzen, zusätzliche Ausgleichsflächen oder Rückwidmungen bei Baumaßnahmen, Aufforstungen, zusätzliche Mittel für Klimaschutzprojekte ... \n"]
[null,"Angabe der Kompensationsmaßnahmen (deren Umsetzung beantragt werden muss):",null,null,null,{"$f":"IF(ISBLANK(B44),\"\",-1)","v":""}]
[]
[]
[]
[]
[]
[]
[]
[]
[]
[]
[]
[]
["Motorisierter Verkehr","2.","Erzeugt das Vorhaben zusätzlichen motorisierten PKW- oder Güterverkehr? ",null,null,null,null,null,null,null,null,null,null,null,null,null,null,null,null,null,"Zahlversuch Untere Grenze","Untere Grenze",null,null,null,"Zahlversuch Obere Grenze","Obere Grenze"]
[null,null,null,null,null,null,null,null,null,null,null,null,null,null,null,null,null,null,null,null,null,1,3,5,null,null,20,60,100]
["Detailfragen","2.1","Werden der motorisierte PKW- und Güterverkehr (> 3,5 t) durch die Maßnahme erhöht? Wie viele Fahrten werden pro Tag zusätzlich erzeugt (grobe Schätzung)? Beispiele: Widmung Gewerbegebiet mit voraussichtl. Verkehrszunahme, Errichtung Einkaufszentrum oder Freizeiteinrichtung, Veranstaltungen etc. ",null,"Fahrten pro Werktag",{"$f":"IF(D58=N58,-1,IF(D58=O58,-2,IF(D58=P58,-3,\"\")))","v":""},null,{"$f":"IF($L$6=$V$19,V58,IF($L$6=$W$19,W58,IF($L$6=$X$19,X58,\"\")))","v":""},{"$f":"IF($L$12=$AA$19,AA58,IF($L$12=$AB$19,AB58,IF($L$12=$AC$19,AC58,\"\")))","v":""},{"$f":"U58*5*0.257/1000*250","v":3.2124999999999999},{"$f":"Z58*5*0.257/1000*250","v":96.375},"bei 5 km Fahrtstrecke und 0,257 kg/km (Mittelwert Benzin/Diesel-PKW lt. Factsheet Emissionen, UBA 2021 ) an 250 Werktagen\nSchwerverkehrsfaktor = 4 laut Fa. Komobile (Anna König)","nicht relevant",{"$f":"\"< \"&H58","v":"< "},{"$f":"H58&\" - \"&I58","v":" - "},{"$f":"\"> \"&I58","v":"> "},null,null,null,null,10,3,10,16,null,300,60,200,300]
[null,"2.2","Werden im Zuge des Projekts Stellplätze neu errichtet? Um wie viele zusätzliche Stellplätze handelt es sich?",null,"Anzahl",{"$f":"IF(D59=N59,-1,IF(D59=O59,-2,IF(D59=P59,-3,\"\")))","v":""},null,{"$f":"IF($L$6=$V$19,V59,IF($L$6=$W$19,W59,IF($L$6=$X$19,X59,\"\")))","v":""},{"$f":"IF($L$12=$AA$19,AA59,IF($L$12=$AB$19,AB59,IF($L$12=$AC$19,AC59,\"\")))","v":""},{"$f":"U59*6.2*5*0.257/1000*250","v":5.97525},{"$f":"Z59*6.2*5*0.257/1000*250","v":99.587500000000006},"bei Mittelwert 6,2 Verwendungen/Werktag (siehe Notiz) und 5 km Fahrtstrecke/Parken und  0,257 kg/km (Mittelwert Benzin/Diesel-PKW lt. Factsheet Emissionen, UBA 2021 ) an 250 Werktagen","nicht relevant",{"$f":"\"< \"&H59","v":"< "},{"$f":"H59&\" - \"&I59","v":" - "},{"$f":"\"> \"&I59","v":"> "},null,null,null,null,3,1,2,3,null,50,10,30,50]
[null,"2.3","Werden Straßen verbreitert, begradigt, saniert oder zusätzlich errichtet? Wie viele Laufmeter Straße werden für den PKW- oder Güterverkehr verbessert bzw. zusätzlich errichtet?",null,"Länge in m",{"$f":"IF(D60=N60,-1,IF(D60=O60,-2,IF(D60=P60,-3,\"\")))","v":""},null,"",{"$f":"IF($L$12=$AA$19,AA60,IF($L$12=$AB$19,AB60,IF($L$12=$AC$19,AC60,\"\")))","v":""},{"$f":"U60/1000*(50+10*4)*0.257/1000*250*10","v":0.86737500000000001},{"$f":"Z60/1000*(50+10*4)*0.257/1000*250*10","v":101.19374999999999},"bei zusätzlichen 50 PKW-Fahren und 10 LKW-Fahrten pro Tag auf der Straßenlänge und 0,257 kg/km (MW Benzin/Diesel PKW) an 250 Werktagen im Zeitraum von 10 Jahren\nSchwerverkehrsfaktor = 4 laut Fa. Komobile (Anna König)","nicht relevant",{"$f":"\"< \"&H60","v":"< "},{"$f":"H60&\" - \"&I60","v":" - "},{"$f":"\"> \"&I60","v":"> "},null,null,null,null,15,15,50,90,null,1750,350,1050,1750]
[null,"2.4","Führen Maßnahmen in der Parkraumbewirtschaftung zu mehr motorisiertem Verkehr? Beispiele: Gebührenreduzierung, Parkgebühr-Ausnahmen (zeitbezogen, Personen-/Fahrzeugbezogen)",null,null,{"$f":"IF(D61=N61,-1,IF(D61=O61,-2,IF(D61=P61,-3,\"\")))","v":""},null,"gering","erheblich",null,null,"Bewertungskriterien detaillierter ausführen","nicht relevant","gering","teilweise","erheblich"]
[null,"2.5","Behindert die Maßnahme klimafreundlichen Verkehr (Radfahren, zu Fuß gehen, ÖFFIS), z.B. Unterbrechung oder Reduzierung eines Fußgängerwegs oder Fahrradwegs ?",null,null,{"$f":"IF(D62=N62,-1,IF(D62=O62,-2,IF(D62=P62,-3,\"\")))","v":""},null,"gering","erheblich",null,null,"Bewertungskriterien detaillierter ausführen","nicht relevant",{"$f":"H62","v":"gering"},"teilweise",{"$f":"I62","v":"erheblich"}]
[]
["Anmerkungen"]
[]
[{"$f":"A27","v":"Das Vorhaben hat eine gewisse Klimarelevanz.   Für die Fragen mit gelber oder roter Ampel wird eine Verbesserung im Bezug auf Klimaschutz empfohlen."}]
["Alternativen-prüfung","Alternativen um das Vorhaben klimafreundlicher umzusetzen: "]
[null,"ad 2.1)","Einrichtungen an ÖFFI-Linien + Fuß- und Radwegenetz  anbinden, mehr Zentrumsnähe."]
[null,"ad 2.2)","Reduktion von Stellplätzen im selben Gebiet (Zone) bzw. Kompensationsmaßnahmen laut Frage 8 planen und umsetzen z.B. Masterplan e-Ladeinfrastruktur"]
[null,"ad 2.3)","Rad-/Gehwege einrichten oder verbessern, Kreuzungen für Fuß-/Radverkehr verbessern, Vorrang für ÖFFIs z.B. eigene Spur, Busbuchten entfernen"]
[null,"ad 2.4)","Förderung von nichtfossilen Antrieben, gleichzeitige Förderung von OFFI's"]
[null,"ad 2.5)","Maßnahme nicht durchführen oder in klimafreundlicher Weise umsetzen (Hinweise in Alternativentipps von Frage 7)"]
[null,"Angabe der Alternativen in Stichworten:"]
[]
[null,"Welche Werte ergeben sich unter Berücksichtigung der Alternativen?"]
[null,{"$f":"B58","v":"2.1"},"Werden der motorisierte PKW- und Güterverkehr (> 3,5 t) durch die Maßnahme erhöht? Wie viele Fahrten werden pro Tag zusätzlich erzeugt (grobe Schätzung)? Beispiele: Widmung Gewerbegebiet mit voraussichtl. Verkehrszunahme, Errichtung Einkaufszentrum oder Freizeiteinrichtung, Veranstaltungen etc. ",null,{"$f":"E58","v":"Fahrten pro Werktag"},{"$f":"IF(D76=N76,-1,IF(D76=O76,-2,IF(D76=P76,-3,\"\")))","v":""},null,null,null,null,null,null,{"$f":"M58","v":"nicht relevant"},{"$f":"N58","v":"< "}," - ","> "]
[null,"2.2","Werden im Zuge des Projekts Stellplätze neu errichtet? Um wie viele zusätzliche Stellplätze handelt es sich?",null,{"$f":"E59","v":"Anzahl"},{"$f":"IF(D77=N77,-1,IF(D77=O77,-2,IF(D77=P77,-3,\"\")))","v":""},null,null,null,null,null,null,"nicht relevant","< "," - ","> "]
[null,"2.3","Werden Straßen verbreitert, begradigt, saniert oder zusätzlich errichtet? Wie viele Laufmeter Straße werden für den PKW- oder Güterverkehr verbessert bzw. zusätzlich errichtet?",null,{"$f":"E60","v":"Länge in m"},{"$f":"IF(D78=N78,-1,IF(D78=O78,-2,IF(D78=P78,-3,\"\")))","v":""},null,null,null,null,null,null,"nicht relevant","< "," - ","> "]
[null,"2.4","Führen Maßnahmen in der Parkraumbewirtschaftung zu mehr motorisiertem Verkehr? Beispiele: Gebührenreduzierung, Parkgebühr-Ausnahmen (zeitbezogen, Personen-/Fahrzeugbezogen)",null,null,{"$f":"IF(D79=N79,-1,IF(D79=O79,-2,IF(D79=P79,-3,\"\")))","v":""},null,null,null,null,null,null,"nicht relevant","gering","teilweise","erheblich"]
[null,"2.5","Behindert die Maßnahme klimafreundlichen Verkehr (Radfahren, zu Fuß gehen, ÖFFIS), z.B. Unterbrechung oder Reduzierung eines Fußgängerwegs oder Fahrradwegs ?",null,null,{"$f":"IF(D80=N80,-1,IF(D80=O80,-2,IF(D80=P80,-3,\"\")))","v":""},null,null,null,null,null,null,"nicht relevant","gering","teilweise","erheblich"]
[]
["Kompensations-prüfung","Wenn Alternativen nicht möglich sind: Mit welchen Kompensationsmaßnahmen kann das Vorhaben klimafreundlicher umgesetzt werden?"]
[null,"Kompensationsmaßnahmen (auch an anderen Orten) sind in den Fragen 7 - 12  definiert. \nBeispiele: Verkehrsreduktion, Attraktivierung ÖFFIs, Shared Space oder Carsharing Projekte, Fahrradstreifen, Errichtung von Radständern (gute, funktionelle!), Aktionen/Mittel für zu Fuß gehen, Rad fahren, zusätzliche Mittel für Klimaschutzprojekte, Masterplan e-Ladeinfrastruktur ..."]
[null,"Angabe der Kompensationsmaßnahmen (deren Umsetzung beantragt werden muss):",null,null,null,{"$f":"IF(ISBLANK(B85),\"\",-1)","v":""}]
[]
[]
[]
[]
[]
[]
[]
[]
[]
[]
[]
["Versiegelung","3.","Werden durch das Projekt zusätzliche Flächen versiegelt und/oder gehen Naturräume verloren?",null,null,null,null,null,null,null,null,null,null,null,null,null,null,null,null,null,"Zahlversuch Untere Grenze","Untere Grenze",null,null,null,"Zahlversuch Obere Grenze","Obere Grenze"]
[null,null,null,null,null,null,null,null,null,null,null,null,null,null,null,null,null,null,null,null,null,1,3,5,null,null,20,60,100]
["Detailfragen","3.1","Wie viele m² Fläche gehen als biodiversitätsrelevante Flächen (z.B. Grünraum, Wälder) verloren?  Für den Berechnungsschlüssel siehe Hilfe.",null,"m²",{"$f":"IF(D98=N98,-1,IF(D98=O98,-2,IF(D98=P98,-3,\"\")))","v":""},null,{"$f":"IF($L$6=$V$19,V98,IF($L$6=$W$19,W98,IF($L$6=$X$19,X98,\"\")))","v":""},{"$f":"IF($L$12=$AA$19,AA98,IF($L$12=$AB$19,AB98,IF($L$12=$AC$19,AC98,\"\")))","v":""},{"$f":"2.3*U98*50/1000","v":1.1499999999999999},{"$f":"2.3*Z98*50/1000","v":103.5},"bei 2,3 kg CO2/m²,a Verlust und 50 Jahre Zeitraum","nicht relevant",{"$f":"\"< \"&H98","v":"< "},{"$f":"H98&\" - \"&I98","v":" - "},{"$f":"\"> \"&I98","v":"> "},null,null,null,null,10,10,30,40,null,900,200,500,900]
[null,"3.2","Wie viele m² Fläche werden durch das Projekt zusätzlich versiegelt? ",null,"m²",{"$f":"IF(D99=N99,-1,IF(D99=O99,-2,IF(D99=P99,-3,\"\")))","v":""},null,{"$f":"IF($L$6=$V$19,V99,IF($L$6=$W$19,W99,IF($L$6=$X$19,X99,\"\")))","v":""},{"$f":"IF($L$12=$AA$19,AA99,IF($L$12=$AB$19,AB99,IF($L$12=$AC$19,AC99,\"\")))","v":""},{"$f":"2.3*U99*50/1000","v":3.45},{"$f":"2.3*Z99*50/1000","v":103.5},"bei 2,3 kg CO2/m²,a Verlust und 50 Jahre Zeitraum","nicht relevant",{"$f":"\"< \"&H99","v":"< "},{"$f":"H99&\" - \"&I99","v":" - "},{"$f":"\"> \"&I99","v":"> "},null,null,null,null,30,10,30,40,null,900,200,500,900]
[null,"3.3","Wie viel Bäume gehen verloren?",null,"Anzahl Bäume",{"$f":"IF(D100=N100,-1,IF(D100=O100,-2,IF(D100=P100,-3,\"\")))","v":""},null,"",{"$f":"IF($L$12=$AA$19,AA100,IF($L$12=$AB$19,AB100,IF($L$12=$AC$19,AC100,\"\")))","v":""},{"$f":"10*U100*50/1000","v":1},{"$f":"10*Z100*50/1000","v":100},"bei 10 kg CO2/Baum,a und 50 Jahre Zeitraum","nicht relevant",{"$f":"\"< \"&H100","v":"< "},{"$f":"H100&\" - \"&I100","v":" - "},{"$f":"\"> \"&I100","v":"> "},null,null,null,null,2,2,5,10,null,200,40,120,200]
[]
["Anmerkungen"]
[]
[{"$f":"A27","v":"Das Vorhaben hat eine gewisse Klimarelevanz.   Für die Fragen mit gelber oder roter Ampel wird eine Verbesserung im Bezug auf Klimaschutz empfohlen."}]
["Alternativen-prüfung","Alternativen um das Vorhaben klimafreundlicher umzusetzen: "]
[null,"ad 3.1)","Ausgleich durch zusammenhängende Naturflächen > 1000 m² und/oder Baumpflanzungen am Gelände "]
[null,"ad 3.2)","Ausgleich durch wasserdurchlässige Fahrstreifen/Parkplätze, oder Dachbegrünung, Wandbegrünung, Baumpflanzungen, Biotope etc. "]
[null,"ad 3.3)","Baumpflanzungen am Gelände oder den Baumbestand mit einem langfristigen Pflegekonzept erhalten"]
[null,"Angabe der Alternativen in Stichworten:"]
[]
[null,"Welche Werte ergeben sich unter Berücksichtigung der Alternativen?"]
[null,{"$f":"B98","v":"3.1"},"Wie viele m² Fläche gehen als biodiversitätsrelevante Flächen (z.B. Grünraum, Wälder) verloren?  Für den Berechnungsschlüssel siehe Hilfe.",null,{"$f":"E98","v":"m²"},{"$f":"IF(D112=N112,-1,IF(D112=O112,-2,IF(D112=P112,-3,\"\")))","v":""},null,null,null,null,null,null,{"$f":"M98","v":"nicht relevant"},"< "," - ","> "]
[null,"3.2","Wie viele m² Fläche werden durch das Projekt zusätzlich versiegelt? ",null,{"$f":"E99","v":"m²"},{"$f":"IF(D113=N113,-1,IF(D113=O113,-2,IF(D113=P113,-3,\"\")))","v":""},null,null,null,null,null,null,"nicht relevant","< "," - ","> "]
[null,"3.3","Wie viel Bäume gehen verloren?",null,{"$f":"E100","v":"Anzahl Bäume"},{"$f":"IF(D114=N114,-1,IF(D114=O114,-2,IF(D114=P114,-3,\"\")))","v":""},null,null,null,null,null,null,"nicht relevant","< "," - ","> "]
[]
["Kompensations-prüfung","Wenn Alternativen nicht möglich sind: Mit welchen Kompensationsmaßnahmen kann das Vorhaben klimafreundlicher umgesetzt werden?"]
[null,"Kompensationsmaßnahmen (auch an anderen Orten) sind in den Fragen 7 - 12  definiert. \nBeispiele: zusätzliche Grünflächen, Revitalisierung von Naturflächen, Aufforstungen, zusätzliche Mittel für Naturschutzprojekte, feuchteregulierende Maßnahmen, \nBiodiversität erhöhen ..."]
[null,"Angabe der Kompensationsmaßnahmen (deren Umsetzung beantragt werden muss):",null,null,null,{"$f":"IF(ISBLANK(B119),\"\",-1)","v":""}]
[]
[]
[]
[]
[]
[]
[]
[]
[]
[]
[]
[]
[]
["Bauen","4.","Werden beim Vorhaben Gebäude oder Anlagen neu gebaut oder saniert?",null,null,null,null,null,null,null,null,null,null,null,null,null,null,null,null,null,"Zahlversuch Untere Grenze","Untere Grenze",null,null,null,"Zahlversuch Obere Grenze","Obere Grenze"]
[null,null,null,null,null,null,null,null,null,null,null,null,null,null,null,null,null,null,null,null,null,1,3,5,null,null,20,60,100]
["Detailfragen","4.1","Wird beim Gebäude-Neubau nur nach dem Mindeststandard der Bauvorschriften gebaut? Nach welchem Baustandard wird das Gebäude errichtet?","Niedrigenergiehaus",null,{"$f":"IF(OR(D134=N134,D134=O134,D134=P134),-1,IF(D134=Q134,-2,IF(D134=R134,-3,\"\")))","v":-2},null,"ka silber","Bauvorschriften",null,null,"Bewertungskriterien detaillierter ausführen (?)","nicht relevant","klimaaktiv Gold oder Silber","Passivhaus","klimaaktiv Basis","Niedrigenergiehaus","Bauvorschriften"]
[null,"4.2","Wird ein bestehendes Gebäude nur mit geringstem Aufwand saniert? Welchen Baustandard hat das Gebäude nach der Sanierung?","Niedrigenergiehaus",null,{"$f":"IF(OR(D135=N135,D135=O135,D135=P135,D135=Q135),-1,IF(D135=R135,-2,IF(D135=S135,-3,\"\")))","v":-1},null,"ka silber","schlechter Bauvorschriften",null,null,"Bewertungskriterien detaillierter ausführen (?)","nicht relevant","klimaaktiv Gold oder Silber","Passivhaus","klimaaktiv Basis","Niedrigenergiehaus","Bauvorschriften","schlechter als Bauvorschriften"]
[null,"4.3","Werden größere Mengen an neuer Bausubstanz benötigt? Wieviele m² BGF werden neu errichtet?",null,"m² BGF",{"$f":"IF(D136=N136,-1,IF(D136=O136,-2,IF(D136=P136,-3,\"\")))","v":""},null,{"$f":"IF($L$6=$V$19,V136,IF($L$6=$W$19,W136,IF($L$6=$X$19,X136,\"\")))","v":""},{"$f":"IF($L$12=$AA$19,AA136,IF($L$12=$AB$19,AB136,IF($L$12=$AC$19,AC136,\"\")))","v":""},{"$f":"U136*6.52*50/1000","v":4.8899999999999997},{"$f":"Z136*6.523*50/1000","v":58.706999999999994},"Graue Energie 6,52 kg CO2/m² * 50 Jahre","nicht relevant",{"$f":"\"< \"&H136","v":"< "},{"$f":"H136&\" - \"&I136","v":" - "},{"$f":"\"> \"&I136","v":"> "},null,null,null,null,15,3,10,15,null,180,60,180,300]
[null,"4.4","Wird beim Neubau oder bei der Sanierung von Anlagen Wert auf Klimaschutzmaßnahmen  gelegt?\nZ.B. Niedrigenergie-Bauweise, energieeffiziente Maschinen und Geräte, ökologische Baustoffe  ",null,null,{"$f":"IF(D137=N137,-1,IF(D137=O137,-2,IF(D137=P137,-3,\"\")))","v":""},null,null,null,null,null,"Bewertungskriterien detaillierter ausführen","nicht relevant","maßgeblich","teilweise","gering"]
[]
[]
[]
["Anmerkungen"]
[]
[{"$f":"A27","v":"Das Vorhaben hat eine gewisse Klimarelevanz.   Für die Fragen mit gelber oder roter Ampel wird eine Verbesserung im Bezug auf Klimaschutz empfohlen."}]
["Alternativen-prüfung","Alternativen um das Vorhaben klimafreundlicher umzusetzen: "]
[null,"ad 4.1)","Bauen nach einem hohen Klimastandard z.B. ka-gold, Passivhaus"]
[null,"ad 4.2)","Sanierung nach einem hohen Klimastandard, z.B. Erfüllung der ka-Basiskriterien, hohe Förderklasse Wohnbauförderung"]
[null,"ad 4.3)","Nutzung eines bestehenden Gebäude durch Ausbau, Zubau oder Mehrfachnutzung. Bauen mit recyelten oder  umweltfreundlichen Baustoffen (Stroh, Holz etc.)"]
[null,"ad 4.4)","Maßnahmen zur Reduktion des Wärme- und Strombedarfs, Verwendung von recyelten oder ökologischen Baustoffen (Stroh, Holz etc.)"]
[null,"Angabe der Alternativen in Stichworten:"]
[]
[null,"Welche Werte ergeben sich unter Berücksichtigung der Alternativen?"]
[null,{"$f":"B134","v":"4.1"},"Wird beim Gebäude-Neubau nur nach dem Mindeststandard der Bauvorschriften gebaut? Nach welchem Baustandard wird das Gebäude errichtet?",null,{"$f":"E134","v":0},{"$f":"IF(OR(D152=N152,D152=O152,D152=P152),-1,IF(D152=Q152,-2,IF(D152=R152,-3,\"\")))","v":""},null,null,null,null,null,null,{"$f":"M134","v":"nicht relevant"},"klimaaktiv Gold oder Silber","Passivhaus","klimaaktiv Basis","Niedrigenergiehaus","Bauvorschriften",0]
[null,"4.2","Wird ein bestehendes Gebäude nur mit geringstem Aufwand saniert? Welchen Baustandard hat das Gebäude nach der Sanierung?",null,{"$f":"E135","v":0},{"$f":"IF(OR(D153=N153,D153=O153,D153=P153,D153=Q153),-1,IF(D153=R153,-2,IF(D153=S153,-3,\"\")))","v":""},null,null,null,null,null,null,"nicht relevant","klimaaktiv Gold oder Silber","Passivhaus","klimaaktiv Basis","Niedrigenergiehaus","Bauvorschriften","schlechter als Bauvorschriften"]
[null,"4.3","Werden größere Mengen an neuer Bausubstanz benötigt? Wieviele m² BGF werden neu errichtet?",null,{"$f":"E136","v":"m² BGF"},{"$f":"IF(D154=N154,-1,IF(D154=O154,-2,IF(D154=P154,-3,\"\")))","v":""},null,null,null,null,null,null,"nicht relevant","< "," - ","> ",{"$f":"U136","v":15},3,10]
[null,"4.4","Wird beim Neubau oder bei der Sanierung von Anlagen Wert auf Klimaschutzmaßnahmen  gelegt?\nZ.B. Niedrigenergie-Bauweise, energieeffiziente Maschinen und Geräte, ökologische Baustoffe  ",null,{"$f":"E137","v":0},{"$f":"IF(D155=N155,-1,IF(D155=O155,-2,IF(D155=P155,-3,\"\")))","v":""},null,null,null,null,null,null,"nicht relevant","maßgeblich","teilweise","gering",0,0,0]
[]
["Kompensations-prüfung","Wenn Alternativen nicht möglich sind: Mit welchen Kompensationsmaßnahmen kann das Vorhaben klimafreundlicher umgesetzt werden?"]
[null,"Kompensationsmaßnahmen (auch an anderen Orten) sind in den Fragen 7 - 12  definiert. \nBeispiele: zusätzliche Grünflächen, Sanierung anderer Gebäude, Anlagen für erneuerbare Energieerzeugung ..."]
[null,"Angabe der Kompensationsmaßnahmen (deren Umsetzung beantragt werden muss):",null,null,null,{"$f":"IF(ISBLANK(B160),\"\",-1)","v":""}]
[]
[]
[]
[]
[]
[]
[]
[]
[]
[]
[]
[]
[]
[]
["Beschaffung, Subvention","5.","Wird eine Beschaffung oder eine Ausschreibung vorgenommen? Wird eine Veranstaltung durchgeführt oder eine Organisation subventioniert? "]
[]
["Detailfragen","5.1","Werden Büromöbel, Textilien, Elektrogeräte, EDV/IT-Geräte, Beleuchtung, Reinigungsmittel, Büromaterial, Druckwerke und Lebensmittel nachhaltig beschafft? Wie hoch ist der Anteil dieser Produkte am Gesamtanteil (geschätzt)?",null,null,{"$f":"IF(D176=N176,-1,IF(D176=O176,-2,IF(D176=P176,-3,\"\")))","v":""},null,0.1,0.5,null,null,"Bewertungskriterien detaillierter ausführen (?)","nicht relevant",{"$f":"\"> \"&I176*100&\"%\"","v":"> 50%"},{"$f":"H176*100&\"% - \"&I176*100&\"%\"","v":"10% - 50%"},{"$f":"\"< \"&H176*100&\"%\"","v":"< 10%"}]
[null,"5.2","Werden bei der Fuhrparkbeschaffung Fahrzeuge mit alternativem Antrieb (0 g CO2-Ausstoß im Betrieb) angeschafft? ","teilweise",null,{"$f":"IF(D177=N177,-1,IF(D177=O177,-1,IF(D177=P177,-2,IF(D177=Q177,-3,\"\"))))","v":-2},null,null,null,null,null,"Hinweis: Weitere Bewertungsmöglichkeiten sind in der Alternativenprüfung möglich","nicht relevant","ja","nicht möglich","teilweise","nein"]
[null,"5.3","Werden klimaschonende Kriterien bei Ausschreibungen der Stadt berücksichtigt? Zum Beispiel naBe-Kriterien, Baubook-Kriterien, klimaaktiv-Kriterien, Handbuch zur Regionalvergabe …",null,null,{"$f":"IF(D178=N178,-1,IF(D178=O178,-2,IF(D178=P178,-3,\"\")))","v":""},null,null,null,null,null,"Bewertungskriterien detaillierter ausführen","nicht relevant","maßgeblich","teilweise","nein"]
[null,"5.4","Werden Veranstaltungen nachhaltig durchgeführt? Umsetzung z.B. nach den  Kriterien von Sauberhafte Feste oder Green Event",null,null,{"$f":"IF(D179=N179,-1,IF(D179=O179,-2,IF(D179=P179,-3,\"\")))","v":""},null,null,null,null,null,"Bewertungskriterien detaillierter ausführen","nicht relevant","maßgeblich","teilweise","nein"]
[null,"5.5","Werden bei Subventionen an Vereine/Organisationen Nachhaltigkeitskriterien für die Verwendung des Geldes vorgegeben?  Z.B. nabe-Kriterien, ökologische Baustoffe / Reinigungsmittel / Mobilität / Verpflegung.",null,null,{"$f":"IF(D180=N180,-1,IF(D180=O180,-2,IF(D180=P180,-3,\"\")))","v":""},null,null,null,null,null,"Bewertungskriterien detaillierter ausführen","nicht relevant","maßgeblich","teilweise","nein"]
[]
[]
[]
["Anmerkungen"]
[]
[{"$f":"A27","v":"Das Vorhaben hat eine gewisse Klimarelevanz.   Für die Fragen mit gelber oder roter Ampel wird eine Verbesserung im Bezug auf Klimaschutz empfohlen."}]
["Alternativen-prüfung","Alternativen um das Vorhaben klimafreundlicher umzusetzen: "]
[null,"ad 5.1)","Produkte nach naBe-Kriterien beschaffen (soweit verfügbar). Zusammenarbeit mit Nachhaltige Beschaffung NÖ."]
[null,"ad 5.2)","Produkte nach naBe-Kriterien beschaffen (soweit verfügbar). Zusammenarbeit mit Nachhaltige Beschaffung NÖ."]
[null,"ad 5.3)","Möglichst viele Nachhaltigkeitskriterien bei Ausschreibungen definieren."]
[null,"ad 5.4)","Veranstaltungen als Sauberhafte Feste oder green Events durchführen."]
[null,"ad 5.5)","Vorgaben für umfassende Nachhaltigkeit bei der Verwendung der Subvention."]
[null,"Angabe der Alternativen in Stichworten:"]
[]
[null,"Welche Werte ergeben sich unter Berücksichtigung der Alternativen?"]
[null,{"$f":"B176","v":"5.1"},"Werden Büromöbel, Textilien, Elektrogeräte, EDV/IT-Geräte, Beleuchtung, Reinigungsmittel, Büromaterial, Druckwerke und Lebensmittel nachhaltig beschafft? Wie hoch ist der Anteil dieser Produkte am Gesamtanteil (geschätzt)?",null,null,{"$f":"IF(D196=N196,-1,IF(D196=O196,-2,IF(D196=P196,-3,\"\")))","v":""},null,null,null,null,null,null,{"$f":"M176","v":"nicht relevant"},"> 50%","10% - 50%","< 10%"]
[null,"5.2","Werden bei der Fuhrparkbeschaffung Fahrzeuge mit alternativem Antrieb (0 g CO2-Ausstoß im Betrieb) angeschafft? ",null,null,{"$f":"IF(D197=N197,-1,IF(D197=O197,-1,IF(D197=P197,-1,IF(D197=Q197,-3,\"\"))))","v":""},null,null,null,null,null,null,{"$f":"M177","v":"nicht relevant"},{"$f":"N177","v":"ja"},{"$f":"O177","v":"nicht möglich"},{"$f":"P177","v":"teilweise"},{"$f":"Q177","v":"nein"}]
[null,"5.3","Werden klimaschonende Kriterien bei Ausschreibungen der Stadt berücksichtigt? Zum Beispiel naBe-Kriterien, Baubook-Kriterien, klimaaktiv-Kriterien, Handbuch zur Regionalvergabe …",null,null,{"$f":"IF(D198=N198,-1,IF(D198=O198,-2,IF(D198=P198,-3,\"\")))","v":""},null,null,null,null,null,null,"nicht relevant","maßgeblich","teilweise","nein"]
[null,"5.4","Werden Veranstaltungen nachhaltig durchgeführt? Umsetzung z.B. nach den  Kriterien von Sauberhafte Feste oder Green Event",null,null,{"$f":"IF(D199=N199,-1,IF(D199=O199,-2,IF(D199=P199,-3,\"\")))","v":""},null,null,null,null,null,null,"nicht relevant","maßgeblich","teilweise","nein"]
[null,"5.5",{"$f":"C180","v":"Werden bei Subventionen an Vereine/Organisationen Nachhaltigkeitskriterien für die Verwendung des Geldes vorgegeben?  Z.B. nabe-Kriterien, ökologische Baustoffe / Reinigungsmittel / Mobilität / Verpflegung."},null,null,{"$f":"IF(D200=N200,-1,IF(D200=O200,-2,IF(D200=P200,-3,\"\")))","v":""},null,null,null,null,null,null,"nicht relevant","maßgeblich","teilweise","nein"]
[]
["Kompensations-prüfung","Wenn Alternativen nicht möglich sind: Mit welchen Kompensationsmaßnahmen kann das Vorhaben klimafreundlicher umgesetzt werden?"]
[null,"Kompensationsmaßnahmen (auch an anderen Orten) sind in den Fragen 7 - 12  definiert. \nBeispiele: zusätzliche Grünflächen, Sanierung anderer Gebäude, Anlagen für erneuerbare Energieerzeugung, nachhaltige Beschaffung bei anderen Projekten ..."]
[null,"Angabe der Kompensationsmaßnahmen (deren Umsetzung beantragt werden muss):",null,null,null,{"$f":"IF(ISBLANK(B205),\"\",-1)","v":""}]
[]
[]
[]
[]
[]
[]
[]
[]
[]
[]
[]
[]
[]
["Sonstige negative Klimarelevanz","6.","Gibt es eine negative Auswirkung auf das Klima, die in den vorherigen Fragen nicht erwähnt wurde?"]
["Detailfragen",null,"Welche klimaschädigenden Auswirkungen hat das Vorhaben?"]
[]
[]
[null,null,"Wie würden Sie die klimaschädigenden Auswirkungen des Vorhabens einschätzen?",null,null,{"$f":"IF(D222=N222,-1,IF(D222=O222,-2,IF(D222=P222,-3,\"\")))","v":""},null,null,null,null,null,null,"nicht relevant","gering","mittel","hoch"]
[null,null,"Welche Alternativen sind möglich und können umgesetzt werden?  "]
[]
[null,null,"Wie würden Sie die klimaschädigenden Auswirkungen des Vorhabens unter Berücksichtigung der Alternativen bewerten?",null,null,{"$f":"IF(D225=N222,-1,IF(D225=O222,-2,IF(D225=P222,-3,\"\")))","v":""}]
[]
[null,"Wenn Alternativen nicht möglich sind: Mit welchen Kompensationsmaßnahmen kann das Vorhaben klimafreundlicher umgesetzt werden?"]
[]
[]
[]
[]
[]
[]
[]
[]
[]
[]
[]
[]
[]
[]
[]
["Erneuerbare Energie","7.","Kann durch das Vorhaben erneuerbare Energie (Biomasse, Sonne, Umgebungswärme) erzeugt oder fossile Energie eingespart werden (Dämmung, Heizungstausch, …) ? "]
[]
["Detailfragen","7.1","Kann durch Photovoltaik oder Solaranlagen erneuerbare Energie erzeugt werden? Wie viel Prozent der geeigneten Dachflächen wird zur Strom- oder Wärmeerzeugung genutzt?",null,null,{"$f":"IF(T245=3,\"J\",IF(T245=2,\"K\",IF(T245=1,\"L\",\"\")))","v":""},null,0.3,0.7,null,null,"Bewertungskriterien detaillierter ausführen  z.B. Bewertung von freistehenden Anlagen","nicht relevant",{"$f":"\"> \"&I245*100&\"%\"","v":"> 70%"},{"$f":"H245*100&\"% - \"&I245*100&\"%\"","v":"30% - 70%"},{"$f":"\"< \"&H245*100&\"%\"","v":"< 30%"},null,null,null,{"$f":"IF(D245=N245,3,IF(D245=O245,2,IF(D245=P245,1,\"\")))","v":""}]
[null,"7.2","Kann durch Dämmung oder andere Maßnahmen z.B. Heizungsoptimierung, Abwärmenutzung der Heizbedarf von Gebäuden oder Anlagen reduziert werden ? Für wie viel Prozent der vorhandenen BGF wird dies umgesetzt?",null,null,{"$f":"IF(T246=3,\"J\",IF(T246=2,\"K\",IF(T246=1,\"L\",\"\")))","v":""},null,0.3,0.7,null,null,"Bewertungskriterien detaillierter ausführen  z.B. Bewertung der Reduktion bei Verbesserung von Wärmeprozessen in Anlagen","nicht relevant",{"$f":"\"> \"&I246*100&\"%\"","v":"> 70%"},{"$f":"H246*100&\"% - \"&I246*100&\"%\"","v":"30% - 70%"},{"$f":"\"< \"&H246*100&\"%\"","v":"< 30%"},null,null,null,{"$f":"IF(D246=N246,3,IF(D246=O246,2,IF(D246=P246,1,\"\")))","v":""}]
[null,"7.3","Kann eine Öl- oder Gasheizung dauerhaft durch eine Hackgut- bzw. Pelletsheizung, Fernwärme oder eine Wärmepumpe ersetzt werden? Wenn es möglich ist, für wie viel Prozent der vorhandenen BGF wird dies umgesetzt?",null,null,{"$f":"IF(T247=3,\"J\",IF(T247=2,\"K\",IF(T247=1,\"L\",\"\")))","v":""},null,0.3,0.7,null,null,"Bewertungskriterien detaillierter ausführen  z.B. Bewertung der Umstellung von Wärmeprozessen in Betriebsanlagen","nicht relevant",{"$f":"\"> \"&I247*100&\"%\"","v":"> 70%"},{"$f":"H247*100&\"% - \"&I247*100&\"%\"","v":"30% - 70%"},{"$f":"\"< \"&H247*100&\"%\"","v":"< 30%"},null,null,null,{"$f":"IF(D247=N247,3,IF(D247=O247,2,IF(D247=P247,1,\"\")))","v":""}]
[null,"7.4","Kann durch den Austausch/Beschaffung von Geräten, Beleuchtung, Materialien, … fossile Energie eingespart werden? Wie viel Prozent kann eingespart werden?",null,null,{"$f":"IF(T248=3,\"J\",IF(T248=2,\"K\",IF(T248=1,\"L\",\"\")))","v":""},null,0.3,0.7,null,null,null,"nicht relevant",{"$f":"\"> \"&I248*100&\"%\"","v":"> 70%"},{"$f":"H248*100&\"% - \"&I248*100&\"%\"","v":"30% - 70%"},{"$f":"\"< \"&H248*100&\"%\"","v":"< 30%"},null,null,null,{"$f":"IF(D248=N248,3,IF(D248=O248,2,IF(D248=P248,1,\"\")))","v":""}]
[null,"Kurzbeschreibung / Auflistung der Effizienzmaßnahmen: "]
[]
[]
[]
[]
["Das Vorhaben hat eine gewisse Klimarelevanz.   Für die Fragen mit L und K sind Verbesserungen im Bezug auf Klimaschutz möglich."]
["Alternativen-prüfung","Alternativen um das Vorhaben klimafreundlicher umzusetzen: "]
[null,"ad 7.1)","Bei allen Fragen wo oberer Schwellwert nicht erreicht ist, das Potential möglichst vollständig ausnutzen."]
[null,"bis"]
[null,"ad 7.4)"]
[null,"Angabe der Alternativen in Stichworten:"]
[]
[null,"Welche Werte ergeben sich unter Berücksichtigung der Alternativen?"]
[null,{"$f":"B245","v":"7.1"},"Kann durch Photovoltaik oder Solaranlagen erneuerbare Energie erzeugt werden? Wie viel Prozent der geeigneten Dachflächen wird zur Strom- oder Wärmeerzeugung genutzt?",null,null,{"$f":"IF(T262=3,\"J\",IF(T262=2,\"K\",IF(T262=1,\"L\",\"\")))","v":""},null,null,null,null,null,null,{"$f":"M245","v":"nicht relevant"},"> 70%","30% - 70%","< 30%",null,null,null,{"$f":"IF(D262=N262,3,IF(D262=O262,2,IF(D262=P262,1,\"\")))","v":""}]
[null,"7.2","Kann durch Dämmung oder andere Maßnahmen z.B. Heizungsoptimierung, Abwärmenutzung der Heizbedarf von Gebäuden oder Anlagen reduziert werden ? Für wie viel Prozent der vorhandenen BGF wird dies umgesetzt?",null,null,{"$f":"IF(T263=3,\"J\",IF(T263=2,\"K\",IF(T263=1,\"L\",\"\")))","v":""},null,null,null,null,null,null,"nicht relevant","> 70%","30% - 70%","< 30%",null,null,null,{"$f":"IF(D263=N263,3,IF(D263=O263,2,IF(D263=P263,1,\"\")))","v":""}]
[null,"7.3","Kann eine Öl- oder Gasheizung dauerhaft durch eine Hackgut- bzw. Pelletsheizung, Fernwärme oder eine Wärmepumpe ersetzt werden? Wenn es möglich ist, für wie viel Prozent der vorhandenen BGF wird dies umgesetzt?",null,null,{"$f":"IF(T264=3,\"J\",IF(T264=2,\"K\",IF(T264=1,\"L\",\"\")))","v":""},null,null,null,null,null,null,"nicht relevant","> 70%","30% - 70%","< 30%",null,null,null,{"$f":"IF(D264=N264,3,IF(D264=O264,2,IF(D264=P264,1,\"\")))","v":""}]
[null,"7.4","Kann durch den Austausch/Beschaffung von Geräten, Beleuchtung, Materialien, … fossile Energie eingespart werden? Wie viel Prozent kann eingespart werden?",null,null,{"$f":"IF(T265=3,\"J\",IF(T265=2,\"K\",IF(T265=1,\"L\",\"\")))","v":""},null,null,null,null,null,null,"nicht relevant","> 70%","30% - 70%","< 30%",null,null,null,{"$f":"IF(D265=N265,3,IF(D265=O265,2,IF(D265=P265,1,\"\")))","v":""}]
[]
["Nutzung dieses Vorhabens als Kompensations-maßnahme","7.1a","Wird durch thermische Solaranlagen erneuerbare Wärme erzeugt? Wie viel m² Solarfläche wird ungefähr errichtet?",{"$f":"Bearbeitung!B162","v":0},"m²",null,null,{"$f":"D267","v":0},{"$f":"H267*60%*1000*0.268*20/1000","v":0},null,null,"bei Einsparung von Erdgas (0,268 kg CO2/kWh lt. UBA 2021) durch Solarenergie bei solarer Einstrahlung von 1000 kWh/m²,a mit Nutzungsgrad 60% und 20 Jahre Nutzungsdauer"]
[null,"7.1b","Wird durch Photovoltaik erneuerbarer Strom erzeugt? Wie viel m² Photovoltaikfläche wird ungefähr errichtet?",{"$f":"Bearbeitung!B163","v":0},"m²",null,null,{"$f":"D268","v":0},{"$f":"H268*143*0.219*20/1000","v":0},null,null,"bei Einsparung von 143 kWh/m² (entspricht 7 m² pro kWp) und 0,219 kg CO2/kWh (Ö-Strommix lt. UBA 2021) und 20 Jahre Nutzungsdauer"]
[null,null,"GEMEINSAME AMPEL FÜR FRAGE 7.1a und 7.1b",{"$f":"Bearbeitung!B164","v":0},null,{"$f":"IF(N269=1,1,IF(O269=1,2,IF(P269=1,3,\"\")))","v":""},null,null,{"$f":"SUM(I267:I268)","v":0},{"$f":"IF(AND($L$6<>0,$L$6<>\"\"),$L$6,\"\")","v":""},{"$f":"IF(AND($L$12<>0,$L$12<>\"\"),$L$12,\"\")","v":""},null,{"$f":"IF(OR(I269=0,I269=\"\"),\"nicht relevant\",\"\")","v":"nicht relevant"},{"$f":"IF(AND(I269<J269,I269>0),1,\"\")","v":""},{"$f":"IF(AND(I269<K269,I269>=J269),1,\"\")","v":""},{"$f":"IF(I269>=K269,1,\"\")","v":""}]
[null,"7.2","Wurde durch Dämmung oder andere Maßnahmen z.B. Heizungsoptimierung, Abwärmenutzung der Heizbedarf von Gebäuden oder Anlagen reduziert ? Für wie viele m² BGF wurde dies ungefähr umgesetzt?",{"$f":"Bearbeitung!B165","v":0},"m²",{"$f":"IF(N270=1,1,IF(O270=1,2,IF(P270=1,3,\"\")))","v":""},null,{"$f":"D270","v":0},{"$f":"H270*(70-36)/0.85*0.268/1000*20","v":0},{"$f":"IF(AND($L$6<>0,$L$6<>\"\"),$L$6,\"\")","v":""},{"$f":"IF(AND($L$12<>0,$L$12<>\"\"),$L$12,\"\")","v":""},"bei HWB-Verringerung von 70 auf 36 kWh/m²,a  und Gasheizung (0,268 kg CO2/kWh lt. UBA 2021) mit 85% Jahrenutzungsgrad und Zeitraum 20 Jahre",{"$f":"IF(OR(I270=0,I270=\"\"),\"nicht relevant\",\"\")","v":"nicht relevant"},{"$f":"IF(AND(I270<J270,I270>0),1,\"\")","v":""},{"$f":"IF(AND(I270<K270,I270>=J270),1,\"\")","v":""},{"$f":"IF(I270>=100,1,\"\")","v":""}]
[null,"7.3","Wurde eine Öl- oder Gasheizung dauerhaft durch eine Hackgut- bzw. Pelletsheizung, Fernwärme oder eine Wärmepumpe ersetzt? Für wie viele m² BGF wurde dies ungefähr umgesetzt?",{"$f":"Bearbeitung!B166","v":0},"m²",{"$f":"IF(N271=1,1,IF(O271=1,2,IF(P271=1,3,\"\")))","v":""},null,{"$f":"D271","v":0},{"$f":"H271*70*(0.268-0.027)/0.85*20/1000","v":0},"",{"$f":"IF(AND($L$12<>0,$L$12<>\"\"),$L$12,\"\")","v":""},"bei Änderung Gasheizung ( 0,268 kg CO2/kWh lt. UBA 2021) auf Pelletsheizung (0,027 kg CO2/kWh lt. UBA 2021) in einem Gebäude (HWB = 70kWh/m²,a) für einen Zeitraum von 20 Jahren (beide Heizsysteme mit 85% Jahrenutzungsgrad)",{"$f":"IF(OR(I271=0,I271=\"\"),\"nicht relevant\",\"\")","v":"nicht relevant"},{"$f":"IF(AND(I271<J271,I271>0),1,\"\")","v":""},{"$f":"IF(AND(I271<K271,I271>=J271),1,\"\")","v":""},{"$f":"IF(I271>=100,1,\"\")","v":""}]
[null,"7.4","Kann durch den Austausch/Beschaffung von Geräten, Beleuchtung, Materialien, … fossile Energie eingespart werden? Wie viel MWh (=1000 kWh) kann auf die Lebensdauer ungefähr eingespart werden?",null,"MWh",{"$f":"IF(N272=1,1,IF(O272=1,2,IF(P272=1,3,\"\")))","v":""},null,{"$f":"D272","v":0},{"$f":"(H272*0.219)","v":0},"",{"$f":"IF(AND($L$12<>0,$L$12<>\"\"),$L$12,\"\")","v":""}," 0,219 kg CO2/kWh (Ö-Strommix lt. UBA 2021)",{"$f":"IF(OR(I272=0,I272=\"\"),\"nicht relevant\",\"\")","v":"nicht relevant"},{"$f":"IF(AND(I272<J272,I272>0),1,\"\")","v":""},{"$f":"IF(AND(I272<K272,I272>=J272),1,\"\")","v":""},{"$f":"IF(I272>=100,1,\"\")","v":""}]
[]
[]
[]
[]
[]
[]
[]
[]
[]
[]
[]
[]
["Klimafreundliche Mobilität","8.","Kann das Vorhaben einen Anreiz für klimafreundliche Mobilität setzen (Radfahren, Gehen, Öffis, alternative Antriebe) oder den PKW- bzw. Güterverkehr reduzieren?"]
[]
["Detailfragen","8.1","Wird durch das Projekt der öffentliche Personen-Nahverkehr (ÖPNV) gefördert?\nBeispiele: Bus- oder Bahnanbindung, Anrufsammeltaxi, Bike&Ride- bzw. Park&Ride-Anlagen, Förderung ÖFFIs",null,null,{"$f":"IF(T287=3,\"J\",IF(T287=2,\"K\",IF(T287=1,\"L\",\"\")))","v":""},null,null,null,null,null,"Hilfetext und Bewertungskriterien unvollständig","nicht relevant","maßgeblich","teilweise","gering",null,null,null,{"$f":"IF(D287=N287,3,IF(D287=O287,2,IF(D287=P287,1,\"\")))","v":""}]
[null,"8.2","Wird durch das Projekt der klimafreundliche Fuß- und Radverkehr gefördert?\nBeispiele: Gute Qualität von Rad- und Fußwegen, optimale Wegeführung, sichere Kreuzungen, Ampelschaltungen auch auf Rad- und Fußverkehr abgestimmt, kurze (Alltags-)Wege, Beleuchtung …",null,null,"",null,null,null,null,null,"Hilfetext und Bewertungskriterien unvollständig","nicht relevant","maßgeblich","teilweise","gering",null,null,null,""]
[null,"8.3","Wird CO2-neutrale Mobilität gefördert?  \nBeispiele: Testangebot von Fahrzeugen mit CO2-neutralem Antriebssystem, Ausbau von E-Ladeinfrastruktur, Förderung",null,null,"",null,null,null,null,null,"Bewertungskriterien fehlen","nicht relevant","maßgeblich","teilweise","gering",null,null,null,""]
[null,"8.4","Kann durch das Projekt eine Reduktion des PKW-Verkehrs oder der PKW-Anzahl erzielt werden? \nBeispiele: CarSharing-Angebot, Parkraummanagement, Fahrverbote, Geschwindigkeitsreduktion",null,null,"",null,null,null,null,null,"Bewertungskriterien fehlen","nicht relevant","maßgeblich","teilweise","gering",null,null,null,""]
[null,"8.5","In wie weit werden die Potentiale zur Reduktion von Schwerverkehrfahrten genutzt? \nBeispiele:  Bahnanschluss, Sammeltransporte, gebündelter Verkehr, Fahrverbot, Fahrbeschränkung",null,null,"",null,null,null,null,null,"Bewertungskriterien fehlen","nicht relevant","maßgeblich","teilweise","gering",null,null,null,""]
[null,"8.6","Kann durch das Projekt die tatsächliche Fahrgeschwindigkeit des KFZ-Verkehrs verringert werden? ",null,null,"",null,null,null,null,null,"in die Frage 8.3 inkludieren?","nicht relevant","maßgeblich","teilweise","gering",null,null,null,""]
[null,"8.7","Kann durch das Vorhaben klimafreundliche Mobilität in der Verwaltung verbessert werden?",null,null,"",null,null,null,null,null,null,"nicht relevant","maßgeblich","teilweise","gering",null,null,null,""]
[null,"Kurzbeschreibung / Auflistung der Klimaschutzmaßnahmen: "]
[]
[]
[]
[]
["Das Vorhaben hat eine gewisse Klimarelevanz.   Für die Fragen mit 😐 und 🙂 sind Verbesserungen im Bezug auf Klimaschutz möglich."]
["Alternativen-prüfung","Alternativen um das Vorhaben klimafreundlicher umzusetzen: "]
[null,"ad 8.1)","Taktfrequenz, attraktive Wartestellen, Infrastruktur, Fahrgastinformation in Echtzeit, Gehsteig vorziehen, Busbucht wegnehmen, günstige Tarife"]
[null,"ad 8.2)","Attraktivierung Fuß- und Radwege, Gehsteigvorziehungen, Querungshilfen, hochwertige Radabstellanlagen, Barrierefreie Fuß- und Radwege, direkte, kurze Verbindungen und Wege für Rad/Fuß. "]
[null,"ad 8.3)","Ladeinfrastruktur errichten bzw. Leerverrohrung vorsehen."]
[null,"ad 8.4)","Klimafreundliche Mobilitätsplanung, Parkplatzreduktion, Parkraumbewirtschaftung, Straßenrückbau, Beschränkungen, Einbahnsystem, autofreie Siedlungsbereiche, Carsharing, Fahrtendienst."]
[null,"ad 8.5)","Bahnanschluss, Logistik für Sammeltransporte, Fahrverbote, Fahrbeschränkungen, Wohnstraßen, Shared Space etc."]
[null,"ad 8.6)","Beschränkungen Geschwindigkeit, Straßenrückbau, Verkehrsberuhigung (Begegnungszonen, Straßenverschwenkung etc.)"]
[null,"ad 8.7)","Dienstreiseregelung, Rad-Infrastruktur oder Ladeinfrastruktur für MitarbeiterInnen, Diensträder bzw. e-Dienstautos, Förderung ÖFFI-Tickets etc."]
[null,"Angabe der Alternativen in Stichworten:"]
[]
[null,"Welche Werte ergeben sich unter Berücksichtigung der Alternativen?"]
[null,{"$f":"B287","v":"8.1"},"Wird durch das Projekt der öffentliche Personen-Nahverkehr (ÖPNV) gefördert?\nBeispiele: Bus- oder Bahnanbindung, Anrufsammeltaxi, Bike&Ride- bzw. Park&Ride-Anlagen, Förderung ÖFFIs",null,null,{"$f":"IF(T311=3,\"J\",IF(T311=2,\"K\",IF(T311=1,\"L\",\"\")))","v":""},null,null,null,null,null,null,{"$f":"M287","v":"nicht relevant"},{"$f":"N287","v":"maßgeblich"},{"$f":"O287","v":"teilweise"},{"$f":"P287","v":"gering"},null,null,null,{"$f":"IF(D311=N311,3,IF(D311=O311,2,IF(D311=P311,1,\"\")))","v":""}]
[null,"8.2","Wird durch das Projekt der klimafreundliche Fuß- und Radverkehr gefördert?\nBeispiele: Gute Qualität von Rad- und Fußwegen, optimale Wegeführung, sichere Kreuzungen, Ampelschaltungen auch auf Rad- und Fußverkehr abgestimmt, kurze (Alltags-)Wege, Beleuchtung …",null,null,"",null,null,null,null,null,null,{"$f":"M288","v":"nicht relevant"},{"$f":"N288","v":"maßgeblich"},"teilweise","gering",null,null,null,""]
[null,"8.3","Wird CO2-neutrale Mobilität gefördert?  \nBeispiele: Testangebot von Fahrzeugen mit CO2-neutralem Antriebssystem, Ausbau von E-Ladeinfrastruktur, Förderung",null,null,"",null,null,null,null,null,null,{"$f":"M289","v":"nicht relevant"},"maßgeblich","teilweise","gering",null,null,null,""]
[null,"8.4","Kann durch das Projekt eine Reduktion des PKW-Verkehrs oder der PKW-Anzahl erzielt werden? \nBeispiele: CarSharing-Angebot, Parkraummanagement, Fahrverbote, Geschwindigkeitsreduktion",null,null,"",null,null,null,null,null,null,{"$f":"M290","v":"nicht relevant"},"maßgeblich","teilweise","gering",null,null,null,""]
[null,"8.5","In wie weit werden die Potentiale zur Reduktion von Schwerverkehrfahrten genutzt? \nBeispiele:  Bahnanschluss, Sammeltransporte, gebündelter Verkehr, Fahrverbot, Fahrbeschränkung",null,null,"",null,null,null,null,null,null,{"$f":"M292","v":"nicht relevant"},"maßgeblich","teilweise","gering",null,null,null,""]
[null,"8.6","Kann durch das Projekt die tatsächliche Fahrgeschwindigkeit des KFZ-Verkehrs verringert werden? ",null,null,"",null,null,null,null,null,null,{"$f":"M293","v":"nicht relevant"},"maßgeblich","teilweise","gering",null,null,null,""]
[null,"8.7","Kann durch das Vorhaben klimafreundliche Mobilität in der Verwaltung verbessert werden?",null,null,"",null,null,null,null,null,null,"nicht relevant","maßgeblich","teilweise","gering",null,null,null,""]
[]
["Nutzung dieses Vorhabens als Kompensations-maßnahme\n\nDie Angaben werden automatisch von Detail- bzw. Alternativfragen übernommen",{"$f":"B287","v":"8.1"},"Wird durch das Projekt der öffentliche Personen-Nahverkehr gefördert? \nBeispiele: Bus- oder Bahnanbindung, Anrufsammeltaxi, Bike&Ride- bzw. Park&Ride-Anlagen, Förderung ÖFFIs",{"$f":"IF(D311<>\"\",D311,D287)","v":0},null,{"$f":"IF(D319=N319,1,IF(D319=O319,2,IF(D319=P319,3,\"\")))","v":""},null,null,null,null,null,"Bewertungskriterien fehlen","nicht relevant","gering",{"$f":"O287","v":"teilweise"},"maßgeblich"]
[null,{"$f":"B288","v":"8.2"},"Wird der Fuß- oder Radverkehr gestärkt? ",{"$f":"IF(D312<>\"\",D312,D288)","v":0},null,"",null,null,null,null,null,"Bewertungskriterien fehlen","nicht relevant","gering",{"$f":"O288","v":"teilweise"},"maßgeblich"]
[null,"8.3","Wird CO2-neutrale Mobilität gefördert?  \nBeispiele: Elektromobilität mit erneuerbarem Strom betrieben",0,null,"",null,null,null,null,null,"Bewertungskriterien fehlen","nicht relevant","gering","teilweise","maßgeblich"]
[null,"8.4","Wird durch das Projekt eine Reduktion des PKW-Verkehrs oder der PKW-Anzahl erzielt?\nBeispiele: CarSharing, Fahrtendienste, Stadtbus-, ÖFFI-, Radweg-Anbindung, Parkgebühren, Fahrverbote, Geschwindigkeitsreduktion",0,null,"",null,null,null,null,null,"Bewertungskriterien fehlen","nicht relevant","gering","teilweise","maßgeblich"]
[null,"8.5","Wird durch das Projekt eine Reduktion des Güterverkehrs oder der LKW-Anzahl erzielt?\nBeispiele:  Bahnanschluss, Sammeltransporte, Fahrverbot, Fahrbeschränkung",0,null,"",null,null,null,null,null,"Bewertungskriterien fehlen","nicht relevant","gering","teilweise","maßgeblich"]
[null,"8.6","Wird die tatsächliche Fahrgeschwindigkeit des KFZ-Verkehrs verringert?",0,null,"",null,null,null,null,null,"Bewertungskriterien fehlen","nicht relevant","gering","teilweise","maßgeblich"]
[null,"8.7","Wird durch das Vorhaben klimafreundliche Mobilität in der Verwaltung verbessert?",0,null,"",null,null,null,null,null,"Bewertungskriterien fehlen","nicht relevant","gering","teilweise","maßgeblich"]
[]
[]
[]
[]
[]
[]
[]
[]
[]
[]
[]
[]
[]
[]
["Begrünungen","9.","Können durch das Projekt zusätzlich Begrünungen und Biodiversitätsflächen geschaffen oder Flächen entsiegelt werden? Werden im Projekt Maßnahmen zur Nachhaltigkeit von Gebäudemanagement und zur kommunalen Grünräumpflege umgesetzt?"]
[]
["Detailfragen","9.1","Entstehen (neue) Grünräume,  Naturwiesen, Baum- und Strauchgruppen, Nutzgärten, Alleen, Wälder, Parks, Bäche, Teiche, Wasserflächen, Moore, Feuchtwiesen und Gebäudebegrünungen mit positiver Wirkung auf Biodiversität und Klimaschutz beziehungsweise werden vorhandene Flächen in diesem Sinne renaturiert? Wie viel Prozent der unverbauten Fläche wird dafür genutzt?","30% - 70%",null,{"$f":"IF(T342=3,\"J\",IF(T342=2,\"K\",IF(T342=1,\"L\",\"\")))","v":"K"},null,0.3,0.7,null,null,"Bewertungskriterien fehlen bzw. verbessern","nicht relevant",{"$f":"\"> \"&I342*100&\"%\"","v":"> 70%"},{"$f":"H342*100&\"% - \"&I342*100&\"%\"","v":"30% - 70%"},{"$f":"\"< \"&H342*100&\"%\"","v":"< 30%"},null,null,null,{"$f":"IF(D342=N342,3,IF(D342=O342,2,IF(D342=P342,1,\"\")))","v":2}]
[null,"9.2","Kann das Projekt vorhandene Moore, Feuchtwiesen, Wälder und Ähnliches als CO2-Speicher stärken und schützen? Wie viel Prozent der vorhandene Flächen werden gestärkt und geschützt?","30% - 70%",null,{"$f":"IF(T343=3,\"J\",IF(T343=2,\"K\",IF(T343=1,\"L\",\"\")))","v":"K"},null,0.3,0.7,null,null,"Bewertungskriterien fehlen bzw. verbessern","nicht relevant",{"$f":"\"> \"&I343*100&\"%\"","v":"> 70%"},{"$f":"H343*100&\"% - \"&I343*100&\"%\"","v":"30% - 70%"},{"$f":"\"< \"&H343*100&\"%\"","v":"< 30%"},null,null,null,{"$f":"IF(D343=N343,3,IF(D343=O343,2,IF(D343=P343,1,\"\")))","v":2}]
[null,"9.3","Können feuchteregulierende Maßnahmen wie Wasserspeicherung, Versickerung, Verdunstung umgesetzt werden? Wie viel Prozent der unverbauten Fläche wird dafür genutzt?","30% - 70%",null,{"$f":"IF(T344=3,\"J\",IF(T344=2,\"K\",IF(T344=1,\"L\",\"\")))","v":"K"},null,0.3,0.7,null,null,"Bewertungskriterien fehlen bzw. verbessern","nicht relevant",{"$f":"\"> \"&I344*100&\"%\"","v":"> 70%"},{"$f":"H344*100&\"% - \"&I344*100&\"%\"","v":"30% - 70%"},{"$f":"\"< \"&H344*100&\"%\"","v":"< 30%"},null,null,null,{"$f":"IF(D344=N344,3,IF(D344=O344,2,IF(D344=P344,1,\"\")))","v":2}]
[null,"9.4","Werden Maßnahmen bei Gebäuden eingeführt und dauerhaft betrieben, die den Erhalt der Biodiversität fördern, das Klima schonen und/oder dafür sorgen, dass CO2 stärker gebunden wird (siehe Liste der möglichen Maßnahmen in der Hilfe)? ","mind. 3 Maßnahmen in mind. 2 Gebäuden",null,null,null,null,null,null,null,null,"nicht relevant","≥ 3 Maßnahmen in mind. 2 Gebäuden","2 Maßnahmen","1e Maßnahme",null,null,null,{"$f":"IF(D345=N345,3,IF(D345=O345,2,IF(D345=P345,1,\"\")))","v":""}]
[null,"9.5","Werden Maßnahmen in der Gemeinde eingeführt und dauerhaft betrieben, die den Erhalt der Biodiversität fördern, das Klima schonen und/oder dafür sorgen, dass CO2 stärker gebunden wird (siehe Liste der möglichen Maßnahmen in der Hilfe)?","2 Maßnahmen",null,null,null,null,null,null,null,null,"nicht relevant","≥ 3 Maßnahmen","2 Maßnahmen","1e Maßnahme"]
[]
[null,"Kurzbeschreibung / Auflistung der Klimaschutzmaßnahmen: "]
[]
[]
[]
["Das Vorhaben hat eine gewisse Klimarelevanz.   Für die Fragen mit L und K sind Verbesserungen im Bezug auf Klimaschutz möglich."]
["Alternativen-prüfung","Alternativen um das Vorhaben klimafreundlicher umzusetzen: "]
[null,"ad 9.1)","Tipps für Naturräume größer 1000 m² und Tipps zur Erhöhung der biolog. Vielfalt: siehe Hilfe"]
[null,"ad 9.2)","Tipps zur Förderung von CO2-Speicherung: siehe Hilfe"]
[null,"ad 9.3)","Tipps für feuchteregulierende Gebiete: siehe Hilfe"]
[null,"ad 9.4) ","Klimaschutzmaßnahmen in Gebäuden umsetzen: siehe Hilfe"]
[null,"ad 9.5) ","Klimaschutzmaßnahmen in der Gemeinde umsetzen: siehe Hilfe"]
[null,"Angabe der Alternativen in Stichworten:"]
[]
[null,"Welche Werte ergeben sich unter Berücksichtigung der Alternativen?"]
[null,{"$f":"B342","v":"9.1"},{"$f":"C342","v":"Entstehen (neue) Grünräume,  Naturwiesen, Baum- und Strauchgruppen, Nutzgärten, Alleen, Wälder, Parks, Bäche, Teiche, Wasserflächen, Moore, Feuchtwiesen und Gebäudebegrünungen mit positiver Wirkung auf Biodiversität und Klimaschutz beziehungsweise werden vorhandene Flächen in diesem Sinne renaturiert? Wie viel Prozent der unverbauten Fläche wird dafür genutzt?"},null,null,{"$f":"IF(T362=3,\"J\",IF(T362=2,\"K\",IF(T362=1,\"L\",\"\")))","v":""},null,null,null,null,null,null,{"$f":"M342","v":"nicht relevant"},"> 70%","30% - 70%","< 30%",null,null,null,{"$f":"IF(D362=N362,3,IF(D362=O362,2,IF(D362=P362,1,\"\")))","v":""}]
[null,"9.2",{"$f":"C343","v":"Kann das Projekt vorhandene Moore, Feuchtwiesen, Wälder und Ähnliches als CO2-Speicher stärken und schützen? Wie viel Prozent der vorhandene Flächen werden gestärkt und geschützt?"},null,null,{"$f":"IF(T363=3,\"J\",IF(T363=2,\"K\",IF(T363=1,\"L\",\"\")))","v":""},null,null,null,null,null,null,"nicht relevant","> 70%","30% - 70%","< 30%",null,null,null,{"$f":"IF(D363=N363,3,IF(D363=O363,2,IF(D363=P363,1,\"\")))","v":""}]
[null,"9.3","Können feuchteregulierende Maßnahmen wie Wasserspeicherung, Versickerung, Verdunstung umgesetzt werden? Wie viel Prozent der unverbauten Fläche wird dafür genutzt?",null,null,{"$f":"IF(T364=3,\"J\",IF(T364=2,\"K\",IF(T364=1,\"L\",\"\")))","v":""},null,null,null,null,null,null,"nicht relevant","> 70%","30% - 70%","< 30%",null,null,null,{"$f":"IF(D364=N364,3,IF(D364=O364,2,IF(D364=P364,1,\"\")))","v":""}]
[null,{"$f":"B345","v":"9.4"},"Werden Maßnahmen bei Gebäuden eingeführt und dauerhaft betrieben, die den Erhalt der Biodiversität fördern, das Klima schonen und/oder dafür sorgen, dass CO2 stärker gebunden wird (siehe Liste der möglichen Maßnahmen in der Hilfe)? ","mind. 3 Maßnahmen in mind. 2 Gebäuden"]
[null,{"$f":"B346","v":"9.5"},"Werden Maßnahmen in der Gemeinde eingeführt und dauerhaft betrieben, die den Erhalt der Biodiversität fördern, das Klima schonen und/oder dafür sorgen, dass CO2 stärker gebunden wird (siehe Liste der möglichen Maßnahmen in der Hilfe)?","mind. 3 Maßnahmen"]
[]
[]
[]
["Nutzung dieses Vorhabens als Kompensations-maßnahme",{"$f":" B362","v":"9.1"},"Wie viele m² Grünräume,  Naturwiesen, Baum- und Strauchgruppen, Nutzgärten, Alleen, Wälder, Parks, Bäche, Teiche, Wasserflächen, Moore, Feuchtwiesen und Gebäudebegrünungen etc. mit positiver Wirkung auf Biodiversität und Klimaschutz entstehen zusätzlich bzw. werden renaturiert? Für den Berechnungsschlüssel siehe Hilfe.",{"$f":"Bearbeitung!B230","v":0},"m²",{"$f":"IF(N370=1,1,IF(O370=1,2,IF(P370=1,3,\"\")))","v":""},null,{"$f":"D370","v":0},{"$f":"H370*2.3*50/1000","v":0},{"$f":"IF(AND($L$6<>0,$L$6<>\"\"),$L$6,\"\")","v":""},{"$f":"IF(AND($L$12<>0,$L$12<>\"\"),$L$12,\"\")","v":""},"bei 2,3 kg CO2/m²,a Verlust und 50 Jahre Zeitraum",{"$f":"IF(OR(I370=0,I370=\"\"),\"nicht relevant\",\"\")","v":"nicht relevant"},{"$f":"IF(AND(I370<J370,I370>0),1,\"\")","v":""},{"$f":"IF(AND(I370<K370,I370>=J370),1,\"\")","v":""},{"$f":"IF(I370>=100,1,\"\")","v":""}]
[null,{"$f":" B363","v":"9.2"},"Wie viele m² vorhandene Moore, Feuchtwiesen, Wälder und Ähnliches werden als CO2-Speicher geschützt und gestärkt? Siehe Berechnungsschlüssel bei der Hilfe von der Frage 9.1. ",{"$f":"Bearbeitung!B231","v":0},"m²",{"$f":"IF(N371=1,1,IF(O371=1,2,IF(P371=1,3,\"\")))","v":""},null,{"$f":"D371","v":0},{"$f":"H371*2.3*50/1000","v":0},{"$f":"IF(AND($L$6<>0,$L$6<>\"\"),$L$6,\"\")","v":""},{"$f":"IF(AND($L$12<>0,$L$12<>\"\"),$L$12,\"\")","v":""},"bei 2,3 kg CO2/m²,a Verlust und 50 Jahre Zeitraum",{"$f":"IF(OR(I371=0,I371=\"\"),\"nicht relevant\",\"\")","v":"nicht relevant"},{"$f":"IF(AND(I371<J371,I371>0),1,\"\")","v":""},{"$f":"IF(AND(I371<K371,I371>=J371),1,\"\")","v":""},{"$f":"IF(I371>=100,1,\"\")","v":""}]
[null,{"$f":" B364","v":"9.3"},"Wie viele Bäume werden gepflanzt? ",{"$f":"Bearbeitung!B232","v":0},"Stück",{"$f":"IF(N372=1,1,IF(O372=1,2,IF(P372=1,3,\"\")))","v":""},null,{"$f":"D372","v":0},{"$f":"H372*10*50/1000","v":0},{"$f":"IF(AND($L$6<>0,$L$6<>\"\"),$L$6,\"\")","v":""},"","bei 10 kg CO2/Baum,a und 50 Jahre Zeitraum",{"$f":"IF(OR(I372=0,I372=\"\"),\"nicht relevant\",\"\")","v":"nicht relevant"},{"$f":"IF(AND(I372<J372,I372>0),1,\"\")","v":""},{"$f":"IF(AND(I372<K372,I372>=J372),1,\"\")","v":""},{"$f":"IF(I372>=100,1,\"\")","v":""}]
[null,{"$f":" B365","v":"9.4"},{"$f":"C345","v":"Werden Maßnahmen bei Gebäuden eingeführt und dauerhaft betrieben, die den Erhalt der Biodiversität fördern, das Klima schonen und/oder dafür sorgen, dass CO2 stärker gebunden wird (siehe Liste der möglichen Maßnahmen in der Hilfe)? "},{"$f":"D365","v":"mind. 3 Maßnahmen in mind. 2 Gebäuden"},null,{"$f":"IF(N373=1,1,IF(O373=1,2,IF(P373=1,3,\"\")))","v":""},null,null,null,null,null,null,{"$f":"M345","v":"nicht relevant"},{"$f":"IF($D$373=N345,1,\"\")","v":""},{"$f":"IF($D$373=O345,1,\"\")","v":""},""]
[null,"9.5",{"$f":"C346","v":"Werden Maßnahmen in der Gemeinde eingeführt und dauerhaft betrieben, die den Erhalt der Biodiversität fördern, das Klima schonen und/oder dafür sorgen, dass CO2 stärker gebunden wird (siehe Liste der möglichen Maßnahmen in der Hilfe)?"},{"$f":"D366","v":"mind. 3 Maßnahmen"},null,{"$f":"IF(N374=1,1,IF(O374=1,2,IF(P374=1,3,\"\")))","v":""},null,null,null,null,null,null,{"$f":"M346","v":"nicht relevant"},{"$f":"IF($D$374=N346,1,\"\")","v":""},{"$f":"IF($D$374=O346,1,\"\")","v":""},""]
[]
[]
[]
[]
[]
[]
[]
[]
[]
[]
[]
["Planung","10.","Kann die Planung möglichst klimafreundlich entwickelt werden?\nBetrifft regionales oder örtliches Entwicklungskonzept, Flächenwidmungsplan, Bebauungsplan, Städtebauliche Konzepte, Städtebauliche  Leitbilder o.ä."]
[]
["Detailfragen","10.1","Werden im örtlichen Raumordnunsprogramm bzw. der Flächenwidmung die übergeordneten klimarelevanten Ziele und Planungen integriert?    Beispiele: Österreichische Klima- und Energiestrategie \"mission2030\"; Landesentwicklungsprogramm, Regionale Entwicklungsprogramme, Leitbilder o.ä.",null,null,{"$f":"IF(T388=3,\"J\",IF(T388=2,\"K\",IF(T388=1,\"L\",\"\")))","v":""},null,null,null,null,null,null,"nicht relevant","maßgeblich","teilweise","gering",null,null,null,{"$f":"IF(D388=N388,3,IF(D388=O388,2,IF(D388=P388,1,\"\")))","v":""}]
[null,"10.2","Werden im Bebauungsplan, bei Baulandumlegung bzw. bei Änderungen der Bauvorschriften und bei privatwirtschaftlichen Raumplanungsverträgen die übergeordneten klimarelevanten Ziele und Planungen integriert?  ",null,null,{"$f":"IF(T389=3,\"J\",IF(T389=2,\"K\",IF(T389=1,\"L\",\"\")))","v":""},null,null,null,null,null,null,"nicht relevant","maßgeblich","teilweise","gering",null,null,null,{"$f":"IF(D389=N389,3,IF(D389=O389,2,IF(D389=P389,1,\"\")))","v":""}]
[null,"10.3","Werden im Städtebaulichen Leitbild, bei Stadtentwicklungskonzepten, Quartiersentwicklungen, Freiraumkonzepten o. ä. die übergeordneten klimarelevanten Ziele und Planungen integriert? ",null,null,{"$f":"IF(T390=3,\"J\",IF(T390=2,\"K\",IF(T390=1,\"L\",\"\")))","v":""},null,null,null,null,null,null,"nicht relevant","maßgeblich","teilweise","gering",null,null,null,{"$f":"IF(D390=N390,3,IF(D390=O390,2,IF(D390=P390,1,\"\")))","v":""}]
[null,"10.4","Wird in allen oben genannten Planungen die Klimawandelanpassung berücksichtigt? \nZ. B. Landschaftskonzept, Baumkataster",null,null,{"$f":"IF(T391=3,\"J\",IF(T391=2,\"K\",IF(T391=1,\"L\",\"\")))","v":""},null,null,null,null,null,null,"nicht relevant","maßgeblich","teilweise","gering",null,null,null,{"$f":"IF(D391=N391,3,IF(D391=O391,2,IF(D391=P391,1,\"\")))","v":""}]
[null,"Kurzbeschreibung / Auflistung der Klimaschutzmaßnahmen: "]
[]
[]
[]
[]
["Das Vorhaben hat eine gewisse Klimarelevanz.   Für die Fragen mit L und K sind Verbesserungen im Bezug auf Klimaschutz möglich."]
["Alternativen-prüfung","Alternativen um das Vorhaben klimafreundlicher umzusetzen: "]
[null,"ad 10.1\nbis\nad 10.4","Nennenswerte Berücksichtigung von klimaschonenden Kriterien bei allen Detailfragen"]
[]
[]
[]
[null,"Angabe der Alternativen in Stichworten:"]
[]
[null,"Welche Werte ergeben sich unter Berücksichtigung der Alternativen?"]
[null,{"$f":"B388","v":"10.1"},"Werden im örtlichen Raumordnunsprogramm bzw. der Flächenwidmung die übergeordneten klimarelevanten Ziele und Planungen integriert?    Beispiele: Österreichische Klima- und Energiestrategie \"mission2030\"; Landesentwicklungsprogramm, Regionale Entwicklungsprogramme, Leitbilder o.ä.",null,null,{"$f":"IF(T406=3,\"J\",IF(T406=2,\"K\",IF(T406=1,\"L\",\"\")))","v":""},null,null,null,null,null,null,{"$f":"M388","v":"nicht relevant"},"maßgeblich","teilweise","gering",null,null,null,{"$f":"IF(D406=N406,3,IF(D406=O406,2,IF(D406=P406,1,\"\")))","v":""}]
[null,"10.2","Werden im Bebauungsplan, bei Baulandumlegung bzw. bei Änderungen der Bauvorschriften und bei privatwirtschaftlichen Raumplanungsverträgen die übergeordneten klimarelevanten Ziele und Planungen integriert?  ",null,null,{"$f":"IF(T407=3,\"J\",IF(T407=2,\"K\",IF(T407=1,\"L\",\"\")))","v":""},null,null,null,null,null,null,"nicht relevant","maßgeblich","teilweise","gering",null,null,null,{"$f":"IF(D407=N407,3,IF(D407=O407,2,IF(D407=P407,1,\"\")))","v":""}]
[null,"10.3","Werden im Städtebaulichen Leitbild, bei Stadtentwicklungskonzepten, Quartiersentwicklungen, Freiraumkonzepten o. ä. die übergeordneten klimarelevanten Ziele und Planungen integriert? ",null,null,{"$f":"IF(T408=3,\"J\",IF(T408=2,\"K\",IF(T408=1,\"L\",\"\")))","v":""},null,null,null,null,null,null,"nicht relevant","maßgeblich","teilweise","gering",null,null,null,{"$f":"IF(D408=N408,3,IF(D408=O408,2,IF(D408=P408,1,\"\")))","v":""}]
[null,"10.4","Wird in allen oben genannten Planungen die Klimawandelanpassung berücksichtigt? \nZ. B. Landschaftskonzept, Baumkataster",null,null,{"$f":"IF(T409=3,\"J\",IF(T409=2,\"K\",IF(T409=1,\"L\",\"\")))","v":""},null,null,null,null,null,null,"nicht relevant","maßgeblich","teilweise","gering",null,null,null,{"$f":"IF(D409=N409,3,IF(D409=O409,2,IF(D409=P409,1,\"\")))","v":""}]
[]
["Nutzung dieses Vorhabens als Kompensations-maßnahme\nDie Angaben werden automatisch von Detail- bzw. Alternativfragen übernommen",{"$f":"B406","v":"10.1"},"Werden im örtlichen Raumordnunsprogramm bzw. der Flächenwidmung die übergeordneten klimarelevanten Ziele und Planungen integriert?    Beispiele: Österreichische Klima- und Energiestrategie \"mission2030\"; Landesentwicklungsprogramm, Regionale Entwicklungsprogramme, Leitbilder o.ä.",{"$f":"IF(D406<>\"\",D406,D388)","v":0},null,{"$f":"IF(D411=N411,1,IF(D411=O411,2,IF(D411=P411,3,\"\")))","v":""},null,null,null,null,null,null,{"$f":"M388","v":"nicht relevant"},{"$f":"P388","v":"gering"},{"$f":"O388","v":"teilweise"},{"$f":"N388","v":"maßgeblich"}]
[null,"10.2","Werden im Bebauungsplan, bei Baulandumlegung bzw. bei Änderungen der Bauvorschriften und bei privatwirtschaftlichen Raumplanungsverträgen die übergeordneten klimarelevanten Ziele und Planungen integriert?  ",{"$f":"IF(D407<>\"\",D407,D389)","v":0},null,{"$f":"IF(D412=N412,1,IF(D412=O412,2,IF(D412=P412,3,\"\")))","v":""},null,null,null,null,null,null,{"$f":"M389","v":"nicht relevant"},{"$f":"P389","v":"gering"},{"$f":"O389","v":"teilweise"},{"$f":"N389","v":"maßgeblich"}]
[null,"10.3","Werden im Städtebaulichen Leitbild, bei Stadtentwicklungskonzepten, Quartiersentwicklungen, Freiraumkonzepten o. ä. die übergeordneten klimarelevanten Ziele und Planungen integriert? ",{"$f":"IF(D408<>\"\",D408,D390)","v":0},null,{"$f":"IF(D413=N413,1,IF(D413=O413,2,IF(D413=P413,3,\"\")))","v":""},null,null,null,null,null,null,{"$f":"M390","v":"nicht relevant"},{"$f":"P390","v":"gering"},{"$f":"O390","v":"teilweise"},{"$f":"N390","v":"maßgeblich"}]
[null,"10.4","Wird in allen oben genannten Planungen die Klimawandelanpassung berücksichtigt? \nZ. B. Landschaftskonzept, Baumkataster",{"$f":"IF(D409<>\"\",D409,D391)","v":0},null,{"$f":"IF(D414=N414,1,IF(D414=O414,2,IF(D414=P414,3,\"\")))","v":""},null,null,null,null,null,null,{"$f":"M391","v":"nicht relevant"},{"$f":"P391","v":"gering"},{"$f":"O391","v":"teilweise"},{"$f":"N391","v":"maßgeblich"}]
[]
[]
[]
[]
[]
[]
[]
[]
[]
[]
[]
[]
[]
["Öffentlichkeitsarbeit & Förderungen","11.","Kann mit dem Projekt öffentlichkeitswirksam für mehr Klimaschutz bei der  Bevölkerung und der Verwaltung geworben werden? Auch durch Förderungen oder Abgaben für Ver- und Entsorgung."]
[]
["Detailfragen","11.1","Ist eine Information über die positiven Auswirkungen des Projekts auf den Klimaschutz für die BürgerInnen (Presse, Homepage etc.) geplant?",null,null,{"$f":"IF(T430=3,\"J\",IF(T430=2,\"K\",IF(T430=1,\"L\",\"\")))","v":""},null,null,null,null,null,"wird nur mit geringer und mittlere Klimarelevanz bewertet","nicht relevant","maßgeblich","teilweise","gering",null,null,null,{"$f":"IF(D430=N430,3,IF(D430=O430,2,IF(D430=P430,1,\"\")))","v":""}]
[null,"11.2","Ist eine Information über die positiven Auswirkungen des Projekts auf den Klimaschutz für die Verwaltung, für die Politik oder für andere Gebietskörperschaften (andere Gemeinden) geplant?",null,null,{"$f":"IF(T431=3,\"J\",IF(T431=2,\"K\",IF(T431=1,\"L\",\"\")))","v":""},null,null,null,null,null,"wird nur mit geringer und mittlere Klimarelevanz bewertet","nicht relevant","maßgeblich","teilweise","gering",null,null,null,{"$f":"IF(D431=N431,3,IF(D431=O431,2,IF(D431=P431,1,\"\")))","v":""}]
[null,"11.3","Ist eine Bürgerbeteiligung, Partizipation für mehr Klimaschutz in der Bevölkerung geplant?",null,null,{"$f":"IF(T432=3,\"J\",IF(T432=2,\"K\",IF(T432=1,\"L\",\"\")))","v":""},null,null,null,null,null,null,"nicht relevant","maßgeblich","teilweise","gering",null,null,null,{"$f":"IF(D432=N432,3,IF(D432=O432,2,IF(D432=P432,1,\"\")))","v":""}]
[null,"11.4","Werden bei geplanten Förderungen der Stadt/Gemeinde Klimaauswirkungen berücksichtigt?",null,null,{"$f":"IF(T433=3,\"J\",IF(T433=2,\"K\",IF(T433=1,\"L\",\"\")))","v":""},null,null,null,null,null,null,"nicht relevant","maßgeblich","teilweise","gering",null,null,null,{"$f":"IF(D433=N433,3,IF(D433=O433,2,IF(D433=P433,1,\"\")))","v":""}]
[null,"11.5","Wirken sich Abgabenänderungen bei Wasserversorgung, Abfallwirtschaft, Parkraumbewirtschaftung etc. positiv auf klimaschonendes bzw. ressourcenschonendes Verhalten der Kunden aus?",null,null,{"$f":"IF(T434=3,\"J\",IF(T434=2,\"K\",IF(T434=1,\"L\",\"\")))","v":""},null,null,null,null,null,null,"nicht relevant","maßgeblich","teilweise","gering",null,null,null,{"$f":"IF(D434=N434,3,IF(D434=O434,2,IF(D434=P434,1,\"\")))","v":""}]
[null,"Kurzbeschreibung / Auflistung der Maßnahmen: "]
[]
[]
[]
[]
["Das Vorhaben hat eine gewisse Klimarelevanz.   Für die Fragen mit L und K sind Verbesserungen im Bezug auf Klimaschutz möglich."]
["Alternativen-prüfung","Alternativen um das Vorhaben klimafreundlicher umzusetzen: "]
[null,"ad 11.1\nbis\nad 11.5","Mehr Kriterien umsetzen, die in den Hilfe-Angaben zu den Detailfragen angegeben sind"]
[]
[]
[]
[]
[null,"Angabe der Alternativen in Stichworten:"]
[]
[null,"Welche Werte ergeben sich unter Berücksichtigung der Alternativen?"]
[null,{"$f":"B430","v":"11.1"},"Ist eine Information über die positiven Auswirkungen des Projekts auf den Klimaschutz für die BürgerInnen (Presse, Homepage etc.) geplant?",null,null,{"$f":"IF(T450=3,\"J\",IF(T450=2,\"K\",IF(T450=1,\"L\",\"\")))","v":""},null,null,null,null,null,null,{"$f":"M430","v":"nicht relevant"},"maßgeblich","teilweise","gering",null,null,null,{"$f":"IF(D450=N450,3,IF(D450=O450,2,IF(D450=P450,1,\"\")))","v":""}]
[null,"11.2","Ist eine Information über die positiven Auswirkungen des Projekts auf den Klimaschutz für die Verwaltung, für die Politik oder für andere Gebietskörperschaften (andere Gemeinden) geplant?",null,null,{"$f":"IF(T451=3,\"J\",IF(T451=2,\"K\",IF(T451=1,\"L\",\"\")))","v":""},null,null,null,null,null,null,"nicht relevant","maßgeblich","teilweise","gering",null,null,null,{"$f":"IF(D451=N451,3,IF(D451=O451,2,IF(D451=P451,1,\"\")))","v":""}]
[null,"11.3","Ist eine Bürgerbeteiligung, Partizipation für mehr Klimaschutz in der Bevölkerung geplant?",null,null,{"$f":"IF(T452=3,\"J\",IF(T452=2,\"K\",IF(T452=1,\"L\",\"\")))","v":""},null,null,null,null,null,null,"nicht relevant","maßgeblich","teilweise","gering",null,null,null,{"$f":"IF(D452=N452,3,IF(D452=O452,2,IF(D452=P452,1,\"\")))","v":""}]
[null,"11.4","Werden bei geplanten Förderungen der Stadt/Gemeinde Klimaauswirkungen berücksichtigt?",null,null,{"$f":"IF(T453=3,\"J\",IF(T453=2,\"K\",IF(T453=1,\"L\",\"\")))","v":""},null,null,null,null,null,null,"nicht relevant","maßgeblich","teilweise","gering",null,null,null,{"$f":"IF(D453=N453,3,IF(D453=O453,2,IF(D453=P453,1,\"\")))","v":""}]
[null,"11.5","Wirken sich Abgabenänderungen bei Wasserversorgung, Abfallwirtschaft, Parkraumbewirtschaftung etc. positiv auf klimaschonendes bzw. ressourcenschonendes Verhalten der Kunden aus?",null,null,{"$f":"IF(T454=3,\"J\",IF(T454=2,\"K\",IF(T454=1,\"L\",\"\")))","v":""},null,null,null,null,null,null,"nicht relevant","maßgeblich","teilweise","gering",null,null,null,{"$f":"IF(D454=N454,3,IF(D454=O454,2,IF(D454=P454,1,\"\")))","v":""}]
[]
["Nutzung dieses Vorhabens als Kompensations-maßnahme\nDie Angaben werden automatisch von Detail- bzw. Alternativfragen übernommen",{"$f":"B430","v":"11.1"},{"$f":"C430","v":"Ist eine Information über die positiven Auswirkungen des Projekts auf den Klimaschutz für die BürgerInnen (Presse, Homepage etc.) geplant?"},{"$f":"IF(D450<>\"\",D450,D430)","v":0},"Diese Fragen werden bestenfalls mit mittlerem Klimanutzen bewertet",{"$f":"IF(D456=N456,1,IF(D456=O456,2,IF(D456=P456,2,\"\")))","v":""},null,null,null,null,null,"wird nur mit geringer und mittlerer Kompensationswirkung bewertet",{"$f":"M430","v":"nicht relevant"},{"$f":"P430","v":"gering"},{"$f":"O430","v":"teilweise"},{"$f":"N430","v":"maßgeblich"}]
[null,{"$f":"B431","v":"11.2"},"Ist eine Information über die positiven Auswirkungen des Projekts auf den Klimaschutz für die Verwaltung, für die Politik oder für andere Gebietskörperschaften (andere Gemeinden) geplant?",{"$f":"IF(D451<>\"\",D451,D431)","v":0},null,{"$f":"IF(D457=N457,1,IF(D457=O457,2,IF(D457=P457,2,\"\")))","v":""},null,null,null,null,null,"wird nur mit geringer und mittlerer Kompensationswirkung bewertet",{"$f":"M431","v":"nicht relevant"},{"$f":"P431","v":"gering"},{"$f":"O431","v":"teilweise"},{"$f":"N431","v":"maßgeblich"}]
[null,"11.3","Ist eine Bürgerbeteiligung, Partizipation für mehr Klimaschutz in der Bevölkerung geplant?",{"$f":"IF(D452<>\"\",D452,D432)","v":0},null,{"$f":"IF(D458=N458,1,IF(D458=O458,2,IF(D458=P458,3,\"\")))","v":""},null,null,null,null,null,null,{"$f":"M432","v":"nicht relevant"},{"$f":"P432","v":"gering"},{"$f":"O432","v":"teilweise"},{"$f":"N432","v":"maßgeblich"}]
[null,"11.4","Werden bei geplanten Förderungen der Stadt/Gemeinde Klimaauswirkungen berücksichtigt?",{"$f":"IF(D453<>\"\",D453,D433)","v":0},null,{"$f":"IF(D459=N459,1,IF(D459=O459,2,IF(D459=P459,3,\"\")))","v":""},null,null,null,null,null,null,{"$f":"M433","v":"nicht relevant"},{"$f":"P433","v":"gering"},{"$f":"O433","v":"teilweise"},{"$f":"N433","v":"maßgeblich"}]
[null,"11.5","Wirken sich Abgabenänderungen bei Wasserversorgung, Abfallwirtschaft, Parkraumbewirtschaftung etc. positiv auf klimaschonendes bzw. ressourcenschonendes Verhalten der Kunden aus?",{"$f":"IF(D454<>\"\",D454,D434)","v":0},null,{"$f":"IF(D460=N460,1,IF(D460=O460,2,IF(D460=P460,3,\"\")))","v":""},null,null,null,null,null,null,{"$f":"M434","v":"nicht relevant"},{"$f":"P434","v":"gering"},{"$f":"O434","v":"teilweise"},{"$f":"N434","v":"maßgeblich"}]
[]
[]
[]
[]
[]
[]
[]
[]
[]
[]
[]
[]
[]
[]
["Sonstige positive Klimarelevanz","12.","Gibt es eine positive Auswirkung auf das Klima, die in den vorherigen Fragen nicht erwähnt wurde?"]
["Detailfragen","12.1","Welche positiven Auswirkungen auf das Klima hat das Vorhaben?"]
[]
[]
[null,"12.1a","Nutzung als Kompensationsmaßnahme: Welche Kompensationswirkung würden Sie der Maßnahme zuschreiben?\n (gering kompensiert eine  grüne, mittel eine gelbe und hoch eine rote Ampel) ","geringe Kompensation",null,{"$f":"IF(D479=N479,1,IF(D479=O479,2,IF(D479=P479,3,\"\")))","v":1},null,null,null,null,null,null,"nicht relevant","geringe Kompensation","mittlere Kompensation","hohe Kompensation"]

{"sheet":"Text","index":8,"n_rows":479,"n_cols":13,"rows_kept":479,"cut":false,"hidden":true,"merged":[]}
[]
[]
["Allgemeine Fragen"]
[]
["Klimaschaden"]
["Das Vorhaben hat eine gewisse Klimarelevanz. Für die Fragen mit gelber oder roter Ampel wird eine Verbesserung im Bezug auf Klimaschutz empfohlen."]
[]
["Klimanutzen"]
["Das Vorhaben hat eine gewisse Klimarelevanz. Für die Fragen mit 😐 und 🙂 sind Verbesserungen im Bezug auf Klimaschutz möglich."]
[]
[]
[]
[]
[]
[]
[]
[]
[{"$f":"Berechnungen!A18","v":"Fossile Energie"},{"$f":"_xlfn.TEXTJOIN(\"  \",,Berechnungen!B18, Berechnungen!C18)","v":"1.  Wird durch das Vorhaben zusätzlich fossile Energie (Öl, Gas, Kohle, fossiler Strom) in einem Gebäude oder einer Anlage verbraucht?"}]
[null,{"$f":"_xlfn.TEXTJOIN(\"  \",,Berechnungen!B19, Berechnungen!C19)","v":""},"Frage10Text","Frage11 Hilfe","Frage12Hilfe","Frage 13Hilfe","Frage14Hilfe"]
[{"$f":"Berechnungen!A20","v":"Detailfragen"},{"$f":"_xlfn.TEXTJOIN(\"  \",,Berechnungen!B20, Berechnungen!C20)","v":"1.1  Wird mit fossiler Energie (Öl, Gas) geheizt? Für welche zusätzliche Bruttogrundfläche?"},{"$f":"B20&CHAR(10)&CHAR(10)&B21&CHAR(10)&CHAR(10)&CHAR(10)&B22&CHAR(10)&CHAR(10)&B23&CHAR(10)&CHAR(10)","v":"1.1  Wird mit fossiler Energie (Öl, Gas) geheizt? Für welche zusätzliche Bruttogrundfläche?\n\n1.2  Wird Strom mit fossilem Anteil genutzt? Für welche zusätzliche Bruttogrundfläche (Berechnung für Wohngebäude siehe Hilfe)? \n\n\n1.3  Werden für Prozesswärme zusätzlich fossile Brennstoffe verbraucht? In welcher Höhe (geschätzt)? \n\n1.4  Wird für einen Prozess / ein Vorhaben  zusätzlich Strom mit fossilen Anteilen verwendet? In welcher Höhe (geschätzt)? \n\n"},"Die Bruttogrundfläche (auch Bruttogeschoßfläche, BGF) ist die Summe der beheizten Grundflächen aller Geschosse inklusive Mauerflächen. In jedem Energieausweis ist die Brutto-Grundfläche eines Gebäudes angegeben (meist auf Seite 2).\n\nBei mehreren Heizsystemen kann die einzusetzende BGF aufgrund der Heizaufteilung berechnet werden. \nBeispiel: Ein Gebäude mit 1000 m² BGF und einer Wärmeversorgung von 80% Biomasse-Fernwärme + 20% Gaskessel hat eine fossil beheizte BGF von 200 m² (=1000m² * 20%).\n\nWird Abwärme genutzt, kann die Fläche nach obiger Formel berechnet werden. Beispiel: Trägt die Abwärmenutzung 10% zum Heizverbrauch bei, kann die Fläche um 10% verringert werden. ","Diese Frage bezieht sich auf Gebäude, in denen sich über einen längeren Zeitraum regelmäßig Personen aufhalten. Dazu zählen Wohngebäude und Betriebsgebäude wie Schulen, Kindergärten, Krankenhäuser, Pflegeheime, Bürogebäude, Gastronomie, Handel,.... \n\nBei Wohngebäuden hier bitte ein Drittel der berechnete Fläche nehmen, also für ein Wohngebäude mit 100m² eine Fläche von 33m² anwenden. Bei Betriebsgebäuden die tatsächliche Fläche nehmen. \n\nGebäude oder Anlagen, in denen sich nur kurzfristig mehrere Personen aufhalten, werden in den nächsten Fragen behandelt (Vereinsräume, Feuerwehrhäuser, Kläranlagen, Wasserversorgungsanlagen, Bauhöfe, Bäder etc.)\n\nBei Beheizung durch Wärmepumpen mit fossilem Stromanteil: Weil die Wärme aus ca. 3/4 Umweltwärme und nur 1/4 Strom erzeugt wird, kann die Fläche auf 1/4 reduziert werden.\n\nBei Nutzung einer PV-Anlage, diese als Kompensationsmaßnahme in Frage 7.1. angeben. ","Zusätzliche fossile Wärme (Prozesswärme) in Gebäuden oder Anlagen, in denen sich nur kurzfristig mehrere Personen aufhalten oder das nur fallweise beheizt wird. \nBeispiele sind Vereins- und Veranstaltungsräume, Feuerwehrhäuser, Kläranlagen, Wasserversorgungsanlagen, Bauhöfe, Heizwerke, Stromerzeugungsanlagen, Sportstätten, Bäder, Freizeiteinrichtungen etc.\n\nFossile Brennstoffe können Öl, Gas, Benzin/Diesel oder Kohle sein.\n\nUmrechnung von Öl, Gas, Benzin Kohle in kWh:\n  1.000 kWh entsprechen ca. 100 l Heizöl oder 100 l Benzin/Diesel oder 100 m³ Erdgas oder 130 kg Kohle/Koks.","Zusätzlicher Stromverbrauch aus (teilweise) fossilen Quellen in Gebäuden oder Anlagen in denen sich nur kurzfristig mehrere Personen aufhalten wie Vereins- und Veranstaltungsräume, Feuerwehrhäuser, Kläranlagen, Wasserversorgungsanlagen, Bauhöfe, Sportstätten, Bäder, Freizeiteinrichtungen etc.\n\nBei Beheizung durch Wärmepumpen mit fossilem Stromanteil: Weil ca. 3/4 Umweltwärme und nur 1/4 fossiler Strom kann die Fläche auf 1/4 reduziert werden.\n\nBei ausschließlicher Verwendung von Strom aus erneuerbaren Quellen (Ökostrom) die Frage nicht auswählen oder als nicht relevant angeben. Ökostrom Angabe in den Anmerkungen."]
[null,{"$f":"_xlfn.TEXTJOIN(\"  \",,Berechnungen!B21, Berechnungen!C21)","v":"1.2  Wird Strom mit fossilem Anteil genutzt? Für welche zusätzliche Bruttogrundfläche (Berechnung für Wohngebäude siehe Hilfe)? "}]
[null,{"$f":"_xlfn.TEXTJOIN(\"  \",,Berechnungen!B22, Berechnungen!C22)","v":"1.3  Werden für Prozesswärme zusätzlich fossile Brennstoffe verbraucht? In welcher Höhe (geschätzt)? "}]
[null,{"$f":"_xlfn.TEXTJOIN(\"  \",,Berechnungen!B23, Berechnungen!C23)","v":"1.4  Wird für einen Prozess / ein Vorhaben  zusätzlich Strom mit fossilen Anteilen verwendet? In welcher Höhe (geschätzt)? "}]
[null,{"$f":"_xlfn.TEXTJOIN(\"  \",,Berechnungen!B24, Berechnungen!C24)","v":""}]
[{"$f":"Berechnungen!A25","v":"Anmerkungen"},{"$f":"_xlfn.TEXTJOIN(\"  \",,Berechnungen!B25, Berechnungen!C25)","v":""}]
[null,{"$f":"_xlfn.TEXTJOIN(\"  \",,Berechnungen!B26, Berechnungen!C26)","v":""}]
[{"$f":"Berechnungen!A27","v":"Das Vorhaben hat eine gewisse Klimarelevanz.   Für die Fragen mit gelber oder roter Ampel wird eine Verbesserung im Bezug auf Klimaschutz empfohlen."},{"$f":"_xlfn.TEXTJOIN(\"  \",,Berechnungen!B27, Berechnungen!C27)","v":""}]
[{"$f":"Berechnungen!A28","v":"Alternativen-prüfung"},{"$f":"_xlfn.TEXTJOIN(\"  \",,Berechnungen!B28, Berechnungen!C28)","v":"Alternativen um das Vorhaben klimafreundlicher umzusetzen: "}]
[null,{"$f":"_xlfn.TEXTJOIN(\"  \",,Berechnungen!B29, Berechnungen!C29)","v":"ad 1.1)   Heizen mit erneuerbarer Wärme z.B. Biomasse, Wärmepumpe mit Ökostrom"},{"$f":"B29&CHAR(10)&B30&CHAR(10)&B31&CHAR(10)&B32&CHAR(10)","v":"ad 1.1)   Heizen mit erneuerbarer Wärme z.B. Biomasse, Wärmepumpe mit Ökostrom\nad 1.2)   Nutzung von (zertifiziertem) Ökostrom oder eigene Erzeugung mit PV (als Kompensationsmaßnahme in Punkt 7.1. anrechenbar)\nad 1.3)   Technik für fossile Brennstoffe durch solche mit erneuerbarer Energie ersetzen\nad 1.4)   Ökostrom einkaufen oder erneuerbaren Strom selbst erzeugen\n"}]
[null,{"$f":"_xlfn.TEXTJOIN(\"  \",,Berechnungen!B30, Berechnungen!C30)","v":"ad 1.2)   Nutzung von (zertifiziertem) Ökostrom oder eigene Erzeugung mit PV (als Kompensationsmaßnahme in Punkt 7.1. anrechenbar)"}]
[null,{"$f":"_xlfn.TEXTJOIN(\"  \",,Berechnungen!B31, Berechnungen!C31)","v":"ad 1.3)   Technik für fossile Brennstoffe durch solche mit erneuerbarer Energie ersetzen"}]
[null,{"$f":"_xlfn.TEXTJOIN(\"  \",,Berechnungen!B32, Berechnungen!C32)","v":"ad 1.4)   Ökostrom einkaufen oder erneuerbaren Strom selbst erzeugen"}]
[null,{"$f":"_xlfn.TEXTJOIN(\"  \",,Berechnungen!B33, Berechnungen!C33)","v":"Angabe der Alternativen in Stichworten:"}]
[null,{"$f":"_xlfn.TEXTJOIN(\"  \",,Berechnungen!B34, Berechnungen!C34)","v":""}]
[null,{"$f":"_xlfn.TEXTJOIN(\"  \",,Berechnungen!B35, Berechnungen!C35)","v":"Welche Werte ergeben sich unter Berücksichtigung der Alternativen?"}]
[null,{"$f":"_xlfn.TEXTJOIN(\"  \",,Berechnungen!B36, Berechnungen!C36)","v":"1.1  Wird mit fossiler Energie (Öl, Gas) geheizt? Für welche zusätzliche Bruttogrundfläche?"},{"$f":"B36&CHAR(10)&CHAR(10)&B37&CHAR(10)&CHAR(10)&CHAR(10)&B38&CHAR(10)&CHAR(10)&B39&CHAR(10)&CHAR(10)&B40","v":"1.1  Wird mit fossiler Energie (Öl, Gas) geheizt? Für welche zusätzliche Bruttogrundfläche?\n\n1.2  Wird Strom mit fossilem Anteil genutzt? Für welche zusätzliche Bruttogrundfläche (Berechnung für Wohngebäude siehe Hilfe)? \n\n\n1.3  Werden für Prozesswärme zusätzlich fossile Brennstoffe verbraucht? In welcher Höhe (geschätzt)? \n\n1.4  Wird für einen Prozess / ein Vorhaben  zusätzlich Strom mit fossilen Anteilen verwendet? In welcher Höhe (geschätzt)? \n\n"}]
[null,{"$f":"_xlfn.TEXTJOIN(\"  \",,Berechnungen!B37, Berechnungen!C37)","v":"1.2  Wird Strom mit fossilem Anteil genutzt? Für welche zusätzliche Bruttogrundfläche (Berechnung für Wohngebäude siehe Hilfe)? "}]
[null,{"$f":"_xlfn.TEXTJOIN(\"  \",,Berechnungen!B38, Berechnungen!C38)","v":"1.3  Werden für Prozesswärme zusätzlich fossile Brennstoffe verbraucht? In welcher Höhe (geschätzt)? "}]
[null,{"$f":"_xlfn.TEXTJOIN(\"  \",,Berechnungen!B39, Berechnungen!C39)","v":"1.4  Wird für einen Prozess / ein Vorhaben  zusätzlich Strom mit fossilen Anteilen verwendet? In welcher Höhe (geschätzt)? "}]
[null,{"$f":"_xlfn.TEXTJOIN(\"  \",,Berechnungen!B40, Berechnungen!C40)","v":""}]
[{"$f":"Berechnungen!A41","v":"Kompensations-prüfung"},{"$f":"_xlfn.TEXTJOIN(\"  \",,Berechnungen!B41, Berechnungen!C41)","v":"Wenn Alternativen nicht möglich sind: Mit welchen Kompensationsmaßnahmen kann das Vorhaben klimafreundlicher umgesetzt werden?"}]
[null,{"$f":"_xlfn.TEXTJOIN(\"  \",,Berechnungen!B42, Berechnungen!C42)","v":"Kompensationsmaßnahmen (auch an anderen Orten) sind in den Fragen 7 - 12  definiert. \nBeispiele: fossile Verbraucher entfernen, erneuerbare Energie nutzen, zusätzliche Ausgleichsflächen oder Rückwidmungen bei Baumaßnahmen, Aufforstungen, zusätzliche Mittel für Klimaschutzprojekte ... \n"}]
[null,{"$f":"_xlfn.TEXTJOIN(\"  \",,Berechnungen!B43, Berechnungen!C43)","v":"Angabe der Kompensationsmaßnahmen (deren Umsetzung beantragt werden muss):"}]
[null,{"$f":"_xlfn.TEXTJOIN(\"  \",,Berechnungen!B44, Berechnungen!C44)","v":""}]
[null,{"$f":"_xlfn.TEXTJOIN(\"  \",,Berechnungen!B45, Berechnungen!C45)","v":""}]
[null,{"$f":"_xlfn.TEXTJOIN(\"  \",,Berechnungen!B46, Berechnungen!C46)","v":""}]
[null,{"$f":"_xlfn.TEXTJOIN(\"  \",,Berechnungen!B47, Berechnungen!C47)","v":""}]
[null,{"$f":"_xlfn.TEXTJOIN(\"  \",,Berechnungen!B48, Berechnungen!C48)","v":""}]
[null,{"$f":"_xlfn.TEXTJOIN(\"  \",,Berechnungen!B49, Berechnungen!C49)","v":""}]
[null,{"$f":"_xlfn.TEXTJOIN(\"  \",,Berechnungen!B50, Berechnungen!C50)","v":""}]
[null,{"$f":"_xlfn.TEXTJOIN(\"  \",,Berechnungen!B51, Berechnungen!C51)","v":""}]
[null,{"$f":"_xlfn.TEXTJOIN(\"  \",,Berechnungen!B52, Berechnungen!C52)","v":""}]
[null,{"$f":"_xlfn.TEXTJOIN(\"  \",,Berechnungen!B53, Berechnungen!C53)","v":""}]
[null,{"$f":"_xlfn.TEXTJOIN(\"  \",,Berechnungen!B54, Berechnungen!C54)","v":""}]
[null,{"$f":"_xlfn.TEXTJOIN(\"  \",,Berechnungen!B55, Berechnungen!C55)","v":""}]
[{"$f":"Berechnungen!A56","v":"Motorisierter Verkehr"},{"$f":"_xlfn.TEXTJOIN(\"  \",,Berechnungen!B56, Berechnungen!C56)","v":"2.  Erzeugt das Vorhaben zusätzlichen motorisierten PKW- oder Güterverkehr? "}]
[{"$f":"Berechnungen!A57","v":0},{"$f":"_xlfn.TEXTJOIN(\"  \",,Berechnungen!B57, Berechnungen!C57)","v":""},"Frage20Text","Frage 21Hilfe","Frage22Hilfe","Frage 23Hilfe","Frage24Hilfe","Frage25Hilfe","Alternativ21Hilfe","Alternativ22Hilfe","Alternativ23Hilfe","Alternativ24Hilfe","Alternativ25Hilfe"]
[{"$f":"Berechnungen!A58","v":"Detailfragen"},{"$f":"_xlfn.TEXTJOIN(\"  \",,Berechnungen!B58, Berechnungen!C58)","v":"2.1  Werden der motorisierte PKW- und Güterverkehr (> 3,5 t) durch die Maßnahme erhöht? Wie viele Fahrten werden pro Tag zusätzlich erzeugt (grobe Schätzung)? Beispiele: Widmung Gewerbegebiet mit voraussichtl. Verkehrszunahme, Errichtung Einkaufszentrum oder Freizeiteinrichtung, Veranstaltungen etc. "},{"$f":"B58&CHAR(10)&CHAR(10)&B59&CHAR(10)&CHAR(10)&B60&CHAR(10)&CHAR(10)&B61&CHAR(10)&CHAR(10)&B62","v":"2.1  Werden der motorisierte PKW- und Güterverkehr (> 3,5 t) durch die Maßnahme erhöht? Wie viele Fahrten werden pro Tag zusätzlich erzeugt (grobe Schätzung)? Beispiele: Widmung Gewerbegebiet mit voraussichtl. Verkehrszunahme, Errichtung Einkaufszentrum oder Freizeiteinrichtung, Veranstaltungen etc. \n\n2.2  Werden im Zuge des Projekts Stellplätze neu errichtet? Um wie viele zusätzliche Stellplätze handelt es sich?\n\n2.3  Werden Straßen verbreitert, begradigt, saniert oder zusätzlich errichtet? Wie viele Laufmeter Straße werden für den PKW- oder Güterverkehr verbessert bzw. zusätzlich errichtet?\n\n2.4  Führen Maßnahmen in der Parkraumbewirtschaftung zu mehr motorisiertem Verkehr? Beispiele: Gebührenreduzierung, Parkgebühr-Ausnahmen (zeitbezogen, Personen-/Fahrzeugbezogen)\n\n2.5  Behindert die Maßnahme klimafreundlichen Verkehr (Radfahren, zu Fuß gehen, ÖFFIS), z.B. Unterbrechung oder Reduzierung eines Fußgängerwegs oder Fahrradwegs ?"},"Grobe Abschätzung der Fahrten (Hessische Straßen- und Verkehrsverwaltung):\n  Wohnen = 0,7 PKW + 0,05 LKW-Fahrten je Einwohner und Werktag\n  Büro = 0,8 PKW + 0,1 LKW-Fahrten je Beschäftigtem und Werktag\n  Produktion = 0,6 PKW + 0,5 LKW-Fahrten je Beschäftigtem und Werktag\n  Einzelhandel (klein) = 20 PKW + 0,4 LKW-Fahrten je Werktag\n  Shopping Center (sehr groß) = 5000 PKW + 60 LKW-Fahrten je Werktag\n\nBewertung:\nZusätzliche Fahrten entstehen in der Regel dann, wenn die Liegenschaft\n   nicht zentrumsnah gelegen ist\n  einen schlechten öffentlichen Anschluß hat und\n  ein nicht lokales Einzugsgebiet hat (dh. Verkehr wird erzeugt aus anderen Gebieten)\n\nTreffen diese Punkte zu, dann die Fahrten der obigen Abschätzung aus dem entsprechenden Bereich einzutragen.\nIm anderen Fall , kann der geringste Wert angegeben werden (grüne Ampel). In den Anmerkungen ist dann der Grund dafür anzugeben z.B. \"Liegenschaft liegt im Zentrum\"\n\nVerbesserungsmaßnahmen:\n1) Wenn Ort optimal für Einzugsgebiet der Einrichtung kann bis zu - 50% der Fahrten angegeben werden (in Anmerkungen begründen).\n2) Wenn optimaler Anschluss an ÖFFIs und Rad-/Fußwegenetz kann bis zu -50% der Fahrten angegeben werden (in Anmerkungen begründen).\n3) bei Widmungen neues RO-Gesetz (Beschluss Oktober 2020) berücksichtigen:\n - ab 100 Fahrten/Tag Hektar gibt es eine neue Widmungskategorie (entspricht z.B. 50 MitarbeiterInnen). \n","Hier handelt es sich um zusätzlich errichtete Stellplätze, deren Effekt nicht in Frage 2.1 berücksichtigt worden ist.\n \nWeiters werden jene zusätzlichen öffentlichen Kfz-Stellplätze hinzugerechnet, die in den angrenzenden Straßenabschnitten und in den Wohnstraßen für das Vorhaben zusätzlich ausgewiesen werden.\n\nWenn die Anzahl der geplanten Stellplätze niedriger ist als im Durchschnitt (siehe unten), ist diese Frage als nicht relevant zu bewerten.\n\nBereits vorhandene Stellplätze (auch wenn sie örtlich verlegt werden) können von der Anzahl abgezogen werden. \n\nDurchschnittliche Werte von Stellplätzen:\n   Büro und Handel = 1 Stellplatz pro 30 m² Nutzfläche\n   Industrie- und Betriebsgebäude = 1 Stellplatz pro 3 Arbeitsplätze\n   Gaststätten und Veranstaltungsgebäude (Sporthallen, Kino) = 1 Stellplatz pro Kapazität von 7 Besuchern\n   Wohnhausanlage = 1,5 Stellplätze pro Wohneinheit \n\nWenn Stellplätze bei einem Projekt wegfallen, können sie als Kompensationsmaßnahme in einem anderen Projekt verwendet werden. Diese Kompensation ist nur einmal anrechenbar. Die Anrechnung muss innerhalb eines Jahres geschehen.","Der Ausbau von Straßen erzeugt zusätzlichen motorisierten PKW- oder Güterverkehr. \n\n  Straßensanierungen zum Erhalt der Verkehrssicherheit werden nicht bewertet.\n\n  Der Ausbau von klimafreundlicher Mobilität wird in Frage 8 \"Klimafreundliche Mobilität\" bewertet.","  Geringe Auswirkungen haben kurzzeitige Gebührenbefreiung (1 Tag, 1 Wochenende), behindertengerechte Maßnahmen.\n\n  Teilweise Auswirkungen haben befristete Gebührenreduzierungen, Parkplatzerweiterungen oder Gebührenerlass für mehr als eine Woche, unbegrenzter Gebührenerlass für angrenzende Wirtschaftbetriebe.\n\n  Erhebliche Auswirkungen haben unbefristete Gebührenreduzierungen, Parkplatzerweiterungen oder allgemeine Gebührenerlässe.","  Geringe Auswirkungen haben zeitlich begrenzte Behinderungen z.B. durch Baustellen, Umbaumaßnahmen\n\n  Erhebliche Auswirkungen haben z.B. bei stark befahrenen Straßen: Querungen über die Straße (keine Unter-/Überführungen).",{"$f":"D58","v":"Grobe Abschätzung der Fahrten (Hessische Straßen- und Verkehrsverwaltung):\n  Wohnen = 0,7 PKW + 0,05 LKW-Fahrten je Einwohner und Werktag\n  Büro = 0,8 PKW + 0,1 LKW-Fahrten je Beschäftigtem und Werktag\n  Produktion = 0,6 PKW + 0,5 LKW-Fahrten je Beschäftigtem und Werktag\n  Einzelhandel (klein) = 20 PKW + 0,4 LKW-Fahrten je Werktag\n  Shopping Center (sehr groß) = 5000 PKW + 60 LKW-Fahrten je Werktag\n\nBewertung:\nZusätzliche Fahrten entstehen in der Regel dann, wenn die Liegenschaft\n   nicht zentrumsnah gelegen ist\n  einen schlechten öffentlichen Anschluß hat und\n  ein nicht lokales Einzugsgebiet hat (dh. Verkehr wird erzeugt aus anderen Gebieten)\n\nTreffen diese Punkte zu, dann die Fahrten der obigen Abschätzung aus dem entsprechenden Bereich einzutragen.\nIm anderen Fall , kann der geringste Wert angegeben werden (grüne Ampel). In den Anmerkungen ist dann der Grund dafür anzugeben z.B. \"Liegenschaft liegt im Zentrum\"\n\nVerbesserungsmaßnahmen:\n1) Wenn Ort optimal für Einzugsgebiet der Einrichtung kann bis zu - 50% der Fahrten angegeben werden (in Anmerkungen begründen).\n2) Wenn optimaler Anschluss an ÖFFIs und Rad-/Fußwegenetz kann bis zu -50% der Fahrten angegeben werden (in Anmerkungen begründen).\n3) bei Widmungen neues RO-Gesetz (Beschluss Oktober 2020) berücksichtigen:\n - ab 100 Fahrten/Tag Hektar gibt es eine neue Widmungskategorie (entspricht z.B. 50 MitarbeiterInnen). \n"},{"$f":"E58","v":"Hier handelt es sich um zusätzlich errichtete Stellplätze, deren Effekt nicht in Frage 2.1 berücksichtigt worden ist.\n \nWeiters werden jene zusätzlichen öffentlichen Kfz-Stellplätze hinzugerechnet, die in den angrenzenden Straßenabschnitten und in den Wohnstraßen für das Vorhaben zusätzlich ausgewiesen werden.\n\nWenn die Anzahl der geplanten Stellplätze niedriger ist als im Durchschnitt (siehe unten), ist diese Frage als nicht relevant zu bewerten.\n\nBereits vorhandene Stellplätze (auch wenn sie örtlich verlegt werden) können von der Anzahl abgezogen werden. \n\nDurchschnittliche Werte von Stellplätzen:\n   Büro und Handel = 1 Stellplatz pro 30 m² Nutzfläche\n   Industrie- und Betriebsgebäude = 1 Stellplatz pro 3 Arbeitsplätze\n   Gaststätten und Veranstaltungsgebäude (Sporthallen, Kino) = 1 Stellplatz pro Kapazität von 7 Besuchern\n   Wohnhausanlage = 1,5 Stellplätze pro Wohneinheit \n\nWenn Stellplätze bei einem Projekt wegfallen, können sie als Kompensationsmaßnahme in einem anderen Projekt verwendet werden. Diese Kompensation ist nur einmal anrechenbar. Die Anrechnung muss innerhalb eines Jahres geschehen."},{"$f":"F58","v":"Der Ausbau von Straßen erzeugt zusätzlichen motorisierten PKW- oder Güterverkehr. \n\n  Straßensanierungen zum Erhalt der Verkehrssicherheit werden nicht bewertet.\n\n  Der Ausbau von klimafreundlicher Mobilität wird in Frage 8 \"Klimafreundliche Mobilität\" bewertet."},{"$f":"G58","v":"  Geringe Auswirkungen haben kurzzeitige Gebührenbefreiung (1 Tag, 1 Wochenende), behindertengerechte Maßnahmen.\n\n  Teilweise Auswirkungen haben befristete Gebührenreduzierungen, Parkplatzerweiterungen oder Gebührenerlass für mehr als eine Woche, unbegrenzter Gebührenerlass für angrenzende Wirtschaftbetriebe.\n\n  Erhebliche Auswirkungen haben unbefristete Gebührenreduzierungen, Parkplatzerweiterungen oder allgemeine Gebührenerlässe."},{"$f":"H58","v":"  Geringe Auswirkungen haben zeitlich begrenzte Behinderungen z.B. durch Baustellen, Umbaumaßnahmen\n\n  Erhebliche Auswirkungen haben z.B. bei stark befahrenen Straßen: Querungen über die Straße (keine Unter-/Überführungen)."}]
[null,{"$f":"_xlfn.TEXTJOIN(\"  \",,Berechnungen!B59, Berechnungen!C59)","v":"2.2  Werden im Zuge des Projekts Stellplätze neu errichtet? Um wie viele zusätzliche Stellplätze handelt es sich?"}]
[null,{"$f":"_xlfn.TEXTJOIN(\"  \",,Berechnungen!B60, Berechnungen!C60)","v":"2.3  Werden Straßen verbreitert, begradigt, saniert oder zusätzlich errichtet? Wie viele Laufmeter Straße werden für den PKW- oder Güterverkehr verbessert bzw. zusätzlich errichtet?"}]
[null,{"$f":"_xlfn.TEXTJOIN(\"  \",,Berechnungen!B61, Berechnungen!C61)","v":"2.4  Führen Maßnahmen in der Parkraumbewirtschaftung zu mehr motorisiertem Verkehr? Beispiele: Gebührenreduzierung, Parkgebühr-Ausnahmen (zeitbezogen, Personen-/Fahrzeugbezogen)"}]
[null,{"$f":"_xlfn.TEXTJOIN(\"  \",,Berechnungen!B62, Berechnungen!C62)","v":"2.5  Behindert die Maßnahme klimafreundlichen Verkehr (Radfahren, zu Fuß gehen, ÖFFIS), z.B. Unterbrechung oder Reduzierung eines Fußgängerwegs oder Fahrradwegs ?"}]
[null,{"$f":"_xlfn.TEXTJOIN(\"  \",,Berechnungen!B63, Berechnungen!C63)","v":""}]
[{"$f":"Berechnungen!A64","v":"Anmerkungen"},{"$f":"_xlfn.TEXTJOIN(\"  \",,Berechnungen!B64, Berechnungen!C64)","v":""}]
[null,{"$f":"_xlfn.TEXTJOIN(\"  \",,Berechnungen!B65, Berechnungen!C65)","v":""}]
[{"$f":"Berechnungen!A66","v":"Das Vorhaben hat eine gewisse Klimarelevanz.   Für die Fragen mit gelber oder roter Ampel wird eine Verbesserung im Bezug auf Klimaschutz empfohlen."},{"$f":"_xlfn.TEXTJOIN(\"  \",,Berechnungen!B66, Berechnungen!C66)","v":""}]
[{"$f":"Berechnungen!A67","v":"Alternativen-prüfung"},{"$f":"B28","v":"Alternativen um das Vorhaben klimafreundlicher umzusetzen: "}]
[null,{"$f":"_xlfn.TEXTJOIN(\"  \",,Berechnungen!B68, Berechnungen!C68)","v":"ad 2.1)  Einrichtungen an ÖFFI-Linien + Fuß- und Radwegenetz  anbinden, mehr Zentrumsnähe."},{"$f":"B68&CHAR(10)&B69&CHAR(10)&B70&CHAR(10)&B71&CHAR(10)&B72","v":"ad 2.1)  Einrichtungen an ÖFFI-Linien + Fuß- und Radwegenetz  anbinden, mehr Zentrumsnähe.\nad 2.2)  Reduktion von Stellplätzen im selben Gebiet (Zone) bzw. Kompensationsmaßnahmen laut Frage 8 planen und umsetzen z.B. Masterplan e-Ladeinfrastruktur\nad 2.3)  Rad-/Gehwege einrichten oder verbessern, Kreuzungen für Fuß-/Radverkehr verbessern, Vorrang für ÖFFIs z.B. eigene Spur, Busbuchten entfernen\nad 2.4)  Förderung von nichtfossilen Antrieben, gleichzeitige Förderung von OFFI's\nad 2.5)  Maßnahme nicht durchführen oder in klimafreundlicher Weise umsetzen (Hinweise in Alternativentipps von Frage 7)"}]
[null,{"$f":"_xlfn.TEXTJOIN(\"  \",,Berechnungen!B69, Berechnungen!C69)","v":"ad 2.2)  Reduktion von Stellplätzen im selben Gebiet (Zone) bzw. Kompensationsmaßnahmen laut Frage 8 planen und umsetzen z.B. Masterplan e-Ladeinfrastruktur"}]
[null,{"$f":"_xlfn.TEXTJOIN(\"  \",,Berechnungen!B70, Berechnungen!C70)","v":"ad 2.3)  Rad-/Gehwege einrichten oder verbessern, Kreuzungen für Fuß-/Radverkehr verbessern, Vorrang für ÖFFIs z.B. eigene Spur, Busbuchten entfernen"}]
[null,{"$f":"_xlfn.TEXTJOIN(\"  \",,Berechnungen!B71, Berechnungen!C71)","v":"ad 2.4)  Förderung von nichtfossilen Antrieben, gleichzeitige Förderung von OFFI's"}]
[null,{"$f":"_xlfn.TEXTJOIN(\"  \",,Berechnungen!B72, Berechnungen!C72)","v":"ad 2.5)  Maßnahme nicht durchführen oder in klimafreundlicher Weise umsetzen (Hinweise in Alternativentipps von Frage 7)"}]
[null,{"$f":"_xlfn.TEXTJOIN(\"  \",,Berechnungen!B73, Berechnungen!C73)","v":"Angabe der Alternativen in Stichworten:"}]
[null,{"$f":"_xlfn.TEXTJOIN(\"  \",,Berechnungen!B74, Berechnungen!C74)","v":""}]
[{"$f":"Berechnungen!A75","v":0},{"$f":"_xlfn.TEXTJOIN(\"  \",,Berechnungen!B75, Berechnungen!C75)","v":"Welche Werte ergeben sich unter Berücksichtigung der Alternativen?"}]
[{"$f":"Berechnungen!A76","v":0},{"$f":"_xlfn.TEXTJOIN(\"  \",,Berechnungen!B76, Berechnungen!C76)","v":"2.1  Werden der motorisierte PKW- und Güterverkehr (> 3,5 t) durch die Maßnahme erhöht? Wie viele Fahrten werden pro Tag zusätzlich erzeugt (grobe Schätzung)? Beispiele: Widmung Gewerbegebiet mit voraussichtl. Verkehrszunahme, Errichtung Einkaufszentrum oder Freizeiteinrichtung, Veranstaltungen etc. "},{"$f":"B76&CHAR(10)&CHAR(10)&B77&CHAR(10)&CHAR(10)&B78&CHAR(10)&CHAR(10)&B79&CHAR(10)&CHAR(10)&B80","v":"2.1  Werden der motorisierte PKW- und Güterverkehr (> 3,5 t) durch die Maßnahme erhöht? Wie viele Fahrten werden pro Tag zusätzlich erzeugt (grobe Schätzung)? Beispiele: Widmung Gewerbegebiet mit voraussichtl. Verkehrszunahme, Errichtung Einkaufszentrum oder Freizeiteinrichtung, Veranstaltungen etc. \n\n2.2  Werden im Zuge des Projekts Stellplätze neu errichtet? Um wie viele zusätzliche Stellplätze handelt es sich?\n\n2.3  Werden Straßen verbreitert, begradigt, saniert oder zusätzlich errichtet? Wie viele Laufmeter Straße werden für den PKW- oder Güterverkehr verbessert bzw. zusätzlich errichtet?\n\n2.4  Führen Maßnahmen in der Parkraumbewirtschaftung zu mehr motorisiertem Verkehr? Beispiele: Gebührenreduzierung, Parkgebühr-Ausnahmen (zeitbezogen, Personen-/Fahrzeugbezogen)\n\n2.5  Behindert die Maßnahme klimafreundlichen Verkehr (Radfahren, zu Fuß gehen, ÖFFIS), z.B. Unterbrechung oder Reduzierung eines Fußgängerwegs oder Fahrradwegs ?"}]
[null,{"$f":"_xlfn.TEXTJOIN(\"  \",,Berechnungen!B77, Berechnungen!C77)","v":"2.2  Werden im Zuge des Projekts Stellplätze neu errichtet? Um wie viele zusätzliche Stellplätze handelt es sich?"}]
[null,{"$f":"_xlfn.TEXTJOIN(\"  \",,Berechnungen!B78, Berechnungen!C78)","v":"2.3  Werden Straßen verbreitert, begradigt, saniert oder zusätzlich errichtet? Wie viele Laufmeter Straße werden für den PKW- oder Güterverkehr verbessert bzw. zusätzlich errichtet?"}]
[null,{"$f":"_xlfn.TEXTJOIN(\"  \",,Berechnungen!B79, Berechnungen!C79)","v":"2.4  Führen Maßnahmen in der Parkraumbewirtschaftung zu mehr motorisiertem Verkehr? Beispiele: Gebührenreduzierung, Parkgebühr-Ausnahmen (zeitbezogen, Personen-/Fahrzeugbezogen)"}]
[null,{"$f":"_xlfn.TEXTJOIN(\"  \",,Berechnungen!B80, Berechnungen!C80)","v":"2.5  Behindert die Maßnahme klimafreundlichen Verkehr (Radfahren, zu Fuß gehen, ÖFFIS), z.B. Unterbrechung oder Reduzierung eines Fußgängerwegs oder Fahrradwegs ?"}]
[null,{"$f":"_xlfn.TEXTJOIN(\"  \",,Berechnungen!B81, Berechnungen!C81)","v":""}]
[{"$f":"Berechnungen!A82","v":"Kompensations-prüfung"},{"$f":"_xlfn.TEXTJOIN(\"  \",,Berechnungen!B82, Berechnungen!C82)","v":"Wenn Alternativen nicht möglich sind: Mit welchen Kompensationsmaßnahmen kann das Vorhaben klimafreundlicher umgesetzt werden?"}]
[{"$f":"Berechnungen!A83","v":0},{"$f":"_xlfn.TEXTJOIN(\"  \",,Berechnungen!B83, Berechnungen!C83)","v":"Kompensationsmaßnahmen (auch an anderen Orten) sind in den Fragen 7 - 12  definiert. \nBeispiele: Verkehrsreduktion, Attraktivierung ÖFFIs, Shared Space oder Carsharing Projekte, Fahrradstreifen, Errichtung von Radständern (gute, funktionelle!), Aktionen/Mittel für zu Fuß gehen, Rad fahren, zusätzliche Mittel für Klimaschutzprojekte, Masterplan e-Ladeinfrastruktur ..."}]
[{"$f":"Berechnungen!A84","v":0},{"$f":"_xlfn.TEXTJOIN(\"  \",,Berechnungen!B84, Berechnungen!C84)","v":"Angabe der Kompensationsmaßnahmen (deren Umsetzung beantragt werden muss):"}]
[{"$f":"Berechnungen!A85","v":0},{"$f":"_xlfn.TEXTJOIN(\"  \",,Berechnungen!B85, Berechnungen!C85)","v":""}]
[{"$f":"Berechnungen!A86","v":0},{"$f":"_xlfn.TEXTJOIN(\"  \",,Berechnungen!B86, Berechnungen!C86)","v":""}]
[{"$f":"Berechnungen!A87","v":0},{"$f":"_xlfn.TEXTJOIN(\"  \",,Berechnungen!B87, Berechnungen!C87)","v":""}]
[{"$f":"Berechnungen!A88","v":0},{"$f":"_xlfn.TEXTJOIN(\"  \",,Berechnungen!B88, Berechnungen!C88)","v":""}]
[{"$f":"Berechnungen!A89","v":0},{"$f":"_xlfn.TEXTJOIN(\"  \",,Berechnungen!B89, Berechnungen!C89)","v":""}]
[{"$f":"Berechnungen!A90","v":0},{"$f":"_xlfn.TEXTJOIN(\"  \",,Berechnungen!B90, Berechnungen!C90)","v":""}]
[{"$f":"Berechnungen!A91","v":0},{"$f":"_xlfn.TEXTJOIN(\"  \",,Berechnungen!B91, Berechnungen!C91)","v":""}]
[{"$f":"Berechnungen!A92","v":0},{"$f":"_xlfn.TEXTJOIN(\"  \",,Berechnungen!B92, Berechnungen!C92)","v":""}]
[{"$f":"Berechnungen!A93","v":0},{"$f":"_xlfn.TEXTJOIN(\"  \",,Berechnungen!B93, Berechnungen!C93)","v":""}]
[{"$f":"Berechnungen!A94","v":0},{"$f":"_xlfn.TEXTJOIN(\"  \",,Berechnungen!B94, Berechnungen!C94)","v":""}]
[{"$f":"Berechnungen!A95","v":0},{"$f":"_xlfn.TEXTJOIN(\"  \",,Berechnungen!B95, Berechnungen!C95)","v":""}]
[{"$f":"Berechnungen!A96","v":"Versiegelung"},{"$f":"_xlfn.TEXTJOIN(\"  \",,Berechnungen!B96, Berechnungen!C96)","v":"3.  Werden durch das Projekt zusätzliche Flächen versiegelt und/oder gehen Naturräume verloren?"}]
[{"$f":"Berechnungen!A97","v":0},{"$f":"_xlfn.TEXTJOIN(\"  \",,Berechnungen!B97, Berechnungen!C97)","v":""},"Frage30Text","Frage 31Hilfe","Frage 32Hilfe","Frage 33Hilfe"]
[{"$f":"Berechnungen!A98","v":"Detailfragen"},{"$f":"_xlfn.TEXTJOIN(\"  \",,Berechnungen!B98, Berechnungen!C98)","v":"3.1  Wie viele m² Fläche gehen als biodiversitätsrelevante Flächen (z.B. Grünraum, Wälder) verloren?  Für den Berechnungsschlüssel siehe Hilfe."},{"$f":"B98&CHAR(10)&CHAR(10)&B99&CHAR(10)&CHAR(10)&CHAR(10)&B100&CHAR(10)&CHAR(10)&CHAR(10)&B101","v":"3.1  Wie viele m² Fläche gehen als biodiversitätsrelevante Flächen (z.B. Grünraum, Wälder) verloren?  Für den Berechnungsschlüssel siehe Hilfe.\n\n3.2  Wie viele m² Fläche werden durch das Projekt zusätzlich versiegelt? \n\n\n3.3  Wie viel Bäume gehen verloren?\n\n\n"},"Hier jene Fläche angeben die durch das Projekt verändert wird. \n\nBiodiversitätsrelevante Flächen sind: Wälder und Waldränder, naturbelassene Wiesen und Gewässer, Hochstauden-Fluren, Parks, Moore und Feuchtwiesen, Trockenrasen, Naturdenkmäler.\n\nBerechnungsschlüssel: \n  Zusammenhängende Freiflächen > 1000 m² mit naturnaher Vegetation, die verloren gehen (Bäume, Wiesen, Sträuch- oder Gartenflächen, Biotop- oder Teichflächen) müssen mit dem Faktor 1,5 multipliziert werden.\n   Wasserflächen wie Teiche, Bäche und Biotope sind sehr wertvoll und müssen mit dem Faktor 3 multipliziert.\n   Moore und Feuchtwiesen sind sehr wertvoll und müssen mit dem Faktor 4 multipliziert\n\nFür die Einschätzung der Wertigkeit von Biodiversitätsflächen bitte einen fachlichen Berater hinzuziehen. Für sehr wertvolle Gebiete, wie Feuchtgebiete, Moore, Wasserflächen und sonstige wertvolle Biodiversitätsflächen bitte Alternativen suchen.“\n\nIst die ursprüngliche Fläche bereits teilweise verbaut oder versiegelt, so sind nur die durch das gegenständliche Vorhaben zusätzlich als biodiversitätsrelevant verloren gegangenen Flächen anzugeben. \n\n  Beispiel 1: Eine Freitzeitanlage wird erweitert. Der Zubau erfolgt auf bereits versiegeltem Parkplatz, zusätzlich werden auf einer angrenzenden Wiese 100 neue Parkplätze errichtet. Es wird nur die Fläche der zusätzlich errichteten Parkplätze berücksichtigt.\n\n  Beispiel 2: Ein Wohnhaus soll am Stadtrand neu errichtet werden. Dazu soll eine Gesamtfläche von 10.000 m² von Grünland auf Bauland umgewidmet werden. Es gehen dadurch 10.000 m² als biodiversitätsrelevante Fläche verloren. Auch dann, wenn bei der Bebauung Grünflächen ausgewiesen werden (Verbesserungsmöglichkeiten sind in der Alternativenprüfung angegeben).\n\nReduktion der verlorenen Naturräume:\nVerlorene biodiversitätsrelevante Flächen können durch Naturbereiche und/oder Baumpflanzungen am Gelände verringert werden.\n\n  Zusammenhängende Freiflächen mit Vegetation wie Wiesen, Sträuch- oder Gartenflächen, Biotop- oder Teichflächen ab 1000 m² können von der Fläche abgezogen werden.\n\n   jeder Baum, der in versiegelten oder teilversiegelten Flächen gepflanzt wird, verringert die Versiegelungsfläche um 20m²","Hier wird jene Fläche angegeben, die durch das Projekt tatsächlich versiegelt wird. Versiegelte Flächen sind alle verbauten Flächen (Gebäude), Verkehrswege, Parkplätze oder andere Flächen deren Wasseraufnahme verringert wurde. \nNicht relevant sind Freiflächen mit Vegetation wie Wiesen, Strauch- oder Gartenflächen. Auch Biotop- oder Teichflächen werden nicht als Versiegelung gerechnet. \nFassadenbegrünung und Bäume verringern die berechnete Versiegelungsfläche.\n\nVersiegelungsberechnung nach klimaaktiv-Kriterien:\n   Versiegelte Flächen werden vollständig als versiegelt gerechnet\n  Teilversiegelte Flächen (Schotter, Schotterrasen, Pflaster/Platten ungebunden, Drainagebelag, etc.) werden mit dem Faktor 0,6 multipliziert\n   Dächer mit Dachbegrünung werden mit dem Faktor 0,4 multipliziert\n   begrünte Fassadenflächen werden mit dem Faktor 0,6 multipliziert und von der Versiegelungsfläche abgezogen\n   jeder Baum, der in versiegelten oder teilversiegelten Flächen gepflanzt wird, verringert die Versiegelungsfläche um 20m²\n\nReduktion der Versiegelung durch:\nErhöhung von Flächen mit wasserdurchlässigen Fahrstreifen oder Parkplätzen, Dachbegrünung, Wandbegrünung, Baumpflanzungen, Biotopen oder Teichen. Mehr Vegetation durch Wiesen, Sträuch- oder Gartenflächen. \n","Hier wird die Anzahl der Bäume angegeben, die durch das Projekt verloren gehen.\nWerden neue Bäume gepflanzt, so können sie vom Resultat abgezogen werden. Werden mehr Bäume gepflanzt als verloren gehen, so kann diese Maßnahme bei anderen Themen als Kompensationsmaßnahme verwendet werden.\n\nDie Fällung eines Baumes mit > 30 Jahren ist nur durch Neupflanzung von zwei Bäumen auszugleichen. \n\n   Beispiel: Es werden 5 alte Bäume (> 30 Jahre) und 10 junge Bäume abgeholzt und 40 Bäume neu gepflanzt.  Für die 5 alten Bäume sind 10 neue Bäume als Ausgleich nötig + 10 für die jungen Bäume = 20 Bäume als Ausgleich. Damit bleiben zusätzliche 20 Bäume, die z.B. als Kompensationsmaßnahme in Frage 9 berücksichtigt werden können.\n\nReduktion der verlorenen Bäume:\n   Das Thema \"Bäume gesund erhalten\" ist in Siedlungsräumen entscheidend. Wichtig dabei ist, dass der Baumbestand mit einem langfristigen Pflegekonzept erhalten wird. Für ein Pflegekonzept kann die Anzahl der verlorenen Bäume um 50% reduziert werden.\n\n   Obiges Beispiel mit Pflegekonzept: Anstelle der 20 neuen Bäume als Ausgleich sind nur 10 neue Bäume nötig. Es bleiben 30 neu gepflanzte  Bäume, die als Kompensationsmaßnahme angegeben werden können."]
[{"$f":"Berechnungen!A99","v":0},{"$f":"_xlfn.TEXTJOIN(\"  \",,Berechnungen!B99, Berechnungen!C99)","v":"3.2  Wie viele m² Fläche werden durch das Projekt zusätzlich versiegelt? "}]
[{"$f":"Berechnungen!A100","v":0},{"$f":"_xlfn.TEXTJOIN(\"  \",,Berechnungen!B100, Berechnungen!C100)","v":"3.3  Wie viel Bäume gehen verloren?"}]
[{"$f":"Berechnungen!A101","v":0},{"$f":"_xlfn.TEXTJOIN(\"  \",,Berechnungen!B101, Berechnungen!C101)","v":""}]
[{"$f":"Berechnungen!A102","v":"Anmerkungen"},{"$f":"_xlfn.TEXTJOIN(\"  \",,Berechnungen!B102, Berechnungen!C102)","v":""}]
[{"$f":"Berechnungen!A103","v":0},{"$f":"_xlfn.TEXTJOIN(\"  \",,Berechnungen!B103, Berechnungen!C103)","v":""}]
[{"$f":"Berechnungen!A104","v":"Das Vorhaben hat eine gewisse Klimarelevanz.   Für die Fragen mit gelber oder roter Ampel wird eine Verbesserung im Bezug auf Klimaschutz empfohlen."},{"$f":"_xlfn.TEXTJOIN(\"  \",,Berechnungen!B104, Berechnungen!C104)","v":""}]
[{"$f":"Berechnungen!A105","v":"Alternativen-prüfung"},{"$f":"_xlfn.TEXTJOIN(\"  \",,Berechnungen!B105, Berechnungen!C105)","v":"Alternativen um das Vorhaben klimafreundlicher umzusetzen: "}]
[{"$f":"Berechnungen!A106","v":0},{"$f":"_xlfn.TEXTJOIN(\"  \",,Berechnungen!B106, Berechnungen!C106)","v":"ad 3.1)  Ausgleich durch zusammenhängende Naturflächen > 1000 m² und/oder Baumpflanzungen am Gelände "},{"$f":"B106&CHAR(10)&B107&CHAR(10)&B108","v":"ad 3.1)  Ausgleich durch zusammenhängende Naturflächen > 1000 m² und/oder Baumpflanzungen am Gelände \nad 3.2)  Ausgleich durch wasserdurchlässige Fahrstreifen/Parkplätze, oder Dachbegrünung, Wandbegrünung, Baumpflanzungen, Biotope etc. \nad 3.3)  Baumpflanzungen am Gelände oder den Baumbestand mit einem langfristigen Pflegekonzept erhalten"}]
[{"$f":"Berechnungen!A107","v":0},{"$f":"_xlfn.TEXTJOIN(\"  \",,Berechnungen!B107, Berechnungen!C107)","v":"ad 3.2)  Ausgleich durch wasserdurchlässige Fahrstreifen/Parkplätze, oder Dachbegrünung, Wandbegrünung, Baumpflanzungen, Biotope etc. "}]
[{"$f":"Berechnungen!A108","v":0},{"$f":"_xlfn.TEXTJOIN(\"  \",,Berechnungen!B108, Berechnungen!C108)","v":"ad 3.3)  Baumpflanzungen am Gelände oder den Baumbestand mit einem langfristigen Pflegekonzept erhalten"}]
[{"$f":"Berechnungen!A109","v":0},{"$f":"_xlfn.TEXTJOIN(\"  \",,Berechnungen!B109, Berechnungen!C109)","v":"Angabe der Alternativen in Stichworten:"}]
[{"$f":"Berechnungen!A110","v":0},{"$f":"_xlfn.TEXTJOIN(\"  \",,Berechnungen!B110, Berechnungen!C110)","v":""}]
[{"$f":"Berechnungen!A111","v":0},{"$f":"_xlfn.TEXTJOIN(\"  \",,Berechnungen!B111, Berechnungen!C111)","v":"Welche Werte ergeben sich unter Berücksichtigung der Alternativen?"}]
[{"$f":"Berechnungen!A112","v":0},{"$f":"_xlfn.TEXTJOIN(\"  \",,Berechnungen!B112, Berechnungen!C112)","v":"3.1  Wie viele m² Fläche gehen als biodiversitätsrelevante Flächen (z.B. Grünraum, Wälder) verloren?  Für den Berechnungsschlüssel siehe Hilfe."},{"$f":"B112&CHAR(10)&CHAR(10)&B113&CHAR(10)&CHAR(10)&CHAR(10)&B114","v":"3.1  Wie viele m² Fläche gehen als biodiversitätsrelevante Flächen (z.B. Grünraum, Wälder) verloren?  Für den Berechnungsschlüssel siehe Hilfe.\n\n3.2  Wie viele m² Fläche werden durch das Projekt zusätzlich versiegelt? \n\n\n3.3  Wie viel Bäume gehen verloren?"}]
[{"$f":"Berechnungen!A113","v":0},{"$f":"_xlfn.TEXTJOIN(\"  \",,Berechnungen!B113, Berechnungen!C113)","v":"3.2  Wie viele m² Fläche werden durch das Projekt zusätzlich versiegelt? "}]
[{"$f":"Berechnungen!A114","v":0},{"$f":"_xlfn.TEXTJOIN(\"  \",,Berechnungen!B114, Berechnungen!C114)","v":"3.3  Wie viel Bäume gehen verloren?"}]
[{"$f":"Berechnungen!A115","v":0},{"$f":"_xlfn.TEXTJOIN(\"  \",,Berechnungen!B115, Berechnungen!C115)","v":""}]
[{"$f":"Berechnungen!A116","v":"Kompensations-prüfung"},{"$f":"_xlfn.TEXTJOIN(\"  \",,Berechnungen!B116, Berechnungen!C116)","v":"Wenn Alternativen nicht möglich sind: Mit welchen Kompensationsmaßnahmen kann das Vorhaben klimafreundlicher umgesetzt werden?"}]
[{"$f":"Berechnungen!A117","v":0},{"$f":"_xlfn.TEXTJOIN(\"  \",,Berechnungen!B117, Berechnungen!C117)","v":"Kompensationsmaßnahmen (auch an anderen Orten) sind in den Fragen 7 - 12  definiert. \nBeispiele: zusätzliche Grünflächen, Revitalisierung von Naturflächen, Aufforstungen, zusätzliche Mittel für Naturschutzprojekte, feuchteregulierende Maßnahmen, \nBiodiversität erhöhen ..."}]
[{"$f":"Berechnungen!A118","v":0},{"$f":"_xlfn.TEXTJOIN(\"  \",,Berechnungen!B118, Berechnungen!C118)","v":"Angabe der Kompensationsmaßnahmen (deren Umsetzung beantragt werden muss):"}]
[{"$f":"Berechnungen!A119","v":0},{"$f":"_xlfn.TEXTJOIN(\"  \",,Berechnungen!B119, Berechnungen!C119)","v":""}]
[{"$f":"Berechnungen!A120","v":0},{"$f":"_xlfn.TEXTJOIN(\"  \",,Berechnungen!B120, Berechnungen!C120)","v":""}]
[{"$f":"Berechnungen!A121","v":0},{"$f":"_xlfn.TEXTJOIN(\"  \",,Berechnungen!B121, Berechnungen!C121)","v":""}]
[{"$f":"Berechnungen!A122","v":0},{"$f":"_xlfn.TEXTJOIN(\"  \",,Berechnungen!B122, Berechnungen!C122)","v":""}]
[{"$f":"Berechnungen!A123","v":0},{"$f":"_xlfn.TEXTJOIN(\"  \",,Berechnungen!B123, Berechnungen!C123)","v":""}]
[{"$f":"Berechnungen!A124","v":0},{"$f":"_xlfn.TEXTJOIN(\"  \",,Berechnungen!B124, Berechnungen!C124)","v":""}]
[{"$f":"Berechnungen!A125","v":0},{"$f":"_xlfn.TEXTJOIN(\"  \",,Berechnungen!B125, Berechnungen!C125)","v":""}]
[{"$f":"Berechnungen!A126","v":0},{"$f":"_xlfn.TEXTJOIN(\"  \",,Berechnungen!B126, Berechnungen!C126)","v":""}]
[{"$f":"Berechnungen!A127","v":0},{"$f":"_xlfn.TEXTJOIN(\"  \",,Berechnungen!B127, Berechnungen!C127)","v":""}]
[{"$f":"Berechnungen!A128","v":0},{"$f":"_xlfn.TEXTJOIN(\"  \",,Berechnungen!B128, Berechnungen!C128)","v":""}]
[{"$f":"Berechnungen!A129","v":0},{"$f":"_xlfn.TEXTJOIN(\"  \",,Berechnungen!B129, Berechnungen!C129)","v":""}]
[{"$f":"Berechnungen!A130","v":0},{"$f":"_xlfn.TEXTJOIN(\"  \",,Berechnungen!B130, Berechnungen!C130)","v":""}]
[{"$f":"Berechnungen!A131","v":0},{"$f":"_xlfn.TEXTJOIN(\"  \",,Berechnungen!B131, Berechnungen!C131)","v":""}]
[{"$f":"Berechnungen!A132","v":"Bauen"},{"$f":"_xlfn.TEXTJOIN(\"  \",,Berechnungen!B132, Berechnungen!C132)","v":"4.  Werden beim Vorhaben Gebäude oder Anlagen neu gebaut oder saniert?"}]
[{"$f":"Berechnungen!A133","v":0},{"$f":"_xlfn.TEXTJOIN(\"  \",,Berechnungen!B133, Berechnungen!C133)","v":""},"Frage40Text","Frage41Hilfe","Frage42Hilfe = Frage41Hilfe","Frage43Hilfe","Frage44Hilfe"]
[{"$f":"Berechnungen!A134","v":"Detailfragen"},{"$f":"_xlfn.TEXTJOIN(\"  \",,Berechnungen!B134, Berechnungen!C134)","v":"4.1  Wird beim Gebäude-Neubau nur nach dem Mindeststandard der Bauvorschriften gebaut? Nach welchem Baustandard wird das Gebäude errichtet?"},{"$f":"B134&CHAR(10)&CHAR(10)&CHAR(10)&B135&CHAR(10)&CHAR(10)&B136&CHAR(10)&CHAR(10)&CHAR(10)&B137","v":"4.1  Wird beim Gebäude-Neubau nur nach dem Mindeststandard der Bauvorschriften gebaut? Nach welchem Baustandard wird das Gebäude errichtet?\n\n\n4.2  Wird ein bestehendes Gebäude nur mit geringstem Aufwand saniert? Welchen Baustandard hat das Gebäude nach der Sanierung?\n\n4.3  Werden größere Mengen an neuer Bausubstanz benötigt? Wieviele m² BGF werden neu errichtet?\n\n\n4.4  Wird beim Neubau oder bei der Sanierung von Anlagen Wert auf Klimaschutzmaßnahmen  gelegt?\nZ.B. Niedrigenergie-Bauweise, energieeffiziente Maschinen und Geräte, ökologische Baustoffe  "},"  Für die Angabe Niedrigenergiehaus darf bei Wohngebäuden kein Kühlbedarf notwendig sein (im Energieausweis angegeben). Die Energiekennzahl bitte unter 'Anmerkungen' angeben.\n\n   Wohnbaucheck: Link zur einfachen Bestimmung der klimaaktiv Baustandards \n\n\n   Link zu den klimaaktiv Kriterienkatalogen: \n\n\n   Link zur Passivhausdefinition: ",null,"Hier die BGF (Bruttogrundfläche) des neu zu errichtenden Gebäudes oder Gebäudeteiles angeben.\n\nEine Eingabe \"nicht relevant\" ist unter folgenden Voraussetzungen möglich:\n   der Neubau bzw. der neue Gebäudeteil liegt im Stadtkern bzw. in dicht verbauten Gebiet. \n    der Neubau bzw. die Sanierung wurde nach dem Standard \"klimaaktiv gold\" oder \"klimaaktiv silber\" ausgeführt.\n    der Neubau weist eine (für diesen Gebäudetyp) niedrige Energiekennzahl auf.\n\nWerden recyelte oder umweltgreundliche Baustoffe verwendet kann die BGF um bis zu 50% reduziert werden.","Anlagen sind Bauwerke, in denen sich nur kurzfristig Personen aufhalten oder das nur fallweise beheizt wird. \nBeispiele sind Kläranlagen, Wasserversorgungsanlagen, Heizwerke, Stromerzeugungsanlagen, Sportstätten, Freibäder, Freizeiteinrichtungen etc.\n\nVerbesserung der Bewertung durch:\n   Maßnahmen zur Verringerung des Heizbedarfes oder des Strombedarfes\n   Maßnahmen zur Verringerung des Bedarfs an sonstiger Energie zum Betrieb \n   Maßnahmen zur Verringerung des Mobilitätsaufwandes\n   Verwendung von recyelten oder umweltfreundlichen Baustoffen\n   Ausarbeitung von Konzepten zur Optimierung der Arbeitsabläufe etc. \n\nBewertung:\ngering: Maßnahmen in 0 - 1 der oben genannten Bereiche werden umgesetzt\nteilweise: Maßnahmen in mind. 2 der oben genannten Bereiche werden umgesetzt\nmaßgeblich: Maßnahmen in mind. 3 der oben genannten Bereiche werden umgesetzt\nMaßnahmen unter Anmerkungen angeben"]
[{"$f":"Berechnungen!A135","v":0},{"$f":"_xlfn.TEXTJOIN(\"  \",,Berechnungen!B135, Berechnungen!C135)","v":"4.2  Wird ein bestehendes Gebäude nur mit geringstem Aufwand saniert? Welchen Baustandard hat das Gebäude nach der Sanierung?"}]
[{"$f":"Berechnungen!A136","v":0},{"$f":"_xlfn.TEXTJOIN(\"  \",,Berechnungen!B136, Berechnungen!C136)","v":"4.3  Werden größere Mengen an neuer Bausubstanz benötigt? Wieviele m² BGF werden neu errichtet?"},null,"Link41_1"]
[{"$f":"Berechnungen!A137","v":0},{"$f":"_xlfn.TEXTJOIN(\"  \",,Berechnungen!B137, Berechnungen!C137)","v":"4.4  Wird beim Neubau oder bei der Sanierung von Anlagen Wert auf Klimaschutzmaßnahmen  gelegt?\nZ.B. Niedrigenergie-Bauweise, energieeffiziente Maschinen und Geräte, ökologische Baustoffe  "},null,"https://www.energie-noe.at/klimaaktiv-wohnbaucheck?h=83dfb9871ef7ae2bec7cd99ccd62f968"]
[{"$f":"Berechnungen!A138","v":0},{"$f":"_xlfn.TEXTJOIN(\"  \",,Berechnungen!B138, Berechnungen!C138)","v":""},null,"Link41_2"]
[{"$f":"Berechnungen!A139","v":0},{"$f":"_xlfn.TEXTJOIN(\"  \",,Berechnungen!B139, Berechnungen!C139)","v":""},null,"https://www.klimaaktiv.at/bauen-sanieren/gebaeudedeklaration/kriterienkatalog.html "]
[{"$f":"Berechnungen!A140","v":0},{"$f":"_xlfn.TEXTJOIN(\"  \",,Berechnungen!B140, Berechnungen!C140)","v":""},null,"Link41_3"]
[{"$f":"Berechnungen!A141","v":"Anmerkungen"},{"$f":"_xlfn.TEXTJOIN(\"  \",,Berechnungen!B141, Berechnungen!C141)","v":""},null,"https://passivhaus-austria.org/de/passivhaus/qualitatskriterien/"]
[{"$f":"Berechnungen!A142","v":0},{"$f":"_xlfn.TEXTJOIN(\"  \",,Berechnungen!B142, Berechnungen!C142)","v":""}]
[{"$f":"Berechnungen!A143","v":"Das Vorhaben hat eine gewisse Klimarelevanz.   Für die Fragen mit gelber oder roter Ampel wird eine Verbesserung im Bezug auf Klimaschutz empfohlen."},{"$f":"_xlfn.TEXTJOIN(\"  \",,Berechnungen!B143, Berechnungen!C143)","v":""}]
[{"$f":"Berechnungen!A144","v":"Alternativen-prüfung"},{"$f":"_xlfn.TEXTJOIN(\"  \",,Berechnungen!B144, Berechnungen!C144)","v":"Alternativen um das Vorhaben klimafreundlicher umzusetzen: "}]
[{"$f":"Berechnungen!A145","v":0},{"$f":"_xlfn.TEXTJOIN(\"  \",,Berechnungen!B145, Berechnungen!C145)","v":"ad 4.1)  Bauen nach einem hohen Klimastandard z.B. ka-gold, Passivhaus"},{"$f":"B145&CHAR(10)&B146&CHAR(10)&B147&CHAR(10)&B148&CHAR(10)","v":"ad 4.1)  Bauen nach einem hohen Klimastandard z.B. ka-gold, Passivhaus\nad 4.2)  Sanierung nach einem hohen Klimastandard, z.B. Erfüllung der ka-Basiskriterien, hohe Förderklasse Wohnbauförderung\nad 4.3)  Nutzung eines bestehenden Gebäude durch Ausbau, Zubau oder Mehrfachnutzung. Bauen mit recyelten oder  umweltfreundlichen Baustoffen (Stroh, Holz etc.)\nad 4.4)  Maßnahmen zur Reduktion des Wärme- und Strombedarfs, Verwendung von recyelten oder ökologischen Baustoffen (Stroh, Holz etc.)\n"}]
[{"$f":"Berechnungen!A146","v":0},{"$f":"_xlfn.TEXTJOIN(\"  \",,Berechnungen!B146, Berechnungen!C146)","v":"ad 4.2)  Sanierung nach einem hohen Klimastandard, z.B. Erfüllung der ka-Basiskriterien, hohe Förderklasse Wohnbauförderung"}]
[{"$f":"Berechnungen!A147","v":0},{"$f":"_xlfn.TEXTJOIN(\"  \",,Berechnungen!B147, Berechnungen!C147)","v":"ad 4.3)  Nutzung eines bestehenden Gebäude durch Ausbau, Zubau oder Mehrfachnutzung. Bauen mit recyelten oder  umweltfreundlichen Baustoffen (Stroh, Holz etc.)"}]
[{"$f":"Berechnungen!A148","v":0},{"$f":"_xlfn.TEXTJOIN(\"  \",,Berechnungen!B148, Berechnungen!C148)","v":"ad 4.4)  Maßnahmen zur Reduktion des Wärme- und Strombedarfs, Verwendung von recyelten oder ökologischen Baustoffen (Stroh, Holz etc.)"}]
[{"$f":"Berechnungen!A149","v":0},{"$f":"_xlfn.TEXTJOIN(\"  \",,Berechnungen!B149, Berechnungen!C149)","v":"Angabe der Alternativen in Stichworten:"}]
[{"$f":"Berechnungen!A150","v":0},{"$f":"_xlfn.TEXTJOIN(\"  \",,Berechnungen!B150, Berechnungen!C150)","v":""}]
[{"$f":"Berechnungen!A151","v":0},{"$f":"_xlfn.TEXTJOIN(\"  \",,Berechnungen!B151, Berechnungen!C151)","v":"Welche Werte ergeben sich unter Berücksichtigung der Alternativen?"}]
[{"$f":"Berechnungen!A152","v":0},{"$f":"_xlfn.TEXTJOIN(\"  \",,Berechnungen!B152, Berechnungen!C152)","v":"4.1  Wird beim Gebäude-Neubau nur nach dem Mindeststandard der Bauvorschriften gebaut? Nach welchem Baustandard wird das Gebäude errichtet?"},{"$f":"B152&CHAR(10)&CHAR(10)&CHAR(10)&B153&CHAR(10)&CHAR(10)&B154&CHAR(10)&CHAR(10)&CHAR(10)&B155&CHAR(10)&CHAR(10)&CHAR(10)&B156","v":"4.1  Wird beim Gebäude-Neubau nur nach dem Mindeststandard der Bauvorschriften gebaut? Nach welchem Baustandard wird das Gebäude errichtet?\n\n\n4.2  Wird ein bestehendes Gebäude nur mit geringstem Aufwand saniert? Welchen Baustandard hat das Gebäude nach der Sanierung?\n\n4.3  Werden größere Mengen an neuer Bausubstanz benötigt? Wieviele m² BGF werden neu errichtet?\n\n\n4.4  Wird beim Neubau oder bei der Sanierung von Anlagen Wert auf Klimaschutzmaßnahmen  gelegt?\nZ.B. Niedrigenergie-Bauweise, energieeffiziente Maschinen und Geräte, ökologische Baustoffe  \n\n\n"}]
[{"$f":"Berechnungen!A153","v":0},{"$f":"_xlfn.TEXTJOIN(\"  \",,Berechnungen!B153, Berechnungen!C153)","v":"4.2  Wird ein bestehendes Gebäude nur mit geringstem Aufwand saniert? Welchen Baustandard hat das Gebäude nach der Sanierung?"}]
[{"$f":"Berechnungen!A154","v":0},{"$f":"_xlfn.TEXTJOIN(\"  \",,Berechnungen!B154, Berechnungen!C154)","v":"4.3  Werden größere Mengen an neuer Bausubstanz benötigt? Wieviele m² BGF werden neu errichtet?"}]
[{"$f":"Berechnungen!A155","v":0},{"$f":"_xlfn.TEXTJOIN(\"  \",,Berechnungen!B155, Berechnungen!C155)","v":"4.4  Wird beim Neubau oder bei der Sanierung von Anlagen Wert auf Klimaschutzmaßnahmen  gelegt?\nZ.B. Niedrigenergie-Bauweise, energieeffiziente Maschinen und Geräte, ökologische Baustoffe  "}]
[{"$f":"Berechnungen!A156","v":0},{"$f":"_xlfn.TEXTJOIN(\"  \",,Berechnungen!B156, Berechnungen!C156)","v":""}]
[{"$f":"Berechnungen!A157","v":"Kompensations-prüfung"},{"$f":"_xlfn.TEXTJOIN(\"  \",,Berechnungen!B157, Berechnungen!C157)","v":"Wenn Alternativen nicht möglich sind: Mit welchen Kompensationsmaßnahmen kann das Vorhaben klimafreundlicher umgesetzt werden?"}]
[{"$f":"Berechnungen!A158","v":0},{"$f":"_xlfn.TEXTJOIN(\"  \",,Berechnungen!B158, Berechnungen!C158)","v":"Kompensationsmaßnahmen (auch an anderen Orten) sind in den Fragen 7 - 12  definiert. \nBeispiele: zusätzliche Grünflächen, Sanierung anderer Gebäude, Anlagen für erneuerbare Energieerzeugung ..."}]
[{"$f":"Berechnungen!A159","v":0},{"$f":"_xlfn.TEXTJOIN(\"  \",,Berechnungen!B159, Berechnungen!C159)","v":"Angabe der Kompensationsmaßnahmen (deren Umsetzung beantragt werden muss):"}]
[{"$f":"Berechnungen!A160","v":0},{"$f":"_xlfn.TEXTJOIN(\"  \",,Berechnungen!B160, Berechnungen!C160)","v":""}]
[{"$f":"Berechnungen!A161","v":0},{"$f":"_xlfn.TEXTJOIN(\"  \",,Berechnungen!B161, Berechnungen!C161)","v":""}]
[{"$f":"Berechnungen!A162","v":0},{"$f":"_xlfn.TEXTJOIN(\"  \",,Berechnungen!B162, Berechnungen!C162)","v":""}]
[{"$f":"Berechnungen!A163","v":0},{"$f":"_xlfn.TEXTJOIN(\"  \",,Berechnungen!B163, Berechnungen!C163)","v":""}]
[{"$f":"Berechnungen!A164","v":0},{"$f":"_xlfn.TEXTJOIN(\"  \",,Berechnungen!B164, Berechnungen!C164)","v":""}]
[{"$f":"Berechnungen!A165","v":0},{"$f":"_xlfn.TEXTJOIN(\"  \",,Berechnungen!B165, Berechnungen!C165)","v":""}]
[{"$f":"Berechnungen!A166","v":0},{"$f":"_xlfn.TEXTJOIN(\"  \",,Berechnungen!B166, Berechnungen!C166)","v":""}]
[{"$f":"Berechnungen!A167","v":0},{"$f":"_xlfn.TEXTJOIN(\"  \",,Berechnungen!B167, Berechnungen!C167)","v":""}]
[{"$f":"Berechnungen!A168","v":0},{"$f":"_xlfn.TEXTJOIN(\"  \",,Berechnungen!B168, Berechnungen!C168)","v":""}]
[{"$f":"Berechnungen!A169","v":0},{"$f":"_xlfn.TEXTJOIN(\"  \",,Berechnungen!B169, Berechnungen!C169)","v":""}]
[{"$f":"Berechnungen!A170","v":0},{"$f":"_xlfn.TEXTJOIN(\"  \",,Berechnungen!B170, Berechnungen!C170)","v":""}]
[{"$f":"Berechnungen!A171","v":0},{"$f":"_xlfn.TEXTJOIN(\"  \",,Berechnungen!B171, Berechnungen!C171)","v":""}]
[{"$f":"Berechnungen!A172","v":0},{"$f":"_xlfn.TEXTJOIN(\"  \",,Berechnungen!B172, Berechnungen!C172)","v":""}]
[{"$f":"Berechnungen!A173","v":0},{"$f":"_xlfn.TEXTJOIN(\"  \",,Berechnungen!B173, Berechnungen!C173)","v":""}]
[{"$f":"Berechnungen!A174","v":"Beschaffung, Subvention"},{"$f":"_xlfn.TEXTJOIN(\"  \",,Berechnungen!B174, Berechnungen!C174)","v":"5.  Wird eine Beschaffung oder eine Ausschreibung vorgenommen? Wird eine Veranstaltung durchgeführt oder eine Organisation subventioniert? "}]
[{"$f":"Berechnungen!A175","v":0},{"$f":"_xlfn.TEXTJOIN(\"  \",,Berechnungen!B175, Berechnungen!C175)","v":""},"Frage50Text","Frage51Hilfe","Frage52Hilfe","Frage53Hilfe","Frage54Hilfe","Frage55Hilfe"]
[{"$f":"Berechnungen!A176","v":"Detailfragen"},{"$f":"_xlfn.TEXTJOIN(\"  \",,Berechnungen!B176, Berechnungen!C176)","v":"5.1  Werden Büromöbel, Textilien, Elektrogeräte, EDV/IT-Geräte, Beleuchtung, Reinigungsmittel, Büromaterial, Druckwerke und Lebensmittel nachhaltig beschafft? Wie hoch ist der Anteil dieser Produkte am Gesamtanteil (geschätzt)?"},{"$f":"B176&CHAR(10)&CHAR(10)&B177&CHAR(10)&CHAR(10)&B178&CHAR(10)&CHAR(10)&B179&CHAR(10)&CHAR(10)&B180","v":"5.1  Werden Büromöbel, Textilien, Elektrogeräte, EDV/IT-Geräte, Beleuchtung, Reinigungsmittel, Büromaterial, Druckwerke und Lebensmittel nachhaltig beschafft? Wie hoch ist der Anteil dieser Produkte am Gesamtanteil (geschätzt)?\n\n5.2  Werden bei der Fuhrparkbeschaffung Fahrzeuge mit alternativem Antrieb (0 g CO2-Ausstoß im Betrieb) angeschafft? \n\n5.3  Werden klimaschonende Kriterien bei Ausschreibungen der Stadt berücksichtigt? Zum Beispiel naBe-Kriterien, Baubook-Kriterien, klimaaktiv-Kriterien, Handbuch zur Regionalvergabe …\n\n5.4  Werden Veranstaltungen nachhaltig durchgeführt? Umsetzung z.B. nach den  Kriterien von Sauberhafte Feste oder Green Event\n\n5.5  Werden bei Subventionen an Vereine/Organisationen Nachhaltigkeitskriterien für die Verwendung des Geldes vorgegeben?  Z.B. nabe-Kriterien, ökologische Baustoffe / Reinigungsmittel / Mobilität / Verpflegung."},"Nachhaltige Beschaffungsmöglichkeiten sind z.B. \n  die naBe-Kriterien bei BBG\n  das Nachaltige Beschaffungsservice NÖ\n  Produkte mit dem Österr. Umweltzeichen, dem EU ECO-Label,  Blauer Engel, etc. \n\nBeschaffung von einzelnen Produkten:\n   >50% wenn nachhaltig beschafft \n   10 - 50% wenn regionale Beschaffung\n   <10%  wenn keine Nachhaltigkeitskriterien vorgegeben\n\n\nBeschaffung von mehreren Produkten:\n   bewertet wird der Anteil am nachhaltigen Beschaffungswert in % vom Gesamtwert der Beschaffung.\nBeispiel: Eine Büroeinrichtung kostet 6.000 €. Davon wurden 4.000 € für Produkte verwendet, welche die naBe-Kriterien der BBG erfüllen. Die Bewertung ist >50%. \n\n\nUnter bestimmte Gründe höhere Bewertung möglich, wenn: \n   >50% + Angabe Gründe  wenn trotz Nachfrage beim NÖ Beschaffungsservice kein nachhaltigeres Produkt gefunden wird, das den Anforderungen entspricht.","Einen Ausstoß von 0 g CO2 kann angenommen werden für\n   Elektrofahrzeuge, die mit Ökostrom betrieben werden\n  Wasserstofffahrzeuge, wenn der verwendete Wasserstoff mit Ökostrom produziert wird\n  Fahrzeuge, die mit synthetischem Gas oder Flüssigtreibstoff angetrieben werden und das Gas bzw. der Treibstoff mit Ökostrom erzeugt wurde. \n\nNachhaltige Fuhrparkbeschaffung:\nNachhaltige Beschaffungsmöglichkeiten sind z.B. \n   Umstieg auf elektrisch betriebene Fahrzeuge\n  Umstieg auf wasserstoffbetriebene Fahrzeuge und Erzeugung mit Ökostrom\n\nBewertung:\n   nicht möglich: wenn trotz Nachfrage beim NÖ Beschaffungsservice kein nachhaltigeres Produkt gefunden wird, das den Anforderungen entspricht\n","Klimaschonende Kriterien sind enthalten in \n   naBe-Kriterien bei BBG Beschaffung\n   Baubook-Kriterien laut \"ökologisch ausschreiben\" \n\n\n   klimaaktiv-Kriterien\n   Handbuch zur Regionalvergabe \n\nBewertung:\n  Vorgaben zur Regionalität können maximal als \"teilweise\" klimaschonend bewertet werden \n   Vorgaben zur Nachhaltigkeit, Energieeffizienz oder Ökologie können zu einer höheren Bewertung führen. Eine Auflistung der Vorgaben ist notwendig.","Informationen:\n   Kriterien für Sauberhafte Feste: \n\n\n  Kriterien für Green Events: \n\n\nBewertung:\n   vollständige Nachhaltigkeit wenn Umsetzung eines Sauberhaften Festes oder eines Green Events\n   teilweise Nachhaltigkeit + Angabe der Maßnahmen wenn Einzelmaßnahmen wie Anbindung an ÖFFIs, Mehrweggeschirr, Abfalltrennung etc.","Bewertung:\n   vollständig wenn verpflichtende Nachhaltigkeitskriterien angegeben werden und ein Verwendungsnachweis verlangt wird. z.B. Veranstaltungen nach Kriterien Sauberhafte Festes oder Green Events, Beschaffungen nach naBe-Kriterien.\n\n    teilweise Nachhaltigkeit + Angabe der Maßnahmen wenn zumindest 1 nachhaltige  Einzelmaßnahme vorgeschrieben ist.\n\n\nNachhaltigkeitskriterien bei Subventionen:\n    Veranstaltungen: z.B. Sauberhafte Festes oder Green Events\n    Wirtschaft: z.B. Beschaffungen nach naBe-Kriterien, energiesparende Maßnahmen, Verkehrsreduzierende Maßnahmen, Steigerung Anteil an erneuerbarer Energie oder umweltfreundlicher Mobilität, Reduktion Versiegelung und Förderung Biodiversität\n    Vereine: z.B. Nutzung umweltfreundlicher Mobilität,  nachhaltige Beschaffung, energiesparende Maßnahmen, Steigerung Anteil an erneuerbarer Energie"]
[{"$f":"Berechnungen!A177","v":0},{"$f":"_xlfn.TEXTJOIN(\"  \",,Berechnungen!B177, Berechnungen!C177)","v":"5.2  Werden bei der Fuhrparkbeschaffung Fahrzeuge mit alternativem Antrieb (0 g CO2-Ausstoß im Betrieb) angeschafft? "}]
[{"$f":"Berechnungen!A178","v":0},{"$f":"_xlfn.TEXTJOIN(\"  \",,Berechnungen!B178, Berechnungen!C178)","v":"5.3  Werden klimaschonende Kriterien bei Ausschreibungen der Stadt berücksichtigt? Zum Beispiel naBe-Kriterien, Baubook-Kriterien, klimaaktiv-Kriterien, Handbuch zur Regionalvergabe …"},null,null,null,"Link53_1","Link54_1"]
[{"$f":"Berechnungen!A179","v":0},{"$f":"_xlfn.TEXTJOIN(\"  \",,Berechnungen!B179, Berechnungen!C179)","v":"5.4  Werden Veranstaltungen nachhaltig durchgeführt? Umsetzung z.B. nach den  Kriterien von Sauberhafte Feste oder Green Event"},null,null,null,"https://www.baubook.info/","https://anmeldung.sauberhaftefeste.at/themen.htm"]
[{"$f":"Berechnungen!A180","v":0},{"$f":"_xlfn.TEXTJOIN(\"  \",,Berechnungen!B180, Berechnungen!C180)","v":"5.5  Werden bei Subventionen an Vereine/Organisationen Nachhaltigkeitskriterien für die Verwendung des Geldes vorgegeben?  Z.B. nabe-Kriterien, ökologische Baustoffe / Reinigungsmittel / Mobilität / Verpflegung."},null,null,null,null,"Link54_2"]
[{"$f":"Berechnungen!A181","v":0},{"$f":"_xlfn.TEXTJOIN(\"  \",,Berechnungen!B181, Berechnungen!C181)","v":""},null,null,null,null,"https://www.klimakultur.at/green-events/"]
[{"$f":"Berechnungen!A182","v":0},{"$f":"_xlfn.TEXTJOIN(\"  \",,Berechnungen!B182, Berechnungen!C182)","v":""}]
[{"$f":"Berechnungen!A183","v":0},{"$f":"_xlfn.TEXTJOIN(\"  \",,Berechnungen!B183, Berechnungen!C183)","v":""}]
[{"$f":"Berechnungen!A184","v":"Anmerkungen"},{"$f":"_xlfn.TEXTJOIN(\"  \",,Berechnungen!B184, Berechnungen!C184)","v":""}]
[{"$f":"Berechnungen!A185","v":0},{"$f":"_xlfn.TEXTJOIN(\"  \",,Berechnungen!B185, Berechnungen!C185)","v":""}]
[{"$f":"Berechnungen!A186","v":"Das Vorhaben hat eine gewisse Klimarelevanz.   Für die Fragen mit gelber oder roter Ampel wird eine Verbesserung im Bezug auf Klimaschutz empfohlen."},{"$f":"_xlfn.TEXTJOIN(\"  \",,Berechnungen!B186, Berechnungen!C186)","v":""}]
[{"$f":"Berechnungen!A187","v":"Alternativen-prüfung"},{"$f":"_xlfn.TEXTJOIN(\"  \",,Berechnungen!B187, Berechnungen!C187)","v":"Alternativen um das Vorhaben klimafreundlicher umzusetzen: "}]
[{"$f":"Berechnungen!A188","v":0},{"$f":"_xlfn.TEXTJOIN(\"  \",,Berechnungen!B188, Berechnungen!C188)","v":"ad 5.1)  Produkte nach naBe-Kriterien beschaffen (soweit verfügbar). Zusammenarbeit mit Nachhaltige Beschaffung NÖ."},{"$f":"B188&CHAR(10)&B189&CHAR(10)&B190&CHAR(10)&B191&CHAR(10)&B192","v":"ad 5.1)  Produkte nach naBe-Kriterien beschaffen (soweit verfügbar). Zusammenarbeit mit Nachhaltige Beschaffung NÖ.\nad 5.2)  Produkte nach naBe-Kriterien beschaffen (soweit verfügbar). Zusammenarbeit mit Nachhaltige Beschaffung NÖ.\nad 5.3)  Möglichst viele Nachhaltigkeitskriterien bei Ausschreibungen definieren.\nad 5.4)  Veranstaltungen als Sauberhafte Feste oder green Events durchführen.\nad 5.5)  Vorgaben für umfassende Nachhaltigkeit bei der Verwendung der Subvention."}]
[{"$f":"Berechnungen!A189","v":0},{"$f":"_xlfn.TEXTJOIN(\"  \",,Berechnungen!B189, Berechnungen!C189)","v":"ad 5.2)  Produkte nach naBe-Kriterien beschaffen (soweit verfügbar). Zusammenarbeit mit Nachhaltige Beschaffung NÖ."}]
[{"$f":"Berechnungen!A190","v":0},{"$f":"_xlfn.TEXTJOIN(\"  \",,Berechnungen!B190, Berechnungen!C190)","v":"ad 5.3)  Möglichst viele Nachhaltigkeitskriterien bei Ausschreibungen definieren."}]
[{"$f":"Berechnungen!A191","v":0},{"$f":"_xlfn.TEXTJOIN(\"  \",,Berechnungen!B191, Berechnungen!C191)","v":"ad 5.4)  Veranstaltungen als Sauberhafte Feste oder green Events durchführen."}]
[{"$f":"Berechnungen!A192","v":0},{"$f":"_xlfn.TEXTJOIN(\"  \",,Berechnungen!B192, Berechnungen!C192)","v":"ad 5.5)  Vorgaben für umfassende Nachhaltigkeit bei der Verwendung der Subvention."}]
[{"$f":"Berechnungen!A193","v":0},{"$f":"_xlfn.TEXTJOIN(\"  \",,Berechnungen!B193, Berechnungen!C193)","v":"Angabe der Alternativen in Stichworten:"}]
[{"$f":"Berechnungen!A194","v":0},{"$f":"_xlfn.TEXTJOIN(\"  \",,Berechnungen!B194, Berechnungen!C194)","v":""}]
[{"$f":"Berechnungen!A195","v":0},{"$f":"_xlfn.TEXTJOIN(\"  \",,Berechnungen!B195, Berechnungen!C195)","v":"Welche Werte ergeben sich unter Berücksichtigung der Alternativen?"}]
[{"$f":"Berechnungen!A196","v":0},{"$f":"_xlfn.TEXTJOIN(\"  \",,Berechnungen!B196, Berechnungen!C196)","v":"5.1  Werden Büromöbel, Textilien, Elektrogeräte, EDV/IT-Geräte, Beleuchtung, Reinigungsmittel, Büromaterial, Druckwerke und Lebensmittel nachhaltig beschafft? Wie hoch ist der Anteil dieser Produkte am Gesamtanteil (geschätzt)?"},{"$f":"B196&CHAR(10)&CHAR(10)&B197&CHAR(10)&CHAR(10)&B198&CHAR(10)&CHAR(10)&B199&CHAR(10)&CHAR(10)&B200","v":"5.1  Werden Büromöbel, Textilien, Elektrogeräte, EDV/IT-Geräte, Beleuchtung, Reinigungsmittel, Büromaterial, Druckwerke und Lebensmittel nachhaltig beschafft? Wie hoch ist der Anteil dieser Produkte am Gesamtanteil (geschätzt)?\n\n5.2  Werden bei der Fuhrparkbeschaffung Fahrzeuge mit alternativem Antrieb (0 g CO2-Ausstoß im Betrieb) angeschafft? \n\n5.3  Werden klimaschonende Kriterien bei Ausschreibungen der Stadt berücksichtigt? Zum Beispiel naBe-Kriterien, Baubook-Kriterien, klimaaktiv-Kriterien, Handbuch zur Regionalvergabe …\n\n5.4  Werden Veranstaltungen nachhaltig durchgeführt? Umsetzung z.B. nach den  Kriterien von Sauberhafte Feste oder Green Event\n\n5.5  Werden bei Subventionen an Vereine/Organisationen Nachhaltigkeitskriterien für die Verwendung des Geldes vorgegeben?  Z.B. nabe-Kriterien, ökologische Baustoffe / Reinigungsmittel / Mobilität / Verpflegung."}]
[{"$f":"Berechnungen!A197","v":0},{"$f":"_xlfn.TEXTJOIN(\"  \",,Berechnungen!B197, Berechnungen!C197)","v":"5.2  Werden bei der Fuhrparkbeschaffung Fahrzeuge mit alternativem Antrieb (0 g CO2-Ausstoß im Betrieb) angeschafft? "}]
[{"$f":"Berechnungen!A198","v":0},{"$f":"_xlfn.TEXTJOIN(\"  \",,Berechnungen!B198, Berechnungen!C198)","v":"5.3  Werden klimaschonende Kriterien bei Ausschreibungen der Stadt berücksichtigt? Zum Beispiel naBe-Kriterien, Baubook-Kriterien, klimaaktiv-Kriterien, Handbuch zur Regionalvergabe …"}]
[{"$f":"Berechnungen!A199","v":0},{"$f":"_xlfn.TEXTJOIN(\"  \",,Berechnungen!B199, Berechnungen!C199)","v":"5.4  Werden Veranstaltungen nachhaltig durchgeführt? Umsetzung z.B. nach den  Kriterien von Sauberhafte Feste oder Green Event"}]
[{"$f":"Berechnungen!A200","v":0},{"$f":"_xlfn.TEXTJOIN(\"  \",,Berechnungen!B200, Berechnungen!C200)","v":"5.5  Werden bei Subventionen an Vereine/Organisationen Nachhaltigkeitskriterien für die Verwendung des Geldes vorgegeben?  Z.B. nabe-Kriterien, ökologische Baustoffe / Reinigungsmittel / Mobilität / Verpflegung."}]
[{"$f":"Berechnungen!A201","v":0},{"$f":"_xlfn.TEXTJOIN(\"  \",,Berechnungen!B201, Berechnungen!C201)","v":""}]
[{"$f":"Berechnungen!A202","v":"Kompensations-prüfung"},{"$f":"_xlfn.TEXTJOIN(\"  \",,Berechnungen!B202, Berechnungen!C202)","v":"Wenn Alternativen nicht möglich sind: Mit welchen Kompensationsmaßnahmen kann das Vorhaben klimafreundlicher umgesetzt werden?"}]
[{"$f":"Berechnungen!A203","v":0},{"$f":"_xlfn.TEXTJOIN(\"  \",,Berechnungen!B203, Berechnungen!C203)","v":"Kompensationsmaßnahmen (auch an anderen Orten) sind in den Fragen 7 - 12  definiert. \nBeispiele: zusätzliche Grünflächen, Sanierung anderer Gebäude, Anlagen für erneuerbare Energieerzeugung, nachhaltige Beschaffung bei anderen Projekten ..."}]
[{"$f":"Berechnungen!A204","v":0},{"$f":"_xlfn.TEXTJOIN(\"  \",,Berechnungen!B204, Berechnungen!C204)","v":"Angabe der Kompensationsmaßnahmen (deren Umsetzung beantragt werden muss):"}]
[{"$f":"Berechnungen!A205","v":0},{"$f":"_xlfn.TEXTJOIN(\"  \",,Berechnungen!B205, Berechnungen!C205)","v":""}]
[{"$f":"Berechnungen!A206","v":0},{"$f":"_xlfn.TEXTJOIN(\"  \",,Berechnungen!B206, Berechnungen!C206)","v":""}]
[{"$f":"Berechnungen!A207","v":0},{"$f":"_xlfn.TEXTJOIN(\"  \",,Berechnungen!B207, Berechnungen!C207)","v":""}]
[{"$f":"Berechnungen!A208","v":0},{"$f":"_xlfn.TEXTJOIN(\"  \",,Berechnungen!B208, Berechnungen!C208)","v":""}]
[{"$f":"Berechnungen!A209","v":0},{"$f":"_xlfn.TEXTJOIN(\"  \",,Berechnungen!B209, Berechnungen!C209)","v":""}]
[{"$f":"Berechnungen!A210","v":0},{"$f":"_xlfn.TEXTJOIN(\"  \",,Berechnungen!B210, Berechnungen!C210)","v":""}]
[{"$f":"Berechnungen!A211","v":0},{"$f":"_xlfn.TEXTJOIN(\"  \",,Berechnungen!B211, Berechnungen!C211)","v":""}]
[{"$f":"Berechnungen!A212","v":0},{"$f":"_xlfn.TEXTJOIN(\"  \",,Berechnungen!B212, Berechnungen!C212)","v":""}]
[{"$f":"Berechnungen!A213","v":0},{"$f":"_xlfn.TEXTJOIN(\"  \",,Berechnungen!B213, Berechnungen!C213)","v":""}]
[{"$f":"Berechnungen!A214","v":0},{"$f":"_xlfn.TEXTJOIN(\"  \",,Berechnungen!B214, Berechnungen!C214)","v":""}]
[{"$f":"Berechnungen!A215","v":0},{"$f":"_xlfn.TEXTJOIN(\"  \",,Berechnungen!B215, Berechnungen!C215)","v":""}]
[{"$f":"Berechnungen!A216","v":0},{"$f":"_xlfn.TEXTJOIN(\"  \",,Berechnungen!B216, Berechnungen!C216)","v":""}]
[{"$f":"Berechnungen!A217","v":0},{"$f":"_xlfn.TEXTJOIN(\"  \",,Berechnungen!B217, Berechnungen!C217)","v":""}]
[{"$f":"Berechnungen!A218","v":"Sonstige negative Klimarelevanz"},{"$f":"_xlfn.TEXTJOIN(\"  \",,Berechnungen!B218, Berechnungen!C218)","v":"6.  Gibt es eine negative Auswirkung auf das Klima, die in den vorherigen Fragen nicht erwähnt wurde?"}]
[{"$f":"Berechnungen!A219","v":"Detailfragen"},{"$f":"_xlfn.TEXTJOIN(\"  \",,Berechnungen!B219, Berechnungen!C219)","v":"Welche klimaschädigenden Auswirkungen hat das Vorhaben?"}]
[{"$f":"Berechnungen!A220","v":0},{"$f":"_xlfn.TEXTJOIN(\"  \",,Berechnungen!B220, Berechnungen!C220)","v":""}]
[{"$f":"Berechnungen!A221","v":0},{"$f":"_xlfn.TEXTJOIN(\"  \",,Berechnungen!B221, Berechnungen!C221)","v":""}]
[{"$f":"Berechnungen!A222","v":0},{"$f":"_xlfn.TEXTJOIN(\"  \",,Berechnungen!B222, Berechnungen!C222)","v":"Wie würden Sie die klimaschädigenden Auswirkungen des Vorhabens einschätzen?"}]
[{"$f":"Berechnungen!A223","v":0},{"$f":"_xlfn.TEXTJOIN(\"  \",,Berechnungen!B223, Berechnungen!C223)","v":"Welche Alternativen sind möglich und können umgesetzt werden?  "}]
[{"$f":"Berechnungen!A224","v":0},{"$f":"_xlfn.TEXTJOIN(\"  \",,Berechnungen!B224, Berechnungen!C224)","v":""}]
[{"$f":"Berechnungen!A225","v":0},{"$f":"_xlfn.TEXTJOIN(\"  \",,Berechnungen!B225, Berechnungen!C225)","v":"Wie würden Sie die klimaschädigenden Auswirkungen des Vorhabens unter Berücksichtigung der Alternativen bewerten?"}]
[{"$f":"Berechnungen!A226","v":0},{"$f":"_xlfn.TEXTJOIN(\"  \",,Berechnungen!B226, Berechnungen!C226)","v":""}]
[{"$f":"Berechnungen!A227","v":0},{"$f":"_xlfn.TEXTJOIN(\"  \",,Berechnungen!B227, Berechnungen!C227)","v":"Wenn Alternativen nicht möglich sind: Mit welchen Kompensationsmaßnahmen kann das Vorhaben klimafreundlicher umgesetzt werden?"}]
[{"$f":"Berechnungen!A228","v":0},{"$f":"_xlfn.TEXTJOIN(\"  \",,Berechnungen!B228, Berechnungen!C228)","v":""}]
[{"$f":"Berechnungen!A229","v":0},{"$f":"_xlfn.TEXTJOIN(\"  \",,Berechnungen!B229, Berechnungen!C229)","v":""}]
[{"$f":"Berechnungen!A230","v":0},{"$f":"_xlfn.TEXTJOIN(\"  \",,Berechnungen!B230, Berechnungen!C230)","v":""}]
[{"$f":"Berechnungen!A231","v":0},{"$f":"_xlfn.TEXTJOIN(\"  \",,Berechnungen!B231, Berechnungen!C231)","v":""}]
[{"$f":"Berechnungen!A232","v":0},{"$f":"_xlfn.TEXTJOIN(\"  \",,Berechnungen!B232, Berechnungen!C232)","v":""}]
[{"$f":"Berechnungen!A233","v":0},{"$f":"_xlfn.TEXTJOIN(\"  \",,Berechnungen!B233, Berechnungen!C233)","v":""}]
[{"$f":"Berechnungen!A234","v":0},{"$f":"_xlfn.TEXTJOIN(\"  \",,Berechnungen!B234, Berechnungen!C234)","v":""}]
[{"$f":"Berechnungen!A235","v":0},{"$f":"_xlfn.TEXTJOIN(\"  \",,Berechnungen!B235, Berechnungen!C235)","v":""}]
[{"$f":"Berechnungen!A236","v":0},{"$f":"_xlfn.TEXTJOIN(\"  \",,Berechnungen!B236, Berechnungen!C236)","v":""}]
[{"$f":"Berechnungen!A237","v":0},{"$f":"_xlfn.TEXTJOIN(\"  \",,Berechnungen!B237, Berechnungen!C237)","v":""}]
[{"$f":"Berechnungen!A238","v":0},{"$f":"_xlfn.TEXTJOIN(\"  \",,Berechnungen!B238, Berechnungen!C238)","v":""}]
[{"$f":"Berechnungen!A239","v":0},{"$f":"_xlfn.TEXTJOIN(\"  \",,Berechnungen!B239, Berechnungen!C239)","v":""}]
[{"$f":"Berechnungen!A240","v":0},{"$f":"_xlfn.TEXTJOIN(\"  \",,Berechnungen!B240, Berechnungen!C240)","v":""}]
[{"$f":"Berechnungen!A241","v":0},{"$f":"_xlfn.TEXTJOIN(\"  \",,Berechnungen!B241, Berechnungen!C241)","v":""}]
[{"$f":"Berechnungen!A242","v":0},{"$f":"_xlfn.TEXTJOIN(\"  \",,Berechnungen!B242, Berechnungen!C242)","v":""}]
[{"$f":"Berechnungen!A243","v":"Erneuerbare Energie"},{"$f":"_xlfn.TEXTJOIN(\"  \",,Berechnungen!B243, Berechnungen!C243)","v":"7.  Kann durch das Vorhaben erneuerbare Energie (Biomasse, Sonne, Umgebungswärme) erzeugt oder fossile Energie eingespart werden (Dämmung, Heizungstausch, …) ? "}]
[{"$f":"Berechnungen!A244","v":0},{"$f":"_xlfn.TEXTJOIN(\"  \",,Berechnungen!B244, Berechnungen!C244)","v":""},"Frage70_Text","Frage71_Hilfe","Frage72_Hilfe","Frage73_Hilfe","Frage74_Hilfe","Kompensation71b_Hilfe","Kompensation74_Hilfe"]
[{"$f":"Berechnungen!A245","v":"Detailfragen"},{"$f":"_xlfn.TEXTJOIN(\"  \",,Berechnungen!B245, Berechnungen!C245)","v":"7.1  Kann durch Photovoltaik oder Solaranlagen erneuerbare Energie erzeugt werden? Wie viel Prozent der geeigneten Dachflächen wird zur Strom- oder Wärmeerzeugung genutzt?"},{"$f":"B245&CHAR(10)&CHAR(10)&B246&CHAR(10)&CHAR(10)&B247&CHAR(10)&CHAR(10)&B248&CHAR(10)&CHAR(10)","v":"7.1  Kann durch Photovoltaik oder Solaranlagen erneuerbare Energie erzeugt werden? Wie viel Prozent der geeigneten Dachflächen wird zur Strom- oder Wärmeerzeugung genutzt?\n\n7.2  Kann durch Dämmung oder andere Maßnahmen z.B. Heizungsoptimierung, Abwärmenutzung der Heizbedarf von Gebäuden oder Anlagen reduziert werden ? Für wie viel Prozent der vorhandenen BGF wird dies umgesetzt?\n\n7.3  Kann eine Öl- oder Gasheizung dauerhaft durch eine Hackgut- bzw. Pelletsheizung, Fernwärme oder eine Wärmepumpe ersetzt werden? Wenn es möglich ist, für wie viel Prozent der vorhandenen BGF wird dies umgesetzt?\n\n7.4  Kann durch den Austausch/Beschaffung von Geräten, Beleuchtung, Materialien, … fossile Energie eingespart werden? Wie viel Prozent kann eingespart werden?\n\n"},"  Hier wird die Summe der Solar- oder Photovoltaikflächen im Verhältnis zur Dachfläche eines Gebäudes oder einer Anlage angegeben, die für eine Nutzung geeignet ist. \n\n  Geeignet sind Dachflächen, die nach Südost, Süden bzw. nach Südwest ausgerichtet sind. Auch unbeschattete Flachdächer sind zur Nutzung geeignet (mit entsprechender Aufständerung). Bei Ost und Westausrichtung wird die geeignete Dachfläche mit 50% der tatsächlichen Dachfläche angenommen. Eine Ausrichtung nach Norden ist ungeeignet.\n\n  Eingabe \"nicht relevant\" wenn aus baurechtlichen Gründen nicht möglich und Angabe des Grundes in den Anmerkungen z.B. Denkmalschutz.","  Hier wird die Summe der gedämmten BGF im Verhältnis zur gesamten BGF eines Gebäudes oder einer Anlage angegeben (geschätzt).\nBeispiel 1: Gebäude mit 1000 m² BGF, 1000 m² Decke zum DB wird gedämmt --> = 100%.\nBeispiel 2: Gebäude mit 1000 m² BGF, 50% der Außenwände werden gedämmt --> = 50%.\n\n  Flächen bei denen Dämmung aus baurechtlichen Gründen nicht möglich ist, werden nicht berücksichtigt (Eingabe \"nicht relevant\"). Angabe des Grundes z.B. Denkmalschutz in den Anmerkungen.\n\n  Heizungsoptimierung, Abwärmenutzung bzw. Doppelnutzung von Energie, Kältenutzung: Wird durch solche Maßnahmen der Heiz- oder Strombedarf z.B. um 10% gesenkt, kann eine Fläche um 10% reduziert werden.","Eingabe \"nicht relevant\" wenn aus baurechtlichen Gründen nicht möglich und Angabe des Grundes z.B. Denkmalschutz in den Anmerkungen.","Zum Beispiel bei der Umstellung der Straßenbeleuchtung auf LED","Der typische Flächenbedarf bei PV-Anlagen beträgt zwischen 6 und 8m² pro kWp. ","Erst ab einer Einsparung von mind. 23 MWh (=23.000 kWh) über die Lebensdauer des Gerätes kann eine mittelgrüne Ampel erreicht werden. Erst ab 450 MWh kann eine dunkelgrüne Ampel erreicht werden. Bei geringerer Einsparung ist eine Berechnung nicht unbedingt notwendig. \nZur Berechnung schaut man sich den Energieverbrauch des Gerätes pro Jahr an und multipliziert diese mit der Lebensdauer. Wenn man den Energieverbrauch des Gerätes nicht weiß, kann man auch die Leistung mit der durchschnittlichen Einschaltdauer multiplizieren. \n\nBeispiel 1: Austausch eines Druckers\n    8260 h Stunden in Standby:  Vorher 10 Watt nachher 3 Watt   vorher 8260 h * 10 W = 83 kWh, nachher 8260 h * 3 W = 25 kWh   Einsparung 58 kWh\n    500 h in Betrieb (im Durchschnitt sind die Drucker in Firmen an 200 Arbeitstagen durchschnittlich 2,5 Stunden im Betrieb): Vorher 1000 Watt nachher 500 Watt   500 h * 1000 W = 500 kWh nachher 500 h * 500 W = 250 kWh   Einsparung 250 kWh\n    Lebensdauer Drucker = 6 Jahre  310 kWh (Betrieb + Standby) mal 6 Jahre = 1860 kWh = ~2 MWh pro Drucker \n    In diesem Fall würde ab einen Tausch von ~12 Drucker eine mittelgrüne Ampel erreicht werden.  \n\nBeispiel 2: Austausch von Straßenbeleuchtung\n    Austausch von 90 W Quecksilberdampf-Hochdrucklampe durch 24 W LED-Leuchte. Einsparung von 66 W.\n    4.100 Brennstunden: 66 W mal 4100 h = 270 kWh Einsparung pro Leuchte \n    Anzahl der Lichtpunkte 140 und Lebensdauer 12 Jahre. 270 mal 150 mal 12 = 453 MWh. \n    In diesem Beispiel würde ab einen Tausch von 140 Lichtpunkte eine dunkelgrüne Ampel erreicht werden. "]
[{"$f":"Berechnungen!A246","v":0},{"$f":"_xlfn.TEXTJOIN(\"  \",,Berechnungen!B246, Berechnungen!C246)","v":"7.2  Kann durch Dämmung oder andere Maßnahmen z.B. Heizungsoptimierung, Abwärmenutzung der Heizbedarf von Gebäuden oder Anlagen reduziert werden ? Für wie viel Prozent der vorhandenen BGF wird dies umgesetzt?"}]
[{"$f":"Berechnungen!A247","v":0},{"$f":"_xlfn.TEXTJOIN(\"  \",,Berechnungen!B247, Berechnungen!C247)","v":"7.3  Kann eine Öl- oder Gasheizung dauerhaft durch eine Hackgut- bzw. Pelletsheizung, Fernwärme oder eine Wärmepumpe ersetzt werden? Wenn es möglich ist, für wie viel Prozent der vorhandenen BGF wird dies umgesetzt?"}]
[{"$f":"Berechnungen!A248","v":0},{"$f":"_xlfn.TEXTJOIN(\"  \",,Berechnungen!B248, Berechnungen!C248)","v":"7.4  Kann durch den Austausch/Beschaffung von Geräten, Beleuchtung, Materialien, … fossile Energie eingespart werden? Wie viel Prozent kann eingespart werden?"}]
[{"$f":"Berechnungen!A249","v":0},{"$f":"_xlfn.TEXTJOIN(\"  \",,Berechnungen!B249, Berechnungen!C249)","v":"Kurzbeschreibung / Auflistung der Effizienzmaßnahmen: "}]
[{"$f":"Berechnungen!A250","v":0},{"$f":"_xlfn.TEXTJOIN(\"  \",,Berechnungen!B250, Berechnungen!C250)","v":""}]
[{"$f":"Berechnungen!A251","v":0},{"$f":"_xlfn.TEXTJOIN(\"  \",,Berechnungen!B251, Berechnungen!C251)","v":""}]
[{"$f":"Berechnungen!A252","v":0},{"$f":"_xlfn.TEXTJOIN(\"  \",,Berechnungen!B252, Berechnungen!C252)","v":""}]
[{"$f":"Berechnungen!A253","v":0},{"$f":"_xlfn.TEXTJOIN(\"  \",,Berechnungen!B253, Berechnungen!C253)","v":""}]
[{"$f":"Berechnungen!A254","v":"Das Vorhaben hat eine gewisse Klimarelevanz.   Für die Fragen mit L und K sind Verbesserungen im Bezug auf Klimaschutz möglich."},{"$f":"_xlfn.TEXTJOIN(\"  \",,Berechnungen!B254, Berechnungen!C254)","v":""}]
[{"$f":"Berechnungen!A255","v":"Alternativen-prüfung"},{"$f":"_xlfn.TEXTJOIN(\"  \",,Berechnungen!B255, Berechnungen!C255)","v":"Alternativen um das Vorhaben klimafreundlicher umzusetzen: "}]
[{"$f":"Berechnungen!A256","v":0},{"$f":"_xlfn.TEXTJOIN(\"  \",,Berechnungen!B256, Berechnungen!C256)","v":"ad 7.1)  Bei allen Fragen wo oberer Schwellwert nicht erreicht ist, das Potential möglichst vollständig ausnutzen."},{"$f":"B256&CHAR(10)&B257&CHAR(10)&B258&CHAR(10)","v":"ad 7.1)  Bei allen Fragen wo oberer Schwellwert nicht erreicht ist, das Potential möglichst vollständig ausnutzen.\nbis\nad 7.4)\n"}]
[{"$f":"Berechnungen!A257","v":0},{"$f":"_xlfn.TEXTJOIN(\"  \",,Berechnungen!B257, Berechnungen!C257)","v":"bis"}]
[{"$f":"Berechnungen!A258","v":0},{"$f":"_xlfn.TEXTJOIN(\"  \",,Berechnungen!B258, Berechnungen!C258)","v":"ad 7.4)"}]
[{"$f":"Berechnungen!A259","v":0},{"$f":"_xlfn.TEXTJOIN(\"  \",,Berechnungen!B259, Berechnungen!C259)","v":"Angabe der Alternativen in Stichworten:"}]
[{"$f":"Berechnungen!A260","v":0},{"$f":"_xlfn.TEXTJOIN(\"  \",,Berechnungen!B260, Berechnungen!C260)","v":""}]
[{"$f":"Berechnungen!A261","v":0},{"$f":"_xlfn.TEXTJOIN(\"  \",,Berechnungen!B261, Berechnungen!C261)","v":"Welche Werte ergeben sich unter Berücksichtigung der Alternativen?"}]
[{"$f":"Berechnungen!A262","v":0},{"$f":"_xlfn.TEXTJOIN(\"  \",,Berechnungen!B262, Berechnungen!C262)","v":"7.1  Kann durch Photovoltaik oder Solaranlagen erneuerbare Energie erzeugt werden? Wie viel Prozent der geeigneten Dachflächen wird zur Strom- oder Wärmeerzeugung genutzt?"},{"$f":"B262&CHAR(10)&CHAR(10)&B263&CHAR(10)&CHAR(10)&B264&CHAR(10)&CHAR(10)&B265&CHAR(10)&CHAR(10)","v":"7.1  Kann durch Photovoltaik oder Solaranlagen erneuerbare Energie erzeugt werden? Wie viel Prozent der geeigneten Dachflächen wird zur Strom- oder Wärmeerzeugung genutzt?\n\n7.2  Kann durch Dämmung oder andere Maßnahmen z.B. Heizungsoptimierung, Abwärmenutzung der Heizbedarf von Gebäuden oder Anlagen reduziert werden ? Für wie viel Prozent der vorhandenen BGF wird dies umgesetzt?\n\n7.3  Kann eine Öl- oder Gasheizung dauerhaft durch eine Hackgut- bzw. Pelletsheizung, Fernwärme oder eine Wärmepumpe ersetzt werden? Wenn es möglich ist, für wie viel Prozent der vorhandenen BGF wird dies umgesetzt?\n\n7.4  Kann durch den Austausch/Beschaffung von Geräten, Beleuchtung, Materialien, … fossile Energie eingespart werden? Wie viel Prozent kann eingespart werden?\n\n"}]
[{"$f":"Berechnungen!A263","v":0},{"$f":"_xlfn.TEXTJOIN(\"  \",,Berechnungen!B263, Berechnungen!C263)","v":"7.2  Kann durch Dämmung oder andere Maßnahmen z.B. Heizungsoptimierung, Abwärmenutzung der Heizbedarf von Gebäuden oder Anlagen reduziert werden ? Für wie viel Prozent der vorhandenen BGF wird dies umgesetzt?"}]
[{"$f":"Berechnungen!A264","v":0},{"$f":"_xlfn.TEXTJOIN(\"  \",,Berechnungen!B264, Berechnungen!C264)","v":"7.3  Kann eine Öl- oder Gasheizung dauerhaft durch eine Hackgut- bzw. Pelletsheizung, Fernwärme oder eine Wärmepumpe ersetzt werden? Wenn es möglich ist, für wie viel Prozent der vorhandenen BGF wird dies umgesetzt?"}]
[{"$f":"Berechnungen!A265","v":0},{"$f":"_xlfn.TEXTJOIN(\"  \",,Berechnungen!B265, Berechnungen!C265)","v":"7.4  Kann durch den Austausch/Beschaffung von Geräten, Beleuchtung, Materialien, … fossile Energie eingespart werden? Wie viel Prozent kann eingespart werden?"}]
[{"$f":"Berechnungen!A266","v":0},{"$f":"_xlfn.TEXTJOIN(\"  \",,Berechnungen!B266, Berechnungen!C266)","v":""}]
[{"$f":"Berechnungen!A267","v":"Nutzung dieses Vorhabens als Kompensations-maßnahme"},{"$f":"_xlfn.TEXTJOIN(\"  \",,Berechnungen!B267, Berechnungen!C267)","v":"7.1a  Wird durch thermische Solaranlagen erneuerbare Wärme erzeugt? Wie viel m² Solarfläche wird ungefähr errichtet?"},{"$f":"B267&CHAR(10)&CHAR(10)&B268&CHAR(10)&CHAR(10)&B269&CHAR(10)&CHAR(10)&B270&CHAR(10)&CHAR(10)&B271&CHAR(10)&CHAR(10)&B272&CHAR(10)&CHAR(10)&B273","v":"7.1a  Wird durch thermische Solaranlagen erneuerbare Wärme erzeugt? Wie viel m² Solarfläche wird ungefähr errichtet?\n\n7.1b  Wird durch Photovoltaik erneuerbarer Strom erzeugt? Wie viel m² Photovoltaikfläche wird ungefähr errichtet?\n\nGEMEINSAME AMPEL FÜR FRAGE 7.1a und 7.1b\n\n7.2  Wurde durch Dämmung oder andere Maßnahmen z.B. Heizungsoptimierung, Abwärmenutzung der Heizbedarf von Gebäuden oder Anlagen reduziert ? Für wie viele m² BGF wurde dies ungefähr umgesetzt?\n\n7.3  Wurde eine Öl- oder Gasheizung dauerhaft durch eine Hackgut- bzw. Pelletsheizung, Fernwärme oder eine Wärmepumpe ersetzt? Für wie viele m² BGF wurde dies ungefähr umgesetzt?\n\n7.4  Kann durch den Austausch/Beschaffung von Geräten, Beleuchtung, Materialien, … fossile Energie eingespart werden? Wie viel MWh (=1000 kWh) kann auf die Lebensdauer ungefähr eingespart werden?\n\n"}]
[{"$f":"Berechnungen!A268","v":0},{"$f":"_xlfn.TEXTJOIN(\"  \",,Berechnungen!B268, Berechnungen!C268)","v":"7.1b  Wird durch Photovoltaik erneuerbarer Strom erzeugt? Wie viel m² Photovoltaikfläche wird ungefähr errichtet?"}]
[{"$f":"Berechnungen!A269","v":0},{"$f":"_xlfn.TEXTJOIN(\"  \",,Berechnungen!B269, Berechnungen!C269)","v":"GEMEINSAME AMPEL FÜR FRAGE 7.1a und 7.1b"}]
[{"$f":"Berechnungen!A270","v":0},{"$f":"_xlfn.TEXTJOIN(\"  \",,Berechnungen!B270, Berechnungen!C270)","v":"7.2  Wurde durch Dämmung oder andere Maßnahmen z.B. Heizungsoptimierung, Abwärmenutzung der Heizbedarf von Gebäuden oder Anlagen reduziert ? Für wie viele m² BGF wurde dies ungefähr umgesetzt?"}]
[{"$f":"Berechnungen!A271","v":0},{"$f":"_xlfn.TEXTJOIN(\"  \",,Berechnungen!B271, Berechnungen!C271)","v":"7.3  Wurde eine Öl- oder Gasheizung dauerhaft durch eine Hackgut- bzw. Pelletsheizung, Fernwärme oder eine Wärmepumpe ersetzt? Für wie viele m² BGF wurde dies ungefähr umgesetzt?"}]
[{"$f":"Berechnungen!A272","v":0},{"$f":"_xlfn.TEXTJOIN(\"  \",,Berechnungen!B272, Berechnungen!C272)","v":"7.4  Kann durch den Austausch/Beschaffung von Geräten, Beleuchtung, Materialien, … fossile Energie eingespart werden? Wie viel MWh (=1000 kWh) kann auf die Lebensdauer ungefähr eingespart werden?"}]
[{"$f":"Berechnungen!A273","v":0},{"$f":"_xlfn.TEXTJOIN(\"  \",,Berechnungen!B273, Berechnungen!C273)","v":""}]
[{"$f":"Berechnungen!A274","v":0},{"$f":"_xlfn.TEXTJOIN(\"  \",,Berechnungen!B274, Berechnungen!C274)","v":""}]
[{"$f":"Berechnungen!A275","v":0},{"$f":"_xlfn.TEXTJOIN(\"  \",,Berechnungen!B275, Berechnungen!C275)","v":""}]
[{"$f":"Berechnungen!A276","v":0},{"$f":"_xlfn.TEXTJOIN(\"  \",,Berechnungen!B276, Berechnungen!C276)","v":""}]
[{"$f":"Berechnungen!A277","v":0},{"$f":"_xlfn.TEXTJOIN(\"  \",,Berechnungen!B277, Berechnungen!C277)","v":""}]
[{"$f":"Berechnungen!A278","v":0},{"$f":"_xlfn.TEXTJOIN(\"  \",,Berechnungen!B278, Berechnungen!C278)","v":""}]
[{"$f":"Berechnungen!A279","v":0},{"$f":"_xlfn.TEXTJOIN(\"  \",,Berechnungen!B279, Berechnungen!C279)","v":""}]
[{"$f":"Berechnungen!A280","v":0},{"$f":"_xlfn.TEXTJOIN(\"  \",,Berechnungen!B280, Berechnungen!C280)","v":""}]
[{"$f":"Berechnungen!A281","v":0},{"$f":"_xlfn.TEXTJOIN(\"  \",,Berechnungen!B281, Berechnungen!C281)","v":""}]
[{"$f":"Berechnungen!A282","v":0},{"$f":"_xlfn.TEXTJOIN(\"  \",,Berechnungen!B282, Berechnungen!C282)","v":""}]
[{"$f":"Berechnungen!A283","v":0},{"$f":"_xlfn.TEXTJOIN(\"  \",,Berechnungen!B283, Berechnungen!C283)","v":""}]
[{"$f":"Berechnungen!A284","v":0},{"$f":"_xlfn.TEXTJOIN(\"  \",,Berechnungen!B284, Berechnungen!C284)","v":""}]
[{"$f":"Berechnungen!A285","v":"Klimafreundliche Mobilität"},{"$f":"_xlfn.TEXTJOIN(\"  \",,Berechnungen!B285, Berechnungen!C285)","v":"8.  Kann das Vorhaben einen Anreiz für klimafreundliche Mobilität setzen (Radfahren, Gehen, Öffis, alternative Antriebe) oder den PKW- bzw. Güterverkehr reduzieren?"}]
[{"$f":"Berechnungen!A286","v":0},{"$f":"_xlfn.TEXTJOIN(\"  \",,Berechnungen!B286, Berechnungen!C286)","v":""},"Frage80Text","Frage81Hilfe (alle Hilfen gleich für Alternativen und Kompensation)","Frage82Hilfe","Frage83Hilfe","Frage84Hilfe","Frage85Hilfe","Frage86Hilfe","Frage87Hilfe"]
[{"$f":"Berechnungen!A287","v":"Detailfragen"},{"$f":"_xlfn.TEXTJOIN(\"  \",,Berechnungen!B287, Berechnungen!C287)","v":"8.1  Wird durch das Projekt der öffentliche Personen-Nahverkehr (ÖPNV) gefördert?\nBeispiele: Bus- oder Bahnanbindung, Anrufsammeltaxi, Bike&Ride- bzw. Park&Ride-Anlagen, Förderung ÖFFIs"},{"$f":"B287&CHAR(10)&CHAR(10)&B288&CHAR(10)&CHAR(10)&B289&CHAR(10)&CHAR(10)&B290&CHAR(10)&CHAR(10)&B291&CHAR(10)&CHAR(10)&CHAR(10)&B292&CHAR(10)&CHAR(10)&B293","v":"8.1  Wird durch das Projekt der öffentliche Personen-Nahverkehr (ÖPNV) gefördert?\nBeispiele: Bus- oder Bahnanbindung, Anrufsammeltaxi, Bike&Ride- bzw. Park&Ride-Anlagen, Förderung ÖFFIs\n\n8.2  Wird durch das Projekt der klimafreundliche Fuß- und Radverkehr gefördert?\nBeispiele: Gute Qualität von Rad- und Fußwegen, optimale Wegeführung, sichere Kreuzungen, Ampelschaltungen auch auf Rad- und Fußverkehr abgestimmt, kurze (Alltags-)Wege, Beleuchtung …\n\n8.3  Wird CO2-neutrale Mobilität gefördert?  \nBeispiele: Testangebot von Fahrzeugen mit CO2-neutralem Antriebssystem, Ausbau von E-Ladeinfrastruktur, Förderung\n\n8.4  Kann durch das Projekt eine Reduktion des PKW-Verkehrs oder der PKW-Anzahl erzielt werden? \nBeispiele: CarSharing-Angebot, Parkraummanagement, Fahrverbote, Geschwindigkeitsreduktion\n\n8.5  In wie weit werden die Potentiale zur Reduktion von Schwerverkehrfahrten genutzt? \nBeispiele:  Bahnanschluss, Sammeltransporte, gebündelter Verkehr, Fahrverbot, Fahrbeschränkung\n\n\n8.6  Kann durch das Projekt die tatsächliche Fahrgeschwindigkeit des KFZ-Verkehrs verringert werden? \n\n8.7  Kann durch das Vorhaben klimafreundliche Mobilität in der Verwaltung verbessert werden?"},"Die Gemeinde kann durch verschiedene Maßnahmen zur Förderung des öffentlichen Personen-Nahverkehrs (ÖPNV) beitragen. \n\nVerkehrsplanerische Maßnahmen im Ortsgebiet mit Fokus auf die Erhöhung der Verkehrssicherheit finden Sie auf   \n          Link 81_1\n\nKriterien (Beispiele):\n- Vorgaben in Flächenwidmung, Bebauungsplan o.ä.\n- Bus- oder Bahnverbindung verbessern z.B. Stadtbus\n- Anrufsammeltaxi wird geplant oder wird ausgebaut\n- Bike&Ride-/Park&Ride-Anlagen errichten oder erweitern\n- Attraktive ÖPNV-Anlagen errichten oder verbessern z.B. Haltestellen wettergeschützt und beleuchtet\n- hohe Taktfrequenz forcieren\n- Förderung Tarife (Bus-, Bahnkarten) \n\nBewertung:\n- gering: kaum Verbesserung  für den ÖPNV\n- teilweise: ÖPNV Anbindung wird verbessert oder ausgebaut (mind. 1 Kriterium stark verbessert oder 2-3 Kriterien leicht verbessert)\n- maßgeblich:  ÖPNV Anbindung wird stark verbessert oder ausgebaut (mind. 2-3 Kriterien stark verbessert)","Die Gemeinde kann durch verschiedene Maßnahmen zur Förderung von klimafreundlichem Fuß- und Radverkehr beitragen. \n\nVerkehrsplanerische Maßnahmen im Ortsgebiet mit Fokus auf die Erhöhung der Verkehrssicherheit finden Sie auf  \n\n            Link 82_1\n\nLink \"Stadt der kurzen Wege\": \n\n           Link 82_2\n\nKriterien (Beispiele):\n- Handlungsmöglichkeiten zur Forcierung des Fuß- und Radverkehrs aus Konzept \"Stadt der kurzen Wege\" werden umgesetzt\n- kurze Wegeführung v.a. bei Fußwegen optimieren\n- Qualität von Rad- und Fußwegen v.a. im Bezug auf Sicherheit verbessern\n- Kreuzungen sicherer machen\n- Beleuchtung bei Fußwegen verbessern\n- hochwertige Abstellmöglichkeiten für Fahrräder einrichten\n- Beleuchtung bei Radwegen verbessern\n- Ampelschaltungen auch auf Rad- und Fußverkehr abstimmen\n- Lademöglichkeit für Elektrofahrräder errichten\n\nBewertung:\n- gering: kaum Verbesserung für den klimafreundlichen Fuß- und Radverkehr\n- teilweise: klimafreundlicher Fuß- und Radverkehr wird verbessert oder ausgebaut (mind. 1 Kriterium stark verbessert oder 2-3 Kriterien leicht verbessert)\n- maßgeblich:  klimafreundlicher Fuß- und Radverkehr wird stark verbessert oder ausgebaut (mind. 2-3 Kriterien stark verbessert)","Kriterien (Beispiele):\n- Testangebot von Fahrzeuge mit CO2-neutralem Antriebssystem für Bürger*innen und Betriebe wird geschaffen (Kostenrechner für E-Mobilität)\n- Mobilitätsberatung wird angeboten\n- Multimodale Mobiltitäskarten werden gefördert (Verknüpfung von ÖPNV, E-Carsharing, Fahrradverleih,...)\n- Marketing: Verankerung von CO2-neutraler Mobilität im Gemeinde- bzw. Stadtmarketing\n- öffentliche E-Ladeinfrastruktur wird (nach Masterplan) ausgebaut\n- E-Ladeinfrastruktur bei Neubauten wird eingefordert (mindest. Leerverrohrung)\n- Förderung bei Kauf von vollelektrischen Fahrzeugen (BEV - battery electric vehicles) bzw. bei Spezial-Fahrzeugen auf Basis von Biogas, Wasserstoff oder E-Fuel für Private und Betriebe (Koppelung z.B. an Wirtschaftsförderung)\n\nBewertung:\n- gering: wenig Förderung von CO2-neutraler Mobilität (Sensibilisierung von Bürger*innen und lokalen Akteuren zum Thema CO2-neutraler Mobilität wird betrieben)\n- teilweise: teilweise vorsorgliche (vorrausschauende) Förderung (Ausbau von E-Ladeinfrastruktur und Berücksichtigung in Bauprojekten)\n- maßgeblich: Vorsorgliche (vorrausschauende) Förderung von CO2-neutraler Mobilität (Ausbau Ladeinfrastruktur,...) und aktive Förderung (Föderung von Kauf von Fahrzeugen,...)","Die Gemeinde kann durch verschiedene Maßnahmen eine Reduktion des PKW-Verkehrs oder der PKW-Anzahl erzielen. \n\nLink \"Stadt der kurzen Wege\": \n\n             Link 84_1\n\nKriterien (Beispiele):\n- Handlungsmöglichkeiten zur Reduktion des PKW-Verkehrs aus Konzept \"Stadt der kurzen Wege\" werden umgesetzt\n- Plattformen für (E-)CarSharing werden geschaffen (Mitfahrbänkle, Online CarSharing-Plattformen,...)\n- Parkraummanagement wird eingerichtet/ausgebaut\n- Geschwindigkeitsreduktion (Ausbau von Tempo 30 Zonen und Fahrradstraßen,...)\n- (innerörtliche) Fahrverbote (z.B. im Bereich von Kindergärten, Schulen,...)\n\nBewertung:\n- gering: kaum Verbesserung für Reduktion des PKW-Verkehrs\n- teilweise: Maßnahmen zur Reduktion des PKW-Verkehrs werden umgesetzt (mind. 1 Kriterium stark verbessert oder 2 Kriterien leicht verbessert)\n- maßgeblich: Maßnahmen zur Reduktion des PKW-Verkehrs werden umgesetzt (mind. 2 Kriterien stark verbessert)","In diesem Punkt haben Gemeinden relativ wenig Einflussmöglichkeiten da bei Betrieben oft wirtschaftliche Interessen überwiegen. \n\nKriterien\n1) Kommunikation mit Betrieben um dieses Umweltthema und die möglichen Potentiale anzusprechen\n2) Vorschläge für Verbesserungen im Klimaschutz werden schriftlich festgehalten\n3) Mind. eine der vorgeschlagenen Klimaschutzmaßnahmen wird umgesetzt\n\nBewertung\n- gering: keine Kriterium oder nur Kriterienpunkt 1 umgesetzt\n- teilweise: Kriterienpunkt 1 und 2 umgesetzt\n- maßgeblich: Kriterienpunkt 1, 2 und 3 umgesetzt","Die Gemeinde kann durch verschiedene Maßnahmen eine Reduktion der tatsächlichen Fahrgeschwindigkeit des KFZ-Verkehrs erzielen. \n\nLink \"Was bringen Tempolimits?\": \n\n                   link 86_1\n\nLink \"Wirkungen von Tempo 30 an  Hauptverkehrsstraßen\":\n\n                  link 86_2\n\nKriterien (Beispiele):\n- Die Geschwindigkeit des KFZ-Verkehrs wird durch Tempolimits und entsprechende Hinweise (Beschilderung) reduziert\n- Bauliche Maßnahmen zur Temporeduktion werden errichtet (z.B. Änderung der Fahrstreifenbreite und Flächenaufteilung, Fahrbahnanhebungen, verkehrsberuhigende Straßenraumgestaltung)\n\nBewertung:\n- gering: kleinflächige Geschwindigkeitsbeschränkungen durch Tempolimits umgesetzt\n- teilweise: kleinflächige Geschwindigkeitsbeschränkungen durch Tempolimits umgesetzt inklusive umgesetzte bauliche Maßnahmen zur Limitierung der Geschwindigkeit\n- maßgeblich: großflächige Geschwindigkeitbeschränkungen durch Tempolimits umgesetzt inklusive umgesetzte bauliche Maßnahmen zur Limitierung der Geschwindigkeit","Die Gemeinde kann durch verschiedene Maßnahmen klimafreundliche Mobilität in der Verwaltung forcieren. \n\nKriterien (Beispiele):\n- Anreizsysteme werden geschaffen um die Mitarbeiter/innen zu klimafreundlicher An- und Abreise zu motivieren\n- Dienstreiseregelung unterstützt klimafreundliche Mobilität in der Verwaltung\n- Radabstellanlagen für Verwaltungsbedienstete werden errichtet/saniert (überdacht, eingangsnah, fahrend erreichbar und absperrbar)\n- (E-)Carsharing unter den Mitarbeiter/innen wird unterstützt\n- Anschaffung eines neuen Fahrzeuges nur wenn tatsächlicher Bedarf besteht (Bedarf wird vor Anschaffung genau analysiert)\n- Es wird ein Grundsatzbeschluss zur Beschaffung von Fahrzeugen mit CO2-neutralen Antriebssystem gefasst bzw. vollelektrische Fahrzeuge sogenannte BEV (battery electric vehicles) angeschafft. Wenn für die entsprechende Fahrzeugklasse kein taugliches Fahrzeug mit vollelektrischem Antrieb (BEV) verfügbar ist, kann auch ein Fahrzeug auf Basis von Plugin-Hybrid, Biogas, Wasserstoff bzw. E-Fuel bewertet werden.\n- Gemeinsame Anschaffung und Nutzung von Fahrzeugen durch mehrere Gemeinden, gemeinsame Nutzung eines Betriebs und durch die Gemeinde etc.\n\nBewertung:\n- gering: klimafreundliche Mobilität von Mitarbeiter/innen wird durch Anreizsysteme forciert\n- teilweise: neben Anreizsystemen werden mind. 2 weitere Kriterien erfüllt\n- maßgeblich: klimafreundliche Mobilität wird umfassend u.a. durch Anreizsysteme, Grundsatzbeschlüsse in der Beschaffung und Dienstreiseregelungen forciert"]
[{"$f":"Berechnungen!A288","v":0},{"$f":"_xlfn.TEXTJOIN(\"  \",,Berechnungen!B288, Berechnungen!C288)","v":"8.2  Wird durch das Projekt der klimafreundliche Fuß- und Radverkehr gefördert?\nBeispiele: Gute Qualität von Rad- und Fußwegen, optimale Wegeführung, sichere Kreuzungen, Ampelschaltungen auch auf Rad- und Fußverkehr abgestimmt, kurze (Alltags-)Wege, Beleuchtung …"},null,"Link81_1","Link82_1",null,"Link 84_1 = Link 82_2",null,"Link 86_1"]
[{"$f":"Berechnungen!A289","v":0},{"$f":"_xlfn.TEXTJOIN(\"  \",,Berechnungen!B289, Berechnungen!C289)","v":"8.3  Wird CO2-neutrale Mobilität gefördert?  \nBeispiele: Testangebot von Fahrzeugen mit CO2-neutralem Antriebssystem, Ausbau von E-Ladeinfrastruktur, Förderung"},null,"https://www.kfv.at/wp-content/uploads/2013/12/Best-Practice-Katalog.pdf","https://www.kfv.at/wp-content/uploads/2013/12/Best-Practice-Katalog.pdf  ",null,"https://www.umweltbundesamt.de/sites/default/files/medien/461/publikationen/4151.pdf",null," https://www.umweltbundesamt.at/fileadmin/site/publikationen/DP145.pdf"]
[{"$f":"Berechnungen!A290","v":0},{"$f":"_xlfn.TEXTJOIN(\"  \",,Berechnungen!B290, Berechnungen!C290)","v":"8.4  Kann durch das Projekt eine Reduktion des PKW-Verkehrs oder der PKW-Anzahl erzielt werden? \nBeispiele: CarSharing-Angebot, Parkraummanagement, Fahrverbote, Geschwindigkeitsreduktion"},null,null,"Link82_2",null,null,null,"Link 86_2"]
[{"$f":"Berechnungen!A291","v":0},{"$f":"_xlfn.TEXTJOIN(\"  \",,Berechnungen!B291, Berechnungen!C291)","v":"8.5  In wie weit werden die Potentiale zur Reduktion von Schwerverkehrfahrten genutzt? \nBeispiele:  Bahnanschluss, Sammeltransporte, gebündelter Verkehr, Fahrverbot, Fahrbeschränkung"},null,null,"https://www.umweltbundesamt.de/sites/default/files/medien/461/publikationen/4151.pdf",null,null,null,"https://www.umweltbundesamt.de/sites/default/files/medien/2546/publikationen/wirkungen_von_tempo_30_an_hauptstrassen.pdf"]
[{"$f":"Berechnungen!A292","v":0},{"$f":"_xlfn.TEXTJOIN(\"  \",,Berechnungen!B292, Berechnungen!C292)","v":"8.6  Kann durch das Projekt die tatsächliche Fahrgeschwindigkeit des KFZ-Verkehrs verringert werden? "}]
[{"$f":"Berechnungen!A293","v":0},{"$f":"_xlfn.TEXTJOIN(\"  \",,Berechnungen!B293, Berechnungen!C293)","v":"8.7  Kann durch das Vorhaben klimafreundliche Mobilität in der Verwaltung verbessert werden?"}]
[{"$f":"Berechnungen!A294","v":0},{"$f":"_xlfn.TEXTJOIN(\"  \",,Berechnungen!B294, Berechnungen!C294)","v":"Kurzbeschreibung / Auflistung der Klimaschutzmaßnahmen: "}]
[{"$f":"Berechnungen!A295","v":0},{"$f":"_xlfn.TEXTJOIN(\"  \",,Berechnungen!B295, Berechnungen!C295)","v":""}]
[{"$f":"Berechnungen!A296","v":0},{"$f":"_xlfn.TEXTJOIN(\"  \",,Berechnungen!B296, Berechnungen!C296)","v":""}]
[{"$f":"Berechnungen!A297","v":0},{"$f":"_xlfn.TEXTJOIN(\"  \",,Berechnungen!B297, Berechnungen!C297)","v":""}]
[{"$f":"Berechnungen!A298","v":0},{"$f":"_xlfn.TEXTJOIN(\"  \",,Berechnungen!B298, Berechnungen!C298)","v":""}]
[{"$f":"Berechnungen!A299","v":"Das Vorhaben hat eine gewisse Klimarelevanz.   Für die Fragen mit 😐 und 🙂 sind Verbesserungen im Bezug auf Klimaschutz möglich."},{"$f":"_xlfn.TEXTJOIN(\"  \",,Berechnungen!B299, Berechnungen!C299)","v":""}]
[{"$f":"Berechnungen!A300","v":"Alternativen-prüfung"},{"$f":"_xlfn.TEXTJOIN(\"  \",,Berechnungen!B300, Berechnungen!C300)","v":"Alternativen um das Vorhaben klimafreundlicher umzusetzen: "}]
[{"$f":"Berechnungen!A301","v":0},{"$f":"_xlfn.TEXTJOIN(\"  \",,Berechnungen!B301, Berechnungen!C301)","v":"ad 8.1)  Taktfrequenz, attraktive Wartestellen, Infrastruktur, Fahrgastinformation in Echtzeit, Gehsteig vorziehen, Busbucht wegnehmen, günstige Tarife"},{"$f":"B301&CHAR(10)&B302&CHAR(10)&B303&CHAR(10)&B304&CHAR(10)&B305&CHAR(10)&B306&CHAR(10)&B307","v":"ad 8.1)  Taktfrequenz, attraktive Wartestellen, Infrastruktur, Fahrgastinformation in Echtzeit, Gehsteig vorziehen, Busbucht wegnehmen, günstige Tarife\nad 8.2)  Attraktivierung Fuß- und Radwege, Gehsteigvorziehungen, Querungshilfen, hochwertige Radabstellanlagen, Barrierefreie Fuß- und Radwege, direkte, kurze Verbindungen und Wege für Rad/Fuß. \nad 8.3)  Ladeinfrastruktur errichten bzw. Leerverrohrung vorsehen.\nad 8.4)  Klimafreundliche Mobilitätsplanung, Parkplatzreduktion, Parkraumbewirtschaftung, Straßenrückbau, Beschränkungen, Einbahnsystem, autofreie Siedlungsbereiche, Carsharing, Fahrtendienst.\nad 8.5)  Bahnanschluss, Logistik für Sammeltransporte, Fahrverbote, Fahrbeschränkungen, Wohnstraßen, Shared Space etc.\nad 8.6)  Beschränkungen Geschwindigkeit, Straßenrückbau, Verkehrsberuhigung (Begegnungszonen, Straßenverschwenkung etc.)\nad 8.7)  Dienstreiseregelung, Rad-Infrastruktur oder Ladeinfrastruktur für MitarbeiterInnen, Diensträder bzw. e-Dienstautos, Förderung ÖFFI-Tickets etc."}]
[{"$f":"Berechnungen!A302","v":0},{"$f":"_xlfn.TEXTJOIN(\"  \",,Berechnungen!B302, Berechnungen!C302)","v":"ad 8.2)  Attraktivierung Fuß- und Radwege, Gehsteigvorziehungen, Querungshilfen, hochwertige Radabstellanlagen, Barrierefreie Fuß- und Radwege, direkte, kurze Verbindungen und Wege für Rad/Fuß. "}]
[{"$f":"Berechnungen!A303","v":0},{"$f":"_xlfn.TEXTJOIN(\"  \",,Berechnungen!B303, Berechnungen!C303)","v":"ad 8.3)  Ladeinfrastruktur errichten bzw. Leerverrohrung vorsehen."}]
[{"$f":"Berechnungen!A304","v":0},{"$f":"_xlfn.TEXTJOIN(\"  \",,Berechnungen!B304, Berechnungen!C304)","v":"ad 8.4)  Klimafreundliche Mobilitätsplanung, Parkplatzreduktion, Parkraumbewirtschaftung, Straßenrückbau, Beschränkungen, Einbahnsystem, autofreie Siedlungsbereiche, Carsharing, Fahrtendienst."}]
[{"$f":"Berechnungen!A305","v":0},{"$f":"_xlfn.TEXTJOIN(\"  \",,Berechnungen!B305, Berechnungen!C305)","v":"ad 8.5)  Bahnanschluss, Logistik für Sammeltransporte, Fahrverbote, Fahrbeschränkungen, Wohnstraßen, Shared Space etc."}]
[{"$f":"Berechnungen!A306","v":0},{"$f":"_xlfn.TEXTJOIN(\"  \",,Berechnungen!B306, Berechnungen!C306)","v":"ad 8.6)  Beschränkungen Geschwindigkeit, Straßenrückbau, Verkehrsberuhigung (Begegnungszonen, Straßenverschwenkung etc.)"}]
[{"$f":"Berechnungen!A307","v":0},{"$f":"_xlfn.TEXTJOIN(\"  \",,Berechnungen!B307, Berechnungen!C307)","v":"ad 8.7)  Dienstreiseregelung, Rad-Infrastruktur oder Ladeinfrastruktur für MitarbeiterInnen, Diensträder bzw. e-Dienstautos, Förderung ÖFFI-Tickets etc."}]
[{"$f":"Berechnungen!A308","v":0},{"$f":"_xlfn.TEXTJOIN(\"  \",,Berechnungen!B308, Berechnungen!C308)","v":"Angabe der Alternativen in Stichworten:"}]
[{"$f":"Berechnungen!A309","v":0},{"$f":"_xlfn.TEXTJOIN(\"  \",,Berechnungen!B309, Berechnungen!C309)","v":""}]
[{"$f":"Berechnungen!A310","v":0},{"$f":"_xlfn.TEXTJOIN(\"  \",,Berechnungen!B310, Berechnungen!C310)","v":"Welche Werte ergeben sich unter Berücksichtigung der Alternativen?"}]
[{"$f":"Berechnungen!A311","v":0},{"$f":"_xlfn.TEXTJOIN(\"  \",,Berechnungen!B311, Berechnungen!C311)","v":"8.1  Wird durch das Projekt der öffentliche Personen-Nahverkehr (ÖPNV) gefördert?\nBeispiele: Bus- oder Bahnanbindung, Anrufsammeltaxi, Bike&Ride- bzw. Park&Ride-Anlagen, Förderung ÖFFIs"},{"$f":"B311&CHAR(10)&CHAR(10)&B312&CHAR(10)&CHAR(10)&B313&CHAR(10)&CHAR(10)&B314&CHAR(10)&CHAR(10)&B315&CHAR(10)&CHAR(10)&CHAR(10)&B316&CHAR(10)&CHAR(10)&B317","v":"8.1  Wird durch das Projekt der öffentliche Personen-Nahverkehr (ÖPNV) gefördert?\nBeispiele: Bus- oder Bahnanbindung, Anrufsammeltaxi, Bike&Ride- bzw. Park&Ride-Anlagen, Förderung ÖFFIs\n\n8.2  Wird durch das Projekt der klimafreundliche Fuß- und Radverkehr gefördert?\nBeispiele: Gute Qualität von Rad- und Fußwegen, optimale Wegeführung, sichere Kreuzungen, Ampelschaltungen auch auf Rad- und Fußverkehr abgestimmt, kurze (Alltags-)Wege, Beleuchtung …\n\n8.3  Wird CO2-neutrale Mobilität gefördert?  \nBeispiele: Testangebot von Fahrzeugen mit CO2-neutralem Antriebssystem, Ausbau von E-Ladeinfrastruktur, Förderung\n\n8.4  Kann durch das Projekt eine Reduktion des PKW-Verkehrs oder der PKW-Anzahl erzielt werden? \nBeispiele: CarSharing-Angebot, Parkraummanagement, Fahrverbote, Geschwindigkeitsreduktion\n\n8.5  In wie weit werden die Potentiale zur Reduktion von Schwerverkehrfahrten genutzt? \nBeispiele:  Bahnanschluss, Sammeltransporte, gebündelter Verkehr, Fahrverbot, Fahrbeschränkung\n\n\n8.6  Kann durch das Projekt die tatsächliche Fahrgeschwindigkeit des KFZ-Verkehrs verringert werden? \n\n8.7  Kann durch das Vorhaben klimafreundliche Mobilität in der Verwaltung verbessert werden?"}]
[{"$f":"Berechnungen!A312","v":0},{"$f":"_xlfn.TEXTJOIN(\"  \",,Berechnungen!B312, Berechnungen!C312)","v":"8.2  Wird durch das Projekt der klimafreundliche Fuß- und Radverkehr gefördert?\nBeispiele: Gute Qualität von Rad- und Fußwegen, optimale Wegeführung, sichere Kreuzungen, Ampelschaltungen auch auf Rad- und Fußverkehr abgestimmt, kurze (Alltags-)Wege, Beleuchtung …"}]
[{"$f":"Berechnungen!A313","v":0},{"$f":"_xlfn.TEXTJOIN(\"  \",,Berechnungen!B313, Berechnungen!C313)","v":"8.3  Wird CO2-neutrale Mobilität gefördert?  \nBeispiele: Testangebot von Fahrzeugen mit CO2-neutralem Antriebssystem, Ausbau von E-Ladeinfrastruktur, Förderung"}]
[{"$f":"Berechnungen!A314","v":0},{"$f":"_xlfn.TEXTJOIN(\"  \",,Berechnungen!B314, Berechnungen!C314)","v":"8.4  Kann durch das Projekt eine Reduktion des PKW-Verkehrs oder der PKW-Anzahl erzielt werden? \nBeispiele: CarSharing-Angebot, Parkraummanagement, Fahrverbote, Geschwindigkeitsreduktion"}]
[{"$f":"Berechnungen!A315","v":0},{"$f":"_xlfn.TEXTJOIN(\"  \",,Berechnungen!B315, Berechnungen!C315)","v":"8.5  In wie weit werden die Potentiale zur Reduktion von Schwerverkehrfahrten genutzt? \nBeispiele:  Bahnanschluss, Sammeltransporte, gebündelter Verkehr, Fahrverbot, Fahrbeschränkung"}]
[{"$f":"Berechnungen!A316","v":0},{"$f":"_xlfn.TEXTJOIN(\"  \",,Berechnungen!B316, Berechnungen!C316)","v":"8.6  Kann durch das Projekt die tatsächliche Fahrgeschwindigkeit des KFZ-Verkehrs verringert werden? "}]
[{"$f":"Berechnungen!A317","v":0},{"$f":"_xlfn.TEXTJOIN(\"  \",,Berechnungen!B317, Berechnungen!C317)","v":"8.7  Kann durch das Vorhaben klimafreundliche Mobilität in der Verwaltung verbessert werden?"}]
[{"$f":"Berechnungen!A318","v":0},{"$f":"_xlfn.TEXTJOIN(\"  \",,Berechnungen!B318, Berechnungen!C318)","v":""}]
[{"$f":"Berechnungen!A319","v":"Nutzung dieses Vorhabens als Kompensations-maßnahme\n\nDie Angaben werden automatisch von Detail- bzw. Alternativfragen übernommen"},{"$f":"_xlfn.TEXTJOIN(\"  \",,Berechnungen!B319, Berechnungen!C319)","v":"8.1  Wird durch das Projekt der öffentliche Personen-Nahverkehr gefördert? \nBeispiele: Bus- oder Bahnanbindung, Anrufsammeltaxi, Bike&Ride- bzw. Park&Ride-Anlagen, Förderung ÖFFIs"},{"$f":"B319&CHAR(10)&CHAR(10)&B320&CHAR(10)&CHAR(10)&B321&CHAR(10)&CHAR(10)&B322&CHAR(10)&CHAR(10)&B323&CHAR(10)&CHAR(10)&CHAR(10)&B324&CHAR(10)&CHAR(10)&CHAR(10)&B325","v":"8.1  Wird durch das Projekt der öffentliche Personen-Nahverkehr gefördert? \nBeispiele: Bus- oder Bahnanbindung, Anrufsammeltaxi, Bike&Ride- bzw. Park&Ride-Anlagen, Förderung ÖFFIs\n\n8.2  Wird der Fuß- oder Radverkehr gestärkt? \n\n8.3  Wird CO2-neutrale Mobilität gefördert?  \nBeispiele: Elektromobilität mit erneuerbarem Strom betrieben\n\n8.4  Wird durch das Projekt eine Reduktion des PKW-Verkehrs oder der PKW-Anzahl erzielt?\nBeispiele: CarSharing, Fahrtendienste, Stadtbus-, ÖFFI-, Radweg-Anbindung, Parkgebühren, Fahrverbote, Geschwindigkeitsreduktion\n\n8.5  Wird durch das Projekt eine Reduktion des Güterverkehrs oder der LKW-Anzahl erzielt?\nBeispiele:  Bahnanschluss, Sammeltransporte, Fahrverbot, Fahrbeschränkung\n\n\n8.6  Wird die tatsächliche Fahrgeschwindigkeit des KFZ-Verkehrs verringert?\n\n\n8.7  Wird durch das Vorhaben klimafreundliche Mobilität in der Verwaltung verbessert?"}]
[{"$f":"Berechnungen!A320","v":0},{"$f":"_xlfn.TEXTJOIN(\"  \",,Berechnungen!B320, Berechnungen!C320)","v":"8.2  Wird der Fuß- oder Radverkehr gestärkt? "}]
[{"$f":"Berechnungen!A321","v":0},{"$f":"_xlfn.TEXTJOIN(\"  \",,Berechnungen!B321, Berechnungen!C321)","v":"8.3  Wird CO2-neutrale Mobilität gefördert?  \nBeispiele: Elektromobilität mit erneuerbarem Strom betrieben"}]
[{"$f":"Berechnungen!A322","v":0},{"$f":"_xlfn.TEXTJOIN(\"  \",,Berechnungen!B322, Berechnungen!C322)","v":"8.4  Wird durch das Projekt eine Reduktion des PKW-Verkehrs oder der PKW-Anzahl erzielt?\nBeispiele: CarSharing, Fahrtendienste, Stadtbus-, ÖFFI-, Radweg-Anbindung, Parkgebühren, Fahrverbote, Geschwindigkeitsreduktion"}]
[{"$f":"Berechnungen!A323","v":0},{"$f":"_xlfn.TEXTJOIN(\"  \",,Berechnungen!B323, Berechnungen!C323)","v":"8.5  Wird durch das Projekt eine Reduktion des Güterverkehrs oder der LKW-Anzahl erzielt?\nBeispiele:  Bahnanschluss, Sammeltransporte, Fahrverbot, Fahrbeschränkung"}]
[{"$f":"Berechnungen!A324","v":0},{"$f":"_xlfn.TEXTJOIN(\"  \",,Berechnungen!B324, Berechnungen!C324)","v":"8.6  Wird die tatsächliche Fahrgeschwindigkeit des KFZ-Verkehrs verringert?"}]
[{"$f":"Berechnungen!A325","v":0},{"$f":"_xlfn.TEXTJOIN(\"  \",,Berechnungen!B325, Berechnungen!C325)","v":"8.7  Wird durch das Vorhaben klimafreundliche Mobilität in der Verwaltung verbessert?"}]
[{"$f":"Berechnungen!A326","v":0},{"$f":"_xlfn.TEXTJOIN(\"  \",,Berechnungen!B326, Berechnungen!C326)","v":""}]
[{"$f":"Berechnungen!A327","v":0},{"$f":"_xlfn.TEXTJOIN(\"  \",,Berechnungen!B327, Berechnungen!C327)","v":""}]
[{"$f":"Berechnungen!A328","v":0},{"$f":"_xlfn.TEXTJOIN(\"  \",,Berechnungen!B328, Berechnungen!C328)","v":""}]
[{"$f":"Berechnungen!A329","v":0},{"$f":"_xlfn.TEXTJOIN(\"  \",,Berechnungen!B329, Berechnungen!C329)","v":""}]
[{"$f":"Berechnungen!A330","v":0},{"$f":"_xlfn.TEXTJOIN(\"  \",,Berechnungen!B330, Berechnungen!C330)","v":""}]
[{"$f":"Berechnungen!A331","v":0},{"$f":"_xlfn.TEXTJOIN(\"  \",,Berechnungen!B331, Berechnungen!C331)","v":""}]
[{"$f":"Berechnungen!A332","v":0},{"$f":"_xlfn.TEXTJOIN(\"  \",,Berechnungen!B332, Berechnungen!C332)","v":""}]
[{"$f":"Berechnungen!A333","v":0},{"$f":"_xlfn.TEXTJOIN(\"  \",,Berechnungen!B333, Berechnungen!C333)","v":""}]
[{"$f":"Berechnungen!A334","v":0},{"$f":"_xlfn.TEXTJOIN(\"  \",,Berechnungen!B334, Berechnungen!C334)","v":""}]
[{"$f":"Berechnungen!A335","v":0},{"$f":"_xlfn.TEXTJOIN(\"  \",,Berechnungen!B335, Berechnungen!C335)","v":""}]
[{"$f":"Berechnungen!A336","v":0},{"$f":"_xlfn.TEXTJOIN(\"  \",,Berechnungen!B336, Berechnungen!C336)","v":""}]
[{"$f":"Berechnungen!A337","v":0},{"$f":"_xlfn.TEXTJOIN(\"  \",,Berechnungen!B337, Berechnungen!C337)","v":""}]
[{"$f":"Berechnungen!A338","v":0},{"$f":"_xlfn.TEXTJOIN(\"  \",,Berechnungen!B338, Berechnungen!C338)","v":""}]
[{"$f":"Berechnungen!A339","v":0},{"$f":"_xlfn.TEXTJOIN(\"  \",,Berechnungen!B339, Berechnungen!C339)","v":""}]
[{"$f":"Berechnungen!A340","v":"Begrünungen"},{"$f":"_xlfn.TEXTJOIN(\"  \",,Berechnungen!B340, Berechnungen!C340)","v":"9.  Können durch das Projekt zusätzlich Begrünungen und Biodiversitätsflächen geschaffen oder Flächen entsiegelt werden? Werden im Projekt Maßnahmen zur Nachhaltigkeit von Gebäudemanagement und zur kommunalen Grünräumpflege umgesetzt?"}]
[{"$f":"Berechnungen!A341","v":0},{"$f":"_xlfn.TEXTJOIN(\"  \",,Berechnungen!B341, Berechnungen!C341)","v":""},"Frage90Text","Frage91Hilfe","Frage92Hilfe","Frage93Hilfe","Frage94Hilfe","Frage95Hilfe","Kompensation91Hilfe"]
[{"$f":"Berechnungen!A342","v":"Detailfragen"},{"$f":"_xlfn.TEXTJOIN(\"  \",,Berechnungen!B342, Berechnungen!C342)","v":"9.1  Entstehen (neue) Grünräume,  Naturwiesen, Baum- und Strauchgruppen, Nutzgärten, Alleen, Wälder, Parks, Bäche, Teiche, Wasserflächen, Moore, Feuchtwiesen und Gebäudebegrünungen mit positiver Wirkung auf Biodiversität und Klimaschutz beziehungsweise werden vorhandene Flächen in diesem Sinne renaturiert? Wie viel Prozent der unverbauten Fläche wird dafür genutzt?"},{"$f":"B342&CHAR(10)&CHAR(10)&B343&CHAR(10)&CHAR(10)&CHAR(10)&B344&CHAR(10)&CHAR(10)&CHAR(10)&B345&CHAR(10)&CHAR(10)&CHAR(10)&B346","v":"9.1  Entstehen (neue) Grünräume,  Naturwiesen, Baum- und Strauchgruppen, Nutzgärten, Alleen, Wälder, Parks, Bäche, Teiche, Wasserflächen, Moore, Feuchtwiesen und Gebäudebegrünungen mit positiver Wirkung auf Biodiversität und Klimaschutz beziehungsweise werden vorhandene Flächen in diesem Sinne renaturiert? Wie viel Prozent der unverbauten Fläche wird dafür genutzt?\n\n9.2  Kann das Projekt vorhandene Moore, Feuchtwiesen, Wälder und Ähnliches als CO2-Speicher stärken und schützen? Wie viel Prozent der vorhandene Flächen werden gestärkt und geschützt?\n\n\n9.3  Können feuchteregulierende Maßnahmen wie Wasserspeicherung, Versickerung, Verdunstung umgesetzt werden? Wie viel Prozent der unverbauten Fläche wird dafür genutzt?\n\n\n9.4  Werden Maßnahmen bei Gebäuden eingeführt und dauerhaft betrieben, die den Erhalt der Biodiversität fördern, das Klima schonen und/oder dafür sorgen, dass CO2 stärker gebunden wird (siehe Liste der möglichen Maßnahmen in der Hilfe)? \n\n\n9.5  Werden Maßnahmen in der Gemeinde eingeführt und dauerhaft betrieben, die den Erhalt der Biodiversität fördern, das Klima schonen und/oder dafür sorgen, dass CO2 stärker gebunden wird (siehe Liste der möglichen Maßnahmen in der Hilfe)?"}," Biodiversität ist ein Bewertungsmaßstab für die Fülle unterschiedlichen Lebens in einem begrenzten Gebiet.  Es betrifft die Vielfalt der Pflanzen- und Tierarten in einer Vielfalt von Lebensräumen.\nKlimaschutz betrifft in erster Linie die Auswirkungen auf den Kohlendioxid-Anteil in der Luft.\n\n Bewertung: \nAls \"unverbaut\" werden alle Flächen am Grundstück bezeichnet, auf denen sich kein Gebäude befindet. Parkplätze, Zufahrtstraßen oder Gehwege werden den unverbauten Flächen zugeordnet. Wenn dies nicht am Grundstück möglich ist, kann eine Kompensation auch irgendwo anders stattfinden. In diesem Fall bitte angeben wie viel Prozent der in diesem Projekt zerstörten Flächen in anderen Projekten kompensiert wird.\n\nMaßnahmen zur Erhöhung von Grünräumen:\n- Planung von zusammenhängenden Freiflächen mit Vegetation wie Bäume, Wiesen, Sträuch- oder Gartenflächen, Biotop- oder Teichflächen die größer 1000 m² sind.\n- Planung von renaturierten Wasserflächen wie Teiche, Bäche, Biotope.\n- Baumpflanzungen\n- Baumpflegekonzept für vorhandene Bäume\n\nMaßnahmen zur Erhöhung der biolog. Vielfalt:\n- Planung von zusammenhängenden Freiflächen mit naturbelassener Vegetation wie Bäume, Wiese, Sträuch- oder Gartenflächen, Biotop- oder Teichflächen die größer 1000 m² sind.\n- Dach- oder Fassadenbegrünungen\n- Planung von  naturbelassene oder renaturierte Wasserflächen wie Teiche, Bäche, Biotope.\n- Planung von  Naturwiesen, Baum- und Strauchgruppen, Blumenbeete, Gartenbereiche, Kräuterspiralen\n- Planung von Trockensteinmauern\n- zusätzliche Bäume pflanzen","Berechnung der Flächen mit CO2-Speicherung:\nSumme aller vorhandene Einzelflächen von Mooren, Biotopen, Feuchtwiesen und Wäldern, die geschützt bzw. gestärkt werden. \n\nMaßnahmen zur Stärkung von CO2-Speicherung:\n   Bestehende Moore, Biotope, Feuchtwiesen oder Baumbestände schützen\n   Studie betreffend Moorschutz / CO2-Speicherung beauftragen und Empfehlungen umsetzen\n   Baumpflegekonzept für vorhandene Bäume erstellen und umsetzen\n\nBewertung:\n   100% - Bewertung (unabhängig von der Fläche) wenn es eine eigene Studie betreffend Moorschutz / CO2-Speicherung gibt und alle Empfehlungen umgesetzt werden.\n\n   die tatsächliche Fläche + 20% (aber max. 100%) wenn es eine eigene Studie betreffend Moorschutz / CO2-Speicherung gibt.\n\n   die tatsächliche Fläche + 10% (aber max. 100%) wenn es ein Baumpflegekonzept für vorhandene Bäume gibt.\n\n   die tatsächliche Fläche + 10% (aber max. 100%) wenn es Schutzbestimmungen für die vorhandenen CO2-Speicher gibt.","Als \"unverbaut\" werden alle Flächen am Grundstück bezeichnet, auf denen sich kein Gebäude befindet. Parkplätze, Zufahrtstraßen oder Gehwege werden den unverbauten Flächen zugeordnet.\n\nWasserspeicherung = Teiche, Biotope, Regenwasserzisternen, Rückhaltebecken ...\nVersickerung = Grünflächen, Baum- und Strauchgruppen, Gartenbereiche ...\nVerdunstung =  Baum- und Strauchgruppen ...\n","Möglichen Maßnahmen, die umgesetzt werden können und fachlich begleitet werden: \n\n Gebäudereinigung nach ÖKO-log Reinigen-Kriterien einführen und dauerhaft so betreiben\n\n\n Abfalltrennung – eigene Kompostierung einführen dauerhaft betreiben und in Gartenanlage einsetzen\n Abfall Minimierung des Plastikanteils (Einsatzbereiche überdenken, Mehrwegoptionen prüfen, etc) einführen und dauerhaft betreiben\n Abfallrecycling und -reduzierung im Gebäude einführen und dauerhaft betreiben\n Betrieb des Gebäudes: Einkauf mit eNu bzw. nabe Beschaffungskriterien bzw. Ökozeichen (Kaffee, (Recycling)-Papier, etc)"," Natur im Garten (NIG) kann Ihnen bei der Umsetzung helfen: \n\n\nMöglichen Maßnahmen, die umgesetzt werden können und fachlich begleitet werden:\n Grünanlagen der Gemeinde nach NIG-Kriterien gestalten und nach NIG-Kriterien dauerhaft pflegen (Pestizidfrei, keine Torferde, Ersatz Plastikprodukte, wenig Pflegeaufwand etc). \n Extensivierung Pflegemaßnahmen von Grünräumen (Schnitthäufigkeit reduzieren, Insekten-Rettungsstreifen belassen, keine Laubsauger, Laubbläser nur an unzugänglichen Stellen einsetzen, Laub unter Gebüschen belassen etc)\n Fließgewässer – Böschungspflege (diese werden oft mithilfe Gemeinde durchgeführt) extensivieren/umstellen (Schnitthäufigkeit vermindern, Mosaikmahd (es bleibt immer etwas stehen)\n Bevölkerung zur Umstellung der Garten-Bewirtschaftung schulen und fördern – Hauptthema Kompost, kein Torf nötig, Pestizidfrei schöne Gärten (Kompostparty, Schnell-Komposter als Geschenk, Laub als Ressource  etc)\n Invasive Arten im Gemeindegebiet managen (Vorsorge bei Baustellen, Kontrolle, Zurückdrängen,… ). \n\n\n Humus-Aufbau betreiben auf Ackerflächen (Gemeindeflächen könnten mit dieser Auflage verpachtet werden) bzw. in großen Parks\n Gemeindeflächen die landwirtschaftlich verpachtet werden im nächsten Pacht-Zyklus mit Auflage biologische Wirtschaftsweise verpachten und dauerhaft dabei bleiben.","  Zusammenhängende Freiflächen > 1000 m² mit naturnaher Vegetation (Bäume, Wiesen, Sträuch- oder Gartenflächen, Biotop- oder Teichflächen) dürfen mit dem Faktor 1,5 multipliziert werden.\n\n   Wasserflächen wie Teiche, Bäche und Biotope sind sehr wertvoll und werden mit dem Faktor 3 multipliziert.\n\n   Moore und Feuchtwiesen sind sehr wertvoll und werden mit dem Faktor 4 multipliziert\n\n   Die Flächen von begrünten Dächern dürfen mit dem Faktor 1 dazugezählt werden.\n\n   Die Flächen von Fassadenbegrünung kann mit 20% der Fläche dazugezählt werden. \n\n  Trockensteinmauern entlang der gesamten Fläche erhöhen die gesamte Fläche um 20%.\n\nFür der Einschätzung der Wertigkeit von Biodiversitätsflächen bitte einen fachlichen Berater hinzuziehen. "]
[{"$f":"Berechnungen!A343","v":0},{"$f":"_xlfn.TEXTJOIN(\"  \",,Berechnungen!B343, Berechnungen!C343)","v":"9.2  Kann das Projekt vorhandene Moore, Feuchtwiesen, Wälder und Ähnliches als CO2-Speicher stärken und schützen? Wie viel Prozent der vorhandene Flächen werden gestärkt und geschützt?"},null,null,null,null,"https://www.umweltgemeinde.at/reinigung","https://www.naturimgarten.at/gartenwissen/grünraumwissen/broschüren-und-infoblätter.html"]
[{"$f":"Berechnungen!A344","v":0},{"$f":"_xlfn.TEXTJOIN(\"  \",,Berechnungen!B344, Berechnungen!C344)","v":"9.3  Können feuchteregulierende Maßnahmen wie Wasserspeicherung, Versickerung, Verdunstung umgesetzt werden? Wie viel Prozent der unverbauten Fläche wird dafür genutzt?"},null,null,null,null,"http://www.beschaffungsservice.at/","https://noel.gv.at/noe/Naturschutz/Gebietsfremde_Arten.html"]
[{"$f":"Berechnungen!A345","v":0},{"$f":"_xlfn.TEXTJOIN(\"  \",,Berechnungen!B345, Berechnungen!C345)","v":"9.4  Werden Maßnahmen bei Gebäuden eingeführt und dauerhaft betrieben, die den Erhalt der Biodiversität fördern, das Klima schonen und/oder dafür sorgen, dass CO2 stärker gebunden wird (siehe Liste der möglichen Maßnahmen in der Hilfe)? "}]
[{"$f":"Berechnungen!A346","v":0},{"$f":"_xlfn.TEXTJOIN(\"  \",,Berechnungen!B346, Berechnungen!C346)","v":"9.5  Werden Maßnahmen in der Gemeinde eingeführt und dauerhaft betrieben, die den Erhalt der Biodiversität fördern, das Klima schonen und/oder dafür sorgen, dass CO2 stärker gebunden wird (siehe Liste der möglichen Maßnahmen in der Hilfe)?"}]
[{"$f":"Berechnungen!A348","v":0},{"$f":"_xlfn.TEXTJOIN(\"  \",,Berechnungen!B348, Berechnungen!C348)","v":"Kurzbeschreibung / Auflistung der Klimaschutzmaßnahmen: "}]
[{"$f":"Berechnungen!A349","v":0},{"$f":"_xlfn.TEXTJOIN(\"  \",,Berechnungen!B349, Berechnungen!C349)","v":""}]
[{"$f":"Berechnungen!A350","v":0},{"$f":"_xlfn.TEXTJOIN(\"  \",,Berechnungen!B350, Berechnungen!C350)","v":""}]
[{"$f":"Berechnungen!A351","v":0},{"$f":"_xlfn.TEXTJOIN(\"  \",,Berechnungen!B351, Berechnungen!C351)","v":""}]
[{"$f":"Berechnungen!A352","v":"Das Vorhaben hat eine gewisse Klimarelevanz.   Für die Fragen mit L und K sind Verbesserungen im Bezug auf Klimaschutz möglich."},{"$f":"_xlfn.TEXTJOIN(\"  \",,Berechnungen!B352, Berechnungen!C352)","v":""}]
[{"$f":"Berechnungen!A353","v":"Alternativen-prüfung"},{"$f":"_xlfn.TEXTJOIN(\"  \",,Berechnungen!B353, Berechnungen!C353)","v":"Alternativen um das Vorhaben klimafreundlicher umzusetzen: "}]
[{"$f":"Berechnungen!A354","v":0},{"$f":"_xlfn.TEXTJOIN(\"  \",,Berechnungen!B354, Berechnungen!C354)","v":"ad 9.1)  Tipps für Naturräume größer 1000 m² und Tipps zur Erhöhung der biolog. Vielfalt: siehe Hilfe"},{"$f":"B353&CHAR(10)&B354&CHAR(10)&B355&CHAR(10)&B356&CHAR(10)&B357","v":"ad 9.1)  Tipps für Naturräume größer 1000 m² und Tipps zur Erhöhung der biolog. Vielfalt: siehe Hilfe\nad 9.2)  Tipps zur Förderung von CO2-Speicherung: siehe Hilfe\nad 9.3)  Tipps für feuchteregulierende Gebiete: siehe Hilfe\nad 9.4)   Klimaschutzmaßnahmen in Gebäuden umsetzen: siehe Hilfe\nad 9.5)   Klimaschutzmaßnahmen in der Gemeinde umsetzen: siehe Hilfe"}]
[{"$f":"Berechnungen!A355","v":0},{"$f":"_xlfn.TEXTJOIN(\"  \",,Berechnungen!B355, Berechnungen!C355)","v":"ad 9.2)  Tipps zur Förderung von CO2-Speicherung: siehe Hilfe"}]
[{"$f":"Berechnungen!A356","v":0},{"$f":"_xlfn.TEXTJOIN(\"  \",,Berechnungen!B356, Berechnungen!C356)","v":"ad 9.3)  Tipps für feuchteregulierende Gebiete: siehe Hilfe"}]
[{"$f":"Berechnungen!A357","v":0},{"$f":"_xlfn.TEXTJOIN(\"  \",,Berechnungen!B357, Berechnungen!C357)","v":"ad 9.4)   Klimaschutzmaßnahmen in Gebäuden umsetzen: siehe Hilfe"}]
[{"$f":"Berechnungen!A358","v":0},{"$f":"_xlfn.TEXTJOIN(\"  \",,Berechnungen!B358, Berechnungen!C358)","v":"ad 9.5)   Klimaschutzmaßnahmen in der Gemeinde umsetzen: siehe Hilfe"}]
[{"$f":"Berechnungen!A359","v":0},{"$f":"_xlfn.TEXTJOIN(\"  \",,Berechnungen!B359, Berechnungen!C359)","v":"Angabe der Alternativen in Stichworten:"}]
[{"$f":"Berechnungen!A360","v":0},{"$f":"_xlfn.TEXTJOIN(\"  \",,Berechnungen!B360, Berechnungen!C360)","v":""}]
[{"$f":"Berechnungen!A361","v":0},{"$f":"_xlfn.TEXTJOIN(\"  \",,Berechnungen!B361, Berechnungen!C361)","v":"Welche Werte ergeben sich unter Berücksichtigung der Alternativen?"}]
[{"$f":"Berechnungen!A362","v":0},{"$f":"_xlfn.TEXTJOIN(\"  \",,Berechnungen!B362, Berechnungen!C362)","v":"9.1  Entstehen (neue) Grünräume,  Naturwiesen, Baum- und Strauchgruppen, Nutzgärten, Alleen, Wälder, Parks, Bäche, Teiche, Wasserflächen, Moore, Feuchtwiesen und Gebäudebegrünungen mit positiver Wirkung auf Biodiversität und Klimaschutz beziehungsweise werden vorhandene Flächen in diesem Sinne renaturiert? Wie viel Prozent der unverbauten Fläche wird dafür genutzt?"},{"$f":"B361&CHAR(10)&CHAR(10)&B362&CHAR(10)&CHAR(10)&CHAR(10)&B363&CHAR(10)&CHAR(10)&CHAR(10)&B364&CHAR(10)&CHAR(10)&CHAR(10)&B365","v":"9.1  Entstehen (neue) Grünräume,  Naturwiesen, Baum- und Strauchgruppen, Nutzgärten, Alleen, Wälder, Parks, Bäche, Teiche, Wasserflächen, Moore, Feuchtwiesen und Gebäudebegrünungen mit positiver Wirkung auf Biodiversität und Klimaschutz beziehungsweise werden vorhandene Flächen in diesem Sinne renaturiert? Wie viel Prozent der unverbauten Fläche wird dafür genutzt?\n\n9.2  Kann das Projekt vorhandene Moore, Feuchtwiesen, Wälder und Ähnliches als CO2-Speicher stärken und schützen? Wie viel Prozent der vorhandene Flächen werden gestärkt und geschützt?\n\n\n9.3  Können feuchteregulierende Maßnahmen wie Wasserspeicherung, Versickerung, Verdunstung umgesetzt werden? Wie viel Prozent der unverbauten Fläche wird dafür genutzt?\n\n\n9.4  Werden Maßnahmen bei Gebäuden eingeführt und dauerhaft betrieben, die den Erhalt der Biodiversität fördern, das Klima schonen und/oder dafür sorgen, dass CO2 stärker gebunden wird (siehe Liste der möglichen Maßnahmen in der Hilfe)? \n\n\n9.5  Werden Maßnahmen in der Gemeinde eingeführt und dauerhaft betrieben, die den Erhalt der Biodiversität fördern, das Klima schonen und/oder dafür sorgen, dass CO2 stärker gebunden wird (siehe Liste der möglichen Maßnahmen in der Hilfe)?"}]
[{"$f":"Berechnungen!A363","v":0},{"$f":"_xlfn.TEXTJOIN(\"  \",,Berechnungen!B363, Berechnungen!C363)","v":"9.2  Kann das Projekt vorhandene Moore, Feuchtwiesen, Wälder und Ähnliches als CO2-Speicher stärken und schützen? Wie viel Prozent der vorhandene Flächen werden gestärkt und geschützt?"}]
[{"$f":"Berechnungen!A364","v":0},{"$f":"_xlfn.TEXTJOIN(\"  \",,Berechnungen!B364, Berechnungen!C364)","v":"9.3  Können feuchteregulierende Maßnahmen wie Wasserspeicherung, Versickerung, Verdunstung umgesetzt werden? Wie viel Prozent der unverbauten Fläche wird dafür genutzt?"}]
[{"$f":"Berechnungen!A365","v":0},{"$f":"_xlfn.TEXTJOIN(\"  \",,Berechnungen!B365, Berechnungen!C365)","v":"9.4  Werden Maßnahmen bei Gebäuden eingeführt und dauerhaft betrieben, die den Erhalt der Biodiversität fördern, das Klima schonen und/oder dafür sorgen, dass CO2 stärker gebunden wird (siehe Liste der möglichen Maßnahmen in der Hilfe)? "}]
[{"$f":"Berechnungen!A370","v":"Nutzung dieses Vorhabens als Kompensations-maßnahme"},{"$f":"_xlfn.TEXTJOIN(\"  \",,Berechnungen!B366, Berechnungen!C366)","v":"9.5  Werden Maßnahmen in der Gemeinde eingeführt und dauerhaft betrieben, die den Erhalt der Biodiversität fördern, das Klima schonen und/oder dafür sorgen, dass CO2 stärker gebunden wird (siehe Liste der möglichen Maßnahmen in der Hilfe)?"}]
[{"$f":"Berechnungen!A371","v":0},{"$f":"_xlfn.TEXTJOIN(\"  \",,Berechnungen!B367, Berechnungen!C367)","v":""}]
[{"$f":"Berechnungen!A372","v":0},{"$f":"_xlfn.TEXTJOIN(\"  \",,Berechnungen!B368, Berechnungen!C368)","v":""}]
[{"$f":"Berechnungen!A369","v":0},{"$f":"_xlfn.TEXTJOIN(\"  \",,Berechnungen!B369, Berechnungen!C369)","v":""}]
[{"$f":"Berechnungen!#REF!","v":{"$error":"#REF!"}},{"$f":"_xlfn.TEXTJOIN(\"  \",,Berechnungen!B370, Berechnungen!C370)","v":"9.1  Wie viele m² Grünräume,  Naturwiesen, Baum- und Strauchgruppen, Nutzgärten, Alleen, Wälder, Parks, Bäche, Teiche, Wasserflächen, Moore, Feuchtwiesen und Gebäudebegrünungen etc. mit positiver Wirkung auf Biodiversität und Klimaschutz entstehen zusätzlich bzw. werden renaturiert? Für den Berechnungsschlüssel siehe Hilfe."},{"$f":"B369&CHAR(10)&CHAR(10)&B370&CHAR(10)&CHAR(10)&CHAR(10)&B371&CHAR(10)&CHAR(10)&CHAR(10)&B372&CHAR(10)&CHAR(10)&B373","v":"9.1  Wie viele m² Grünräume,  Naturwiesen, Baum- und Strauchgruppen, Nutzgärten, Alleen, Wälder, Parks, Bäche, Teiche, Wasserflächen, Moore, Feuchtwiesen und Gebäudebegrünungen etc. mit positiver Wirkung auf Biodiversität und Klimaschutz entstehen zusätzlich bzw. werden renaturiert? Für den Berechnungsschlüssel siehe Hilfe.\n\n9.2  Wie viele m² vorhandene Moore, Feuchtwiesen, Wälder und Ähnliches werden als CO2-Speicher geschützt und gestärkt? Siehe Berechnungsschlüssel bei der Hilfe von der Frage 9.1. \n\n\n9.3  Wie viele Bäume werden gepflanzt? \n\n\n9.4  Werden Maßnahmen bei Gebäuden eingeführt und dauerhaft betrieben, die den Erhalt der Biodiversität fördern, das Klima schonen und/oder dafür sorgen, dass CO2 stärker gebunden wird (siehe Liste der möglichen Maßnahmen in der Hilfe)? \n\n9.5  Werden Maßnahmen in der Gemeinde eingeführt und dauerhaft betrieben, die den Erhalt der Biodiversität fördern, das Klima schonen und/oder dafür sorgen, dass CO2 stärker gebunden wird (siehe Liste der möglichen Maßnahmen in der Hilfe)?"}]
[{"$f":"Berechnungen!#REF!","v":{"$error":"#REF!"}},{"$f":"_xlfn.TEXTJOIN(\"  \",,Berechnungen!B371, Berechnungen!C371)","v":"9.2  Wie viele m² vorhandene Moore, Feuchtwiesen, Wälder und Ähnliches werden als CO2-Speicher geschützt und gestärkt? Siehe Berechnungsschlüssel bei der Hilfe von der Frage 9.1. "}]
[{"$f":"Berechnungen!#REF!","v":{"$error":"#REF!"}},{"$f":"_xlfn.TEXTJOIN(\"  \",,Berechnungen!B372, Berechnungen!C372)","v":"9.3  Wie viele Bäume werden gepflanzt? "}]
[{"$f":"Berechnungen!A373","v":0},{"$f":"_xlfn.TEXTJOIN(\"  \",,Berechnungen!B373, Berechnungen!C373)","v":"9.4  Werden Maßnahmen bei Gebäuden eingeführt und dauerhaft betrieben, die den Erhalt der Biodiversität fördern, das Klima schonen und/oder dafür sorgen, dass CO2 stärker gebunden wird (siehe Liste der möglichen Maßnahmen in der Hilfe)? "}]
[{"$f":"Berechnungen!A374","v":0},{"$f":"_xlfn.TEXTJOIN(\"  \",,Berechnungen!B374, Berechnungen!C374)","v":"9.5  Werden Maßnahmen in der Gemeinde eingeführt und dauerhaft betrieben, die den Erhalt der Biodiversität fördern, das Klima schonen und/oder dafür sorgen, dass CO2 stärker gebunden wird (siehe Liste der möglichen Maßnahmen in der Hilfe)?"}]
[{"$f":"Berechnungen!A375","v":0},{"$f":"_xlfn.TEXTJOIN(\"  \",,Berechnungen!B375, Berechnungen!C375)","v":""}]
[{"$f":"Berechnungen!A376","v":0},{"$f":"_xlfn.TEXTJOIN(\"  \",,Berechnungen!B376, Berechnungen!C376)","v":""}]
[{"$f":"Berechnungen!A377","v":0},{"$f":"_xlfn.TEXTJOIN(\"  \",,Berechnungen!B377, Berechnungen!C377)","v":""}]
[{"$f":"Berechnungen!A378","v":0},{"$f":"_xlfn.TEXTJOIN(\"  \",,Berechnungen!B378, Berechnungen!C378)","v":""}]
[{"$f":"Berechnungen!A379","v":0},{"$f":"_xlfn.TEXTJOIN(\"  \",,Berechnungen!B379, Berechnungen!C379)","v":""}]
[{"$f":"Berechnungen!A380","v":0},{"$f":"_xlfn.TEXTJOIN(\"  \",,Berechnungen!B380, Berechnungen!C380)","v":""}]
[{"$f":"Berechnungen!A381","v":0},{"$f":"_xlfn.TEXTJOIN(\"  \",,Berechnungen!B381, Berechnungen!C381)","v":""}]
[{"$f":"Berechnungen!A382","v":0},{"$f":"_xlfn.TEXTJOIN(\"  \",,Berechnungen!B382, Berechnungen!C382)","v":""}]
[{"$f":"Berechnungen!A383","v":0},{"$f":"_xlfn.TEXTJOIN(\"  \",,Berechnungen!B383, Berechnungen!C383)","v":""}]
[{"$f":"Berechnungen!A384","v":0},{"$f":"_xlfn.TEXTJOIN(\"  \",,Berechnungen!B384, Berechnungen!C384)","v":""}]
[{"$f":"Berechnungen!A385","v":0},{"$f":"_xlfn.TEXTJOIN(\"  \",,Berechnungen!B385, Berechnungen!C385)","v":""}]
[{"$f":"Berechnungen!A386","v":"Planung"},{"$f":"_xlfn.TEXTJOIN(\"  \",,Berechnungen!B386, Berechnungen!C386)","v":"10.  Kann die Planung möglichst klimafreundlich entwickelt werden?\nBetrifft regionales oder örtliches Entwicklungskonzept, Flächenwidmungsplan, Bebauungsplan, Städtebauliche Konzepte, Städtebauliche  Leitbilder o.ä."}]
[{"$f":"Berechnungen!A387","v":0},{"$f":"_xlfn.TEXTJOIN(\"  \",,Berechnungen!B387, Berechnungen!C387)","v":""},"Frage100Text","Frage101Hilfe","Frage104Hilfe"]
[{"$f":"Berechnungen!A388","v":"Detailfragen"},{"$f":"_xlfn.TEXTJOIN(\"  \",,Berechnungen!B388, Berechnungen!C388)","v":"10.1  Werden im örtlichen Raumordnunsprogramm bzw. der Flächenwidmung die übergeordneten klimarelevanten Ziele und Planungen integriert?    Beispiele: Österreichische Klima- und Energiestrategie \"mission2030\"; Landesentwicklungsprogramm, Regionale Entwicklungsprogramme, Leitbilder o.ä."},{"$f":"B387&CHAR(10)&CHAR(10)&B388&CHAR(10)&CHAR(10)&B389&CHAR(10)&CHAR(10)&B390&CHAR(10)&CHAR(10)","v":"10.1  Werden im örtlichen Raumordnunsprogramm bzw. der Flächenwidmung die übergeordneten klimarelevanten Ziele und Planungen integriert?    Beispiele: Österreichische Klima- und Energiestrategie \"mission2030\"; Landesentwicklungsprogramm, Regionale Entwicklungsprogramme, Leitbilder o.ä.\n\n10.2  Werden im Bebauungsplan, bei Baulandumlegung bzw. bei Änderungen der Bauvorschriften und bei privatwirtschaftlichen Raumplanungsverträgen die übergeordneten klimarelevanten Ziele und Planungen integriert?  \n\n10.3  Werden im Städtebaulichen Leitbild, bei Stadtentwicklungskonzepten, Quartiersentwicklungen, Freiraumkonzepten o. ä. die übergeordneten klimarelevanten Ziele und Planungen integriert? \n\n10.4  Wird in allen oben genannten Planungen die Klimawandelanpassung berücksichtigt? \nZ. B. Landschaftskonzept, Baumkataster\n\n"},"   Das Thema Klimaschutz hat in diesem Bereich eine große Relevanz, daher wird empfohlen einen Klimaschutz-Sachverständigen einzubeziehen.\n   Bitte ggf. die Beratungsstellen des Landes in Anspruch nehmen.\n\nKriterien - beispielhaft:\n   Siedlungsentwicklung im Siedlungsschwerpunkt (Hintanhaltung der Zersiedelung)\n   Reduktion von fossilem Energieverbrauch\n   Forcierung von Erneuerbarer Energieversorgung (Strom und Wärme)\n   Reduktion von Mobilität mit fossiler Antriebsenergie und von mot. Individualverkehr (MIV)\n   Forcierung sanfte Mobilität (ÖV, Fuß- und Radverkehr)\n   Ressourcensparende Planung / Berücksichtigung der Kreislaufwirtschaft\n   Reduktion der Versiegelung \n\nBewertung\n    Die Bewertung soll in Zusammenarbeit mit Klimaschutz-Sachverständigen erfolgen. \n   In allen Fällen Bei der Auswahl \"nicht relevant\" bzw. \"maßgeblich\" ist unter \"Anmerkungen\" eine Erklärung abzugeben wie Klimaschutz in der jeweiligen Planung umgesetzt wird.","   Klimawandelanpassung hat im Planungsbereich eine große Relevanz, daher wird empfohlen einen Klimaschutz-Sachverständigen einzubeziehen.\n    Bitte ggf. die Beratungsstellen des Landes in Anspruch nehmen bzw. Organisationen einbinden, die sich Schwerpunktmäßig mit Energiethemen und Klimaschutz beschäftigen. \n\nKriterien - beispielhaft:\n    Forcierung anpassungsfähiger Pflanzen, Dach- und Fassadenbegrünung; Durchgrünung des Siedlungsraumes\n    Berücksichtigung von extremen Wetterbedingungen z.B. Starkregen, Hitzeperioden, Trockenheit\n   Maßnahmen zur Vermeidung von Überflutungen, sommerlicher Überhitzung, Wasserknappheit\n    Berücksichtigung von Maßnahmen zur Klimawandelanpassung im Verkehrsbereich z.B. für behagliches Reisen beim öffentlichen Verkehr, wetterbedingte Einschränkungen beim Individualverkehr   \n\nBewertung\n    Die Bewertung soll in Zusammenarbeit mit Sachverständigen erfolgen. \n    In allen Fällen Bei der Auswahl \"nicht relevant\" bzw. \"maßgeblich\" ist unter \"Anmerkungen\" eine Erklärung abzugeben wie Klimawandel in der jeweiligen Planung berücksichtigt wird."]
[{"$f":"Berechnungen!A389","v":0},{"$f":"_xlfn.TEXTJOIN(\"  \",,Berechnungen!B389, Berechnungen!C389)","v":"10.2  Werden im Bebauungsplan, bei Baulandumlegung bzw. bei Änderungen der Bauvorschriften und bei privatwirtschaftlichen Raumplanungsverträgen die übergeordneten klimarelevanten Ziele und Planungen integriert?  "}]
[{"$f":"Berechnungen!A390","v":0},{"$f":"_xlfn.TEXTJOIN(\"  \",,Berechnungen!B390, Berechnungen!C390)","v":"10.3  Werden im Städtebaulichen Leitbild, bei Stadtentwicklungskonzepten, Quartiersentwicklungen, Freiraumkonzepten o. ä. die übergeordneten klimarelevanten Ziele und Planungen integriert? "}]
[{"$f":"Berechnungen!A391","v":0},{"$f":"_xlfn.TEXTJOIN(\"  \",,Berechnungen!B391, Berechnungen!C391)","v":"10.4  Wird in allen oben genannten Planungen die Klimawandelanpassung berücksichtigt? \nZ. B. Landschaftskonzept, Baumkataster"}]
[{"$f":"Berechnungen!A392","v":0},{"$f":"_xlfn.TEXTJOIN(\"  \",,Berechnungen!B392, Berechnungen!C392)","v":"Kurzbeschreibung / Auflistung der Klimaschutzmaßnahmen: "}]
[{"$f":"Berechnungen!A393","v":0},{"$f":"_xlfn.TEXTJOIN(\"  \",,Berechnungen!B393, Berechnungen!C393)","v":""}]
[{"$f":"Berechnungen!A394","v":0},{"$f":"_xlfn.TEXTJOIN(\"  \",,Berechnungen!B394, Berechnungen!C394)","v":""}]
[{"$f":"Berechnungen!A395","v":0},{"$f":"_xlfn.TEXTJOIN(\"  \",,Berechnungen!B395, Berechnungen!C395)","v":""}]
[{"$f":"Berechnungen!A396","v":0},{"$f":"_xlfn.TEXTJOIN(\"  \",,Berechnungen!B396, Berechnungen!C396)","v":""}]
[{"$f":"Berechnungen!A397","v":"Das Vorhaben hat eine gewisse Klimarelevanz.   Für die Fragen mit L und K sind Verbesserungen im Bezug auf Klimaschutz möglich."},{"$f":"_xlfn.TEXTJOIN(\"  \",,Berechnungen!B397, Berechnungen!C397)","v":""}]
[{"$f":"Berechnungen!A398","v":"Alternativen-prüfung"},{"$f":"_xlfn.TEXTJOIN(\"  \",,Berechnungen!B398, Berechnungen!C398)","v":"Alternativen um das Vorhaben klimafreundlicher umzusetzen: "}]
[{"$f":"Berechnungen!A399","v":0},{"$f":"_xlfn.TEXTJOIN(\"  \",,Berechnungen!B399, Berechnungen!C399)","v":"ad 10.1\nbis\nad 10.4  Nennenswerte Berücksichtigung von klimaschonenden Kriterien bei allen Detailfragen"}]
[{"$f":"Berechnungen!A400","v":0},{"$f":"_xlfn.TEXTJOIN(\"  \",,Berechnungen!B400, Berechnungen!C400)","v":""}]
[{"$f":"Berechnungen!A401","v":0},{"$f":"_xlfn.TEXTJOIN(\"  \",,Berechnungen!B401, Berechnungen!C401)","v":""}]
[{"$f":"Berechnungen!A402","v":0},{"$f":"_xlfn.TEXTJOIN(\"  \",,Berechnungen!B402, Berechnungen!C402)","v":""}]
[{"$f":"Berechnungen!A403","v":0},{"$f":"_xlfn.TEXTJOIN(\"  \",,Berechnungen!B403, Berechnungen!C403)","v":"Angabe der Alternativen in Stichworten:"}]
[{"$f":"Berechnungen!A404","v":0},{"$f":"_xlfn.TEXTJOIN(\"  \",,Berechnungen!B404, Berechnungen!C404)","v":""}]
[{"$f":"Berechnungen!A405","v":0},{"$f":"_xlfn.TEXTJOIN(\"  \",,Berechnungen!B405, Berechnungen!C405)","v":"Welche Werte ergeben sich unter Berücksichtigung der Alternativen?"}]
[{"$f":"Berechnungen!A406","v":0},{"$f":"_xlfn.TEXTJOIN(\"  \",,Berechnungen!B406, Berechnungen!C406)","v":"10.1  Werden im örtlichen Raumordnunsprogramm bzw. der Flächenwidmung die übergeordneten klimarelevanten Ziele und Planungen integriert?    Beispiele: Österreichische Klima- und Energiestrategie \"mission2030\"; Landesentwicklungsprogramm, Regionale Entwicklungsprogramme, Leitbilder o.ä."},{"$f":"B405&CHAR(10)&CHAR(10)&B406&CHAR(10)&CHAR(10)&B407&CHAR(10)&CHAR(10)&B408&CHAR(10)&CHAR(10)","v":"10.1  Werden im örtlichen Raumordnunsprogramm bzw. der Flächenwidmung die übergeordneten klimarelevanten Ziele und Planungen integriert?    Beispiele: Österreichische Klima- und Energiestrategie \"mission2030\"; Landesentwicklungsprogramm, Regionale Entwicklungsprogramme, Leitbilder o.ä.\n\n10.2  Werden im Bebauungsplan, bei Baulandumlegung bzw. bei Änderungen der Bauvorschriften und bei privatwirtschaftlichen Raumplanungsverträgen die übergeordneten klimarelevanten Ziele und Planungen integriert?  \n\n10.3  Werden im Städtebaulichen Leitbild, bei Stadtentwicklungskonzepten, Quartiersentwicklungen, Freiraumkonzepten o. ä. die übergeordneten klimarelevanten Ziele und Planungen integriert? \n\n10.4  Wird in allen oben genannten Planungen die Klimawandelanpassung berücksichtigt? \nZ. B. Landschaftskonzept, Baumkataster\n\n"}]
[{"$f":"Berechnungen!A407","v":0},{"$f":"_xlfn.TEXTJOIN(\"  \",,Berechnungen!B407, Berechnungen!C407)","v":"10.2  Werden im Bebauungsplan, bei Baulandumlegung bzw. bei Änderungen der Bauvorschriften und bei privatwirtschaftlichen Raumplanungsverträgen die übergeordneten klimarelevanten Ziele und Planungen integriert?  "}]
[{"$f":"Berechnungen!A408","v":0},{"$f":"_xlfn.TEXTJOIN(\"  \",,Berechnungen!B408, Berechnungen!C408)","v":"10.3  Werden im Städtebaulichen Leitbild, bei Stadtentwicklungskonzepten, Quartiersentwicklungen, Freiraumkonzepten o. ä. die übergeordneten klimarelevanten Ziele und Planungen integriert? "}]
[{"$f":"Berechnungen!A409","v":0},{"$f":"_xlfn.TEXTJOIN(\"  \",,Berechnungen!B409, Berechnungen!C409)","v":"10.4  Wird in allen oben genannten Planungen die Klimawandelanpassung berücksichtigt? \nZ. B. Landschaftskonzept, Baumkataster"}]
[{"$f":"Berechnungen!A410","v":0},{"$f":"_xlfn.TEXTJOIN(\"  \",,Berechnungen!B410, Berechnungen!C410)","v":""}]
[{"$f":"Berechnungen!A411","v":"Nutzung dieses Vorhabens als Kompensations-maßnahme\nDie Angaben werden automatisch von Detail- bzw. Alternativfragen übernommen"},{"$f":"_xlfn.TEXTJOIN(\"  \",,Berechnungen!B411, Berechnungen!C411)","v":"10.1  Werden im örtlichen Raumordnunsprogramm bzw. der Flächenwidmung die übergeordneten klimarelevanten Ziele und Planungen integriert?    Beispiele: Österreichische Klima- und Energiestrategie \"mission2030\"; Landesentwicklungsprogramm, Regionale Entwicklungsprogramme, Leitbilder o.ä."},{"$f":"B410&CHAR(10)&CHAR(10)&B411&CHAR(10)&CHAR(10)&B412&CHAR(10)&CHAR(10)&B413&CHAR(10)&CHAR(10)","v":"10.1  Werden im örtlichen Raumordnunsprogramm bzw. der Flächenwidmung die übergeordneten klimarelevanten Ziele und Planungen integriert?    Beispiele: Österreichische Klima- und Energiestrategie \"mission2030\"; Landesentwicklungsprogramm, Regionale Entwicklungsprogramme, Leitbilder o.ä.\n\n10.2  Werden im Bebauungsplan, bei Baulandumlegung bzw. bei Änderungen der Bauvorschriften und bei privatwirtschaftlichen Raumplanungsverträgen die übergeordneten klimarelevanten Ziele und Planungen integriert?  \n\n10.3  Werden im Städtebaulichen Leitbild, bei Stadtentwicklungskonzepten, Quartiersentwicklungen, Freiraumkonzepten o. ä. die übergeordneten klimarelevanten Ziele und Planungen integriert? \n\n10.4  Wird in allen oben genannten Planungen die Klimawandelanpassung berücksichtigt? \nZ. B. Landschaftskonzept, Baumkataster\n\n"}]
[{"$f":"Berechnungen!A412","v":0},{"$f":"_xlfn.TEXTJOIN(\"  \",,Berechnungen!B412, Berechnungen!C412)","v":"10.2  Werden im Bebauungsplan, bei Baulandumlegung bzw. bei Änderungen der Bauvorschriften und bei privatwirtschaftlichen Raumplanungsverträgen die übergeordneten klimarelevanten Ziele und Planungen integriert?  "}]
[{"$f":"Berechnungen!A413","v":0},{"$f":"_xlfn.TEXTJOIN(\"  \",,Berechnungen!B413, Berechnungen!C413)","v":"10.3  Werden im Städtebaulichen Leitbild, bei Stadtentwicklungskonzepten, Quartiersentwicklungen, Freiraumkonzepten o. ä. die übergeordneten klimarelevanten Ziele und Planungen integriert? "}]
[{"$f":"Berechnungen!A414","v":0},{"$f":"_xlfn.TEXTJOIN(\"  \",,Berechnungen!B414, Berechnungen!C414)","v":"10.4  Wird in allen oben genannten Planungen die Klimawandelanpassung berücksichtigt? \nZ. B. Landschaftskonzept, Baumkataster"}]
[{"$f":"Berechnungen!A415","v":0},{"$f":"_xlfn.TEXTJOIN(\"  \",,Berechnungen!B415, Berechnungen!C415)","v":""}]
[{"$f":"Berechnungen!A416","v":0},{"$f":"_xlfn.TEXTJOIN(\"  \",,Berechnungen!B416, Berechnungen!C416)","v":""}]
[{"$f":"Berechnungen!A417","v":0},{"$f":"_xlfn.TEXTJOIN(\"  \",,Berechnungen!B417, Berechnungen!C417)","v":""}]
[{"$f":"Berechnungen!A418","v":0},{"$f":"_xlfn.TEXTJOIN(\"  \",,Berechnungen!B418, Berechnungen!C418)","v":""}]
[{"$f":"Berechnungen!A419","v":0},{"$f":"_xlfn.TEXTJOIN(\"  \",,Berechnungen!B419, Berechnungen!C419)","v":""}]
[{"$f":"Berechnungen!A420","v":0},{"$f":"_xlfn.TEXTJOIN(\"  \",,Berechnungen!B420, Berechnungen!C420)","v":""}]
[{"$f":"Berechnungen!A421","v":0},{"$f":"_xlfn.TEXTJOIN(\"  \",,Berechnungen!B421, Berechnungen!C421)","v":""}]
[{"$f":"Berechnungen!A422","v":0},{"$f":"_xlfn.TEXTJOIN(\"  \",,Berechnungen!B422, Berechnungen!C422)","v":""}]
[{"$f":"Berechnungen!A423","v":0},{"$f":"_xlfn.TEXTJOIN(\"  \",,Berechnungen!B423, Berechnungen!C423)","v":""}]
[{"$f":"Berechnungen!A424","v":0},{"$f":"_xlfn.TEXTJOIN(\"  \",,Berechnungen!B424, Berechnungen!C424)","v":""}]
[{"$f":"Berechnungen!A425","v":0},{"$f":"_xlfn.TEXTJOIN(\"  \",,Berechnungen!B425, Berechnungen!C425)","v":""}]
[{"$f":"Berechnungen!A426","v":0},{"$f":"_xlfn.TEXTJOIN(\"  \",,Berechnungen!B426, Berechnungen!C426)","v":""}]
[{"$f":"Berechnungen!A427","v":0},{"$f":"_xlfn.TEXTJOIN(\"  \",,Berechnungen!B427, Berechnungen!C427)","v":""}]
[{"$f":"Berechnungen!A428","v":"Öffentlichkeitsarbeit & Förderungen"},{"$f":"_xlfn.TEXTJOIN(\"  \",,Berechnungen!B428, Berechnungen!C428)","v":"11.  Kann mit dem Projekt öffentlichkeitswirksam für mehr Klimaschutz bei der  Bevölkerung und der Verwaltung geworben werden? Auch durch Förderungen oder Abgaben für Ver- und Entsorgung."}]
[{"$f":"Berechnungen!A429","v":0},{"$f":"_xlfn.TEXTJOIN(\"  \",,Berechnungen!B429, Berechnungen!C429)","v":""},"Frage111Text","Frage111Hilfe","Frage112Hilfe","Frage113Hilfe","Frage114Hilfe","Frage115Hilfe"]
[{"$f":"Berechnungen!A430","v":"Detailfragen"},{"$f":"_xlfn.TEXTJOIN(\"  \",,Berechnungen!B430, Berechnungen!C430)","v":"11.1  Ist eine Information über die positiven Auswirkungen des Projekts auf den Klimaschutz für die BürgerInnen (Presse, Homepage etc.) geplant?"},{"$f":"B429&CHAR(10)&CHAR(10)&CHAR(10)&B430&CHAR(10)&CHAR(10)&CHAR(10)&B431&CHAR(10)&CHAR(10)&CHAR(10)&B432&CHAR(10)&CHAR(10)&CHAR(10)&B433","v":"11.1  Ist eine Information über die positiven Auswirkungen des Projekts auf den Klimaschutz für die BürgerInnen (Presse, Homepage etc.) geplant?\n\n\n11.2  Ist eine Information über die positiven Auswirkungen des Projekts auf den Klimaschutz für die Verwaltung, für die Politik oder für andere Gebietskörperschaften (andere Gemeinden) geplant?\n\n\n11.3  Ist eine Bürgerbeteiligung, Partizipation für mehr Klimaschutz in der Bevölkerung geplant?\n\n\n11.4  Werden bei geplanten Förderungen der Stadt/Gemeinde Klimaauswirkungen berücksichtigt?\n\n\n11.5  Wirken sich Abgabenänderungen bei Wasserversorgung, Abfallwirtschaft, Parkraumbewirtschaftung etc. positiv auf klimaschonendes bzw. ressourcenschonendes Verhalten der Kunden aus?"},"Gemeinden übernehmen in Klimaschutzfragen eine Vorbildwirkung. Über eine Berichterstattung von Vorbildprojekten kann diese Rolle auch aktiv wahrgenomen werden. Bereits in der Planungsphase des Projektes sollte die Kommunikation nach Außen mitgedacht werden.\n\nKriterien:\n1) Eine Medienkampagne zum Projekt ist vorgesehen, Inhalte sind definiert\n2) alle regionalen Medien, alle relevanten Zielgruppen werden angesprochen\n3) zusätzlich zur Berichterstattung in kommunalen Medien ist auch eine regionale bzw. überregionale Berichtersatttung vorgesehen\n4) festgehalten in einem Tätigkeitsbericht\n5) Budget zur Öffentlichkeitsarbeit (ÖA) ist in der Kostenplanung berücksichtigt\n6) Projektbudget für ÖA in Prozent des Gesamtbudgets (incl. eigenen Aufwendungen zB Personal usw.) übersteigt 0,5% des Projektbudgets\n\nBewertung:\n   gering: einfache Berichtersattung in kommunalen Medien (Homepage, Social media, Gemeindezeitung und regionale Berichterstattung (Presseaussendung) ist geplant \n   teilweise: zumindest  1) und 2) der oben genannten Kriterien werden erfüllt\n   maßgeblich: 1) und 2) und zwei weitere der oben angeführte Kriterien werden erfüllt\nDie Ampelbewertung wird auf geringe und mittlere Klimarelevanz beschränkt (weil keine direkte Klimaauswirkung durch das Projekt selbst). ","Das Projekt wird gemeindeintern zur Bewusstseinsbildung bei den Mitarbeiter*innen  kommuniziert. Des weiteren übernimmt die Gemeinde ihre Vorbildwirkung auch gegenüber anderen Gemeinden und bereitet das Projekt so auf, dass andere Gemeinden zur Nachahmung inspiriert werden.\n \nKriterien: \n1) Über die Ergebnisse des Projektes wird in den Gemeindegremien diskutiert (zB. Energieeinsparung, positive Klimawirkung,..)\n2) Die Aufarbeitung des Projektes ist in einer Form geplant, dass dieses als Ziel von Exkursionen für andere Gemeinden dienen kann (eigene Broschüre, Infofolder, Platzierung als best practice auf diversen Plattformen)\n3) Angebot zur Unterstützung von anderen Gemeinden ist im Projektentwurf vorgesehen (Erfahrungsaustausch, Informationen werden zur Verfügung gestellt, Aufbereitung von Unterlagen usw. )\n4) Eine Ideenbörse (KVP) mit einem klaren Fokus auf das Thema Klimaschutz unterstützt die intere Kommunikation\n5) der messbare Klimaeffekt wird in einem Bericht festgehalten\n\nBewertung: \n   gering: ein Punkt der oben angeführten Kriterien wird durch das Projekt erfüllt\n   teilweise: zumindest zwei Punkte der oben angeführten Kriterien werden durch das Projekt erfüllt \n   maßgeblich: 3 oder mehr angeführte Kriterien werden erfüllt\nDie Ampelbewertung wird auf geringe und mittlere Klimarelevanz beschränkt (weil keine direkte Klimaauswirkung durch das Projekt selbst). ","Zur Öffentlichkeitsbeteiligung gibt es verschiedene Informationsquellen z.B. Standards der Öffentlichkeitsbeteiligung \nauf Bundesebene (www.partizipation.at) oder das Praxisbuch der Patizipation der Stadt Wien.\nIn Vorarlberg und Kärnten werden z.T. BürgerInnenräte für Partizipation eingesetzt.\n\nBewertung: \n   gering: Bürgerbeteiligung erfolgt in Form eines Fragebogens o.ä. bzw. über ein Formular auf der Homepage der Gemeinde. Erforderlich ist zumindest einmalige Infomation aller Haushalte via Gemeindezeitung, Postwurf etc.\n   teilweise: zusätzlich zur ersten Stufe (gering) erfolgt eine  weiterführende Einbindung bei einer Bürgerversammlung o.ä., Unterscheidung zu gering: Wahl eines persölichen Zuganges zu den BürgerInnen, zB. durch eine persönliche Befragung einer ausgewälten Bevölkerungsgruppe.\n   maßgeblich: 1) ein eigener Partizipationsprozess im Projekt ist vorgesehen und budgetiert; 2) externe Unterstützung wünschenswert oder Umsetzung durch eigenes qualifiziertes Personal; 3) formuliertes Ziel für eine klimaschonende Lösung des Projekts","Die Frage bezieht sich auf alle Förderungen oder Subventionen der Stadt für alle Bereiche. \n\nKriterien:\n   Verknüfung von Förderungen mit Vorgaben für Umwelt, Energie, Mobilität oder Klimaschutz.\n\nBeispiele: \n1) Bei Bau- und Sanierungsmaßnahmen gibt es Kriterien Kriterien zur Energiekannzahl, zur Dämmstärke oder zu den verwendeten Materialien.\n2)  Bei einem Heizkesseltausch wird ein Mindestanteil erneuerbarer Energie gefordert, es gibt Kriterien zur Energieeffizienz.\n3) Wirtschaftsförderungen nur unter Berücksichtigung von Umweltauflagen (zB Mobilitätsmanagement für MitarbeiterInnen) bzw. Zusatzförderungen bei Erlangung von Umweltzertifikaten zB ISO 50001, EMAS usw.\n4) Kriterien für Vereinsförderungen z.B. wenn Veranstaltungen der Vereine nach den Kriterien für Green Events oder gleichwertig abgehalten werden (Bundeslandspezifische Mindetskriterien z.B. Sauberhafte Feste).\n\nBewertung:\n   gering: Bei einer geplanten Förderung werden keine oder einfach zu erfüllende Forderungen an den Förderwerber gestellt. Diese Mindestkriterien lassen sich durch den Förderwerber ohne finanziellen Mehraufwand umsetzten (Bsp: Ein Sportverein als Förderwerber verplichtet sich, regelmäßig  seine Vereinsmitglieder über eine  klimaschonenden Anreise zum Vereinsgelände  zu informieren, zB in der Vereinszeitung, Anschlagstafel usw.) \n   teilweise:  In den Förderkriterien werden Maßnahmen zur rationellen Energieverwendung, nachhaltigen Mobilität oder sparsamen Ressourcennutzung aufgenommen. Über die positiven Umweltauswirkungen muss ein Nachweis erbracht werden.\n   maßgeblich: Förderungen werden nur gewährt wenn negative Umweltauswirkungen durch die Förderungen nachweislich reduziert werden und ein kontinuierlicher Verbesserungsprozess eingeleitet wird.  Dies kann zB. durch die Einführung eines Umweltmanagementsystems o.a. gewährleistet werden.  \n\nEinzelne bzw. einmalige Förderungen an einen Betrieb, einen Verein oder eine andere Organisation werden maximal mit teilweise bewertet. Der Klimanutzen ist dadurch maximal \"mittel\".","Die Höhe und die Beschaffenheit von Abgaben spiegeln das Verursacherprizip wieder. Externe Kosten werden nicht auf alle BürgerInnen umgelegt.\nAbgabenarten: Abfallgebühren, Wassergebühren, Parkgebühren, Aufschließungsgebühren etc.\n\nBeispiele: Parkraumbewirtschaftung, deren Einnahmen zweckgebundene zum Ausbau des Öffentlichen Verkehrsangebotes verwendet werden, Aufschließungsgebühren werden nach tats. Aufwand berechnet etc.\n\nKriterien\n  Kosten werden auf den tatsächlichen Verbrauch umgelegt.\n   die Preisgestaltung unterstützt ressourcenschonendes Verhalten (lineare Tarife, keine Mengenrabatte oder andere Preisnachlässe).\n   Die Abgabenhöhe hat einen nachweislichen Lenkungseffekt z.B. über die Höhe der Parkgebühren bei Parkraumbewirtschaftung.\n   die Mittel aus der Bewirtschaftung bzw. die Abgaben werden zweckgebunden verwendet oder die Mittelverwendung entspricht den Aspekten der Nachhaltigkeit.\n\nBewertung:\n  gering: eines der oben angeführten Kriterien wird erfüllt.\n  teiweise: mindestens zwei der o.g. Kriterien werden erfüllt.\n  maßgeblich: alle Kriterien werden vollumfänglich erfüllt."]
[{"$f":"Berechnungen!A431","v":0},{"$f":"_xlfn.TEXTJOIN(\"  \",,Berechnungen!B431, Berechnungen!C431)","v":"11.2  Ist eine Information über die positiven Auswirkungen des Projekts auf den Klimaschutz für die Verwaltung, für die Politik oder für andere Gebietskörperschaften (andere Gemeinden) geplant?"}]
[{"$f":"Berechnungen!A432","v":0},{"$f":"_xlfn.TEXTJOIN(\"  \",,Berechnungen!B432, Berechnungen!C432)","v":"11.3  Ist eine Bürgerbeteiligung, Partizipation für mehr Klimaschutz in der Bevölkerung geplant?"}]
[{"$f":"Berechnungen!A433","v":0},{"$f":"_xlfn.TEXTJOIN(\"  \",,Berechnungen!B433, Berechnungen!C433)","v":"11.4  Werden bei geplanten Förderungen der Stadt/Gemeinde Klimaauswirkungen berücksichtigt?"}]
[{"$f":"Berechnungen!A434","v":0},{"$f":"_xlfn.TEXTJOIN(\"  \",,Berechnungen!B434, Berechnungen!C434)","v":"11.5  Wirken sich Abgabenänderungen bei Wasserversorgung, Abfallwirtschaft, Parkraumbewirtschaftung etc. positiv auf klimaschonendes bzw. ressourcenschonendes Verhalten der Kunden aus?"}]
[{"$f":"Berechnungen!A435","v":0},{"$f":"_xlfn.TEXTJOIN(\"  \",,Berechnungen!B435, Berechnungen!C435)","v":"Kurzbeschreibung / Auflistung der Maßnahmen: "}]
[{"$f":"Berechnungen!A436","v":0},{"$f":"_xlfn.TEXTJOIN(\"  \",,Berechnungen!B436, Berechnungen!C436)","v":""}]
[{"$f":"Berechnungen!A437","v":0},{"$f":"_xlfn.TEXTJOIN(\"  \",,Berechnungen!B437, Berechnungen!C437)","v":""}]
[{"$f":"Berechnungen!A438","v":0},{"$f":"_xlfn.TEXTJOIN(\"  \",,Berechnungen!B438, Berechnungen!C438)","v":""}]
[{"$f":"Berechnungen!A439","v":0},{"$f":"_xlfn.TEXTJOIN(\"  \",,Berechnungen!B439, Berechnungen!C439)","v":""}]
[{"$f":"Berechnungen!A440","v":"Das Vorhaben hat eine gewisse Klimarelevanz.   Für die Fragen mit L und K sind Verbesserungen im Bezug auf Klimaschutz möglich."},{"$f":"_xlfn.TEXTJOIN(\"  \",,Berechnungen!B440, Berechnungen!C440)","v":""}]
[{"$f":"Berechnungen!A441","v":"Alternativen-prüfung"},{"$f":"_xlfn.TEXTJOIN(\"  \",,Berechnungen!B441, Berechnungen!C441)","v":"Alternativen um das Vorhaben klimafreundlicher umzusetzen: "}]
[{"$f":"Berechnungen!A442","v":0},{"$f":"_xlfn.TEXTJOIN(\"  \",,Berechnungen!B442, Berechnungen!C442)","v":"ad 11.1\nbis\nad 11.5  Mehr Kriterien umsetzen, die in den Hilfe-Angaben zu den Detailfragen angegeben sind"}]
[{"$f":"Berechnungen!A443","v":0},{"$f":"_xlfn.TEXTJOIN(\"  \",,Berechnungen!B443, Berechnungen!C443)","v":""}]
[{"$f":"Berechnungen!A444","v":0},{"$f":"_xlfn.TEXTJOIN(\"  \",,Berechnungen!B444, Berechnungen!C444)","v":""}]
[{"$f":"Berechnungen!A445","v":0},{"$f":"_xlfn.TEXTJOIN(\"  \",,Berechnungen!B445, Berechnungen!C445)","v":""}]
[{"$f":"Berechnungen!A446","v":0},{"$f":"_xlfn.TEXTJOIN(\"  \",,Berechnungen!B446, Berechnungen!C446)","v":""}]
[{"$f":"Berechnungen!A447","v":0},{"$f":"_xlfn.TEXTJOIN(\"  \",,Berechnungen!B447, Berechnungen!C447)","v":"Angabe der Alternativen in Stichworten:"}]
[{"$f":"Berechnungen!A448","v":0},{"$f":"_xlfn.TEXTJOIN(\"  \",,Berechnungen!B448, Berechnungen!C448)","v":""}]
[{"$f":"Berechnungen!A449","v":0},{"$f":"_xlfn.TEXTJOIN(\"  \",,Berechnungen!B449, Berechnungen!C449)","v":"Welche Werte ergeben sich unter Berücksichtigung der Alternativen?"}]
[{"$f":"Berechnungen!A450","v":0},{"$f":"_xlfn.TEXTJOIN(\"  \",,Berechnungen!B450, Berechnungen!C450)","v":"11.1  Ist eine Information über die positiven Auswirkungen des Projekts auf den Klimaschutz für die BürgerInnen (Presse, Homepage etc.) geplant?"},{"$f":"B449&CHAR(10)&CHAR(10)&B450&CHAR(10)&CHAR(10)&B451&CHAR(10)&CHAR(10)&B452&CHAR(10)&CHAR(10)&B453","v":"11.1  Ist eine Information über die positiven Auswirkungen des Projekts auf den Klimaschutz für die BürgerInnen (Presse, Homepage etc.) geplant?\n\n11.2  Ist eine Information über die positiven Auswirkungen des Projekts auf den Klimaschutz für die Verwaltung, für die Politik oder für andere Gebietskörperschaften (andere Gemeinden) geplant?\n\n11.3  Ist eine Bürgerbeteiligung, Partizipation für mehr Klimaschutz in der Bevölkerung geplant?\n\n11.4  Werden bei geplanten Förderungen der Stadt/Gemeinde Klimaauswirkungen berücksichtigt?\n\n11.5  Wirken sich Abgabenänderungen bei Wasserversorgung, Abfallwirtschaft, Parkraumbewirtschaftung etc. positiv auf klimaschonendes bzw. ressourcenschonendes Verhalten der Kunden aus?"}]
[{"$f":"Berechnungen!A451","v":0},{"$f":"_xlfn.TEXTJOIN(\"  \",,Berechnungen!B451, Berechnungen!C451)","v":"11.2  Ist eine Information über die positiven Auswirkungen des Projekts auf den Klimaschutz für die Verwaltung, für die Politik oder für andere Gebietskörperschaften (andere Gemeinden) geplant?"}]
[{"$f":"Berechnungen!A452","v":0},{"$f":"_xlfn.TEXTJOIN(\"  \",,Berechnungen!B452, Berechnungen!C452)","v":"11.3  Ist eine Bürgerbeteiligung, Partizipation für mehr Klimaschutz in der Bevölkerung geplant?"}]
[{"$f":"Berechnungen!A453","v":0},{"$f":"_xlfn.TEXTJOIN(\"  \",,Berechnungen!B453, Berechnungen!C453)","v":"11.4  Werden bei geplanten Förderungen der Stadt/Gemeinde Klimaauswirkungen berücksichtigt?"}]
[{"$f":"Berechnungen!A454","v":0},{"$f":"_xlfn.TEXTJOIN(\"  \",,Berechnungen!B454, Berechnungen!C454)","v":"11.5  Wirken sich Abgabenänderungen bei Wasserversorgung, Abfallwirtschaft, Parkraumbewirtschaftung etc. positiv auf klimaschonendes bzw. ressourcenschonendes Verhalten der Kunden aus?"}]
[{"$f":"Berechnungen!A455","v":0},{"$f":"_xlfn.TEXTJOIN(\"  \",,Berechnungen!B455, Berechnungen!C455)","v":""}]
[{"$f":"Berechnungen!A456","v":"Nutzung dieses Vorhabens als Kompensations-maßnahme\nDie Angaben werden automatisch von Detail- bzw. Alternativfragen übernommen"},{"$f":"_xlfn.TEXTJOIN(\"  \",,Berechnungen!B456, Berechnungen!C456)","v":"11.1  Ist eine Information über die positiven Auswirkungen des Projekts auf den Klimaschutz für die BürgerInnen (Presse, Homepage etc.) geplant?"},{"$f":"B455&CHAR(10)&CHAR(10)&B456&CHAR(10)&CHAR(10)&B457&CHAR(10)&CHAR(10)&B458&CHAR(10)&CHAR(10)&B459","v":"11.1  Ist eine Information über die positiven Auswirkungen des Projekts auf den Klimaschutz für die BürgerInnen (Presse, Homepage etc.) geplant?\n\n11.2  Ist eine Information über die positiven Auswirkungen des Projekts auf den Klimaschutz für die Verwaltung, für die Politik oder für andere Gebietskörperschaften (andere Gemeinden) geplant?\n\n11.3  Ist eine Bürgerbeteiligung, Partizipation für mehr Klimaschutz in der Bevölkerung geplant?\n\n11.4  Werden bei geplanten Förderungen der Stadt/Gemeinde Klimaauswirkungen berücksichtigt?\n\n11.5  Wirken sich Abgabenänderungen bei Wasserversorgung, Abfallwirtschaft, Parkraumbewirtschaftung etc. positiv auf klimaschonendes bzw. ressourcenschonendes Verhalten der Kunden aus?"}]
[{"$f":"Berechnungen!A457","v":0},{"$f":"_xlfn.TEXTJOIN(\"  \",,Berechnungen!B457, Berechnungen!C457)","v":"11.2  Ist eine Information über die positiven Auswirkungen des Projekts auf den Klimaschutz für die Verwaltung, für die Politik oder für andere Gebietskörperschaften (andere Gemeinden) geplant?"}]
[{"$f":"Berechnungen!A458","v":0},{"$f":"_xlfn.TEXTJOIN(\"  \",,Berechnungen!B458, Berechnungen!C458)","v":"11.3  Ist eine Bürgerbeteiligung, Partizipation für mehr Klimaschutz in der Bevölkerung geplant?"}]
[{"$f":"Berechnungen!A459","v":0},{"$f":"_xlfn.TEXTJOIN(\"  \",,Berechnungen!B459, Berechnungen!C459)","v":"11.4  Werden bei geplanten Förderungen der Stadt/Gemeinde Klimaauswirkungen berücksichtigt?"}]
[{"$f":"Berechnungen!A460","v":0},{"$f":"_xlfn.TEXTJOIN(\"  \",,Berechnungen!B460, Berechnungen!C460)","v":"11.5  Wirken sich Abgabenänderungen bei Wasserversorgung, Abfallwirtschaft, Parkraumbewirtschaftung etc. positiv auf klimaschonendes bzw. ressourcenschonendes Verhalten der Kunden aus?"}]
[{"$f":"Berechnungen!A461","v":0},{"$f":"_xlfn.TEXTJOIN(\"  \",,Berechnungen!B461, Berechnungen!C461)","v":""}]
[{"$f":"Berechnungen!A462","v":0},{"$f":"_xlfn.TEXTJOIN(\"  \",,Berechnungen!B462, Berechnungen!C462)","v":""}]
[{"$f":"Berechnungen!A463","v":0},{"$f":"_xlfn.TEXTJOIN(\"  \",,Berechnungen!B463, Berechnungen!C463)","v":""}]
[{"$f":"Berechnungen!A464","v":0},{"$f":"_xlfn.TEXTJOIN(\"  \",,Berechnungen!B464, Berechnungen!C464)","v":""}]
[{"$f":"Berechnungen!A465","v":0},{"$f":"_xlfn.TEXTJOIN(\"  \",,Berechnungen!B465, Berechnungen!C465)","v":""}]
[{"$f":"Berechnungen!A466","v":0},{"$f":"_xlfn.TEXTJOIN(\"  \",,Berechnungen!B466, Berechnungen!C466)","v":""}]
[{"$f":"Berechnungen!A467","v":0},{"$f":"_xlfn.TEXTJOIN(\"  \",,Berechnungen!B467, Berechnungen!C467)","v":""}]
[{"$f":"Berechnungen!A468","v":0},{"$f":"_xlfn.TEXTJOIN(\"  \",,Berechnungen!B468, Berechnungen!C468)","v":""}]
[{"$f":"Berechnungen!A469","v":0},{"$f":"_xlfn.TEXTJOIN(\"  \",,Berechnungen!B469, Berechnungen!C469)","v":""}]
[{"$f":"Berechnungen!A470","v":0},{"$f":"_xlfn.TEXTJOIN(\"  \",,Berechnungen!B470, Berechnungen!C470)","v":""}]
[{"$f":"Berechnungen!A471","v":0},{"$f":"_xlfn.TEXTJOIN(\"  \",,Berechnungen!B471, Berechnungen!C471)","v":""}]
[{"$f":"Berechnungen!A472","v":0},{"$f":"_xlfn.TEXTJOIN(\"  \",,Berechnungen!B472, Berechnungen!C472)","v":""}]
[{"$f":"Berechnungen!A473","v":0},{"$f":"_xlfn.TEXTJOIN(\"  \",,Berechnungen!B473, Berechnungen!C473)","v":""}]
[{"$f":"Berechnungen!A474","v":0},{"$f":"_xlfn.TEXTJOIN(\"  \",,Berechnungen!B474, Berechnungen!C474)","v":""}]
[{"$f":"Berechnungen!A475","v":"Sonstige positive Klimarelevanz"},{"$f":"_xlfn.TEXTJOIN(\"  \",,Berechnungen!B475, Berechnungen!C475)","v":"12.  Gibt es eine positive Auswirkung auf das Klima, die in den vorherigen Fragen nicht erwähnt wurde?"}]
[{"$f":"Berechnungen!A476","v":"Detailfragen"},{"$f":"_xlfn.TEXTJOIN(\"  \",,Berechnungen!B476, Berechnungen!C476)","v":"12.1  Welche positiven Auswirkungen auf das Klima hat das Vorhaben?"}]
[{"$f":"Berechnungen!A477","v":0},{"$f":"_xlfn.TEXTJOIN(\"  \",,Berechnungen!B477, Berechnungen!C477)","v":""}]
[{"$f":"Berechnungen!A478","v":0},{"$f":"_xlfn.TEXTJOIN(\"  \",,Berechnungen!B478, Berechnungen!C478)","v":""}]
[{"$f":"Berechnungen!A479","v":0},{"$f":"_xlfn.TEXTJOIN(\"  \",,Berechnungen!B479, Berechnungen!C479)","v":"12.1a  Nutzung als Kompensationsmaßnahme: Welche Kompensationswirkung würden Sie der Maßnahme zuschreiben?\n (gering kompensiert eine  grüne, mittel eine gelbe und hoch eine rote Ampel) "}]
[{"$f":"Berechnungen!A480","v":0},{"$f":"_xlfn.TEXTJOIN(\"  \",,Berechnungen!B480, Berechnungen!C480)","v":""}]